Workbook

Sheet Lists (hidden)
L1: Syntaxfor"Groups",nospacebetweennumberandletter,i.e.11B.
A2: DataValidationLists | D2: EquipmentFleets | I2: Materials | L2: WageSelection
D3: SlopeRegradingFleets | F3: Liner Repair/ Replacement | I3: HolePluggingMaterials | L3: EquipmentOperators | P3: ToeOffsetCalculator
A4: Yes/No | L4: ='Labor Rates'!A35 -> Bulldozers
D5: Small | F5: Repair single | I5: Cuttings | L5: ='Labor Rates'!A36 -> D6T
A6: Yes | D6: Med | F6: Install/add single | I6: Cement | L6: ='Labor Rates'!A37 -> D6R w/ Winch
A7: No | D7: Large | F7: Replace single | I7: Grout | L7: ='Labor Rates'!A38 -> D7E | P7: Current Slope (a) | R7: 2 | S7: H:1V
F8: Add/replace double | L8: ='Labor Rates'!A39 -> D8T | P8: Final Slope (a') | R8: 3 | S8: H:1V
A9: True/False | D9: RoadRegradingFleets | I9: WellPumpTypes | L9: ='Labor Rates'!A40 -> D9T | P9: Lift Height (h) | R9: 20
D10: optimize | L10: ='Labor Rates'!A41 -> D10T2 | P10: Slope (approx) | R10: 0
A11: TRUE | D11: Small | I11: Submersible | L11: ='Labor Rates'!A42 -> D11T
A12: FALSE | D12: Medium | I12: Line Shaft | L12: ='Labor Rates'!A43 -> Wheeled Dozers | Q12: A | R12: =OffsetCurrentSlope*OffsetLiftHeight -> 40
A13: Dozer Materials | D13: Large | L13: ='Labor Rates'!A44 -> 824K | Q13: B | R13: =OffsetFinalSlope*OffsetLiftHeight -> 60
A14: (select material) | L14: ='Labor Rates'!A45 -> 834K | Q14: C | R14: =0.5*(R13-OffsetA) -> 10
A15: 1.2 | D15: CoverPlacementFleets | F15: TransportMethod | I15: Cost Estimate Type Groups | L15: ='Labor Rates'!A46 -> 844K
A16: 1 | D16: Small Truck | I16: (Select One) | L16: ='Labor Rates'!A47 -> 854K
A17: 0.8 | D17: Med Truck | F17: Road only | I17: =ARO -> ARO | L17: ='Labor Rates'!A48 -> Motor Graders | P17: SchedEquipList - used by EquipSchedHr routine - DO NOT DELETE
A18: 0.8 | D18: Large Truck | F18: Alternative | I18: =LOM -> LOM | L18: ='Labor Rates'!A49 -> 12M2 | P18: =L5 -> D6T | S18: =P18 -> D6T
A19: 0.6 | D19: XLarge Truck | I19: =Bond -> FA | L19: ='Labor Rates'!A50 -> 14M | P19: =L6 -> D6R w/ Winch | S19: =P19 -> D6R w/ Winch
D20: Scraper Dozer | I20: =ARO&"+"&LOM -> ARO+LOM | L20: ='Labor Rates'!A51 -> 16M3 | P20: D7E | S20: D7E
A21: Job Efficiency Correction | D21: Tandem Scraper | F21: Current Currency | I21: =ARO&"+"&LOM&"+"&Bond -> ARO+LOM+FA | L21: ='Labor Rates'!A52 -> 24M | P21: D8T | S21: D8T
I22: =ARO&"+"&Bond -> ARO+FA | L22: ='Labor Rates'!A53 -> Track Excavators | P22: =L9 -> D9T | S22: D9T
A23: 30 min/hr | B23: =ROUND(30/60,2) -> 0.5 | D23: RippingFleets | I23: =LOM&"+"&Bond -> LOM+FA | L23: ='Labor Rates'!A54 -> 312F | P23: D10T2 | S23: D10T2
A24: 35 min/hr | B24: =ROUND(35/60,2) -> 0.58 | L24: ='Labor Rates'!A55 -> 320F | P24: D11T | S24: D11T
A25: 40 min/hr | B25: =ROUND(40/60,2) -> 0.67 | D25: Small Dozer | L25: ='Labor Rates'!A56 -> 325F | P25: =L13 -> 824K | S25: 824K
A26: 45 min/hr | B26: =ROUND(45/60,2) -> 0.75 | D26: Med Dozer | F26: Filter Types | I26: Cost Estimate Types | L26: ='Labor Rates'!A57 -> 330F | P26: =L14 -> 834K | S26: 834K
A27: 50 min/hr | B27: =ROUND(50/60,2) -> 0.83 | D27: Large Dozer | I27: (Select One) | L27: ='Labor Rates'!A58 -> 349F | P27: =L15 -> 844K | S27: 844K
A28: 52.5 min/hr | B28: =ROUND(52.5/60,2) -> 0.88 | D28: Grader | F28: Exact | I28: ARO | L28: ='Labor Rates'!A59 -> 374F | P28: =L16 -> 854K | S28: 854K
A29: 55 min/hr | B29: =ROUND(55/60,2) -> 0.92 | F29: Contains | I29: LOM | L29: ='Labor Rates'!A60 -> 390F | P29: =L18 -> 12M2 | S29: 12M2
A30: 60 min/hr | B30: =ROUND(60/60,2) -> 1 | D30: SlabBreakingFleets | F30: Not | I30: Bond | L30: ='Labor Rates'!A61 -> Scrapers | P30: =L19 -> 14M | S30: 14M
L31: ='Labor Rates'!A62 -> 631K | P31: =L20 -> 16M3 | S31: 16M3
A32: Dozer Operator Correction | D32: Sm Excavator | E32: =SmallExcavator -> 325F | F32: Riprap Crews | I32: CheckBox - for dropdowns that need "X" (could use wingding font for checkbox or xbox) | L32: ='Labor Rates'!A63 -> 637K | P32: =L21 -> 24M | S32: 24M
D33: Med Excavator | E33: =MedExcavator -> 330F | F33: B-13 | L33: ='Labor Rates'!A64 -> Wheeled Loaders | P33: =L23 -> 312F | S33: 312F
A34: Excellent | B34: 1 | D34: Lg Excavator | E34: =LargeExcavator -> 349F | F34: B-12G | I34: X | L34: ='Labor Rates'!A65 -> 926M | P34: =L24 -> 320F | S34: 320F
A35: Average | B35: 0.75 | L35: ='Labor Rates'!A66 -> 930M | P35: 325F | S35: 325F
A36: Poor | B36: 0.6 | D36: RoadFleets | F36: Gabion Crew | I36: List for Equipment Use Graph | L36: ='Labor Rates'!A67 -> 950M | P36: 330F | S36: 330F
D37: Small Excavator | F37: B-13 | L37: ='Labor Rates'!A68 -> 966M | P37: 349F | S37: 349F
A38: Other Operator Correction | D38: Med Excavator | I38: Total Equipment | L38: ='Labor Rates'!A69 -> 972M | P38: 374F | S38: 374F
D39: Large Excavator | I39: =P18 -> D6T | L39: ='Labor Rates'!A70 -> 980M | P39: 390F | S39: 390F
A40: Excellent | B40: 1.25 | D40: Small Dozer | F40: Riprap Types | I40: =P19 -> D6R w/ Winch | L40: ='Labor Rates'!A71 -> 988K | P40: =L31 -> 631K | Q40: Haul | S40: 631K
A41: Average | B41: 1 | D41: Med Dozer | I41: D7E | L41: ='Labor Rates'!A72 -> 990K | P41: =L32 -> 637K | Q41: Haul | S41: 637K
A42: Poor | B42: 0.75 | D42: Large Dozer | F42: Rip-Rap 3/8 to 1/4 m3 pieces, grouted | I42: D8T | L42: ='Labor Rates'!A73 -> 992K | P42: =L34 -> 926M | S42: 926M
F43: Rip-Rap 450 mm min thick, no grout | I43: D9T | L43: ='Labor Rates'!A74 -> 994K | P43: =L35 -> 930M | S43: 930M
A44: Visibility Correction | D44: Number of Excavators | F44: Gabions, 6 in (150 mm) deep | I44: D10T2 | L44: ='Labor Rates'!A75 -> L2350 | P44: 950M | S44: 950M
A45: Normal | B45: 1 | F45: Gabions, 9 in (250 mm) deep | I45: D11T | L45: ='Labor Rates'!A76 -> Shovels/Excavators | P45: 966M | S45: 966M
A46: Dust, rain, snow, fog or darkness | B46: 0.8 | D46: 1 | F46: Gabions, 12 in (300 mm) deep | I46: 824K | L46: ='Labor Rates'!A77 -> PC2000 | P46: 972M | S46: 972M
D47: 2 | F47: Gabions, 18 in (450 mm) deep | I47: 834K | L47: ='Labor Rates'!A78 -> PC3000 | P47: 980M | S47: 980M
A48: Cover Materials | F48: Gabions, 36 in (1m) deep | I48: 844K | L48: ='Labor Rates'!A79 -> PC4000 | P48: 988K | S48: 988K
D49: BackfillFleets | I49: 854K | L49: ='Labor Rates'!A80 -> PC5500 | P49: 990K | S49: 990K
A50: =INDEX(HaulMaterials,B50) -> Alluvium | B50: 2 | D50: Small Truck | I50: 12M2 | L50: ='Labor Rates'!A81 -> PC8000 | P50: 992K | S50: 992K
A51: Basalt | B51: 3 | D51: Med Truck | I51: 14M | L51: ='Labor Rates'!A82 -> EX2500 | P51: 994K | S51: 994K
A52: Clay - Dry | B52: 4 | D52: Large Truck | I52: 16M3 | L52: ='Labor Rates'!A83 -> Hydraulic Hammers | P52: L2350 | S52: L2350
A53: Granite - broken | B53: 5 | D53: XLarge Truck | I53: 24M | L53: ='Labor Rates'!A84 -> H120Es (fits 325) | P53: =L46 -> PC2000 | S53: PC2000
A54: Gravel | B54: 6 | I54: 312F | L54: ='Labor Rates'!A85 -> H160Es (fits 349) | P54: PC3000 | S54: PC3000
A55: Limestone - broken | B55: 7 | D55: DitchExcavatorFleets | I55: 320F | L55: ='Labor Rates'!A86 -> H180Es (fits 374/390) | P55: PC4000 | S55: PC4000
A56: Limestone - crushed | B56: 8 | I56: 325F | L56: ='Labor Rates'!A87 -> Demolition Shears | P56: PC5500 | S56: PC5500
A57: Sandstone | B57: 9 | D57: Small | I57: 330F | L57: ='Labor Rates'!A88 -> S3050 (fits 320/325/330) | P57: PC8000 | S57: PC8000
A58: Shale | B58: 10 | D58: Medium | I58: 349F | L58: ='Labor Rates'!A89 -> S3070 (fits 330/349) | P58: EX2500 | S58: EX2500
A59: Stone - crushed | B59: 11 | D59: Large | I59: 374F | L59: ='Labor Rates'!A90 -> S3090 (fits 374/390) | P59: =L53 -> H120Es (fits 325) | S59: H120Es (fits 325)
A60: Tailings - Coarse (dry, loose sand) | B60: 12 | I60: 390F | L60: ='Labor Rates'!A91 -> Demolition Grapples | P60: =L54 -> H160Es (fits 349) | S60: H160Es (fits 349)
A61: Tailings - Slimes (loose sand & clay) | B61: 13 | D61: ProjectMaintenanceFleets | I61: 631K | L61: ='Labor Rates'!A92 -> G315B (fits 320/325) | P61: =L55 -> H180Es (fits 374/390) | S61: H180Es (fits 374/390)
A62: Topsoil | B62: 14 | I62: 637K | L62: ='Labor Rates'!A93 -> G320B (fits 325/330) | P62: =L57 -> S3050 (fits 320/325/330) | S62: S3050 (fits 320/325/330)
D63: Small | I63: 926M | L63: ='Labor Rates'!A94 -> G330 (fits 349/374) | P63: =L58 -> S3070 (fits 330/349) | S63: S3070 (fits 330/349)
A64: Dozing Density Correction | D64: Medium | I64: 930M | L64: ='Labor Rates'!A95 -> Other Equipment | P64: =L59 -> S3090 (fits 374/390) | S64: S3090 (fits 374/390)
D65: Large | I65: 950M | L65: ='Labor Rates'!A96 -> 420F2 | P65: =L61 -> G315B (fits 320/325) | S65: G315B (fits 320/325)
A66: =Productivity!B180 -> Alluvium | B66: =ROUND(2300/VLOOKUP(A66,DozingMaterialArray,2),2) -> 0.79 | D66: Liner Types | I66: 966M | L66: ='Labor Rates'!A97 -> 430F2 | P66: =L62 -> G320B (fits 325/330) | S66: G320B (fits 325/330)
A67: =Productivity!B181 -> Basalt | B67: 0.7 | I67: 972M | L67: ='Labor Rates'!A98 -> CS54B | P67: =L63 -> G330 (fits 349/374) | S67: G330 (fits 349/374)
A68: =Productivity!B182 -> Clay - Dry | B68: 0.92 | D68: None | I68: 980M | L68: ='Labor Rates'!A99 -> CS64B | P68: =L65 -> 420F2 | S68: 420F2
A69: =Productivity!B183 -> Granite - broken | B69: 0.82 | D69: ='Misc. Unit Costs'!B193 -> 60 mil HDPE | I69: 988K | L69: ='Labor Rates'!A100 -> CP54B | P69: 430F2 | S69: 430F2
A70: =Productivity!B184 -> Gravel | B70: 0.9 | I70: 990K | L70: ='Labor Rates'!A101 -> CP68B | P70: CS54B | S70: CS54B
A71: =Productivity!B185 -> Limestone - broken | B71: 0.88 | D71: ExplRoadFleets | I71: 992K | L71: ='Labor Rates'!A102 -> Light Truck - 1.5 Ton | P71: CS64B | S71: CS64B
A72: =Productivity!B186 -> Limestone - crushed | B72: 0.88 | D72: Small Excavator | I72: 994K | L72: ='Labor Rates'!A103 -> Supervisor's Truck | P72: CP54B | S72: CP54B
A73: =Productivity!B187 -> Sandstone | B73: 0.9 | D73: Small Dozer | E73: NoGrader | I73: L2350 | L73: ='Labor Rates'!A104 -> Flatbed Truck | P73: CP68B | S73: CP68B
A74: =Productivity!B188 -> Shale | B74: 1.1 | D74: =IF(NOI,"","Medium Excavator") -> Medium Excavator | I74: PC2000 | L74: ='Labor Rates'!A105 -> Air Compressor + tools | P74: Light Truck - 1.5 Ton | S74: Light Truck - 1.5 Ton
A75: =Productivity!B189 -> Stone - crushed | B75: 0.85 | D75: =IF(NOI,"","Large Dozer") -> Large Dozer | I75: PC3000 | L75: ='Labor Rates'!A106 -> Welding Equipment | P75: Supervisor's Truck | S75: Supervisor's Truck
A76: Tailings - Coarse (dry, loose sand) | B76: 0.96 | D76: Grader | E76: ExplRoadFleets | I76: PC4000 | L76: ='Labor Rates'!A107 -> Heavy Duty Drill Rig | P76: Flatbed Truck | S76: Flatbed Truck
A77: Tailings - Slimes (loose sand & clay) | B77: 0.85 | I77: PC5500 | L77: ='Labor Rates'!A108 -> Pump (plugging) Drill Rig | P77: Air Compressor + tools | S77: Air Compressor + tools
A78: =Productivity!B192 -> Topsoil | B78: 1.44 | D78: Fence Install Crews | I78: PC8000 | L78: ='Labor Rates'!A109 -> Concrete Pump | P78: Welding Equipment | S78: Welding Equipment
I79: EX2500 | L79: ='Labor Rates'!A110 -> Gas Engine Vibrator | P79: Heavy Duty Drill Rig | S79: Heavy Duty Drill Rig
A80: Drill Hole Types | D80: Install Barbed Wire Fence | E80: B-80A | I80: H120Es (fits 325) | L80: ='Labor Rates'!A111 -> Generator 5KW | P80: Pump (plugging) Drill Rig | S80: Pump (plugging) Drill Rig
D81: Install Chain Link Fence | E81: B-80C | I81: H160Es (fits 349) | L81: ='Labor Rates'!A112 -> HDEP Welder (pipe or liner) | P81: Concrete Pump | S81: Concrete Pump
A82: Monitor | I82: H180Es (fits 374/390) | L82: ='Labor Rates'!A113 -> 5 Ton Crane | P82: Gas Engine Vibrator | S82: Gas Engine Vibrator
A83: Dewatering | I83: S3050 (fits 320/325/330) | L83: ='Labor Rates'!A114 -> 20 Ton Crane | P83: Generator 5KW | S83: =P83 -> Generator 5KW
A84: Production | D84: Fence Removal Crews | I84: S3070 (fits 330/349) | L84: ='Labor Rates'!A115 -> 50 Ton Crane | P84: HDEP Welder (pipe or liner) | S84: HDEP Welder (pipe or liner)
A85: Injection | I85: S3090 (fits 374/390) | L85: ='Labor Rates'!A116 -> 120 Ton Crane | P85: 5 Ton Crane | S85: 5 Ton Crane
D86: Barbed Wire Fence Removal | E86: 2 Clab | I86: G315B (fits 320/325) | L86: Trucks | P86: 20 Ton Crane | S86: 20 Ton Crane
A87: Slab Demolition | D87: Chain Link Fence/Pipeline/Culvert Removal | E87: B-6 | I87: G320B (fits 325/330) | L87: ='Labor Rates'!A122 -> Truck Drivers (4) | P87: 50 Ton Crane | S87: 50 Ton Crane
I88: G330 (fits 349/374) | L88: ='Labor Rates'!A123 -> 725C2 | P88: 120 Ton Crane | S88: 120 Ton Crane
A89: Break & bury | D89: Solid Waste Types | I89: 420F2 | L89: ='Labor Rates'!A124 -> 730C2 | P89: =L88 -> 725C2 | Q89: Haul | S89: 725C2
A90: Bury in place | I90: 430F2 | L90: ='Labor Rates'!A125 -> 735C | P90: 730C2 | Q90: Haul | S90: 730C2
D91: Solid Waste | I91: CS54B | L91: ='Labor Rates'!A126 -> 740C | P91: 735C | Q91: Haul | S91: 735C
D92: Construction Debris | I92: CS64B | L92: ='Labor Rates'!A127 -> 770G | P92: 740C | Q92: Haul | S92: 740C
A93: Building Types | I93: CP54B | L93: ='Labor Rates'!A128 -> 773G | P93: 770G | Q93: Haul | S93: 770G
D94: Hazardous Material Types | I94: CP68B | L94: ='Labor Rates'!A129 -> 777G | P94: 773G | Q94: Haul | S94: 773G
A95: ='Misc. Unit Costs'!B38 -> Lg. steel | I95: Light Truck - 1.5 Ton | L95: ='Labor Rates'!A130 -> 785D | P95: 777G | Q95: Haul | S95: 777G
A96: ='Misc. Unit Costs'!B39 -> Lg. concrete | D96: Solid | I96: Supervisor's Truck | L96: ='Labor Rates'!A131 -> 789D | P96: 785D | Q96: Haul | S96: 785D
A97: ='Misc. Unit Costs'!B40 -> Lg. masonry | D97: Liquid | I97: Flatbed Truck | L97: ='Labor Rates'!A132 -> 793F | P97: 789D | Q97: Haul | S97: 789D
A98: ='Misc. Unit Costs'!B41 -> Lg. mixed | I98: Air Compressor + tools | L98: ='Labor Rates'!A133 -> 797F | P98: 793F | Q98: Haul | S98: 793F
A99: ='Misc. Unit Costs'!B42 -> Sm. steel | D99: Hydrocarbon Contam Wastes | I99: Welding Equipment | L99: ='Labor Rates'!A134 -> 613E (5,000 gal) | P99: 797F | Q99: Haul | S99: 797F
A100: ='Misc. Unit Costs'!B43 -> Sm. concrete | I100: Heavy Duty Drill Rig | L100: ='Labor Rates'!A135 -> 621E (8,000 gal) | P100: 613E (5,000 gal) | Q100: Haul | S100: 613E (5,000 gal)
A101: ='Misc. Unit Costs'!B44 -> Sm. masonry | D101: Contaminated Soil | I101: Pump (plugging) Drill Rig | L101: ='Labor Rates'!A136 -> 777G H2O Truck | P101: 621E (8,000 gal) | Q101: Haul | S101: 621E (8,000 gal)
A102: ='Misc. Unit Costs'!B45 -> Sm. wood | D102: Other | I102: Concrete Pump | L102: ='Labor Rates'!A137 -> 785D H2O Truck | P102: 777G H2O Truck | Q102: Haul | S102: 777G H2O Truck
I103: Gas Engine Vibrator | L103: ='Labor Rates'!A138 -> Dump Truck (10-12 yd3) | P103: 785D H2O Truck | Q103: Haul | S103: 785D H2O Truck
A104: Wall Types | D104: Waste Containment Types | I104: =P83 -> Generator 5KW | L104: ='Labor Rates'!A139 -> Tractor/Trailer (20 ton) | P104: Dump Truck (10-12 yd3) | Q104: Haul | S104: Dump Truck (10-12 yd3)
I105: HDEP Welder (pipe or liner) | L105: ='Labor Rates'!A140 -> Tractor/Trailer (50 ton)
A106: ='Misc. Unit Costs'!B48 -> Block 4 in (100 mm) thick | D106: =IF(Metric,"Solid 200-L drum","Solid 55-gal drum") -> Solid 55-gal drum | I106: 5 Ton Crane | L106: ='Labor Rates'!A141 -> Tractor/Trailer (80 ton)
A107: ='Misc. Unit Costs'!B49 -> Block 6 in (150 mm) thick | D107: Solid Bulk | I107: 20 Ton Crane | P107: Laborers
A108: ='Misc. Unit Costs'!B50 -> Block 8 in (200 mm) thick | D108: =IF(Metric,"Liquid 200-L drum","Liquid 55-gal drum") -> Liquid 55-gal drum | I108: 50 Ton Crane | P108: ='Labor Rates'!A147 -> General Laborer
A109: ='Misc. Unit Costs'!B51 -> Block 12 in (300 mm) thick | D109: Liquid Bulk | I109: 120 Ton Crane | P109: ='Labor Rates'!A148 -> Skilled Laborer
A110: ='Misc. Unit Costs'!B52 -> Conc 6 in (150 mm) thick | I110: 725C2 | P110: ='Labor Rates'!A149 -> Driller's Helper
A111: ='Misc. Unit Costs'!B53 -> Conc 8 in (200 mm) thick | D111: Waste Disposal Sites | I111: 730C2 | P111: ='Labor Rates'!A150 -> Rodmen (reinforcing concrete)
A112: ='Misc. Unit Costs'!B54 -> Conc 10 in (250 mm) thick | I112: 735C | P112: ='Labor Rates'!A151 -> Cement finisher
A113: ='Misc. Unit Costs'!B55 -> Conc 12 in (300 mm) thick | D113: Landfill (bulk) | I113: 740C | P113: ='Labor Rates'!A152 -> Carpenter
D114: Dumpster | I114: 770G | P114: ='Labor Rates'!A159 -> Project Manager
A115: Fence Types | I115: 773G | P115: ='Labor Rates'!A160 -> Foreman
D116: Vacuum Truck Size | I116: 777G | P116: ='Labor Rates'!A161 -> Field Geologist/Engineer
A117: ='Misc. Unit Costs'!B127 -> Barbed 3-strand Removal | I117: 785D | P117: ='Labor Rates'!A162 -> Field Tech/Sampler
A118: ='Misc. Unit Costs'!B129 -> Barbed 5-strand Removal | D118: Small (2,200 gal) | I118: 789D | P118: ='Labor Rates'!A163 -> Range Scientist
A119: ='Misc. Unit Costs'!B130 -> Chain link 8 ft -10 ft Removal | D119: Large (5,000 gal) | I119: 793F | P119: ='Labor Rates'!A159 -> Project Manager
I120: 797F | P120: ='Labor Rates'!A160 -> Foreman
A121: Exploration Hole Types | D121: Waste Categories | I121: 613E (5,000 gal) | P121: ='Labor Rates'!A161 -> Field Geologist/Engineer
I122: 621E (8,000 gal) | P122: ='Labor Rates'!A162 -> Field Tech/Sampler | Q122: <<--- LaborerDropDownList
A123: Rotary | D123: Process - Other | I123: 777G H2O Truck | P123: ='Labor Rates'!A163 -> Range Scientist
A124: Reverse Circ | D124: Other Facilities | I124: 785D H2O Truck | P124: ='Labor Rates'!A164 -> Electrical foreman (R-3; 2018)
A125: Core | D125: Off Site Facilities | I125: Dump Truck (10-12 yd3) | P125: ='Labor Rates'!A165 -> Electrician (R-3; 2018)
A126: Rotary Pre-drill | D126: Waste Mgmt & Disposal | P126: ='Labor Rates'!A166 -> 
P127: =IF(ISBLANK('Labor Rates'!A167),"",'Labor Rates'!A167) -> 
A128: Exploration Access/Slopes | L128: Maintenance Fleets | P128: =IF(ISBLANK('Labor Rates'!A168),"",'Labor Rates'!A168) -> 
D129: HCS Disposal | F129: Power Line Location | L129: 14G/H | M129: <<--- Maintenance Fleets | P129: =IF(ISBLANK('Labor Rates'!A169),"",'Labor Rates'!A169) -> 
A130: Overland | L130: 16G/H | P130: =IF(ISBLANK('Labor Rates'!A170),"",'Labor Rates'!A170) -> 
A131: Original Slope <30 | D131: On site | F131: On site | L131: =L99 -> 613E (5,000 gal) | P131: =IF(ISBLANK('Labor Rates'!A171),"",'Labor Rates'!A171) -> 
A132: Original Slope >30 | D132: Off site | F132: Off site | L132: =L100 -> 621E (8,000 gal) | M132: <<--- Water Truck Fleets | P132: =IF(ISBLANK('Labor Rates'!A172),"",'Labor Rates'!A172) -> 
L133: =L101 -> 777G H2O Truck | P133: =IF(ISBLANK('Labor Rates'!A173),"",'Labor Rates'!A173) -> 
A134: Adit/Decline Plug Types | D134: Pipe Locations | L134: =L102 -> 785D H2O Truck | M134: <<--- Maintenance Fleets | P134: =IF(ISBLANK('Labor Rates'!A174),"",'Labor Rates'!A174) -> 
P135: =IF(ISBLANK('Labor Rates'!A175),"",'Labor Rates'!A175) -> 
A136: Rock Backfill | D136: On site | P136: =IF(ISBLANK('Labor Rates'!A176),"",'Labor Rates'!A176) -> 
A137: Concrete Bulkhead | D137: Off site | L137: Seeding Methods | P137: =IF(ISBLANK('Labor Rates'!A177),"",'Labor Rates'!A177) -> 
A138: Concrete + Rock | L138: Hand Broadcast
A139: Bat Gate | D139: Closure Plan Studies | L139: Mechanical Broadcast
A140: Bat Culvert | L140: Drill
A141: Foam (adit) | D141: closure plan | L141: Hydroseeding
A142: Foam (production) | D142: compliance report | L142: Shrub Planting - bare root
D143: geotechnical | L143: Tree Planting - bare root
A144: Adit/Portal Backfill Methods | D144: hydrological | L144: Cactus Planting
D145: geochemical
A146: Dozer | D146: revegetation | L146: DozerList
A147: Loader | D147: water quality | L147: =L5 -> D6T
D148: wildlife | L148: =L7 -> D7E
A149: Shaft Plug Types | D149: contaminant characterization | L149: =L8 -> D8T
D150: legacy site survey | L150: =L9 -> D9T
A151: Backfill | D151: open hole survey | L151: =L10 -> D10T2
A152: Concrete Cap | D152: land use/socioeconomics | L152: =L11 -> D11T
A153: Steel Cap | B153: << Not currently used | D153: other
A155: Powerline Types | D155: Closure Plan Engineering | L155: Crusher Haul Fleets
A156: ='Misc. Unit Costs'!B163 -> Single Pole Powerlines | L156: LongHaul | M156: ShortHaul | N156: Push (Doze) | O156: Cut (Excavate)
A157: ='Misc. Unit Costs'!B164 -> Double Pole Powerlines | D157: testing | L157: Small Truck | M157: Small Loader | N157: Small Dozer | O157: Small Excavator
D158: design | L158: Med Truck | M158: Med Loader | N158: Med Dozer | O158: Med Excavator
A159: Seed Mixes | D159: materials balance | L159: Large Truck | M159: Large Loader | N159: Large Dozer | O159: Large Excavator
D160: other | L160: XLarge Truck | M160: XLarge Loader
A161: ='Material Costs'!A21 -> None | L161: Scraper Dozer
A162: ='Material Costs'!A22 -> Mix 1 | D162: Closure Plan Permitting | L162: Tandem Scraper
A163: ='Material Costs'!A23 -> Mix 2
A164: ='Material Costs'!A24 -> Mix 3 | D164: application
A165: ='Material Costs'!A25 -> Mix 4 | D165: fees | L165: Pilot Car Requirements
A166: ='Material Costs'!A26 -> User Mix 1 | D166: legal | L166: Width | M166: Lanes | N166: Pilot Cars
A167: ='Material Costs'!A27 -> User Mix 2 | D167: public consultation | L167: =IF(Metric, ROUND(12*Ft2M,1),12) -> 12 | M167: 2 | N167: 1
A168: ='Material Costs'!A28 -> User Mix 3 | D168: other | L168: =IF(Metric, ROUND(14*Ft2M,1),14) -> 14 | M168: 2 | N168: 2
A169: ='Material Costs'!A29 -> User Mix 4 | L169: =IF(Metric, ROUND(16*Ft2M,1),16) -> 16 | M169: 2 | N169: 3
D170: Water Pipe Types | L170: =IF(Metric, ROUND(14*Ft2M,1),14) -> 14 | M170: 4 | N170: 1
A171: ='Material Costs'!A31 -> User Mix 5 (from Seed Mix sheet) | L171: =IF(Metric, ROUND(16*Ft2M,1),16) -> 16 | M171: 4 | N171: 2
D172: Water 4in (100mm ) welded HDPE | E172: 1
A173: Pit Berm Construction | D173: Water 6in (150mm) welded HDPE | E173: 2
D174: Water 12in (300mm) welded HDPE | E174: 3
A175: Haul & Place
A176: Excavate | D176: Drainpipe Types
A177: Dozer
D178: Drain 4in (100mm) perforated PVC | E178: 5
D179: Drain 6in (150mm) perforated PVC | E179: 6
A180: Drillhole Plug Methods | D180: Drain 4in (100mm) corrugated, perf or plain | E180: 3
D181: Drain 6in (150mm) corrugated., perf or plain | E181: 4
A182: =IF(Nevada,"","none") -> none
A183: Grout + Backfill | D183: TrenchBackfillFleets | F183: Sheet - Info from schedule sheets
A184: Grout Only | F184: DetailSheetName | G184: Range Name | H184: First Schedule Column | I184: Last Operations Column | J184: First operations year to show | K184: Last Operations Column to Hide | L184: First Closure Year Column | M184: First Closure Column to Hide | N184: Last Column
A185: Cement Plug | D185: Small Dozer | F185: =CostType&" Schedule" -> FA Schedule | G185: _Schedule | H185: =INDEX(NumbersLetters,MATCH(CELL("Col",'FA Schedule'!$T$25),$A$365:$A$572),2) -> T | I185: =INDEX(NumbersLetters,MATCH(CELL("col",(OFFSET('FA Schedule'!$T$25,1,ClosureYear1-FirstYrOps-1))),$A$365:$A$572),2) -> AF | J185: =INDEX(NumbersLetters,MATCH(CELL("col",(OFFSET('FA Schedule'!$T$25,1,ClosureYear1-FirstYrOps-OpsYears))),$A$365:$A$572),2) -> W | K185: =INDEX(NumbersLetters,MATCH(CELL("col",(OFFSET('FA Schedule'!$T$25,1,ClosureYear1-FirstYrOps-OpsYears)))-1,$A$365:$A$572),2) -> V | L185: =INDEX(NumbersLetters,MATCH(CELL("col",(OFFSET('FA Schedule'!$T$25,1,ClosureYear1-FirstYrOps))),$A$365:$A$572),2) -> AG | M185: =INDEX(NumbersLetters,MATCH(CELL("col",(OFFSET('FA Schedule'!$T$25,1,ClosureYear1-FirstYrOps-OpsYears+SchedYears))),$A$365:$A$572),2) -> DS | N185: =INDEX(NumbersLetters,MATCH(CELL("col",(OFFSET('FA Schedule'!$T$25,1,100)))-1,$A$365:$A$572),2) -> DO
A186: =IF(Nevada,"","Top Plug") -> Top Plug | D186: Medium Dozer | F186: Acct Codes | G186: AcctSched | H186: =INDEX(NumbersLetters,MATCH(CELL("Col",'Acct Codes'!$H$35),$A$365:$A$572),2) -> H | I186: =INDEX(NumbersLetters,MATCH(CELL("col",(OFFSET('Acct Codes'!$H$35,1,ClosureYear1-FirstYrOps-1))),$A$365:$A$572),2) -> T | J186: =INDEX(NumbersLetters,MATCH(CELL("col",(OFFSET('Acct Codes'!$H$35,1,ClosureYear1-FirstYrOps-OpsYears))),$A$365:$A$572),2) -> K | K186: =INDEX(NumbersLetters,MATCH(CELL("col",(OFFSET('Acct Codes'!$H$35,1,ClosureYear1-FirstYrOps-OpsYears)))-1,$A$365:$A$572),2) -> J | L186: =INDEX(NumbersLetters,MATCH(CELL("col",(OFFSET('Acct Codes'!$H$35,1,ClosureYear1-FirstYrOps))),$A$365:$A$572),2) -> U | M186: =INDEX(NumbersLetters,MATCH(CELL("col",(OFFSET('Acct Codes'!$H$35,1,ClosureYear1-FirstYrOps-OpsYears+SchedYears))),$A$365:$A$572),2) -> DG | N186: =INDEX(NumbersLetters,MATCH(CELL("col",(OFFSET('Acct Codes'!$H$35,1,100)))-1,$A$365:$A$572),2) -> DC
D187: Large Dozer | F187: Human Resources | G187: HRSched | H187: =INDEX(NumbersLetters,MATCH(CELL("Col",'Human Resources'!$K$27),$A$365:$A$572),2) -> K | I187: =INDEX(NumbersLetters,MATCH(CELL("col",(OFFSET('Human Resources'!$K$27,1,ClosureYear1-FirstYrOps-1))),$A$365:$A$572),2) -> W | J187: =INDEX(NumbersLetters,MATCH(CELL("col",(OFFSET('Human Resources'!$K$27,1,ClosureYear1-FirstYrOps-OpsYears))),$A$365:$A$572),2) -> N | K187: =INDEX(NumbersLetters,MATCH(CELL("col",(OFFSET('Human Resources'!$K$27,1,ClosureYear1-FirstYrOps-OpsYears)))-1,$A$365:$A$572),2) -> M | L187: =INDEX(NumbersLetters,MATCH(CELL("col",(OFFSET('Human Resources'!$K$27,1,ClosureYear1-FirstYrOps))),$A$365:$A$572),2) -> X | M187: =INDEX(NumbersLetters,MATCH(CELL("col",(OFFSET('Human Resources'!$K$27,1,ClosureYear1-FirstYrOps-OpsYears+SchedYears))),$A$365:$A$572),2) -> DJ | N187: =INDEX(NumbersLetters,MATCH(CELL("col",(OFFSET('Human Resources'!$K$27,1,100)))-1,$A$365:$A$572),2) -> DF
A188: IFM Project Size | F188: Equip Use | G188: EquipSched | H188: =INDEX(NumbersLetters,MATCH(CELL("Col",'Equip Use'!$F$26),$A$365:$A$572),2) -> F | I188: =INDEX(NumbersLetters,MATCH(CELL("col",(OFFSET('Equip Use'!$F$26,1,ClosureYear1-FirstYrOps-1))),$A$365:$A$572),2) -> R | J188: =INDEX(NumbersLetters,MATCH(CELL("col",(OFFSET('Equip Use'!$F$26,1,ClosureYear1-FirstYrOps-OpsYears))),$A$365:$A$572),2) -> I | K188: =INDEX(NumbersLetters,MATCH(CELL("col",(OFFSET('Equip Use'!$F$26,1,ClosureYear1-FirstYrOps-OpsYears)))-1,$A$365:$A$572),2) -> H | L188: =INDEX(NumbersLetters,MATCH(CELL("col",(OFFSET('Equip Use'!$F$26,1,ClosureYear1-FirstYrOps))),$A$365:$A$572),2) -> S | M188: =INDEX(NumbersLetters,MATCH(CELL("col",(OFFSET('Equip Use'!$F$26,1,ClosureYear1-FirstYrOps-OpsYears+SchedYears))),$A$365:$A$572),2) -> DE | N188: =INDEX(NumbersLetters,MATCH(CELL("col",(OFFSET('Equip Use'!$F$26,1,100)))-1,$A$365:$A$572),2) -> DA
A190: Small
A191: Large | D191: Pond BackfillFleets
A193: Pipe material | D193: Small Truck
D194: Med Truck
A195: HDPE | D195: Large Truck
A196: PVC | D196: XLarge Truck
A197: Brass | D197: Small Dozer
A198: Cast Iron | D198: Med Dozer
A199: Smooth Steel | D199: Large Dozer
A200: Asbestos Cement
D201: Frequency
A202: Evaporator Types
D203: One-time
... 368 more rows

Sheet Property Information
B2: Enter Data Below in Green and Blue Spaces
BC3: Created from working version | BD3: SRCE_2.0_Beta1.xlsm | BE3: dec 3 2017 - fixes error in Ponds that did not allow scraper dozer fleet for backfill
B4: STANDARDIZED RECLAMATION COST ESTIMATOR | BB4: Release version? | BC4: TRUE
BD5: Currency Symbol:
B6: ="Version " & ModelVersion -> Version 2.0 | BB6: Version | BC6: 2.0 | BD6: =INDEX(CurrencySymbols,MATCH(CurrentCur,Currencies,0),2) -> $
B7: ="Build - " & BuildNo -> Build - Beta 01 | BB7: Build: | BC7: Beta 01
BB8: Build Num: | BC8: 1
B9: COST DATA FILE INFORMATION | BC9: Button Links
BB10: IsBRCE? | BC10: FALSE
B11: File Name: | C11: =MID(BF15,BE15+1,BD15-BE15-1) -> Copper_Flat_FA_SRCE_191000_060_FNL_Rev02_ft_20190711.xlsm
BB12: Nevada? | BC12: FALSE
B13: Cost Data File: | C13: =DataFileName -> Copper_Flat_CDF_191000_060_FNL_Rev02_20190129_ft.xlsm
BC14: Button Links
B15: Cost Data Date: | C15: =DataFileDate -> 2018-12-01 | BB15: =MID(BF15,BE15+1,BD15-BE15-1) -> Copper_Flat_FA_SRCE_191000_060_FNL_Rev02_ft_20190711.xlsm | BD15: =FIND("]",BF15,BE15+1) -> 100 | BE15: =FIND("[",BF15) -> 42 | BF15: =BG15 -> C:\Users\ftoprak\Documents\Home\20190711\[Copper_Flat_FA_SRCE_191000_060_FNL_Rev02_ft_20190711.xlsm]Property Information | BG15: =CELL("filename",C11) -> C:\Users\ftoprak\Documents\Home\20190711\[Copper_Flat_FA_SRCE_191000_060_FNL_Rev02_ft_20190711.xlsm]Property Information
BD16: Metric | BE16: English
B17: Cost Data Basis: | C17: =DataCostBasis -> User Data | F17: Data Cost Units: | G17: =DataUnits -> Imperial | BB17: Measurement Units | BC17: 2 | BD17: =IF(BC17=1,TRUE,FALSE) -> FALSE
B19: Author/Source: | C19: =IF(ISBLANK(AuthorSource),"", AuthorSource) -> SRK Consulting and NMCC | BB19: Language | BD19: =C31 -> Russian
B21: PROJECT INFORMATION | BB21: Cost Data File: | BD21: Copper_Flat_CDF_191000_060_FNL_Rev02_20190129_ft.xlsm
B23: Property/Mine Name: | C23: Copper Flat | D23: Copper Flat | F23: Property Code: | BB23: Cost Data Date: | BD23: 2018-12-01
B25: Project Name: | C25: Copper Flat Reclamation Bond Cost Estimate 2018 | D25: Copper Flat Reclamation Bond Cost Estimate 2018 | E25: Copper Flat Reclamation Bond Cost Estimate 2018 | F25: Copper Flat Reclamation Bond Cost Estimate 2018 | G25: Copper Flat Reclamation Bond Cost Estimate 2018 | H25: Copper Flat Reclamation Bond Cost Estimate 2018 | BB25: Cost Data Basis: | BD25: User Data
B27: Date of Submittal: | C27: July 2019 | F27: Average Elevation | G27: 5450 | H27: =IF(Metric,"m","ft.") -> ft. | BB27: Author/Source: | BD27: SRK Consulting and NMCC
B29: Units of Measure: | BA29: 1 | BB29: Data Cost Units: | BD29: Imperial
B31: Language: | C31: Russian | D31: <<< Doesn’t work yet
B33: Currency Symbol: | C33: Dollar (US) | BB33: NOI/POO | BC33: 1 | BD33: FALSE | BE33: FALSE | BF33: TRUE
B35: Project Type: | C35: Mine Operations Plan | BB35: Public/Private | BD35: FALSE | BE35: TRUE | BF35: =IF(BE35=TRUE,"Public","Private") -> Public
B37: Land Type: | C37: Private Land | BB37: Std Labor Cost | BD37: TRUE | BE37: FALSE | BF37: =IF(BD37=TRUE,"DAVIS BACON WAGE RATES", "MINE OPERATOR WAGE RATES") -> DAVIS BACON WAGE RATES
B39: Cost Estimate Type: | C39: =CostType -> FA | BB39: Std Equip Cost | BD39: TRUE | BE39: FALSE | BF39: =IF(BD39=TRUE,"CATERPILLAR RENTAL RATES", "MINE OPERATOR COSTS") -> CATERPILLAR RENTAL RATES
BD40: TRUE | BE40: FALSE
B41: Cost Basis Category: | BC41: 1
B43: Cost Basis Description: | C43: =IF(ProjectRegion=0,"**** LOAD DATA FILE FROM SRCE MENU . . . . . . OR SELECT PROJECT REGION IF DATA ALREADY LOADED ****",VLOOKUP(ProjectRegion,RegionInformationTable,2,FALSE)) -> 0 | BB43: In Nevada? | BD43: FALSE
BB44: New Data? | BD44: FALSE | BE44: did the data just get imported?
BB45: Selected Region: | BC45: 1 | BD45: =INDEX(RegionInformationTable,BC45,1) -> Copper Flat FA | BE45: 1
B46: Copyright© 2004-2017 | BB46: Zones Valid? | BC46: 1 | BD46: =IF(ProjectRegion="","",IF(OR(ISBLANK(EquipmentZone),ISBLANK(TruckDriverZone),ISBLANK(LaborerZone),EquipmentZoneRate="Invalid Zone",TruckZoneRate="Invalid Zone",LaborZoneRate="Invalid Zone"),FALSE,TRUE)) -> TRUE
B47: SRCE Software. All Rights Reserved | D47: ="" ->  | BB47: Region | BC47: Region Name | BD47: Regional Description
BB49: Region 1 | BC49: Copper Flat FA
BB50: Region 2
BB51: Region 3
BB52: Region 4
BB53: Region 5
BB54: Region 6 | BC54: Copper Flat internal | BD54: Labor and equipment rates from "MajorEquipmentOperatingCost_22Jun18_ V3.pdf" as applicable; else, Basis 1
BB55: Region 7
BB56: Region 8
BB57: Region 9
BB58: Region 10
BB59: Region 11
BB60: Region 12
BB61: Region 13
BB62: Region 14
BB63: Region 15 | BC63: NNV Imperial | BD63: For reference
K166: =IF(J166="None required","",IF(ISBLANK(B12),"",IF(G58="optimize",FI166,G58))) -> 

Sheet Table of Contents (hidden)
B2: =IF('Property Information'!C25=0,"Enter Project Name",CONCATENATE("Project Name: ",'Property Information'!C25)) -> Project Name: Copper Flat Reclamation Bond Cost Estimate 2018
B3: =IF(SubmittalDate=0,"Enter Submittal Date",CONCATENATE("Project Date: ",SubmittalDate)) -> Project Date: July 2019
B4: =FileName -> Copper_Flat_FA_SRCE_191000_060_FNL_Rev02_ft_20190711.xlsm
B5: =IF('Property Information'!$BD$33=TRUE,"Notice",IF('Property Information'!$BE$33=TRUE,"Plan of Operations","Reclamation Plan")) -> Reclamation Plan
B7: Table of Contents
B9: Property Information
B10: Cost Summary
B11: Cost Schedule
B12: PER-LOM Detail
B13: PER-LOM Summary
B14: Cashflow Summary
B15: Exploration
B16: Exploration Roads & Pads
B17: Waste Rock Dumps
B18: Heap Leach Pads
B19: Tailings
B20: Roads
B21: Pits
B22: Quarries & Borrow Pits
B23: Underground Openings
B24: Material Hauling
B25: Foundations and Buildings
B26: Other Demo & Equipment Removal
B27: Sediment & Drainage Control
B28: Process Ponds
B29: Landfills
B30: Yards, Etc.
B31: Waste Disposal
B32: Well Abandonment
B33: Misc. Costs
B34: Monitoring
B35: Construction Management
B36: Solution Management
B37: Closure Planning
B38: General & Administration
B39: Human Resources
B40: Other User
B41: Reclamation Quantities
B42: Labor Costs
B43: Equipment Costs
B44: Material Costs
B45: Misc. Unit Costs
B46: Fleets (Crews)
B47: Productivity
B48: User Tools
B49: Seed Mixture | C49: Description
B50: User Sheet 1
B51: User Sheet 2
B52: User Sheet 3
B53: User Sheet 4
B54: User Sheet 5
B55: User Sheet 6
B56: User Sheet 7
B57: User Sheet 8
B58: User Sheet 9
B59: User Sheet 10
B60: User Sheet 11
B61: User Sheet 12
B62: User Sheet 13
B63: User Sheet 14
B64: User Sheet 15
B65: User Sheet 16
B66: User Sheet 17
B67: User Sheet 18
B68: User Sheet 19
B69: User Sheet 20

Sheet FA Schedule
A1: =CONCATENATE('Property Information'!$B$25, 'Property Information'!$C$25,IF('Property Information'!$BD$33=TRUE,"- Notice or Exploration",IF('Property Information'!$BE$33=TRUE," - Plan of Operations"," - Reclamation Plan"))) -> Project Name: Copper Flat Reclamation Bond Cost Estimate 2018 - Reclamation Plan
A2: =CONCATENATE('Property Information'!B27,SubmittalDate) -> Date of Submittal: July 2019
A3: =CONCATENATE('Property Information'!B11,FileName) -> File Name: Copper_Flat_FA_SRCE_191000_060_FNL_Rev02_ft_20190711.xlsm
A4: =CONCATENATE("Model Version: ",'Property Information'!B6) -> Model Version: Version 2.0
A5: =CONCATENATE("Cost Data: ",DataCostBasis) -> Cost Data: User Data
A6: =CONCATENATE("Cost Data File: ",DataFileName) -> Cost Data File: Copper_Flat_CDF_191000_060_FNL_Rev02_20190129_ft.xlsm
A7: =CONCATENATE("Cost Estimate Type: ",CostType," Cost Basis: ",CostBasisCategory) -> Cost Estimate Type: FA Cost Basis: Copper Flat FA
C9: Cost type: | D9: FA
EB10: ScheduleShtName: | EC10: =ShtName() -> User 20 Liner | ED10: =IF(LEFT(ScheduleShtName,FIND(" ",ScheduleShtName)-1)<>CostType,"<<-- Cost Type does not match sheet name!! Please reset Cost Type","") -> <<-- Cost Type does not match sheet name!! Please reset Cost Type
C11: Current Year: | D11: 1
C12: First Year of Operation: | D12: 1 | I12: Engineering, Design and Construction Plan (%) | J12: ='User 25 Indirects backup'!C22 -> 0.04 | EB12: Zero Rows Hidden? | EC12: FALSE
C13: Closure Year 1: | D13: 14 | I13: Contingency (%) | J13: ='User 25 Indirects backup'!C23 -> 0.06
C14: Closure Period: | D14: 7 | E14: years | I14: Contractor OH and Profit (%) | J14: ='User 25 Indirects backup'!C24 -> 0.1 | EB14: Schedule years to show: | EC14: 100 | EE14: 100 | EF14: SchedulePeriodText
C15: Post Closure Period | D15: 20 | E15: years | I15: Contract Administration (%) | J15: ='User 25 Indirects backup'!C25 -> 0.1179262393
EB16: Cost Type: | EC16: =D9 -> FA
C17: Filter | E17: Filter Type | EB17: Total OpsPeriod | EC17: =ClosureYear1-FirstYrOps -> 13
C18: ID Code Filter: | I18: ="Include Complete Work in "&LOM&" Schedule?" -> Include Complete Work in LOM Schedule? | J18: TRUE | K18: Note: | L18: ARO: completed work subtracted completed in ARO year or earlier. FA: completed work subtracted if in Budget year or earlier and after FA release date. | EB18: OpsPeriodShown | EC18: =ClosureYear1-FirstYrOps+1 -> 14
C19: Facility/Activity Type:
C20: =Filter3&":" -> Phases: | I20: Show how many years in schedule (10 to 100) | J20: 100
C21: =Filter1&":" -> Locations:
C22: =Filter2&":" -> Properties: | I22: Show how many operating years in schedule | J22: 10
O25: Financial | Q25: Work | R25: % Complete | S25: Plan Year | T25: 1 | U25: =T25+1 -> 2 | V25: =U25+1 -> 3 | W25: 4 | X25: 5 | Y25: 6 | Z25: 7 | AA25: 8 | AB25: 9 | AC25: 10 | AD25: 11 | AE25: 12 | AF25: 13 | AG25: 14 | AH25: 15 | AI25: =AH25+1 -> 16 | AJ25: 17 | AK25: 18 | AL25: 19 | AM25: 20 | AN25: 21 | AO25: 22 | AP25: 23 | AQ25: 24 | AR25: 25 | AS25: 26 | AT25: 27 | AU25: 28 | AV25: 29 | AW25: 30 | AX25: 31 | AY25: 32 | AZ25: 33 | BA25: 34 | BB25: 35 | BC25: 36 | BD25: 37 | BE25: 38 | BF25: 39 | BG25: 40 | BH25: 41 | BI25: 42 | BJ25: 43 | BK25: 44 | BL25: 45 | BM25: 46 | BN25: 47 | BO25: 48 | BP25: 49 | BQ25: =BP25+1 -> 50 | BR25: 51 | BS25: 52 | BT25: 53 | BU25: 54 | BV25: 55 | BW25: 56 | BX25: 57 | BY25: 58 | BZ25: 59 | CA25: 60 | CB25: 61 | CC25: 62 | CD25: 63 | CE25: 64 | CF25: 65 | CG25: 66 | CH25: 67 | CI25: 68 | CJ25: 69 | CK25: 70 | CL25: 71 | CM25: 72 | CN25: 73 | CO25: 74 | CP25: 75 | CQ25: 76 | CR25: 77 | CS25: 78 | CT25: 79 | CU25: 80 | CV25: 81 | CW25: =CV25+1 -> 82 | CX25: 83 | CY25: 84 | CZ25: 85 | DA25: 86 | DB25: 87 | DC25: 88 | DD25: 89 | DE25: 90 | DF25: 91 | DG25: 92 | DH25: 93 | DI25: 94 | DJ25: 95 | DK25: 96 | DL25: 97 | DM25: 98 | DN25: 99 | DO25: 100 | DP25: Difference | EA25: Test | EC25: Other | ED25: Cost | EE25: Other Cost | EG25: Facility | EL25: Valid | EO25: Quantities | EQ25: Regrade/Placement/Scarify Fleet | ET25: Crusher Fleet | EW25: Costs
A26: User | F26: Facility/Activity | L26: Construct | M26: Closure | N26: Closure | O26: Assurance | P26: % | Q26: Before/During | R26: Before | S26: Closure Year | T26: =FirstYrOps-ClosureYear1 -> -13 | U26: =IF(T26+1=0,1,T26+1) -> -12 | V26: =IF(U26+1=0,1,U26+1) -> -11 | W26: -10 | X26: -9 | Y26: -8 | Z26: -7 | AA26: -6 | AB26: -5 | AC26: -4 | AD26: -3 | AE26: -2 | AF26: -1 | AG26: 1 | AH26: 2 | AI26: =IF(AH26+1=0,1,AH26+1) -> 3 | AJ26: 4 | AK26: 5 | AL26: 6 | AM26: 7 | AN26: 8 | AO26: 9 | AP26: 10 | AQ26: 11 | AR26: 12 | AS26: 13 | AT26: 14 | AU26: 15 | AV26: 16 | AW26: 17 | AX26: 18 | AY26: =IF(AX26+1=0,1,AX26+1) -> 19 | AZ26: 20 | BA26: 21 | BB26: 22 | BC26: 23 | BD26: 24 | BE26: 25 | BF26: 26 | BG26: 27 | BH26: 28 | BI26: 29 | BJ26: 30 | BK26: 31 | BL26: 32 | BM26: 33 | BN26: 34 | BO26: 35 | BP26: 36 | BQ26: =IF(BP26+1=0,1,BP26+1) -> 37 | BR26: 38 | BS26: 39 | BT26: 40 | BU26: 41 | BV26: 42 | BW26: 43 | BX26: 44 | BY26: 45 | BZ26: 46 | CA26: 47 | CB26: 48 | CC26: 49 | CD26: 50 | CE26: 51 | CF26: 52 | CG26: 53 | CH26: 54 | CI26: 55 | CJ26: 56 | CK26: 57 | CL26: 58 | CM26: 59 | CN26: 60 | CO26: 61 | CP26: 62 | CQ26: 63 | CR26: 64 | CS26: 65 | CT26: 66 | CU26: 67 | CV26: 68 | CW26: =IF(CV26+1=0,1,CV26+1) -> 69 | CX26: 70 | CY26: 71 | CZ26: 72 | DA26: 73 | DB26: 74 | DC26: 75 | DD26: 76 | DE26: 77 | DF26: 78 | DG26: 79 | DH26: 80 | DI26: 81 | DJ26: 82 | DK26: 83 | DL26: 84 | DM26: 85 | DN26: 86 | DO26: 87 | DP26: Check | EA26: for FA | EC26: Cost Type | ED26: Type | EE26: Type | EF26: IDCode | EG26: Type | EH26: Phase | EI26: Location | EJ26: Property | EL26: Facility | ER26: Number of | EU26: Number of
A27: Override | B27: Facility | C27: Cost Type | D27: Description | E27: ID Code | F27: Type | G27: =Filter3 -> Phases | H27: =Filter1 -> Locations | I27: =Filter2 -> Properties | J27: Total Cost | K27: =(CostType&" Cost") -> FA Cost | L27: Year | M27: Start | N27: Finish | O27: Release | P27: Scheduled | Q27: Budget year | R27: Budget year | S27: Calendar Year | T27: =FirstYrOps+T25-1 -> 1 | U27: =T27+1 -> 2 | V27: =U27+1 -> 3 | W27: 4 | X27: 5 | Y27: 6 | Z27: 7 | AA27: 8 | AB27: 9 | AC27: 10 | AD27: 11 | AE27: 12 | AF27: 13 | AG27: 14 | AH27: 15 | AI27: =AH27+1 -> 16 | AJ27: 17 | AK27: 18 | AL27: 19 | AM27: 20 | AN27: 21 | AO27: 22 | AP27: 23 | AQ27: 24 | AR27: 25 | AS27: 26 | AT27: 27 | AU27: 28 | AV27: 29 | AW27: 30 | AX27: 31 | AY27: =AX27+1 -> 32 | AZ27: 33 | BA27: 34 | BB27: 35 | BC27: 36 | BD27: 37 | BE27: 38 | BF27: 39 | BG27: 40 | BH27: 41 | BI27: 42 | BJ27: 43 | BK27: 44 | BL27: 45 | BM27: 46 | BN27: 47 | BO27: 48 | BP27: 49 | BQ27: =BP27+1 -> 50 | BR27: 51 | BS27: 52 | BT27: 53 | BU27: 54 | BV27: 55 | BW27: 56 | BX27: 57 | BY27: 58 | BZ27: 59 | CA27: 60 | CB27: 61 | CC27: 62 | CD27: 63 | CE27: 64 | CF27: 65 | CG27: 66 | CH27: 67 | CI27: 68 | CJ27: 69 | CK27: 70 | CL27: 71 | CM27: 72 | CN27: 73 | CO27: 74 | CP27: 75 | CQ27: 76 | CR27: 77 | CS27: 78 | CT27: 79 | CU27: 80 | CV27: 81 | CW27: =CV27+1 -> 82 | CX27: 83 | CY27: 84 | CZ27: 85 | DA27: 86 | DB27: 87 | DC27: 88 | DD27: 89 | DE27: 90 | DF27: 91 | DG27: 92 | DH27: 93 | DI27: 94 | DJ27: 95 | DK27: 96 | DL27: 97 | DM27: 98 | DN27: 99 | DO27: 100 | EA27: Release | EB27: =(CostType&" Cost") -> FA Cost | EC27: =IF(CostType=LOM,"ARO","LOM") -> LOM | ED27: Filter | EE27: Filter | EF27: Filter | EG27: Filter | EH27: Filter | EI27: Filter | EJ27: Filter | EL27: Test | EQ27: Fleet | ER27: Trucks/Scrapers | ES27: Fleet Hours | ET27: Fleet | EU27: Trucks/Scrapers | EV27: Fleet Hours | EW27: Labor | EX27: Equip | EY27: Materials | EZ27: _ImportTest | FA27: _SchedAcctCodeTest
J28: =CurrencySymbol -> $ | K28: =CurrencySymbol -> $ | Q28: =CurrencySymbol -> $ | DP28: =CurrencySymbol -> $ | EB28: =CurrencySymbol -> $ | EC28: =CurrencySymbol -> $
A29: Dumps | B29: WASTE ROCK DUMPS | J29: =SumByColor(J30,J30:J289) -> 6614213 | K29: =SumByColor(K30,K30:K289) -> 6614213 | Q29: =SumByColor(Q30,Q30:Q289) -> 0 | T29: =SumByColor(T30,T30:T289) -> 0 | U29: 674303 | V29: 0 | W29: 0 | X29: 0 | Y29: 0 | Z29: 0 | AA29: 0 | AB29: 46883 | AC29: 46883 | AD29: 46883 | AE29: 46883 | AF29: 99086 | AG29: 2412583 | AH29: 3240709 | AI29: 0 | AJ29: 0 | AK29: 0 | AL29: 0 | AM29: 0 | AN29: 0 | AO29: 0 | AP29: 0 | AQ29: 0 | AR29: 0 | AS29: 0 | AT29: 0 | AU29: 0 | AV29: 0 | AW29: 0 | AX29: 0 | AY29: 0 | AZ29: =SumByColor(AZ30,AZ30:AZ289) -> 0 | BA29: 0 | BB29: 0 | BC29: 0 | BD29: 0 | BE29: 0 | BF29: 0 | BG29: 0 | BH29: 0 | BI29: 0 | BJ29: 0 | BK29: 0 | BL29: 0 | BM29: 0 | BN29: 0 | BO29: 0 | BP29: 0 | BQ29: 0 | BR29: 0 | BS29: 0 | BT29: 0 | BU29: 0 | BV29: 0 | BW29: 0 | BX29: 0 | BY29: 0 | BZ29: 0 | CA29: 0 | CB29: 0 | CC29: 0 | CD29: 0 | CE29: 0 | CF29: =SumByColor(CF30,CF30:CF289) -> 0 | CG29: 0 | CH29: 0 | CI29: 0 | CJ29: 0 | CK29: 0 | CL29: 0 | CM29: 0 | CN29: 0 | CO29: 0 | CP29: 0 | CQ29: 0 | CR29: 0 | CS29: 0 | CT29: 0 | CU29: 0 | CV29: 0 | CW29: 0 | CX29: 0 | CY29: 0 | CZ29: 0 | DA29: 0 | DB29: 0 | DC29: 0 | DD29: 0 | DE29: 0 | DF29: 0 | DG29: 0 | DH29: 0 | DI29: 0 | DJ29: 0 | DK29: 0 | DL29: =SumByColor(DL30,DL30:DL289) -> 0 | DM29: 0 | DN29: 0 | DO29: 0 | EB29: =SumByColor(EB30,EB30:EB289) -> 6614213 | EC29: =SumByColor(EC30,EC30:EC289) -> 0 | EZ29: FALSE
B30: =(ROW(B30) - ROW($A$29)-1)/INDEX(SheetRangeIndex,MATCH($A$29,TableNamesSorted,0),7) -> 0 | C30: =INDEX(INDIRECT("_"&$A$29&"Table1"),B30+1,9) -> 0 | D30: =INDEX(INDIRECT("_"&$A$29&"Table1"),B30+1,2) -> 0 | E30: =IF(ISBLANK(INDEX(INDIRECT("_"&$A$29&"Table1"),B30+1,3)),"",INDEX(INDIRECT("_"&$A$29&"Table1"),B30+1,3)) ->  | F30: =IF(ISERROR(EL30),"Facility Type",IF(ISBLANK(INDEX(INDIRECT("_"&$A$29&"Table1"),B30+1,5)),"",INDEX(INDIRECT("_"&$A$29&"Table1"),B30+1,5))) ->  | G30: =IF(ISBLANK(INDEX(INDIRECT("_"&$A$29&"Table1"),B30+1,6)),"",INDEX(INDIRECT("_"&$A$29&"Table1"),B30+1,6)) ->  | H30: =IF(ISBLANK(INDEX(INDIRECT("_"&$A$29&"Table1"),B30+1,7)),"",INDEX(INDIRECT("_"&$A$29&"Table1"),B30+1,7)) ->  | I30: =IF(ISBLANK(INDEX(INDIRECT("_"&$A$29&"Table1"),B30+1,8)),"",INDEX(INDIRECT("_"&$A$29&"Table1"),B30+1,8)) ->  | J30: =SUM(J31:J36) -> 0 | K30: =IF(ISERR(ED30),"Cost Type",IF(A30="X","Override",IF(AND(CostType=ARO,L30>ScheduleYear),"Date Range",IF(AND(ISTEXT(LocationFilter),ISERROR(EI30)),"Location",IF(AND(ISTEXT(PropertyFilter),ISERROR(EJ30)),"Property",IF(AND(ISTEXT(FacilityTypeFilter),ISERROR(EG30)),"Facility Type",IF(AND(NOT(ISBLANK(IDCodeFilter)),ISERROR(EF30)),"ID Code",IF(AND(ISTEXT(PhaseFilter),ISERROR(EH30)),"Phase",IF(AND(CostType=LOM,LOMComplete),J30,SUM(T30:DO30)))))))))) -> Cost Type | L30: =INDEX(INDIRECT("_"&$A$29&"Table1"),B30+1,4) -> 0 | Q30: =SUM(Q31:Q36) -> 0 | T30: =IF(ISTEXT($EB30),0,IF(AND(CostType=LOM,LOMComplete,T$27<=ScheduleYear),SUMPRODUCT(T31:T36,$J31:$J36),IF(CostType=Bond,SUMPRODUCT($EB31:$EB36,T31:T36,$EA31:$EA36),IF(T$27<=ScheduleYear,0,SUMPRODUCT(T31:T36,$EB31:$EB36))))) -> 0 | U30: 0 | V30: 0 | W30: 0 | X30: 0 | Y30: 0 | Z30: 0 | AA30: 0 | AB30: 0 | AC30: 0 | AD30: 0 | AE30: 0 | AF30: 0 | AG30: 0 | AH30: 0 | AI30: 0 | AJ30: 0 | AK30: 0 | AL30: 0 | AM30: 0 | AN30: 0 | AO30: 0 | AP30: 0 | AQ30: 0 | AR30: 0 | AS30: 0 | AT30: 0 | AU30: 0 | AV30: 0 | AW30: 0 | AX30: 0 | AY30: 0 | AZ30: =IF(ISTEXT($EB30),0,IF(AND(CostType=LOM,LOMComplete,AZ$27<=ScheduleYear),SUMPRODUCT(AZ31:AZ36,$J31:$J36),IF(CostType=Bond,SUMPRODUCT($EB31:$EB36,AZ31:AZ36,$EA31:$EA36),IF(AZ$27<=ScheduleYear,0,SUMPRODUCT(AZ31:AZ36,$EB31:$EB36))))) -> 0 | BA30: 0 | BB30: 0 | BC30: 0 | BD30: 0 | BE30: 0 | BF30: 0 | BG30: 0 | BH30: 0 | BI30: 0 | BJ30: 0 | BK30: 0 | BL30: 0 | BM30: 0 | BN30: 0 | BO30: 0 | BP30: 0 | BQ30: 0 | BR30: 0 | BS30: 0 | BT30: 0 | BU30: 0 | BV30: 0 | BW30: 0 | BX30: 0 | BY30: 0 | BZ30: 0 | CA30: 0 | CB30: 0 | CC30: 0 | CD30: 0 | CE30: 0 | CF30: =IF(ISTEXT($EB30),0,IF(AND(CostType=LOM,LOMComplete,CF$27<=ScheduleYear),SUMPRODUCT(CF31:CF36,$J31:$J36),IF(CostType=Bond,SUMPRODUCT($EB31:$EB36,CF31:CF36,$EA31:$EA36),IF(CF$27<=ScheduleYear,0,SUMPRODUCT(CF31:CF36,$EB31:$EB36))))) -> 0 | CG30: 0 | CH30: 0 | CI30: 0 | CJ30: 0 | CK30: 0 | CL30: 0 | CM30: 0 | CN30: 0 | CO30: 0 | CP30: 0 | CQ30: 0 | CR30: 0 | CS30: 0 | CT30: 0 | CU30: 0 | CV30: 0 | CW30: 0 | CX30: 0 | CY30: 0 | CZ30: 0 | DA30: 0 | DB30: 0 | DC30: 0 | DD30: 0 | DE30: 0 | DF30: 0 | DG30: 0 | DH30: 0 | DI30: 0 | DJ30: 0 | DK30: 0 | DL30: =IF(ISTEXT($EB30),0,IF(AND(CostType=LOM,LOMComplete,DL$27<=ScheduleYear),SUMPRODUCT(DL31:DL36,$J31:$J36),IF(CostType=Bond,SUMPRODUCT($EB31:$EB36,DL31:DL36,$EA31:$EA36),IF(DL$27<=ScheduleYear,0,SUMPRODUCT(DL31:DL36,$EB31:$EB36))))) -> 0 | DM30: 0 | DN30: 0 | DO30: 0 | DP30: =IF(ISNUMBER(K30),SUM(T30:DO30)-K30,K30) -> Cost Type | EB30: =IF(ISERR(ED30),"Cost Type",IF(A30="X","Override",IF(AND(CostType=ARO,L30>ScheduleYear),0,IF(AND(ISTEXT(LocationFilter),ISERROR(EI30)),"Location",IF(AND(ISTEXT(PropertyFilter),ISERROR(EJ30)),"Property",IF(AND(ISTEXT(FacilityTypeFilter),ISERROR(EG30)),"Facility Type",IF(AND(ISTEXT(IDCodeFilter),ISERROR(EF30)),"ID Code",IF(AND(ISTEXT(PhaseFilter),ISERROR(EH30)),"Phase",J30)))))))) -> Cost Type | EC30: =IF(EE30="","Cost Type",IF(A30="X","Override",IF(AND(OtherCostType=ARO,L30>ScheduleYear),0,IF(AND(ISTEXT(LocationFilter),EI30=""),"Location",IF(AND(ISTEXT(PropertyFilter),EJ30=""),"Property",IF(AND(ISTEXT(FacilityTypeFilter),EG30=""),"Facility Type",IF(AND(ISTEXT(IDCodeFilter),EF30=""),"ID Code",IF(AND(ISTEXT(PhaseFilter),EH30=""),"Phase",J30)))))))) ->  | ED30: =SEARCH(CostType,C30) ->  | EE30: =SEARCH(OtherCostType,C30) ->  | EF30: =IF(AND(IDCodeFilterType="CONTAINS",NOT(ISERROR(SEARCH(IDCodeFilter,E30)))),1,IF(AND(IDCodeFilterType="NOT",ISERROR(SEARCH(IDCodeFilter,E30))),1,IF(AND(OR(IDCodeFilterType="EXACT",ISBLANK(IDCodeFilterType)),NOT(ISERROR(MATCH(IDCodeFilter,E30,0)))),1,$EK30))) ->  | EG30: =IF(AND(FacilityFilterType="CONTAINS",NOT(ISERROR(SEARCH(FacilityTypeFilter,F30)))),1,IF(AND(FacilityFilterType="NOT",ISERROR(SEARCH(FacilityTypeFilter,F30))),1,IF(AND(OR(FacilityFilterType="EXACT",ISBLANK(FacilityFilterType)),NOT(ISERROR(MATCH(FacilityTypeFilter,F30,0)))),1,$EK30))) ->  | EH30: =IF(AND(PhaseFilterType="CONTAINS",NOT(ISERROR(SEARCH(PhaseFilter,G30)))),1,IF(AND(PhaseFilterType="NOT",ISERROR(SEARCH(PhaseFilter,G30))),1,IF(AND(OR(PhaseFilterType="EXACT",ISBLANK(PhaseFilterType)),NOT(ISERROR(MATCH(PhaseFilter,G30,0)))),1,$EK30))) ->  | EI30: =IF(AND(LocationFilterType="CONTAINS",NOT(ISERROR(SEARCH(LocationFilter,H30)))),1,IF(AND(LocationFilterType="NOT",ISERROR(SEARCH(LocationFilter,H30))),1,IF(AND(OR(LocationFilterType="EXACT",ISBLANK(LocationFilterType)),NOT(ISERROR(MATCH(LocationFilter,H30,0)))),1,$EK30))) ->  | EJ30: =IF(AND(PropertyFilterType="CONTAINS",NOT(ISERROR(SEARCH(PropertyFilter,I30)))),1,IF(AND(PropertyFilterType="NOT",ISERROR(SEARCH(PropertyFilter,I30))),1,IF(AND(OR(PropertyFilterType="EXACT",ISBLANK(PropertyFilterType)),NOT(ISERROR(MATCH(PropertyFilter,I30,0)))),1,$EK30))) ->  | EK30: =MATCH("NOT",$EK$27,0) ->  | EL30: =IF(ISBLANK(INDEX(INDIRECT("_"&$A$29&"Table1"),B30+1,2)),"",MATCH(INDEX(INDIRECT("_"&$A$29&"Table1"),B30+1,5),Accounts,0)) ->  | EM30: Surf Area | EN30: Surf Area | EO30: =IF(ISNUMBER(K36),INDEX(INDIRECT("_"&$A$29&"Table8"),B30+1,5),"") ->  | EP30: =IF(Metric,"ha","acres") -> acres | EZ30: FALSE | FA30: 1
D31: Regrading | J31: =IF(INDEX(INDIRECT("_"&$A$29&"Table4"),B30+1,15)=0,0,INDEX(INDIRECT("_"&$A$29&"Table4"),B30+1,15)) -> 0 | K31: =IF(OR(J31="",K30="",ISTEXT(K30),J31=0),"",IF(OR(ISBLANK(M31),ISBLANK(N31)),"Enter Dates",IF(K30="Date Range","",IF(OR(AND(CostType=ARO,L30>ScheduleYear),AND(CostType=ARO,N31<=ScheduleYear)),"Date Range",IF(OR(AND(CostType=Bond,O31>ScheduleYear),AND(CostType=LOM,LOMComplete)),J31,J31-Q31))))) ->  | P31: =IF(K31="","",SUM(T31:DO31)) ->  | Q31: =IF(OR(AND(CostType=ARO,N31<=ScheduleYear),AND(CostType=LOM,LOMComplete)),J31*R31,R31*EB31) -> 0 | R31: =IF(CostType=Bond,SUMIFS(T31:DP31,T$27:DP$27,"<="&O31,T$27:DP$27,"<="&ScheduleYear),SUMIF(T$27:DP$27,"<="&ScheduleYear,T31:DP31)) -> 0 | EA31: =IF(OR(ISBLANK($O31),$O31>ScheduleYear),1,0) -> 1 | EB31: =IF(OR(J31="",EB30="",ISTEXT(EB30)),0,IF(OR(ISBLANK(M31),ISBLANK(N31)),0,IF(OR(AND(CostType=ARO,L30>ScheduleYear),AND(OR(CostType=ARO,AND(CostType=LOM,LOMComplete=TRUE)),N31<=ScheduleYear)),0,J31))) -> 0 | EC31: =IF(OR(J31="",EC30="",ISTEXT(EC30)),0,IF(OR(ISBLANK(M31),ISBLANK(N31)),0,IF(EC30="Date Range",0,IF(OR(AND(OtherCostType=ARO,L30>ScheduleYear),N31<=ScheduleYear),0,J31)))) ->  | EM31: Regrade | EN31: Regrade | EO31: =IF(ISNUMBER(K31),IF(INDEX(INDIRECT("_"&$A$29&"Table4"),B30+1,3)=0,0,INDEX(INDIRECT("_"&$A$29&"Table4"),B30+1,3)),0) -> 0 | EP31: =IF(Metric,"m3","cy") -> cy | EQ31: =INDEX(INDIRECT("_"&$A$29&"Table4"),B30+1,5) ->  | ES31: =IF(OR(NOT(ISNUMBER(K31)),K31=0),0,INDEX(INDIRECT("_"&$A$29&"Table4"),B30+1,12)) -> 0 | EW31: =IF(ISNUMBER($K31),INDEX(INDIRECT("_"&$A$29&"Table4"),B30+1,13),0) -> 0 | EX31: =IF(ISNUMBER($K31),INDEX(INDIRECT("_"&$A$29&"Table4"),B30+1,14),0) -> 0 | EZ31: TRUE
D32: Cover 1 Placement | J32: =INDEX(INDIRECT("_"&$A$29&"Table5"),B30+1,25) -> 0 | K32: =IF(OR(J32="",K30="",ISTEXT(K30),J32=0),"",IF(OR(ISBLANK(M32),ISBLANK(N32)),"Enter Dates",IF(K30="Date Range","",IF(OR(AND(CostType=ARO,L30>ScheduleYear),AND(CostType=ARO,N32<=ScheduleYear)),"Date Range",IF(OR(AND(CostType=Bond,O32>ScheduleYear),AND(CostType=LOM,LOMComplete)),J32,J32-Q32))))) ->  | Q32: 0 | R32: 0 | EA32: 1 | EB32: =IF(OR(J32="",EB30="",ISTEXT(EB30)),0,IF(OR(ISBLANK(M32),ISBLANK(N32)),0,IF(OR(AND(CostType=ARO,L30>ScheduleYear),AND(OR(CostType=ARO,AND(CostType=LOM,LOMComplete=TRUE)),N32<=ScheduleYear)),0,J32))) -> 0 | EC32: =IF(OR(J32="",EC30="",ISTEXT(EC30)),0,IF(OR(ISBLANK(M32),ISBLANK(N32)),0,IF(EC30="Date Range",0,IF(OR(AND(CostType=ARO,L30>ScheduleYear),N32<=ScheduleYear),0,J32)))) ->  | EM32: Cover | EN32: Cover | EO32: =IF(ISNUMBER(K32),INDEX(INDIRECT("_"&$A$29&"Table5"),B30+1,4),0) -> 0 | EP32: =IF(Metric,"m3","cy") -> cy | EQ32: =INDEX(INDIRECT("_"&$A$29&"Table5"),B30+1,10) ->  | ER32: =IF(OR(NOT(ISNUMBER(K32)),K32=0),0,INDEX(INDIRECT("_"&$A$29&"Table5"),B30+1,12)) -> 0 | ES32: =IF(OR(NOT(ISNUMBER(K32)),K32=0),0,INDEX(INDIRECT("_"&$A$29&"Table5"),B30+1,14)) -> 0 | ET32: =INDEX(INDIRECT("_"&$A$29&"Table5"),B30+1,5) ->  | EU32: =IF(OR(NOT(ISNUMBER(K32)),K32=0),0,INDEX(INDIRECT("_"&$A$29&"Table5"),B30+1,7)) -> 0 | EV32: =IF(OR(NOT(ISNUMBER(K32)),K32=0),0,INDEX(INDIRECT("_"&$A$29&"Table5"),B30+1,9)) -> 0 | EW32: =IF(ISNUMBER($K32),INDEX(INDIRECT("_"&$A$29&"Table5"),B30+1,15)+INDEX(INDIRECT("_"&$A$29&"Table5"),B30+1,19)+INDEX(INDIRECT("_"&$A$29&"Table5"),B30+1,22),0) -> 0 | EX32: =IF(ISNUMBER($K31),INDEX(INDIRECT("_"&$A$29&"Table5"),B30+1,16)+INDEX(INDIRECT("_"&$A$29&"Table5"),B30+1,20)+INDEX(INDIRECT("_"&$A$29&"Table5"),B30+1,23),0) -> 0 | EZ32: TRUE
D33: Cover 2 Placement | J33: =INDEX(INDIRECT("_"&$A$29&"Table6"),B30+1,25) -> 0 | K33: =IF(OR(J33="",K30="",ISTEXT(K30),J33=0),"",IF(OR(ISBLANK(M33),ISBLANK(N33)),"Enter Dates",IF(K30="Date Range","",IF(OR(AND(CostType=ARO,L30>ScheduleYear),AND(CostType=ARO,N33<=ScheduleYear)),"Date Range",IF(OR(AND(CostType=Bond,O33>ScheduleYear),AND(CostType=LOM,LOMComplete)),J33,J33-Q33))))) ->  | Q33: 0 | R33: 0 | EA33: 1 | EB33: =IF(OR(J33="",EB30="",ISTEXT(EB30)),0,IF(OR(ISBLANK(M33),ISBLANK(N33)),0,IF(OR(AND(CostType=ARO,L30>ScheduleYear),AND(OR(CostType=ARO,AND(CostType=LOM,LOMComplete=TRUE)),N33<=ScheduleYear)),0,J33))) -> 0 | EC33: =IF(OR(J33="",EC30="",ISTEXT(EC30)),0,IF(OR(ISBLANK(M33),ISBLANK(N33)),0,IF(EC30="Date Range",0,IF(OR(AND(CostType=ARO,L30>ScheduleYear),N33<=ScheduleYear),0,J33)))) ->  | EM33: Cover | EN33: Cover | EO33: =IF(ISNUMBER(K33),INDEX(INDIRECT("_"&$A$29&"Table6"),B30+1,4),0) -> 0 | EP33: =IF(Metric,"m3","cy") -> cy | EQ33: =INDEX(INDIRECT("_"&$A$29&"Table6"),B30+1,10) ->  | ER33: =IF(OR(NOT(ISNUMBER(K33)),K33=0),0,INDEX(INDIRECT("_"&$A$29&"Table6"),B30+1,12)) -> 0 | ES33: =IF(OR(NOT(ISNUMBER(K33)),K33=0),0,INDEX(INDIRECT("_"&$A$29&"Table6"),B30+1,14)) -> 0 | ET33: =INDEX(INDIRECT("_"&$A$29&"Table6"),B30+1,5) ->  | EU33: =IF(OR(NOT(ISNUMBER(K33)),K33=0),0,INDEX(INDIRECT("_"&$A$29&"Table6"),B30+1,7)) -> 0 | EV33: =IF(OR(NOT(ISNUMBER(K33)),K33=0),0,INDEX(INDIRECT("_"&$A$29&"Table6"),B30+1,9)) -> 0 | EZ33: TRUE
D34: Growth Media Placement | J34: =INDEX(INDIRECT("_"&$A$29&"Table7"),B30+1,11) -> 0 | K34: =IF(OR(J34="",K30="",ISTEXT(K30),J34=0),"",IF(OR(ISBLANK(M34),ISBLANK(N34)),"Enter Dates",IF(K30="Date Range","",IF(OR(AND(CostType=ARO,L30>ScheduleYear),AND(CostType=ARO,N34<=ScheduleYear)),"Date Range",IF(OR(AND(CostType=Bond,O34>ScheduleYear),AND(CostType=LOM,LOMComplete)),J34,J34-Q34))))) ->  | Q34: 0 | R34: 0 | EA34: 1 | EB34: =IF(OR(J34="",EB30="",ISTEXT(EB30)),0,IF(OR(ISBLANK(M34),ISBLANK(N34)),0,IF(OR(AND(CostType=ARO,L30>ScheduleYear),AND(OR(CostType=ARO,AND(CostType=LOM,LOMComplete=TRUE)),N34<=ScheduleYear)),0,J34))) -> 0 | EC34: =IF(OR(J34="",EC30="",ISTEXT(EC30)),0,IF(OR(ISBLANK(M34),ISBLANK(N34)),0,IF(EC30="Date Range",0,IF(OR(AND(CostType=ARO,L30>ScheduleYear),N34<=ScheduleYear),0,J34)))) ->  | EM34: GM | EN34: GM | EO34: =IF(ISNUMBER(K34),INDEX(INDIRECT("_"&$A$29&"Table7"),B30+1,3),0) -> 0 | EP34: =IF(Metric,"m3","cy") -> cy | EQ34: =INDEX(INDIRECT("_"&$A$29&"Table7"),B30+1,4) ->  | ER34: =IF(OR(NOT(ISNUMBER(K34)),K34=0),0,INDEX(INDIRECT("_"&$A$29&"Table7"),B30+1,6)) -> 0 | ES34: =IF(OR(NOT(ISNUMBER(K34)),K34=0),0,INDEX(INDIRECT("_"&$A$29&"Table7"),B30+1,8)) -> 0 | EZ34: TRUE
D35: Ripping/Scarifying | J35: =INDEX(INDIRECT("_"&$A$29&"Table8"),B30+1,13) -> 0 | K35: =IF(OR(J35="",K30="",ISTEXT(K30),J35=0),"",IF(OR(ISBLANK(M35),ISBLANK(N35)),"Enter Dates",IF(K30="Date Range","",IF(OR(AND(CostType=ARO,L30>ScheduleYear),AND(CostType=ARO,N35<=ScheduleYear)),"Date Range",IF(OR(AND(CostType=Bond,O35>ScheduleYear),AND(CostType=LOM,LOMComplete)),J35,J35-Q35))))) ->  | Q35: 0 | R35: 0 | EA35: 1 | EB35: =IF(OR(J35="",EB30="",ISTEXT(EB30)),0,IF(OR(ISBLANK(M35),ISBLANK(N35)),0,IF(OR(AND(CostType=ARO,L30>ScheduleYear),AND(OR(CostType=ARO,AND(CostType=LOM,LOMComplete=TRUE)),N35<=ScheduleYear)),0,J35))) -> 0 | EC35: =IF(OR(J35="",EC30="",ISTEXT(EC30)),0,IF(OR(ISBLANK(M35),ISBLANK(N35)), 0,IF(EC30="Date Range",0,IF(OR(AND(CostType=ARO,L30>ScheduleYear),N35<=ScheduleYear),0,J35)))) ->  | EM35: Rip | EN35: Rip | EO35: =IF(ISNUMBER(K35),INDEX(INDIRECT("_"&$A$29&"Table8"),B30+1,5),0) -> 0 | EP35: =IF(Metric,"ha","acres") -> acres | EQ35: =INDEX(INDIRECT("_"&$A$29&"Table8"),B30+1,8) ->  | ES35: =IF(OR(NOT(ISNUMBER(K35)),K35=0),0,INDEX(INDIRECT("_"&$A$29&"Table8"),B30+1,9)+INDEX(INDIRECT("_"&$A$29&"Table8"),B30+1,10)) -> 0 | EZ35: TRUE
D36: Revegetation | J36: =INDEX(INDIRECT("_"&$A$29&"Table8"),B30+1,17) -> 0 | K36: =IF(OR(J36="",K30="",ISTEXT(K30),J36=0),"",IF(OR(ISBLANK(M36),ISBLANK(N36)),"Enter Dates",IF(K30="Date Range","",IF(OR(AND(CostType=ARO,L30>ScheduleYear),AND(CostType=ARO,N36<=ScheduleYear)),"Date Range",IF(OR(AND(CostType=Bond,O36>ScheduleYear),AND(CostType=LOM,LOMComplete)),J36,J36-Q36))))) ->  | Q36: 0 | R36: 0 | EA36: 1 | EB36: =IF(OR(J36="",EB30="",ISTEXT(EB30)),0,IF(OR(ISBLANK(M36),ISBLANK(N36)),0,IF(OR(AND(CostType=ARO,L30>ScheduleYear),AND(OR(CostType=ARO,AND(CostType=LOM,LOMComplete=TRUE)),N36<=ScheduleYear)),0,J36))) -> 0 | EC36: =IF(OR(J36="",EC30="",ISTEXT(EC30)),0,IF(OR(ISBLANK(M36),ISBLANK(N36)), 0,IF(EC30="Date Range",0,IF(OR(AND(CostType=ARO,L30>ScheduleYear),N36<=ScheduleYear),0,J36)))) ->  | EM36: Reveg | EN36: Reveg | EO36: =IF(ISNUMBER(K36),INDEX(INDIRECT("_"&$A$29&"Table8"),B30+1,5),0) -> 0 | EP36: =IF(Metric,"ha","acres") -> acres | EZ36: TRUE
B37: =(ROW(B37) - ROW($A$29)-1)/INDEX(SheetRangeIndex,MATCH($A$29,TableNamesSorted,0),7) -> 1 | C37: =INDEX(INDIRECT("_"&$A$29&"Table1"),B37+1,9) -> FA | D37: =INDEX(INDIRECT("_"&$A$29&"Table1"),B37+1,2) -> Plant Disturbance | E37: =IF(ISBLANK(INDEX(INDIRECT("_"&$A$29&"Table1"),B37+1,3)),"",INDEX(INDIRECT("_"&$A$29&"Table1"),B37+1,3)) ->  | F37: =IF(ISERROR(EL37),"Facility Type",IF(ISBLANK(INDEX(INDIRECT("_"&$A$29&"Table1"),B37+1,5)),"",INDEX(INDIRECT("_"&$A$29&"Table1"),B37+1,5))) -> Yards | G37: =IF(ISBLANK(INDEX(INDIRECT("_"&$A$29&"Table1"),B37+1,6)),"",INDEX(INDIRECT("_"&$A$29&"Table1"),B37+1,6)) -> Active Closure | H37: =IF(ISBLANK(INDEX(INDIRECT("_"&$A$29&"Table1"),B37+1,7)),"",INDEX(INDIRECT("_"&$A$29&"Table1"),B37+1,7)) ->  | I37: =IF(ISBLANK(INDEX(INDIRECT("_"&$A$29&"Table1"),B37+1,8)),"",INDEX(INDIRECT("_"&$A$29&"Table1"),B37+1,8)) ->  | J37: =SUM(J38:J43) -> 279601 | K37: =IF(ISERR(ED37),"Cost Type",IF(A37="X","Override",IF(AND(CostType=ARO,L37>ScheduleYear),"Date Range",IF(AND(ISTEXT(LocationFilter),ISERROR(EI37)),"Location",IF(AND(ISTEXT(PropertyFilter),ISERROR(EJ37)),"Property",IF(AND(ISTEXT(FacilityTypeFilter),ISERROR(EG37)),"Facility Type",IF(AND(NOT(ISBLANK(IDCodeFilter)),ISERROR(EF37)),"ID Code",IF(AND(ISTEXT(PhaseFilter),ISERROR(EH37)),"Phase",IF(AND(CostType=LOM,LOMComplete),J37,SUM(T37:DO37)))))))))) -> 279601 | L37: =INDEX(INDIRECT("_"&$A$29&"Table1"),B37+1,4) -> 0 | Q37: =SUM(Q38:Q43) -> 0 | T37: =IF(ISTEXT($EB37),0,IF(AND(CostType=LOM,LOMComplete,T$27<=ScheduleYear),SUMPRODUCT(T38:T43,$J38:$J43),IF(CostType=Bond,SUMPRODUCT($EB38:$EB43,T38:T43,$EA38:$EA43),IF(T$27<=ScheduleYear,0,SUMPRODUCT(T38:T43,$EB38:$EB43))))) -> 0 | U37: 0 | V37: 0 | W37: 0 | X37: 0 | Y37: 0 | Z37: 0 | AA37: 0 | AB37: 0 | AC37: 0 | AD37: 0 | AE37: 0 | AF37: 0 | AG37: 139800.5 | AH37: 139800.5 | AI37: 0 | AJ37: 0 | AK37: 0 | AL37: 0 | AM37: 0 | AN37: 0 | AO37: 0 | AP37: 0 | AQ37: 0 | AR37: 0 | AS37: 0 | AT37: 0 | AU37: 0 | AV37: 0 | AW37: 0 | AX37: 0 | AY37: 0 | AZ37: =IF(ISTEXT($EB37),0,IF(AND(CostType=LOM,LOMComplete,AZ$27<=ScheduleYear),SUMPRODUCT(AZ38:AZ43,$J38:$J43),IF(CostType=Bond,SUMPRODUCT($EB38:$EB43,AZ38:AZ43,$EA38:$EA43),IF(AZ$27<=ScheduleYear,0,SUMPRODUCT(AZ38:AZ43,$EB38:$EB43))))) -> 0 | BA37: 0 | BB37: 0 | BC37: 0 | BD37: 0 | BE37: 0 | BF37: 0 | BG37: 0 | BH37: 0 | BI37: 0 | BJ37: 0 | BK37: 0 | BL37: 0 | BM37: 0 | BN37: 0 | BO37: 0 | BP37: 0 | BQ37: 0 | BR37: 0 | BS37: 0 | BT37: 0 | BU37: 0 | BV37: 0 | BW37: 0 | BX37: 0 | BY37: 0 | BZ37: 0 | CA37: 0 | CB37: 0 | CC37: 0 | CD37: 0 | CE37: 0 | CF37: =IF(ISTEXT($EB37),0,IF(AND(CostType=LOM,LOMComplete,CF$27<=ScheduleYear),SUMPRODUCT(CF38:CF43,$J38:$J43),IF(CostType=Bond,SUMPRODUCT($EB38:$EB43,CF38:CF43,$EA38:$EA43),IF(CF$27<=ScheduleYear,0,SUMPRODUCT(CF38:CF43,$EB38:$EB43))))) -> 0 | CG37: 0 | CH37: 0 | CI37: 0 | CJ37: 0 | CK37: 0 | CL37: 0 | CM37: 0 | CN37: 0 | CO37: 0 | CP37: 0 | CQ37: 0 | CR37: 0 | CS37: 0 | CT37: 0 | CU37: 0 | CV37: 0 | CW37: 0 | CX37: 0 | CY37: 0 | CZ37: 0 | DA37: 0 | DB37: 0 | DC37: 0 | DD37: 0 | DE37: 0 | DF37: 0 | DG37: 0 | DH37: 0 | DI37: 0 | DJ37: 0 | DK37: 0 | DL37: =IF(ISTEXT($EB37),0,IF(AND(CostType=LOM,LOMComplete,DL$27<=ScheduleYear),SUMPRODUCT(DL38:DL43,$J38:$J43),IF(CostType=Bond,SUMPRODUCT($EB38:$EB43,DL38:DL43,$EA38:$EA43),IF(DL$27<=ScheduleYear,0,SUMPRODUCT(DL38:DL43,$EB38:$EB43))))) -> 0 | DM37: 0 | DN37: 0 | DO37: 0 | DP37: =IF(ISNUMBER(K37),SUM(T37:DO37)-K37,K37) -> 0 | EB37: =IF(ISERR(ED37),"Cost Type",IF(A37="X","Override",IF(AND(CostType=ARO,L37>ScheduleYear),0,IF(AND(ISTEXT(LocationFilter),ISERROR(EI37)),"Location",IF(AND(ISTEXT(PropertyFilter),ISERROR(EJ37)),"Property",IF(AND(ISTEXT(FacilityTypeFilter),ISERROR(EG37)),"Facility Type",IF(AND(ISTEXT(IDCodeFilter),ISERROR(EF37)),"ID Code",IF(AND(ISTEXT(PhaseFilter),ISERROR(EH37)),"Phase",J37)))))))) -> 279601 | EC37: =IF(EE37="","Cost Type",IF(A37="X","Override",IF(AND(OtherCostType=ARO,L37>ScheduleYear),0,IF(AND(ISTEXT(LocationFilter),EI37=""),"Location",IF(AND(ISTEXT(PropertyFilter),EJ37=""),"Property",IF(AND(ISTEXT(FacilityTypeFilter),EG37=""),"Facility Type",IF(AND(ISTEXT(IDCodeFilter),EF37=""),"ID Code",IF(AND(ISTEXT(PhaseFilter),EH37=""),"Phase",J37)))))))) ->  | ED37: =SEARCH(CostType,C37) -> 1 | EE37: =SEARCH(OtherCostType,C37) ->  | EF37: =IF(AND(IDCodeFilterType="CONTAINS",NOT(ISERROR(SEARCH(IDCodeFilter,E37)))),1,IF(AND(IDCodeFilterType="NOT",ISERROR(SEARCH(IDCodeFilter,E37))),1,IF(AND(OR(IDCodeFilterType="EXACT",ISBLANK(IDCodeFilterType)),NOT(ISERROR(MATCH(IDCodeFilter,E37,0)))),1,$EK37))) ->  | EG37: =IF(AND(FacilityFilterType="CONTAINS",NOT(ISERROR(SEARCH(FacilityTypeFilter,F37)))),1,IF(AND(FacilityFilterType="NOT",ISERROR(SEARCH(FacilityTypeFilter,F37))),1,IF(AND(OR(FacilityFilterType="EXACT",ISBLANK(FacilityFilterType)),NOT(ISERROR(MATCH(FacilityTypeFilter,F37,0)))),1,$EK37))) ->  | EH37: =IF(AND(PhaseFilterType="CONTAINS",NOT(ISERROR(SEARCH(PhaseFilter,G37)))),1,IF(AND(PhaseFilterType="NOT",ISERROR(SEARCH(PhaseFilter,G37))),1,IF(AND(OR(PhaseFilterType="EXACT",ISBLANK(PhaseFilterType)),NOT(ISERROR(MATCH(PhaseFilter,G37,0)))),1,$EK37))) ->  | EI37: =IF(AND(LocationFilterType="CONTAINS",NOT(ISERROR(SEARCH(LocationFilter,H37)))),1,IF(AND(LocationFilterType="NOT",ISERROR(SEARCH(LocationFilter,H37))),1,IF(AND(OR(LocationFilterType="EXACT",ISBLANK(LocationFilterType)),NOT(ISERROR(MATCH(LocationFilter,H37,0)))),1,$EK37))) ->  | EJ37: =IF(AND(PropertyFilterType="CONTAINS",NOT(ISERROR(SEARCH(PropertyFilter,I37)))),1,IF(AND(PropertyFilterType="NOT",ISERROR(SEARCH(PropertyFilter,I37))),1,IF(AND(OR(PropertyFilterType="EXACT",ISBLANK(PropertyFilterType)),NOT(ISERROR(MATCH(PropertyFilter,I37,0)))),1,$EK37))) ->  | EK37: =MATCH("NOT",$EK$27,0) ->  | EL37: =IF(ISBLANK(INDEX(INDIRECT("_"&$A$29&"Table1"),B37+1,2)),"",MATCH(INDEX(INDIRECT("_"&$A$29&"Table1"),B37+1,5),Accounts,0)) -> 10 | EM37: Surf Area | EN37: Surf Area | EO37: =IF(ISNUMBER(K43),INDEX(INDIRECT("_"&$A$29&"Table8"),B37+1,5),"") -> 79.96 | EP37: =IF(Metric,"ha","acres") -> acres | EZ37: FALSE | FA37: 1
D38: Regrading | J38: =IF(INDEX(INDIRECT("_"&$A$29&"Table4"),B37+1,15)=0,0,INDEX(INDIRECT("_"&$A$29&"Table4"),B37+1,15)) -> 5439 | K38: =IF(OR(J38="",K37="",ISTEXT(K37),J38=0),"",IF(OR(ISBLANK(M38),ISBLANK(N38)),"Enter Dates",IF(K37="Date Range","",IF(OR(AND(CostType=ARO,L37>ScheduleYear),AND(CostType=ARO,N38<=ScheduleYear)),"Date Range",IF(OR(AND(CostType=Bond,O38>ScheduleYear),AND(CostType=LOM,LOMComplete)),J38,J38-Q38))))) -> 5439 | M38: =ClosureYear1 -> 14 | N38: =ClosureYear1+1 -> 15 | P38: =IF(K38="","",SUM(T38:DO38)) -> 1 | Q38: =IF(OR(AND(CostType=ARO,N38<=ScheduleYear),AND(CostType=LOM,LOMComplete)),J38*R38,R38*EB38) -> 0 | R38: =IF(CostType=Bond,SUMIFS(T38:DP38,T$27:DP$27,"<="&O38,T$27:DP$27,"<="&ScheduleYear),SUMIF(T$27:DP$27,"<="&ScheduleYear,T38:DP38)) -> 0 | AG38: 0.5 | AH38: 0.5 | EA38: 1 | EB38: =IF(OR(J38="",EB37="",ISTEXT(EB37)),0,IF(OR(ISBLANK(M38),ISBLANK(N38)),0,IF(OR(AND(CostType=ARO,L37>ScheduleYear),AND(OR(CostType=ARO,AND(CostType=LOM,LOMComplete=TRUE)),N38<=ScheduleYear)),0,J38))) -> 5439 | EC38: =IF(OR(J38="",EC37="",ISTEXT(EC37)),0,IF(OR(ISBLANK(M38),ISBLANK(N38)),0,IF(EC37="Date Range",0,IF(OR(AND(OtherCostType=ARO,L37>ScheduleYear),N38<=ScheduleYear),0,J38)))) ->  | EM38: Regrade | EN38: Regrade | EO38: =IF(ISNUMBER(K38),IF(INDEX(INDIRECT("_"&$A$29&"Table4"),B37+1,3)=0,0,INDEX(INDIRECT("_"&$A$29&"Table4"),B37+1,3)),0) -> 28328 | EP38: =IF(Metric,"m3","cy") -> cy | EQ38: =INDEX(INDIRECT("_"&$A$29&"Table4"),B37+1,5) -> D9T | ES38: =IF(OR(NOT(ISNUMBER(K38)),K38=0),0,INDEX(INDIRECT("_"&$A$29&"Table4"),B37+1,12)) -> 23 | EW38: =IF(ISNUMBER($K38),INDEX(INDIRECT("_"&$A$29&"Table4"),B37+1,13),0) -> 597 | EX38: =IF(ISNUMBER($K38),INDEX(INDIRECT("_"&$A$29&"Table4"),B37+1,14),0) -> 4842 | EZ38: TRUE
D39: Cover 1 Placement | J39: =INDEX(INDIRECT("_"&$A$29&"Table5"),B37+1,25) -> 0 | K39: =IF(OR(J39="",K37="",ISTEXT(K37),J39=0),"",IF(OR(ISBLANK(M39),ISBLANK(N39)),"Enter Dates",IF(K37="Date Range","",IF(OR(AND(CostType=ARO,L37>ScheduleYear),AND(CostType=ARO,N39<=ScheduleYear)),"Date Range",IF(OR(AND(CostType=Bond,O39>ScheduleYear),AND(CostType=LOM,LOMComplete)),J39,J39-Q39))))) ->  | M39: 14 | N39: 15 | Q39: 0 | R39: 0 | AG39: 0.5 | AH39: 0.5 | EA39: 1 | EB39: =IF(OR(J39="",EB37="",ISTEXT(EB37)),0,IF(OR(ISBLANK(M39),ISBLANK(N39)),0,IF(OR(AND(CostType=ARO,L37>ScheduleYear),AND(OR(CostType=ARO,AND(CostType=LOM,LOMComplete=TRUE)),N39<=ScheduleYear)),0,J39))) -> 0 | EC39: =IF(OR(J39="",EC37="",ISTEXT(EC37)),0,IF(OR(ISBLANK(M39),ISBLANK(N39)),0,IF(EC37="Date Range",0,IF(OR(AND(CostType=ARO,L37>ScheduleYear),N39<=ScheduleYear),0,J39)))) ->  | EM39: Cover | EN39: Cover | EO39: =IF(ISNUMBER(K39),INDEX(INDIRECT("_"&$A$29&"Table5"),B37+1,4),0) -> 0 | EP39: =IF(Metric,"m3","cy") -> cy | EQ39: =INDEX(INDIRECT("_"&$A$29&"Table5"),B37+1,10) ->  | ER39: =IF(OR(NOT(ISNUMBER(K39)),K39=0),0,INDEX(INDIRECT("_"&$A$29&"Table5"),B37+1,12)) -> 0 | ES39: =IF(OR(NOT(ISNUMBER(K39)),K39=0),0,INDEX(INDIRECT("_"&$A$29&"Table5"),B37+1,14)) -> 0 | ET39: =INDEX(INDIRECT("_"&$A$29&"Table5"),B37+1,5) ->  | EU39: =IF(OR(NOT(ISNUMBER(K39)),K39=0),0,INDEX(INDIRECT("_"&$A$29&"Table5"),B37+1,7)) -> 0 | EV39: =IF(OR(NOT(ISNUMBER(K39)),K39=0),0,INDEX(INDIRECT("_"&$A$29&"Table5"),B37+1,9)) -> 0 | EW39: =IF(ISNUMBER($K39),INDEX(INDIRECT("_"&$A$29&"Table5"),B37+1,15)+INDEX(INDIRECT("_"&$A$29&"Table5"),B37+1,19)+INDEX(INDIRECT("_"&$A$29&"Table5"),B37+1,22),0) -> 0 | EX39: =IF(ISNUMBER($K38),INDEX(INDIRECT("_"&$A$29&"Table5"),B37+1,16)+INDEX(INDIRECT("_"&$A$29&"Table5"),B37+1,20)+INDEX(INDIRECT("_"&$A$29&"Table5"),B37+1,23),0) -> 0 | EZ39: TRUE
D40: Cover 2 Placement | J40: =INDEX(INDIRECT("_"&$A$29&"Table6"),B37+1,25) -> 0 | K40: =IF(OR(J40="",K37="",ISTEXT(K37),J40=0),"",IF(OR(ISBLANK(M40),ISBLANK(N40)),"Enter Dates",IF(K37="Date Range","",IF(OR(AND(CostType=ARO,L37>ScheduleYear),AND(CostType=ARO,N40<=ScheduleYear)),"Date Range",IF(OR(AND(CostType=Bond,O40>ScheduleYear),AND(CostType=LOM,LOMComplete)),J40,J40-Q40))))) ->  | M40: 14 | N40: 15 | Q40: 0 | R40: 0 | AG40: 0.5 | AH40: 0.5 | EA40: 1 | EB40: =IF(OR(J40="",EB37="",ISTEXT(EB37)),0,IF(OR(ISBLANK(M40),ISBLANK(N40)),0,IF(OR(AND(CostType=ARO,L37>ScheduleYear),AND(OR(CostType=ARO,AND(CostType=LOM,LOMComplete=TRUE)),N40<=ScheduleYear)),0,J40))) -> 0 | EC40: =IF(OR(J40="",EC37="",ISTEXT(EC37)),0,IF(OR(ISBLANK(M40),ISBLANK(N40)),0,IF(EC37="Date Range",0,IF(OR(AND(CostType=ARO,L37>ScheduleYear),N40<=ScheduleYear),0,J40)))) ->  | EM40: Cover | EN40: Cover | EO40: =IF(ISNUMBER(K40),INDEX(INDIRECT("_"&$A$29&"Table6"),B37+1,4),0) -> 0 | EP40: =IF(Metric,"m3","cy") -> cy | EQ40: =INDEX(INDIRECT("_"&$A$29&"Table6"),B37+1,10) ->  | ER40: =IF(OR(NOT(ISNUMBER(K40)),K40=0),0,INDEX(INDIRECT("_"&$A$29&"Table6"),B37+1,12)) -> 0 | ES40: =IF(OR(NOT(ISNUMBER(K40)),K40=0),0,INDEX(INDIRECT("_"&$A$29&"Table6"),B37+1,14)) -> 0 | ET40: =INDEX(INDIRECT("_"&$A$29&"Table6"),B37+1,5) ->  | EU40: =IF(OR(NOT(ISNUMBER(K40)),K40=0),0,INDEX(INDIRECT("_"&$A$29&"Table6"),B37+1,7)) -> 0 | EV40: =IF(OR(NOT(ISNUMBER(K40)),K40=0),0,INDEX(INDIRECT("_"&$A$29&"Table6"),B37+1,9)) -> 0 | EZ40: TRUE
D41: Growth Media Placement | J41: =INDEX(INDIRECT("_"&$A$29&"Table7"),B37+1,11) -> 184297 | K41: =IF(OR(J41="",K37="",ISTEXT(K37),J41=0),"",IF(OR(ISBLANK(M41),ISBLANK(N41)),"Enter Dates",IF(K37="Date Range","",IF(OR(AND(CostType=ARO,L37>ScheduleYear),AND(CostType=ARO,N41<=ScheduleYear)),"Date Range",IF(OR(AND(CostType=Bond,O41>ScheduleYear),AND(CostType=LOM,LOMComplete)),J41,J41-Q41))))) -> 184297 | M41: 14 | N41: 15 | P41: 1 | Q41: 0 | R41: 0 | AG41: 0.5 | AH41: 0.5 | EA41: 1 | EB41: =IF(OR(J41="",EB37="",ISTEXT(EB37)),0,IF(OR(ISBLANK(M41),ISBLANK(N41)),0,IF(OR(AND(CostType=ARO,L37>ScheduleYear),AND(OR(CostType=ARO,AND(CostType=LOM,LOMComplete=TRUE)),N41<=ScheduleYear)),0,J41))) -> 184297 | EC41: =IF(OR(J41="",EC37="",ISTEXT(EC37)),0,IF(OR(ISBLANK(M41),ISBLANK(N41)),0,IF(EC37="Date Range",0,IF(OR(AND(CostType=ARO,L37>ScheduleYear),N41<=ScheduleYear),0,J41)))) ->  | EM41: GM | EN41: GM | EO41: =IF(ISNUMBER(K41),INDEX(INDIRECT("_"&$A$29&"Table7"),B37+1,3),0) -> 64501 | EP41: =IF(Metric,"m3","cy") -> cy | EQ41: =INDEX(INDIRECT("_"&$A$29&"Table7"),B37+1,4) -> 777G/992K/D9T | ER41: =IF(OR(NOT(ISNUMBER(K41)),K41=0),0,INDEX(INDIRECT("_"&$A$29&"Table7"),B37+1,6)) -> 4 | ES41: =IF(OR(NOT(ISNUMBER(K41)),K41=0),0,INDEX(INDIRECT("_"&$A$29&"Table7"),B37+1,8)) -> 62 | EZ41: TRUE
D42: Ripping/Scarifying | J42: =INDEX(INDIRECT("_"&$A$29&"Table8"),B37+1,13) -> 12898 | K42: =IF(OR(J42="",K37="",ISTEXT(K37),J42=0),"",IF(OR(ISBLANK(M42),ISBLANK(N42)),"Enter Dates",IF(K37="Date Range","",IF(OR(AND(CostType=ARO,L37>ScheduleYear),AND(CostType=ARO,N42<=ScheduleYear)),"Date Range",IF(OR(AND(CostType=Bond,O42>ScheduleYear),AND(CostType=LOM,LOMComplete)),J42,J42-Q42))))) -> 12898 | M42: 14 | N42: 15 | P42: 1 | Q42: 0 | R42: 0 | AG42: 0.5 | AH42: 0.5 | EA42: 1 | EB42: =IF(OR(J42="",EB37="",ISTEXT(EB37)),0,IF(OR(ISBLANK(M42),ISBLANK(N42)),0,IF(OR(AND(CostType=ARO,L37>ScheduleYear),AND(OR(CostType=ARO,AND(CostType=LOM,LOMComplete=TRUE)),N42<=ScheduleYear)),0,J42))) -> 12898 | EC42: =IF(OR(J42="",EC37="",ISTEXT(EC37)),0,IF(OR(ISBLANK(M42),ISBLANK(N42)), 0,IF(EC37="Date Range",0,IF(OR(AND(CostType=ARO,L37>ScheduleYear),N42<=ScheduleYear),0,J42)))) ->  | EM42: Rip | EN42: Rip | EO42: =IF(ISNUMBER(K42),INDEX(INDIRECT("_"&$A$29&"Table8"),B37+1,5),0) -> 79.96 | EP42: =IF(Metric,"ha","acres") -> acres | EQ42: =INDEX(INDIRECT("_"&$A$29&"Table8"),B37+1,8) -> 14M | ES42: =IF(OR(NOT(ISNUMBER(K42)),K42=0),0,INDEX(INDIRECT("_"&$A$29&"Table8"),B37+1,9)+INDEX(INDIRECT("_"&$A$29&"Table8"),B37+1,10)) -> 64 | EZ42: TRUE
D43: Revegetation | J43: =INDEX(INDIRECT("_"&$A$29&"Table8"),B37+1,17) -> 76967 | K43: =IF(OR(J43="",K37="",ISTEXT(K37),J43=0),"",IF(OR(ISBLANK(M43),ISBLANK(N43)),"Enter Dates",IF(K37="Date Range","",IF(OR(AND(CostType=ARO,L37>ScheduleYear),AND(CostType=ARO,N43<=ScheduleYear)),"Date Range",IF(OR(AND(CostType=Bond,O43>ScheduleYear),AND(CostType=LOM,LOMComplete)),J43,J43-Q43))))) -> 76967 | M43: 14 | N43: 15 | P43: 1 | Q43: 0 | R43: 0 | AG43: 0.5 | AH43: 0.5 | EA43: 1 | EB43: =IF(OR(J43="",EB37="",ISTEXT(EB37)),0,IF(OR(ISBLANK(M43),ISBLANK(N43)),0,IF(OR(AND(CostType=ARO,L37>ScheduleYear),AND(OR(CostType=ARO,AND(CostType=LOM,LOMComplete=TRUE)),N43<=ScheduleYear)),0,J43))) -> 76967 | EC43: =IF(OR(J43="",EC37="",ISTEXT(EC37)),0,IF(OR(ISBLANK(M43),ISBLANK(N43)), 0,IF(EC37="Date Range",0,IF(OR(AND(CostType=ARO,L37>ScheduleYear),N43<=ScheduleYear),0,J43)))) ->  | EM43: Reveg | EN43: Reveg | EO43: =IF(ISNUMBER(K43),INDEX(INDIRECT("_"&$A$29&"Table8"),B37+1,5),0) -> 79.96 | EP43: =IF(Metric,"ha","acres") -> acres | EZ43: TRUE
B44: =(ROW(B44) - ROW($A$29)-1)/INDEX(SheetRangeIndex,MATCH($A$29,TableNamesSorted,0),7) -> 2 | C44: =INDEX(INDIRECT("_"&$A$29&"Table1"),B44+1,9) -> FA | D44: =INDEX(INDIRECT("_"&$A$29&"Table1"),B44+1,2) -> WRSP1-MB1 | E44: =IF(ISBLANK(INDEX(INDIRECT("_"&$A$29&"Table1"),B44+1,3)),"",INDEX(INDIRECT("_"&$A$29&"Table1"),B44+1,3)) -> WRSP1 | F44: =IF(ISERROR(EL44),"Facility Type",IF(ISBLANK(INDEX(INDIRECT("_"&$A$29&"Table1"),B44+1,5)),"",INDEX(INDIRECT("_"&$A$29&"Table1"),B44+1,5))) -> WRD | G44: =IF(ISBLANK(INDEX(INDIRECT("_"&$A$29&"Table1"),B44+1,6)),"",INDEX(INDIRECT("_"&$A$29&"Table1"),B44+1,6)) -> Active Closure | H44: =IF(ISBLANK(INDEX(INDIRECT("_"&$A$29&"Table1"),B44+1,7)),"",INDEX(INDIRECT("_"&$A$29&"Table1"),B44+1,7)) ->  | I44: =IF(ISBLANK(INDEX(INDIRECT("_"&$A$29&"Table1"),B44+1,8)),"",INDEX(INDIRECT("_"&$A$29&"Table1"),B44+1,8)) ->  | J44: =SUM(J45:J50) -> 90242 | K44: =IF(ISERR(ED44),"Cost Type",IF(A44="X","Override",IF(AND(CostType=ARO,L44>ScheduleYear),"Date Range",IF(AND(ISTEXT(LocationFilter),ISERROR(EI44)),"Location",IF(AND(ISTEXT(PropertyFilter),ISERROR(EJ44)),"Property",IF(AND(ISTEXT(FacilityTypeFilter),ISERROR(EG44)),"Facility Type",IF(AND(NOT(ISBLANK(IDCodeFilter)),ISERROR(EF44)),"ID Code",IF(AND(ISTEXT(PhaseFilter),ISERROR(EH44)),"Phase",IF(AND(CostType=LOM,LOMComplete),J44,SUM(T44:DO44)))))))))) -> 90242 | L44: =INDEX(INDIRECT("_"&$A$29&"Table1"),B44+1,4) -> 0 | Q44: =SUM(Q45:Q50) -> 0 | T44: =IF(ISTEXT($EB44),0,IF(AND(CostType=LOM,LOMComplete,T$27<=ScheduleYear),SUMPRODUCT(T45:T50,$J45:$J50),IF(CostType=Bond,SUMPRODUCT($EB45:$EB50,T45:T50,$EA45:$EA50),IF(T$27<=ScheduleYear,0,SUMPRODUCT(T45:T50,$EB45:$EB50))))) -> 0 | U44: 0 | V44: 0 | W44: 0 | X44: 0 | Y44: 0 | Z44: 0 | AA44: 0 | AB44: 0 | AC44: 0 | AD44: 0 | AE44: 0 | AF44: 3311 | AG44: 45121 | AH44: 41810 | AI44: 0 | AJ44: 0 | AK44: 0 | AL44: 0 | AM44: 0 | AN44: 0 | AO44: 0 | AP44: 0 | AQ44: 0 | AR44: 0 | AS44: 0 | AT44: 0 | AU44: 0 | AV44: 0 | AW44: 0 | AX44: 0 | AY44: 0 | AZ44: =IF(ISTEXT($EB44),0,IF(AND(CostType=LOM,LOMComplete,AZ$27<=ScheduleYear),SUMPRODUCT(AZ45:AZ50,$J45:$J50),IF(CostType=Bond,SUMPRODUCT($EB45:$EB50,AZ45:AZ50,$EA45:$EA50),IF(AZ$27<=ScheduleYear,0,SUMPRODUCT(AZ45:AZ50,$EB45:$EB50))))) -> 0 | BA44: 0 | BB44: 0 | BC44: 0 | BD44: 0 | BE44: 0 | BF44: 0 | BG44: 0 | BH44: 0 | BI44: 0 | BJ44: 0 | BK44: 0 | BL44: 0 | BM44: 0 | BN44: 0 | BO44: 0 | BP44: 0 | BQ44: 0 | BR44: 0 | BS44: 0 | BT44: 0 | BU44: 0 | BV44: 0 | BW44: 0 | BX44: 0 | BY44: 0 | BZ44: 0 | CA44: 0 | CB44: 0 | CC44: 0 | CD44: 0 | CE44: 0 | CF44: =IF(ISTEXT($EB44),0,IF(AND(CostType=LOM,LOMComplete,CF$27<=ScheduleYear),SUMPRODUCT(CF45:CF50,$J45:$J50),IF(CostType=Bond,SUMPRODUCT($EB45:$EB50,CF45:CF50,$EA45:$EA50),IF(CF$27<=ScheduleYear,0,SUMPRODUCT(CF45:CF50,$EB45:$EB50))))) -> 0 | CG44: 0 | CH44: 0 | CI44: 0 | CJ44: 0 | CK44: 0 | CL44: 0 | CM44: 0 | CN44: 0 | CO44: 0 | CP44: 0 | CQ44: 0 | CR44: 0 | CS44: 0 | CT44: 0 | CU44: 0 | CV44: 0 | CW44: 0 | CX44: 0 | CY44: 0 | CZ44: 0 | DA44: 0 | DB44: 0 | DC44: 0 | DD44: 0 | DE44: 0 | DF44: 0 | DG44: 0 | DH44: 0 | DI44: 0 | DJ44: 0 | DK44: 0 | DL44: =IF(ISTEXT($EB44),0,IF(AND(CostType=LOM,LOMComplete,DL$27<=ScheduleYear),SUMPRODUCT(DL45:DL50,$J45:$J50),IF(CostType=Bond,SUMPRODUCT($EB45:$EB50,DL45:DL50,$EA45:$EA50),IF(DL$27<=ScheduleYear,0,SUMPRODUCT(DL45:DL50,$EB45:$EB50))))) -> 0 | DM44: 0 | DN44: 0 | DO44: 0 | DP44: =IF(ISNUMBER(K44),SUM(T44:DO44)-K44,K44) -> 0 | EB44: =IF(ISERR(ED44),"Cost Type",IF(A44="X","Override",IF(AND(CostType=ARO,L44>ScheduleYear),0,IF(AND(ISTEXT(LocationFilter),ISERROR(EI44)),"Location",IF(AND(ISTEXT(PropertyFilter),ISERROR(EJ44)),"Property",IF(AND(ISTEXT(FacilityTypeFilter),ISERROR(EG44)),"Facility Type",IF(AND(ISTEXT(IDCodeFilter),ISERROR(EF44)),"ID Code",IF(AND(ISTEXT(PhaseFilter),ISERROR(EH44)),"Phase",J44)))))))) -> 90242 | EC44: =IF(EE44="","Cost Type",IF(A44="X","Override",IF(AND(OtherCostType=ARO,L44>ScheduleYear),0,IF(AND(ISTEXT(LocationFilter),EI44=""),"Location",IF(AND(ISTEXT(PropertyFilter),EJ44=""),"Property",IF(AND(ISTEXT(FacilityTypeFilter),EG44=""),"Facility Type",IF(AND(ISTEXT(IDCodeFilter),EF44=""),"ID Code",IF(AND(ISTEXT(PhaseFilter),EH44=""),"Phase",J44)))))))) ->  | ED44: =SEARCH(CostType,C44) -> 1 | EE44: =SEARCH(OtherCostType,C44) ->  | EF44: =IF(AND(IDCodeFilterType="CONTAINS",NOT(ISERROR(SEARCH(IDCodeFilter,E44)))),1,IF(AND(IDCodeFilterType="NOT",ISERROR(SEARCH(IDCodeFilter,E44))),1,IF(AND(OR(IDCodeFilterType="EXACT",ISBLANK(IDCodeFilterType)),NOT(ISERROR(MATCH(IDCodeFilter,E44,0)))),1,$EK44))) ->  | EG44: =IF(AND(FacilityFilterType="CONTAINS",NOT(ISERROR(SEARCH(FacilityTypeFilter,F44)))),1,IF(AND(FacilityFilterType="NOT",ISERROR(SEARCH(FacilityTypeFilter,F44))),1,IF(AND(OR(FacilityFilterType="EXACT",ISBLANK(FacilityFilterType)),NOT(ISERROR(MATCH(FacilityTypeFilter,F44,0)))),1,$EK44))) ->  | EH44: =IF(AND(PhaseFilterType="CONTAINS",NOT(ISERROR(SEARCH(PhaseFilter,G44)))),1,IF(AND(PhaseFilterType="NOT",ISERROR(SEARCH(PhaseFilter,G44))),1,IF(AND(OR(PhaseFilterType="EXACT",ISBLANK(PhaseFilterType)),NOT(ISERROR(MATCH(PhaseFilter,G44,0)))),1,$EK44))) ->  | EI44: =IF(AND(LocationFilterType="CONTAINS",NOT(ISERROR(SEARCH(LocationFilter,H44)))),1,IF(AND(LocationFilterType="NOT",ISERROR(SEARCH(LocationFilter,H44))),1,IF(AND(OR(LocationFilterType="EXACT",ISBLANK(LocationFilterType)),NOT(ISERROR(MATCH(LocationFilter,H44,0)))),1,$EK44))) ->  | EJ44: =IF(AND(PropertyFilterType="CONTAINS",NOT(ISERROR(SEARCH(PropertyFilter,I44)))),1,IF(AND(PropertyFilterType="NOT",ISERROR(SEARCH(PropertyFilter,I44))),1,IF(AND(OR(PropertyFilterType="EXACT",ISBLANK(PropertyFilterType)),NOT(ISERROR(MATCH(PropertyFilter,I44,0)))),1,$EK44))) ->  | EK44: =MATCH("NOT",$EK$27,0) ->  | EL44: =IF(ISBLANK(INDEX(INDIRECT("_"&$A$29&"Table1"),B44+1,2)),"",MATCH(INDEX(INDIRECT("_"&$A$29&"Table1"),B44+1,5),Accounts,0)) -> 2 | EM44: Surf Area | EN44: Surf Area | EO44: =IF(ISNUMBER(K50),INDEX(INDIRECT("_"&$A$29&"Table8"),B44+1,5),"") -> 3.71 | EP44: =IF(Metric,"ha","acres") -> acres | EZ44: FALSE | FA44: 1
D45: Regrading | J45: =IF(INDEX(INDIRECT("_"&$A$29&"Table4"),B44+1,15)=0,0,INDEX(INDIRECT("_"&$A$29&"Table4"),B44+1,15)) -> 6622 | K45: =IF(OR(J45="",K44="",ISTEXT(K44),J45=0),"",IF(OR(ISBLANK(M45),ISBLANK(N45)),"Enter Dates",IF(K44="Date Range","",IF(OR(AND(CostType=ARO,L44>ScheduleYear),AND(CostType=ARO,N45<=ScheduleYear)),"Date Range",IF(OR(AND(CostType=Bond,O45>ScheduleYear),AND(CostType=LOM,LOMComplete)),J45,J45-Q45))))) -> 6622 | M45: 13 | N45: 14 | P45: =IF(K45="","",SUM(T45:DO45)) -> 1 | Q45: =IF(OR(AND(CostType=ARO,N45<=ScheduleYear),AND(CostType=LOM,LOMComplete)),J45*R45,R45*EB45) -> 0 | R45: =IF(CostType=Bond,SUMIFS(T45:DP45,T$27:DP$27,"<="&O45,T$27:DP$27,"<="&ScheduleYear),SUMIF(T$27:DP$27,"<="&ScheduleYear,T45:DP45)) -> 0 | AF45: 0.5 | AG45: 0.5 | EA45: 1 | EB45: =IF(OR(J45="",EB44="",ISTEXT(EB44)),0,IF(OR(ISBLANK(M45),ISBLANK(N45)),0,IF(OR(AND(CostType=ARO,L44>ScheduleYear),AND(OR(CostType=ARO,AND(CostType=LOM,LOMComplete=TRUE)),N45<=ScheduleYear)),0,J45))) -> 6622 | EC45: =IF(OR(J45="",EC44="",ISTEXT(EC44)),0,IF(OR(ISBLANK(M45),ISBLANK(N45)),0,IF(EC44="Date Range",0,IF(OR(AND(OtherCostType=ARO,L44>ScheduleYear),N45<=ScheduleYear),0,J45)))) ->  | EM45: Regrade | EN45: Regrade | EO45: =IF(ISNUMBER(K45),IF(INDEX(INDIRECT("_"&$A$29&"Table4"),B44+1,3)=0,0,INDEX(INDIRECT("_"&$A$29&"Table4"),B44+1,3)),0) -> 20748 | EP45: =IF(Metric,"m3","cy") -> cy | EQ45: =INDEX(INDIRECT("_"&$A$29&"Table4"),B44+1,5) -> D9T | ES45: =IF(OR(NOT(ISNUMBER(K45)),K45=0),0,INDEX(INDIRECT("_"&$A$29&"Table4"),B44+1,12)) -> 28 | EW45: =IF(ISNUMBER($K45),INDEX(INDIRECT("_"&$A$29&"Table4"),B44+1,13),0) -> 727 | EX45: =IF(ISNUMBER($K45),INDEX(INDIRECT("_"&$A$29&"Table4"),B44+1,14),0) -> 5895 | EZ45: TRUE
D46: Cover 1 Placement | J46: =INDEX(INDIRECT("_"&$A$29&"Table5"),B44+1,25) -> 0 | K46: =IF(OR(J46="",K44="",ISTEXT(K44),J46=0),"",IF(OR(ISBLANK(M46),ISBLANK(N46)),"Enter Dates",IF(K44="Date Range","",IF(OR(AND(CostType=ARO,L44>ScheduleYear),AND(CostType=ARO,N46<=ScheduleYear)),"Date Range",IF(OR(AND(CostType=Bond,O46>ScheduleYear),AND(CostType=LOM,LOMComplete)),J46,J46-Q46))))) ->  | M46: 14 | N46: 15 | Q46: 0 | R46: 0 | AG46: 0.5 | AH46: 0.5 | EA46: 1 | EB46: =IF(OR(J46="",EB44="",ISTEXT(EB44)),0,IF(OR(ISBLANK(M46),ISBLANK(N46)),0,IF(OR(AND(CostType=ARO,L44>ScheduleYear),AND(OR(CostType=ARO,AND(CostType=LOM,LOMComplete=TRUE)),N46<=ScheduleYear)),0,J46))) -> 0 | EC46: =IF(OR(J46="",EC44="",ISTEXT(EC44)),0,IF(OR(ISBLANK(M46),ISBLANK(N46)),0,IF(EC44="Date Range",0,IF(OR(AND(CostType=ARO,L44>ScheduleYear),N46<=ScheduleYear),0,J46)))) ->  | EM46: Cover | EN46: Cover | EO46: =IF(ISNUMBER(K46),INDEX(INDIRECT("_"&$A$29&"Table5"),B44+1,4),0) -> 0 | EP46: =IF(Metric,"m3","cy") -> cy | EQ46: =INDEX(INDIRECT("_"&$A$29&"Table5"),B44+1,10) ->  | ER46: =IF(OR(NOT(ISNUMBER(K46)),K46=0),0,INDEX(INDIRECT("_"&$A$29&"Table5"),B44+1,12)) -> 0 | ES46: =IF(OR(NOT(ISNUMBER(K46)),K46=0),0,INDEX(INDIRECT("_"&$A$29&"Table5"),B44+1,14)) -> 0 | ET46: =INDEX(INDIRECT("_"&$A$29&"Table5"),B44+1,5) ->  | EU46: =IF(OR(NOT(ISNUMBER(K46)),K46=0),0,INDEX(INDIRECT("_"&$A$29&"Table5"),B44+1,7)) -> 0 | EV46: =IF(OR(NOT(ISNUMBER(K46)),K46=0),0,INDEX(INDIRECT("_"&$A$29&"Table5"),B44+1,9)) -> 0 | EW46: =IF(ISNUMBER($K46),INDEX(INDIRECT("_"&$A$29&"Table5"),B44+1,15)+INDEX(INDIRECT("_"&$A$29&"Table5"),B44+1,19)+INDEX(INDIRECT("_"&$A$29&"Table5"),B44+1,22),0) -> 0 | EX46: =IF(ISNUMBER($K45),INDEX(INDIRECT("_"&$A$29&"Table5"),B44+1,16)+INDEX(INDIRECT("_"&$A$29&"Table5"),B44+1,20)+INDEX(INDIRECT("_"&$A$29&"Table5"),B44+1,23),0) -> 0 | EZ46: TRUE
D47: Cover 2 Placement | J47: =INDEX(INDIRECT("_"&$A$29&"Table6"),B44+1,25) -> 0 | K47: =IF(OR(J47="",K44="",ISTEXT(K44),J47=0),"",IF(OR(ISBLANK(M47),ISBLANK(N47)),"Enter Dates",IF(K44="Date Range","",IF(OR(AND(CostType=ARO,L44>ScheduleYear),AND(CostType=ARO,N47<=ScheduleYear)),"Date Range",IF(OR(AND(CostType=Bond,O47>ScheduleYear),AND(CostType=LOM,LOMComplete)),J47,J47-Q47))))) ->  | M47: 14 | N47: 15 | Q47: 0 | R47: 0 | AG47: 0.5 | AH47: 0.5 | EA47: 1 | EB47: =IF(OR(J47="",EB44="",ISTEXT(EB44)),0,IF(OR(ISBLANK(M47),ISBLANK(N47)),0,IF(OR(AND(CostType=ARO,L44>ScheduleYear),AND(OR(CostType=ARO,AND(CostType=LOM,LOMComplete=TRUE)),N47<=ScheduleYear)),0,J47))) -> 0 | EC47: =IF(OR(J47="",EC44="",ISTEXT(EC44)),0,IF(OR(ISBLANK(M47),ISBLANK(N47)),0,IF(EC44="Date Range",0,IF(OR(AND(CostType=ARO,L44>ScheduleYear),N47<=ScheduleYear),0,J47)))) ->  | EM47: Cover | EN47: Cover | EO47: =IF(ISNUMBER(K47),INDEX(INDIRECT("_"&$A$29&"Table6"),B44+1,4),0) -> 0 | EP47: =IF(Metric,"m3","cy") -> cy | EQ47: =INDEX(INDIRECT("_"&$A$29&"Table6"),B44+1,10) ->  | ER47: =IF(OR(NOT(ISNUMBER(K47)),K47=0),0,INDEX(INDIRECT("_"&$A$29&"Table6"),B44+1,12)) -> 0 | ES47: =IF(OR(NOT(ISNUMBER(K47)),K47=0),0,INDEX(INDIRECT("_"&$A$29&"Table6"),B44+1,14)) -> 0 | ET47: =INDEX(INDIRECT("_"&$A$29&"Table6"),B44+1,5) ->  | EU47: =IF(OR(NOT(ISNUMBER(K47)),K47=0),0,INDEX(INDIRECT("_"&$A$29&"Table6"),B44+1,7)) -> 0 | EV47: =IF(OR(NOT(ISNUMBER(K47)),K47=0),0,INDEX(INDIRECT("_"&$A$29&"Table6"),B44+1,9)) -> 0 | EZ47: TRUE
D48: Growth Media Placement | J48: =INDEX(INDIRECT("_"&$A$29&"Table7"),B44+1,11) -> 78680 | K48: =IF(OR(J48="",K44="",ISTEXT(K44),J48=0),"",IF(OR(ISBLANK(M48),ISBLANK(N48)),"Enter Dates",IF(K44="Date Range","",IF(OR(AND(CostType=ARO,L44>ScheduleYear),AND(CostType=ARO,N48<=ScheduleYear)),"Date Range",IF(OR(AND(CostType=Bond,O48>ScheduleYear),AND(CostType=LOM,LOMComplete)),J48,J48-Q48))))) -> 78680 | M48: 14 | N48: 15 | P48: 1 | Q48: 0 | R48: 0 | AG48: 0.5 | AH48: 0.5 | EA48: 1 | EB48: =IF(OR(J48="",EB44="",ISTEXT(EB44)),0,IF(OR(ISBLANK(M48),ISBLANK(N48)),0,IF(OR(AND(CostType=ARO,L44>ScheduleYear),AND(OR(CostType=ARO,AND(CostType=LOM,LOMComplete=TRUE)),N48<=ScheduleYear)),0,J48))) -> 78680 | EC48: =IF(OR(J48="",EC44="",ISTEXT(EC44)),0,IF(OR(ISBLANK(M48),ISBLANK(N48)),0,IF(EC44="Date Range",0,IF(OR(AND(CostType=ARO,L44>ScheduleYear),N48<=ScheduleYear),0,J48)))) ->  | EM48: GM | EN48: GM | EO48: =IF(ISNUMBER(K48),INDEX(INDIRECT("_"&$A$29&"Table7"),B44+1,3),0) -> 17956 | EP48: =IF(Metric,"m3","cy") -> cy | EQ48: =INDEX(INDIRECT("_"&$A$29&"Table7"),B44+1,4) -> 777G/992K/D9T | ER48: =IF(OR(NOT(ISNUMBER(K48)),K48=0),0,INDEX(INDIRECT("_"&$A$29&"Table7"),B44+1,6)) -> 7 | ES48: =IF(OR(NOT(ISNUMBER(K48)),K48=0),0,INDEX(INDIRECT("_"&$A$29&"Table7"),B44+1,8)) -> 17 | EZ48: TRUE
D49: Ripping/Scarifying | J49: =INDEX(INDIRECT("_"&$A$29&"Table8"),B44+1,13) -> 605 | K49: =IF(OR(J49="",K44="",ISTEXT(K44),J49=0),"",IF(OR(ISBLANK(M49),ISBLANK(N49)),"Enter Dates",IF(K44="Date Range","",IF(OR(AND(CostType=ARO,L44>ScheduleYear),AND(CostType=ARO,N49<=ScheduleYear)),"Date Range",IF(OR(AND(CostType=Bond,O49>ScheduleYear),AND(CostType=LOM,LOMComplete)),J49,J49-Q49))))) -> 605 | M49: 14 | N49: 15 | P49: 1 | Q49: 0 | R49: 0 | AG49: 0.5 | AH49: 0.5 | EA49: 1 | EB49: =IF(OR(J49="",EB44="",ISTEXT(EB44)),0,IF(OR(ISBLANK(M49),ISBLANK(N49)),0,IF(OR(AND(CostType=ARO,L44>ScheduleYear),AND(OR(CostType=ARO,AND(CostType=LOM,LOMComplete=TRUE)),N49<=ScheduleYear)),0,J49))) -> 605 | EC49: =IF(OR(J49="",EC44="",ISTEXT(EC44)),0,IF(OR(ISBLANK(M49),ISBLANK(N49)), 0,IF(EC44="Date Range",0,IF(OR(AND(CostType=ARO,L44>ScheduleYear),N49<=ScheduleYear),0,J49)))) ->  | EM49: Rip | EN49: Rip | EO49: =IF(ISNUMBER(K49),INDEX(INDIRECT("_"&$A$29&"Table8"),B44+1,5),0) -> 3.71 | EP49: =IF(Metric,"ha","acres") -> acres | EQ49: =INDEX(INDIRECT("_"&$A$29&"Table8"),B44+1,8) -> 14M | ES49: =IF(OR(NOT(ISNUMBER(K49)),K49=0),0,INDEX(INDIRECT("_"&$A$29&"Table8"),B44+1,9)+INDEX(INDIRECT("_"&$A$29&"Table8"),B44+1,10)) -> 3 | EZ49: TRUE
D50: Revegetation | J50: =INDEX(INDIRECT("_"&$A$29&"Table8"),B44+1,17) -> 4335 | K50: =IF(OR(J50="",K44="",ISTEXT(K44),J50=0),"",IF(OR(ISBLANK(M50),ISBLANK(N50)),"Enter Dates",IF(K44="Date Range","",IF(OR(AND(CostType=ARO,L44>ScheduleYear),AND(CostType=ARO,N50<=ScheduleYear)),"Date Range",IF(OR(AND(CostType=Bond,O50>ScheduleYear),AND(CostType=LOM,LOMComplete)),J50,J50-Q50))))) -> 4335 | M50: 14 | N50: 15 | P50: 1 | Q50: 0 | R50: 0 | AG50: 0.5 | AH50: 0.5 | EA50: 1 | EB50: =IF(OR(J50="",EB44="",ISTEXT(EB44)),0,IF(OR(ISBLANK(M50),ISBLANK(N50)),0,IF(OR(AND(CostType=ARO,L44>ScheduleYear),AND(OR(CostType=ARO,AND(CostType=LOM,LOMComplete=TRUE)),N50<=ScheduleYear)),0,J50))) -> 4335 | EC50: =IF(OR(J50="",EC44="",ISTEXT(EC44)),0,IF(OR(ISBLANK(M50),ISBLANK(N50)), 0,IF(EC44="Date Range",0,IF(OR(AND(CostType=ARO,L44>ScheduleYear),N50<=ScheduleYear),0,J50)))) ->  | EM50: Reveg | EN50: Reveg | EO50: =IF(ISNUMBER(K50),INDEX(INDIRECT("_"&$A$29&"Table8"),B44+1,5),0) -> 3.71 | EP50: =IF(Metric,"ha","acres") -> acres | EZ50: TRUE
B51: =(ROW(B51) - ROW($A$29)-1)/INDEX(SheetRangeIndex,MATCH($A$29,TableNamesSorted,0),7) -> 3 | C51: =INDEX(INDIRECT("_"&$A$29&"Table1"),B51+1,9) -> FA | D51: =INDEX(INDIRECT("_"&$A$29&"Table1"),B51+1,2) -> WRSP1-MB2 | E51: =IF(ISBLANK(INDEX(INDIRECT("_"&$A$29&"Table1"),B51+1,3)),"",INDEX(INDIRECT("_"&$A$29&"Table1"),B51+1,3)) -> WRSP1 | F51: =IF(ISERROR(EL51),"Facility Type",IF(ISBLANK(INDEX(INDIRECT("_"&$A$29&"Table1"),B51+1,5)),"",INDEX(INDIRECT("_"&$A$29&"Table1"),B51+1,5))) -> WRD | G51: =IF(ISBLANK(INDEX(INDIRECT("_"&$A$29&"Table1"),B51+1,6)),"",INDEX(INDIRECT("_"&$A$29&"Table1"),B51+1,6)) -> Active Closure | H51: =IF(ISBLANK(INDEX(INDIRECT("_"&$A$29&"Table1"),B51+1,7)),"",INDEX(INDIRECT("_"&$A$29&"Table1"),B51+1,7)) ->  | I51: =IF(ISBLANK(INDEX(INDIRECT("_"&$A$29&"Table1"),B51+1,8)),"",INDEX(INDIRECT("_"&$A$29&"Table1"),B51+1,8)) ->  | J51: =SUM(J52:J57) -> 20843.28 | K51: =IF(ISERR(ED51),"Cost Type",IF(A51="X","Override",IF(AND(CostType=ARO,L51>ScheduleYear),"Date Range",IF(AND(ISTEXT(LocationFilter),ISERROR(EI51)),"Location",IF(AND(ISTEXT(PropertyFilter),ISERROR(EJ51)),"Property",IF(AND(ISTEXT(FacilityTypeFilter),ISERROR(EG51)),"Facility Type",IF(AND(NOT(ISBLANK(IDCodeFilter)),ISERROR(EF51)),"ID Code",IF(AND(ISTEXT(PhaseFilter),ISERROR(EH51)),"Phase",IF(AND(CostType=LOM,LOMComplete),J51,SUM(T51:DO51)))))))))) -> 20843.28 | L51: =INDEX(INDIRECT("_"&$A$29&"Table1"),B51+1,4) -> 0 | Q51: =SUM(Q52:Q57) -> 0 | T51: =IF(ISTEXT($EB51),0,IF(AND(CostType=LOM,LOMComplete,T$27<=ScheduleYear),SUMPRODUCT(T52:T57,$J52:$J57),IF(CostType=Bond,SUMPRODUCT($EB52:$EB57,T52:T57,$EA52:$EA57),IF(T$27<=ScheduleYear,0,SUMPRODUCT(T52:T57,$EB52:$EB57))))) -> 0 | U51: 0 | V51: 0 | W51: 0 | X51: 0 | Y51: 0 | Z51: 0 | AA51: 0 | AB51: 0 | AC51: 0 | AD51: 0 | AE51: 0 | AF51: 473 | AG51: 10421.64 | AH51: 9948.64 | AI51: 0 | AJ51: 0 | AK51: 0 | AL51: 0 | AM51: 0 | AN51: 0 | AO51: 0 | AP51: 0 | AQ51: 0 | AR51: 0 | AS51: 0 | AT51: 0 | AU51: 0 | AV51: 0 | AW51: 0 | AX51: 0 | AY51: 0 | AZ51: =IF(ISTEXT($EB51),0,IF(AND(CostType=LOM,LOMComplete,AZ$27<=ScheduleYear),SUMPRODUCT(AZ52:AZ57,$J52:$J57),IF(CostType=Bond,SUMPRODUCT($EB52:$EB57,AZ52:AZ57,$EA52:$EA57),IF(AZ$27<=ScheduleYear,0,SUMPRODUCT(AZ52:AZ57,$EB52:$EB57))))) -> 0 | BA51: 0 | BB51: 0 | BC51: 0 | BD51: 0 | BE51: 0 | BF51: 0 | BG51: 0 | BH51: 0 | BI51: 0 | BJ51: 0 | BK51: 0 | BL51: 0 | BM51: 0 | BN51: 0 | BO51: 0 | BP51: 0 | BQ51: 0 | BR51: 0 | BS51: 0 | BT51: 0 | BU51: 0 | BV51: 0 | BW51: 0 | BX51: 0 | BY51: 0 | BZ51: 0 | CA51: 0 | CB51: 0 | CC51: 0 | CD51: 0 | CE51: 0 | CF51: =IF(ISTEXT($EB51),0,IF(AND(CostType=LOM,LOMComplete,CF$27<=ScheduleYear),SUMPRODUCT(CF52:CF57,$J52:$J57),IF(CostType=Bond,SUMPRODUCT($EB52:$EB57,CF52:CF57,$EA52:$EA57),IF(CF$27<=ScheduleYear,0,SUMPRODUCT(CF52:CF57,$EB52:$EB57))))) -> 0 | CG51: 0 | CH51: 0 | CI51: 0 | CJ51: 0 | CK51: 0 | CL51: 0 | CM51: 0 | CN51: 0 | CO51: 0 | CP51: 0 | CQ51: 0 | CR51: 0 | CS51: 0 | CT51: 0 | CU51: 0 | CV51: 0 | CW51: 0 | CX51: 0 | CY51: 0 | CZ51: 0 | DA51: 0 | DB51: 0 | DC51: 0 | DD51: 0 | DE51: 0 | DF51: 0 | DG51: 0 | DH51: 0 | DI51: 0 | DJ51: 0 | DK51: 0 | DL51: =IF(ISTEXT($EB51),0,IF(AND(CostType=LOM,LOMComplete,DL$27<=ScheduleYear),SUMPRODUCT(DL52:DL57,$J52:$J57),IF(CostType=Bond,SUMPRODUCT($EB52:$EB57,DL52:DL57,$EA52:$EA57),IF(DL$27<=ScheduleYear,0,SUMPRODUCT(DL52:DL57,$EB52:$EB57))))) -> 0 | DM51: 0 | DN51: 0 | DO51: 0 | DP51: =IF(ISNUMBER(K51),SUM(T51:DO51)-K51,K51) -> 0 | EB51: =IF(ISERR(ED51),"Cost Type",IF(A51="X","Override",IF(AND(CostType=ARO,L51>ScheduleYear),0,IF(AND(ISTEXT(LocationFilter),ISERROR(EI51)),"Location",IF(AND(ISTEXT(PropertyFilter),ISERROR(EJ51)),"Property",IF(AND(ISTEXT(FacilityTypeFilter),ISERROR(EG51)),"Facility Type",IF(AND(ISTEXT(IDCodeFilter),ISERROR(EF51)),"ID Code",IF(AND(ISTEXT(PhaseFilter),ISERROR(EH51)),"Phase",J51)))))))) -> 20843.28 | EC51: =IF(EE51="","Cost Type",IF(A51="X","Override",IF(AND(OtherCostType=ARO,L51>ScheduleYear),0,IF(AND(ISTEXT(LocationFilter),EI51=""),"Location",IF(AND(ISTEXT(PropertyFilter),EJ51=""),"Property",IF(AND(ISTEXT(FacilityTypeFilter),EG51=""),"Facility Type",IF(AND(ISTEXT(IDCodeFilter),EF51=""),"ID Code",IF(AND(ISTEXT(PhaseFilter),EH51=""),"Phase",J51)))))))) ->  | ED51: =SEARCH(CostType,C51) -> 1 | EE51: =SEARCH(OtherCostType,C51) ->  | EF51: =IF(AND(IDCodeFilterType="CONTAINS",NOT(ISERROR(SEARCH(IDCodeFilter,E51)))),1,IF(AND(IDCodeFilterType="NOT",ISERROR(SEARCH(IDCodeFilter,E51))),1,IF(AND(OR(IDCodeFilterType="EXACT",ISBLANK(IDCodeFilterType)),NOT(ISERROR(MATCH(IDCodeFilter,E51,0)))),1,$EK51))) ->  | EG51: =IF(AND(FacilityFilterType="CONTAINS",NOT(ISERROR(SEARCH(FacilityTypeFilter,F51)))),1,IF(AND(FacilityFilterType="NOT",ISERROR(SEARCH(FacilityTypeFilter,F51))),1,IF(AND(OR(FacilityFilterType="EXACT",ISBLANK(FacilityFilterType)),NOT(ISERROR(MATCH(FacilityTypeFilter,F51,0)))),1,$EK51))) ->  | EH51: =IF(AND(PhaseFilterType="CONTAINS",NOT(ISERROR(SEARCH(PhaseFilter,G51)))),1,IF(AND(PhaseFilterType="NOT",ISERROR(SEARCH(PhaseFilter,G51))),1,IF(AND(OR(PhaseFilterType="EXACT",ISBLANK(PhaseFilterType)),NOT(ISERROR(MATCH(PhaseFilter,G51,0)))),1,$EK51))) ->  | EI51: =IF(AND(LocationFilterType="CONTAINS",NOT(ISERROR(SEARCH(LocationFilter,H51)))),1,IF(AND(LocationFilterType="NOT",ISERROR(SEARCH(LocationFilter,H51))),1,IF(AND(OR(LocationFilterType="EXACT",ISBLANK(LocationFilterType)),NOT(ISERROR(MATCH(LocationFilter,H51,0)))),1,$EK51))) ->  | EJ51: =IF(AND(PropertyFilterType="CONTAINS",NOT(ISERROR(SEARCH(PropertyFilter,I51)))),1,IF(AND(PropertyFilterType="NOT",ISERROR(SEARCH(PropertyFilter,I51))),1,IF(AND(OR(PropertyFilterType="EXACT",ISBLANK(PropertyFilterType)),NOT(ISERROR(MATCH(PropertyFilter,I51,0)))),1,$EK51))) ->  | EK51: =MATCH("NOT",$EK$27,0) ->  | EL51: =IF(ISBLANK(INDEX(INDIRECT("_"&$A$29&"Table1"),B51+1,2)),"",MATCH(INDEX(INDIRECT("_"&$A$29&"Table1"),B51+1,5),Accounts,0)) -> 2 | EM51: Surf Area | EN51: Surf Area | EO51: =IF(ISNUMBER(K57),INDEX(INDIRECT("_"&$A$29&"Table8"),B51+1,5),"") -> 0.77 | EP51: =IF(Metric,"ha","acres") -> acres | EZ51: FALSE | FA51: 1
D52: Regrading | J52: =IF(INDEX(INDIRECT("_"&$A$29&"Table4"),B51+1,15)=0,0,INDEX(INDIRECT("_"&$A$29&"Table4"),B51+1,15)) -> 946 | K52: =IF(OR(J52="",K51="",ISTEXT(K51),J52=0),"",IF(OR(ISBLANK(M52),ISBLANK(N52)),"Enter Dates",IF(K51="Date Range","",IF(OR(AND(CostType=ARO,L51>ScheduleYear),AND(CostType=ARO,N52<=ScheduleYear)),"Date Range",IF(OR(AND(CostType=Bond,O52>ScheduleYear),AND(CostType=LOM,LOMComplete)),J52,J52-Q52))))) -> 946 | M52: 13 | N52: 14 | P52: =IF(K52="","",SUM(T52:DO52)) -> 1 | Q52: =IF(OR(AND(CostType=ARO,N52<=ScheduleYear),AND(CostType=LOM,LOMComplete)),J52*R52,R52*EB52) -> 0 | R52: =IF(CostType=Bond,SUMIFS(T52:DP52,T$27:DP$27,"<="&O52,T$27:DP$27,"<="&ScheduleYear),SUMIF(T$27:DP$27,"<="&ScheduleYear,T52:DP52)) -> 0 | AF52: 0.5 | AG52: 0.5 | EA52: 1 | EB52: =IF(OR(J52="",EB51="",ISTEXT(EB51)),0,IF(OR(ISBLANK(M52),ISBLANK(N52)),0,IF(OR(AND(CostType=ARO,L51>ScheduleYear),AND(OR(CostType=ARO,AND(CostType=LOM,LOMComplete=TRUE)),N52<=ScheduleYear)),0,J52))) -> 946 | EC52: =IF(OR(J52="",EC51="",ISTEXT(EC51)),0,IF(OR(ISBLANK(M52),ISBLANK(N52)),0,IF(EC51="Date Range",0,IF(OR(AND(OtherCostType=ARO,L51>ScheduleYear),N52<=ScheduleYear),0,J52)))) ->  | EM52: Regrade | EN52: Regrade | EO52: =IF(ISNUMBER(K52),IF(INDEX(INDIRECT("_"&$A$29&"Table4"),B51+1,3)=0,0,INDEX(INDIRECT("_"&$A$29&"Table4"),B51+1,3)),0) -> 3939 | EP52: =IF(Metric,"m3","cy") -> cy | EQ52: =INDEX(INDIRECT("_"&$A$29&"Table4"),B51+1,5) -> D9T | ES52: =IF(OR(NOT(ISNUMBER(K52)),K52=0),0,INDEX(INDIRECT("_"&$A$29&"Table4"),B51+1,12)) -> 4 | EW52: =IF(ISNUMBER($K52),INDEX(INDIRECT("_"&$A$29&"Table4"),B51+1,13),0) -> 104 | EX52: =IF(ISNUMBER($K52),INDEX(INDIRECT("_"&$A$29&"Table4"),B51+1,14),0) -> 842 | EZ52: TRUE
D53: Cover 1 Placement | J53: =INDEX(INDIRECT("_"&$A$29&"Table5"),B51+1,25) -> 0 | K53: =IF(OR(J53="",K51="",ISTEXT(K51),J53=0),"",IF(OR(ISBLANK(M53),ISBLANK(N53)),"Enter Dates",IF(K51="Date Range","",IF(OR(AND(CostType=ARO,L51>ScheduleYear),AND(CostType=ARO,N53<=ScheduleYear)),"Date Range",IF(OR(AND(CostType=Bond,O53>ScheduleYear),AND(CostType=LOM,LOMComplete)),J53,J53-Q53))))) ->  | M53: 14 | N53: 15 | Q53: 0 | R53: 0 | AG53: 0.5 | AH53: 0.5 | EA53: 1 | EB53: =IF(OR(J53="",EB51="",ISTEXT(EB51)),0,IF(OR(ISBLANK(M53),ISBLANK(N53)),0,IF(OR(AND(CostType=ARO,L51>ScheduleYear),AND(OR(CostType=ARO,AND(CostType=LOM,LOMComplete=TRUE)),N53<=ScheduleYear)),0,J53))) -> 0 | EC53: =IF(OR(J53="",EC51="",ISTEXT(EC51)),0,IF(OR(ISBLANK(M53),ISBLANK(N53)),0,IF(EC51="Date Range",0,IF(OR(AND(CostType=ARO,L51>ScheduleYear),N53<=ScheduleYear),0,J53)))) ->  | EM53: Cover | EN53: Cover | EO53: =IF(ISNUMBER(K53),INDEX(INDIRECT("_"&$A$29&"Table5"),B51+1,4),0) -> 0 | EP53: =IF(Metric,"m3","cy") -> cy | EQ53: =INDEX(INDIRECT("_"&$A$29&"Table5"),B51+1,10) ->  | ER53: =IF(OR(NOT(ISNUMBER(K53)),K53=0),0,INDEX(INDIRECT("_"&$A$29&"Table5"),B51+1,12)) -> 0 | ES53: =IF(OR(NOT(ISNUMBER(K53)),K53=0),0,INDEX(INDIRECT("_"&$A$29&"Table5"),B51+1,14)) -> 0 | ET53: =INDEX(INDIRECT("_"&$A$29&"Table5"),B51+1,5) ->  | EU53: =IF(OR(NOT(ISNUMBER(K53)),K53=0),0,INDEX(INDIRECT("_"&$A$29&"Table5"),B51+1,7)) -> 0 | EV53: =IF(OR(NOT(ISNUMBER(K53)),K53=0),0,INDEX(INDIRECT("_"&$A$29&"Table5"),B51+1,9)) -> 0 | EW53: =IF(ISNUMBER($K53),INDEX(INDIRECT("_"&$A$29&"Table5"),B51+1,15)+INDEX(INDIRECT("_"&$A$29&"Table5"),B51+1,19)+INDEX(INDIRECT("_"&$A$29&"Table5"),B51+1,22),0) -> 0 | EX53: =IF(ISNUMBER($K52),INDEX(INDIRECT("_"&$A$29&"Table5"),B51+1,16)+INDEX(INDIRECT("_"&$A$29&"Table5"),B51+1,20)+INDEX(INDIRECT("_"&$A$29&"Table5"),B51+1,23),0) -> 0 | EZ53: TRUE
D54: Cover 2 Placement | J54: =INDEX(INDIRECT("_"&$A$29&"Table6"),B51+1,25) -> 0 | K54: =IF(OR(J54="",K51="",ISTEXT(K51),J54=0),"",IF(OR(ISBLANK(M54),ISBLANK(N54)),"Enter Dates",IF(K51="Date Range","",IF(OR(AND(CostType=ARO,L51>ScheduleYear),AND(CostType=ARO,N54<=ScheduleYear)),"Date Range",IF(OR(AND(CostType=Bond,O54>ScheduleYear),AND(CostType=LOM,LOMComplete)),J54,J54-Q54))))) ->  | M54: 14 | N54: 15 | Q54: 0 | R54: 0 | AG54: 0.5 | AH54: 0.5 | EA54: 1 | EB54: =IF(OR(J54="",EB51="",ISTEXT(EB51)),0,IF(OR(ISBLANK(M54),ISBLANK(N54)),0,IF(OR(AND(CostType=ARO,L51>ScheduleYear),AND(OR(CostType=ARO,AND(CostType=LOM,LOMComplete=TRUE)),N54<=ScheduleYear)),0,J54))) -> 0 | EC54: =IF(OR(J54="",EC51="",ISTEXT(EC51)),0,IF(OR(ISBLANK(M54),ISBLANK(N54)),0,IF(EC51="Date Range",0,IF(OR(AND(CostType=ARO,L51>ScheduleYear),N54<=ScheduleYear),0,J54)))) ->  | EM54: Cover | EN54: Cover | EO54: =IF(ISNUMBER(K54),INDEX(INDIRECT("_"&$A$29&"Table6"),B51+1,4),0) -> 0 | EP54: =IF(Metric,"m3","cy") -> cy | EQ54: =INDEX(INDIRECT("_"&$A$29&"Table6"),B51+1,10) ->  | ER54: =IF(OR(NOT(ISNUMBER(K54)),K54=0),0,INDEX(INDIRECT("_"&$A$29&"Table6"),B51+1,12)) -> 0 | ES54: =IF(OR(NOT(ISNUMBER(K54)),K54=0),0,INDEX(INDIRECT("_"&$A$29&"Table6"),B51+1,14)) -> 0 | ET54: =INDEX(INDIRECT("_"&$A$29&"Table6"),B51+1,5) ->  | EU54: =IF(OR(NOT(ISNUMBER(K54)),K54=0),0,INDEX(INDIRECT("_"&$A$29&"Table6"),B51+1,7)) -> 0 | EV54: =IF(OR(NOT(ISNUMBER(K54)),K54=0),0,INDEX(INDIRECT("_"&$A$29&"Table6"),B51+1,9)) -> 0 | EZ54: TRUE
D55: Growth Media Placement | J55: =INDEX(INDIRECT("_"&$A$29&"Table7"),B51+1,11) -> 18513 | K55: =IF(OR(J55="",K51="",ISTEXT(K51),J55=0),"",IF(OR(ISBLANK(M55),ISBLANK(N55)),"Enter Dates",IF(K51="Date Range","",IF(OR(AND(CostType=ARO,L51>ScheduleYear),AND(CostType=ARO,N55<=ScheduleYear)),"Date Range",IF(OR(AND(CostType=Bond,O55>ScheduleYear),AND(CostType=LOM,LOMComplete)),J55,J55-Q55))))) -> 18513 | M55: 14 | N55: 15 | P55: 1 | Q55: 0 | R55: 0 | AG55: 0.5 | AH55: 0.5 | EA55: 1 | EB55: =IF(OR(J55="",EB51="",ISTEXT(EB51)),0,IF(OR(ISBLANK(M55),ISBLANK(N55)),0,IF(OR(AND(CostType=ARO,L51>ScheduleYear),AND(OR(CostType=ARO,AND(CostType=LOM,LOMComplete=TRUE)),N55<=ScheduleYear)),0,J55))) -> 18513 | EC55: =IF(OR(J55="",EC51="",ISTEXT(EC51)),0,IF(OR(ISBLANK(M55),ISBLANK(N55)),0,IF(EC51="Date Range",0,IF(OR(AND(CostType=ARO,L51>ScheduleYear),N55<=ScheduleYear),0,J55)))) ->  | EM55: GM | EN55: GM | EO55: =IF(ISNUMBER(K55),INDEX(INDIRECT("_"&$A$29&"Table7"),B51+1,3),0) -> 3727 | EP55: =IF(Metric,"m3","cy") -> cy | EQ55: =INDEX(INDIRECT("_"&$A$29&"Table7"),B51+1,4) -> 777G/992K/D9T | ER55: =IF(OR(NOT(ISNUMBER(K55)),K55=0),0,INDEX(INDIRECT("_"&$A$29&"Table7"),B51+1,6)) -> 7 | ES55: =IF(OR(NOT(ISNUMBER(K55)),K55=0),0,INDEX(INDIRECT("_"&$A$29&"Table7"),B51+1,8)) -> 4 | EZ55: TRUE
D56: Ripping/Scarifying | J56: =INDEX(INDIRECT("_"&$A$29&"Table8"),B51+1,13) -> 202 | K56: =IF(OR(J56="",K51="",ISTEXT(K51),J56=0),"",IF(OR(ISBLANK(M56),ISBLANK(N56)),"Enter Dates",IF(K51="Date Range","",IF(OR(AND(CostType=ARO,L51>ScheduleYear),AND(CostType=ARO,N56<=ScheduleYear)),"Date Range",IF(OR(AND(CostType=Bond,O56>ScheduleYear),AND(CostType=LOM,LOMComplete)),J56,J56-Q56))))) -> 202 | M56: 14 | N56: 15 | P56: 1 | Q56: 0 | R56: 0 | AG56: 0.5 | AH56: 0.5 | EA56: 1 | EB56: =IF(OR(J56="",EB51="",ISTEXT(EB51)),0,IF(OR(ISBLANK(M56),ISBLANK(N56)),0,IF(OR(AND(CostType=ARO,L51>ScheduleYear),AND(OR(CostType=ARO,AND(CostType=LOM,LOMComplete=TRUE)),N56<=ScheduleYear)),0,J56))) -> 202 | EC56: =IF(OR(J56="",EC51="",ISTEXT(EC51)),0,IF(OR(ISBLANK(M56),ISBLANK(N56)), 0,IF(EC51="Date Range",0,IF(OR(AND(CostType=ARO,L51>ScheduleYear),N56<=ScheduleYear),0,J56)))) ->  | EM56: Rip | EN56: Rip | EO56: =IF(ISNUMBER(K56),INDEX(INDIRECT("_"&$A$29&"Table8"),B51+1,5),0) -> 0.77 | EP56: =IF(Metric,"ha","acres") -> acres | EQ56: =INDEX(INDIRECT("_"&$A$29&"Table8"),B51+1,8) -> 14M | ES56: =IF(OR(NOT(ISNUMBER(K56)),K56=0),0,INDEX(INDIRECT("_"&$A$29&"Table8"),B51+1,9)+INDEX(INDIRECT("_"&$A$29&"Table8"),B51+1,10)) -> 1 | EZ56: TRUE
D57: Revegetation | J57: =INDEX(INDIRECT("_"&$A$29&"Table8"),B51+1,17) -> 1182.28 | K57: =IF(OR(J57="",K51="",ISTEXT(K51),J57=0),"",IF(OR(ISBLANK(M57),ISBLANK(N57)),"Enter Dates",IF(K51="Date Range","",IF(OR(AND(CostType=ARO,L51>ScheduleYear),AND(CostType=ARO,N57<=ScheduleYear)),"Date Range",IF(OR(AND(CostType=Bond,O57>ScheduleYear),AND(CostType=LOM,LOMComplete)),J57,J57-Q57))))) -> 1182.28 | M57: 14 | N57: 15 | P57: 1 | Q57: 0 | R57: 0 | AG57: 0.5 | AH57: 0.5 | EA57: 1 | EB57: =IF(OR(J57="",EB51="",ISTEXT(EB51)),0,IF(OR(ISBLANK(M57),ISBLANK(N57)),0,IF(OR(AND(CostType=ARO,L51>ScheduleYear),AND(OR(CostType=ARO,AND(CostType=LOM,LOMComplete=TRUE)),N57<=ScheduleYear)),0,J57))) -> 1182.28 | EC57: =IF(OR(J57="",EC51="",ISTEXT(EC51)),0,IF(OR(ISBLANK(M57),ISBLANK(N57)), 0,IF(EC51="Date Range",0,IF(OR(AND(CostType=ARO,L51>ScheduleYear),N57<=ScheduleYear),0,J57)))) ->  | EM57: Reveg | EN57: Reveg | EO57: =IF(ISNUMBER(K57),INDEX(INDIRECT("_"&$A$29&"Table8"),B51+1,5),0) -> 0.77 | EP57: =IF(Metric,"ha","acres") -> acres | EZ57: TRUE
B58: =(ROW(B58) - ROW($A$29)-1)/INDEX(SheetRangeIndex,MATCH($A$29,TableNamesSorted,0),7) -> 4 | C58: =INDEX(INDIRECT("_"&$A$29&"Table1"),B58+1,9) -> FA | D58: =INDEX(INDIRECT("_"&$A$29&"Table1"),B58+1,2) -> WRSP1-MB3 | E58: =IF(ISBLANK(INDEX(INDIRECT("_"&$A$29&"Table1"),B58+1,3)),"",INDEX(INDIRECT("_"&$A$29&"Table1"),B58+1,3)) -> WRSP1 | F58: =IF(ISERROR(EL58),"Facility Type",IF(ISBLANK(INDEX(INDIRECT("_"&$A$29&"Table1"),B58+1,5)),"",INDEX(INDIRECT("_"&$A$29&"Table1"),B58+1,5))) -> WRD | G58: =IF(ISBLANK(INDEX(INDIRECT("_"&$A$29&"Table1"),B58+1,6)),"",INDEX(INDIRECT("_"&$A$29&"Table1"),B58+1,6)) -> Active Closure | H58: =IF(ISBLANK(INDEX(INDIRECT("_"&$A$29&"Table1"),B58+1,7)),"",INDEX(INDIRECT("_"&$A$29&"Table1"),B58+1,7)) ->  | I58: =IF(ISBLANK(INDEX(INDIRECT("_"&$A$29&"Table1"),B58+1,8)),"",INDEX(INDIRECT("_"&$A$29&"Table1"),B58+1,8)) ->  | J58: =SUM(J59:J64) -> 11242.28 | K58: =IF(ISERR(ED58),"Cost Type",IF(A58="X","Override",IF(AND(CostType=ARO,L58>ScheduleYear),"Date Range",IF(AND(ISTEXT(LocationFilter),ISERROR(EI58)),"Location",IF(AND(ISTEXT(PropertyFilter),ISERROR(EJ58)),"Property",IF(AND(ISTEXT(FacilityTypeFilter),ISERROR(EG58)),"Facility Type",IF(AND(NOT(ISBLANK(IDCodeFilter)),ISERROR(EF58)),"ID Code",IF(AND(ISTEXT(PhaseFilter),ISERROR(EH58)),"Phase",IF(AND(CostType=LOM,LOMComplete),J58,SUM(T58:DO58)))))))))) -> 11242.28 | L58: =INDEX(INDIRECT("_"&$A$29&"Table1"),B58+1,4) -> 0 | Q58: =SUM(Q59:Q64) -> 0 | T58: =IF(ISTEXT($EB58),0,IF(AND(CostType=LOM,LOMComplete,T$27<=ScheduleYear),SUMPRODUCT(T59:T64,$J59:$J64),IF(CostType=Bond,SUMPRODUCT($EB59:$EB64,T59:T64,$EA59:$EA64),IF(T$27<=ScheduleYear,0,SUMPRODUCT(T59:T64,$EB59:$EB64))))) -> 0 | U58: 0 | V58: 0 | W58: 0 | X58: 0 | Y58: 0 | Z58: 0 | AA58: 0 | AB58: 0 | AC58: 0 | AD58: 0 | AE58: 0 | AF58: 355 | AG58: 5621.14 | AH58: 5266.14 | AI58: 0 | AJ58: 0 | AK58: 0 | AL58: 0 | AM58: 0 | AN58: 0 | AO58: 0 | AP58: 0 | AQ58: 0 | AR58: 0 | AS58: 0 | AT58: 0 | AU58: 0 | AV58: 0 | AW58: 0 | AX58: 0 | AY58: 0 | AZ58: =IF(ISTEXT($EB58),0,IF(AND(CostType=LOM,LOMComplete,AZ$27<=ScheduleYear),SUMPRODUCT(AZ59:AZ64,$J59:$J64),IF(CostType=Bond,SUMPRODUCT($EB59:$EB64,AZ59:AZ64,$EA59:$EA64),IF(AZ$27<=ScheduleYear,0,SUMPRODUCT(AZ59:AZ64,$EB59:$EB64))))) -> 0 | BA58: 0 | BB58: 0 | BC58: 0 | BD58: 0 | BE58: 0 | BF58: 0 | BG58: 0 | BH58: 0 | BI58: 0 | BJ58: 0 | BK58: 0 | BL58: 0 | BM58: 0 | BN58: 0 | BO58: 0 | BP58: 0 | BQ58: 0 | BR58: 0 | BS58: 0 | BT58: 0 | BU58: 0 | BV58: 0 | BW58: 0 | BX58: 0 | BY58: 0 | BZ58: 0 | CA58: 0 | CB58: 0 | CC58: 0 | CD58: 0 | CE58: 0 | CF58: =IF(ISTEXT($EB58),0,IF(AND(CostType=LOM,LOMComplete,CF$27<=ScheduleYear),SUMPRODUCT(CF59:CF64,$J59:$J64),IF(CostType=Bond,SUMPRODUCT($EB59:$EB64,CF59:CF64,$EA59:$EA64),IF(CF$27<=ScheduleYear,0,SUMPRODUCT(CF59:CF64,$EB59:$EB64))))) -> 0 | CG58: 0 | CH58: 0 | CI58: 0 | CJ58: 0 | CK58: 0 | CL58: 0 | CM58: 0 | CN58: 0 | CO58: 0 | CP58: 0 | CQ58: 0 | CR58: 0 | CS58: 0 | CT58: 0 | CU58: 0 | CV58: 0 | CW58: 0 | CX58: 0 | CY58: 0 | CZ58: 0 | DA58: 0 | DB58: 0 | DC58: 0 | DD58: 0 | DE58: 0 | DF58: 0 | DG58: 0 | DH58: 0 | DI58: 0 | DJ58: 0 | DK58: 0 | DL58: =IF(ISTEXT($EB58),0,IF(AND(CostType=LOM,LOMComplete,DL$27<=ScheduleYear),SUMPRODUCT(DL59:DL64,$J59:$J64),IF(CostType=Bond,SUMPRODUCT($EB59:$EB64,DL59:DL64,$EA59:$EA64),IF(DL$27<=ScheduleYear,0,SUMPRODUCT(DL59:DL64,$EB59:$EB64))))) -> 0 | DM58: 0 | DN58: 0 | DO58: 0 | DP58: =IF(ISNUMBER(K58),SUM(T58:DO58)-K58,K58) -> 0 | EB58: =IF(ISERR(ED58),"Cost Type",IF(A58="X","Override",IF(AND(CostType=ARO,L58>ScheduleYear),0,IF(AND(ISTEXT(LocationFilter),ISERROR(EI58)),"Location",IF(AND(ISTEXT(PropertyFilter),ISERROR(EJ58)),"Property",IF(AND(ISTEXT(FacilityTypeFilter),ISERROR(EG58)),"Facility Type",IF(AND(ISTEXT(IDCodeFilter),ISERROR(EF58)),"ID Code",IF(AND(ISTEXT(PhaseFilter),ISERROR(EH58)),"Phase",J58)))))))) -> 11242.28 | EC58: =IF(EE58="","Cost Type",IF(A58="X","Override",IF(AND(OtherCostType=ARO,L58>ScheduleYear),0,IF(AND(ISTEXT(LocationFilter),EI58=""),"Location",IF(AND(ISTEXT(PropertyFilter),EJ58=""),"Property",IF(AND(ISTEXT(FacilityTypeFilter),EG58=""),"Facility Type",IF(AND(ISTEXT(IDCodeFilter),EF58=""),"ID Code",IF(AND(ISTEXT(PhaseFilter),EH58=""),"Phase",J58)))))))) ->  | ED58: =SEARCH(CostType,C58) -> 1 | EE58: =SEARCH(OtherCostType,C58) ->  | EF58: =IF(AND(IDCodeFilterType="CONTAINS",NOT(ISERROR(SEARCH(IDCodeFilter,E58)))),1,IF(AND(IDCodeFilterType="NOT",ISERROR(SEARCH(IDCodeFilter,E58))),1,IF(AND(OR(IDCodeFilterType="EXACT",ISBLANK(IDCodeFilterType)),NOT(ISERROR(MATCH(IDCodeFilter,E58,0)))),1,$EK58))) ->  | EG58: =IF(AND(FacilityFilterType="CONTAINS",NOT(ISERROR(SEARCH(FacilityTypeFilter,F58)))),1,IF(AND(FacilityFilterType="NOT",ISERROR(SEARCH(FacilityTypeFilter,F58))),1,IF(AND(OR(FacilityFilterType="EXACT",ISBLANK(FacilityFilterType)),NOT(ISERROR(MATCH(FacilityTypeFilter,F58,0)))),1,$EK58))) ->  | EH58: =IF(AND(PhaseFilterType="CONTAINS",NOT(ISERROR(SEARCH(PhaseFilter,G58)))),1,IF(AND(PhaseFilterType="NOT",ISERROR(SEARCH(PhaseFilter,G58))),1,IF(AND(OR(PhaseFilterType="EXACT",ISBLANK(PhaseFilterType)),NOT(ISERROR(MATCH(PhaseFilter,G58,0)))),1,$EK58))) ->  | EI58: =IF(AND(LocationFilterType="CONTAINS",NOT(ISERROR(SEARCH(LocationFilter,H58)))),1,IF(AND(LocationFilterType="NOT",ISERROR(SEARCH(LocationFilter,H58))),1,IF(AND(OR(LocationFilterType="EXACT",ISBLANK(LocationFilterType)),NOT(ISERROR(MATCH(LocationFilter,H58,0)))),1,$EK58))) ->  | EJ58: =IF(AND(PropertyFilterType="CONTAINS",NOT(ISERROR(SEARCH(PropertyFilter,I58)))),1,IF(AND(PropertyFilterType="NOT",ISERROR(SEARCH(PropertyFilter,I58))),1,IF(AND(OR(PropertyFilterType="EXACT",ISBLANK(PropertyFilterType)),NOT(ISERROR(MATCH(PropertyFilter,I58,0)))),1,$EK58))) ->  | EK58: =MATCH("NOT",$EK$27,0) ->  | EL58: =IF(ISBLANK(INDEX(INDIRECT("_"&$A$29&"Table1"),B58+1,2)),"",MATCH(INDEX(INDIRECT("_"&$A$29&"Table1"),B58+1,5),Accounts,0)) -> 2 | EM58: Surf Area | EN58: Surf Area | EO58: =IF(ISNUMBER(K64),INDEX(INDIRECT("_"&$A$29&"Table8"),B58+1,5),"") -> 0.52 | EP58: =IF(Metric,"ha","acres") -> acres | EZ58: FALSE | FA58: 1
D59: Regrading | J59: =IF(INDEX(INDIRECT("_"&$A$29&"Table4"),B58+1,15)=0,0,INDEX(INDIRECT("_"&$A$29&"Table4"),B58+1,15)) -> 710 | K59: =IF(OR(J59="",K58="",ISTEXT(K58),J59=0),"",IF(OR(ISBLANK(M59),ISBLANK(N59)),"Enter Dates",IF(K58="Date Range","",IF(OR(AND(CostType=ARO,L58>ScheduleYear),AND(CostType=ARO,N59<=ScheduleYear)),"Date Range",IF(OR(AND(CostType=Bond,O59>ScheduleYear),AND(CostType=LOM,LOMComplete)),J59,J59-Q59))))) -> 710 | M59: 13 | N59: 14 | P59: =IF(K59="","",SUM(T59:DO59)) -> 1 | Q59: =IF(OR(AND(CostType=ARO,N59<=ScheduleYear),AND(CostType=LOM,LOMComplete)),J59*R59,R59*EB59) -> 0 | R59: =IF(CostType=Bond,SUMIFS(T59:DP59,T$27:DP$27,"<="&O59,T$27:DP$27,"<="&ScheduleYear),SUMIF(T$27:DP$27,"<="&ScheduleYear,T59:DP59)) -> 0 | AF59: 0.5 | AG59: 0.5 | EA59: 1 | EB59: =IF(OR(J59="",EB58="",ISTEXT(EB58)),0,IF(OR(ISBLANK(M59),ISBLANK(N59)),0,IF(OR(AND(CostType=ARO,L58>ScheduleYear),AND(OR(CostType=ARO,AND(CostType=LOM,LOMComplete=TRUE)),N59<=ScheduleYear)),0,J59))) -> 710 | EC59: =IF(OR(J59="",EC58="",ISTEXT(EC58)),0,IF(OR(ISBLANK(M59),ISBLANK(N59)),0,IF(EC58="Date Range",0,IF(OR(AND(OtherCostType=ARO,L58>ScheduleYear),N59<=ScheduleYear),0,J59)))) ->  | EM59: Regrade | EN59: Regrade | EO59: =IF(ISNUMBER(K59),IF(INDEX(INDIRECT("_"&$A$29&"Table4"),B58+1,3)=0,0,INDEX(INDIRECT("_"&$A$29&"Table4"),B58+1,3)),0) -> 2669 | EP59: =IF(Metric,"m3","cy") -> cy | EQ59: =INDEX(INDIRECT("_"&$A$29&"Table4"),B58+1,5) -> D9T | ES59: =IF(OR(NOT(ISNUMBER(K59)),K59=0),0,INDEX(INDIRECT("_"&$A$29&"Table4"),B58+1,12)) -> 3 | EW59: =IF(ISNUMBER($K59),INDEX(INDIRECT("_"&$A$29&"Table4"),B58+1,13),0) -> 78 | EX59: =IF(ISNUMBER($K59),INDEX(INDIRECT("_"&$A$29&"Table4"),B58+1,14),0) -> 632 | EZ59: TRUE
D60: Cover 1 Placement | J60: =INDEX(INDIRECT("_"&$A$29&"Table5"),B58+1,25) -> 0 | K60: =IF(OR(J60="",K58="",ISTEXT(K58),J60=0),"",IF(OR(ISBLANK(M60),ISBLANK(N60)),"Enter Dates",IF(K58="Date Range","",IF(OR(AND(CostType=ARO,L58>ScheduleYear),AND(CostType=ARO,N60<=ScheduleYear)),"Date Range",IF(OR(AND(CostType=Bond,O60>ScheduleYear),AND(CostType=LOM,LOMComplete)),J60,J60-Q60))))) ->  | M60: 14 | N60: 15 | Q60: 0 | R60: 0 | AG60: 0.5 | AH60: 0.5 | EA60: 1 | EB60: =IF(OR(J60="",EB58="",ISTEXT(EB58)),0,IF(OR(ISBLANK(M60),ISBLANK(N60)),0,IF(OR(AND(CostType=ARO,L58>ScheduleYear),AND(OR(CostType=ARO,AND(CostType=LOM,LOMComplete=TRUE)),N60<=ScheduleYear)),0,J60))) -> 0 | EC60: =IF(OR(J60="",EC58="",ISTEXT(EC58)),0,IF(OR(ISBLANK(M60),ISBLANK(N60)),0,IF(EC58="Date Range",0,IF(OR(AND(CostType=ARO,L58>ScheduleYear),N60<=ScheduleYear),0,J60)))) ->  | EM60: Cover | EN60: Cover | EO60: =IF(ISNUMBER(K60),INDEX(INDIRECT("_"&$A$29&"Table5"),B58+1,4),0) -> 0 | EP60: =IF(Metric,"m3","cy") -> cy | EQ60: =INDEX(INDIRECT("_"&$A$29&"Table5"),B58+1,10) ->  | ER60: =IF(OR(NOT(ISNUMBER(K60)),K60=0),0,INDEX(INDIRECT("_"&$A$29&"Table5"),B58+1,12)) -> 0 | ES60: =IF(OR(NOT(ISNUMBER(K60)),K60=0),0,INDEX(INDIRECT("_"&$A$29&"Table5"),B58+1,14)) -> 0 | ET60: =INDEX(INDIRECT("_"&$A$29&"Table5"),B58+1,5) ->  | EU60: =IF(OR(NOT(ISNUMBER(K60)),K60=0),0,INDEX(INDIRECT("_"&$A$29&"Table5"),B58+1,7)) -> 0 | EV60: =IF(OR(NOT(ISNUMBER(K60)),K60=0),0,INDEX(INDIRECT("_"&$A$29&"Table5"),B58+1,9)) -> 0 | EW60: =IF(ISNUMBER($K60),INDEX(INDIRECT("_"&$A$29&"Table5"),B58+1,15)+INDEX(INDIRECT("_"&$A$29&"Table5"),B58+1,19)+INDEX(INDIRECT("_"&$A$29&"Table5"),B58+1,22),0) -> 0 | EX60: =IF(ISNUMBER($K59),INDEX(INDIRECT("_"&$A$29&"Table5"),B58+1,16)+INDEX(INDIRECT("_"&$A$29&"Table5"),B58+1,20)+INDEX(INDIRECT("_"&$A$29&"Table5"),B58+1,23),0) -> 0 | EZ60: TRUE
D61: Cover 2 Placement | J61: =INDEX(INDIRECT("_"&$A$29&"Table6"),B58+1,25) -> 0 | K61: =IF(OR(J61="",K58="",ISTEXT(K58),J61=0),"",IF(OR(ISBLANK(M61),ISBLANK(N61)),"Enter Dates",IF(K58="Date Range","",IF(OR(AND(CostType=ARO,L58>ScheduleYear),AND(CostType=ARO,N61<=ScheduleYear)),"Date Range",IF(OR(AND(CostType=Bond,O61>ScheduleYear),AND(CostType=LOM,LOMComplete)),J61,J61-Q61))))) ->  | M61: 14 | N61: 15 | Q61: 0 | R61: 0 | AG61: 0.5 | AH61: 0.5 | EA61: 1 | EB61: =IF(OR(J61="",EB58="",ISTEXT(EB58)),0,IF(OR(ISBLANK(M61),ISBLANK(N61)),0,IF(OR(AND(CostType=ARO,L58>ScheduleYear),AND(OR(CostType=ARO,AND(CostType=LOM,LOMComplete=TRUE)),N61<=ScheduleYear)),0,J61))) -> 0 | EC61: =IF(OR(J61="",EC58="",ISTEXT(EC58)),0,IF(OR(ISBLANK(M61),ISBLANK(N61)),0,IF(EC58="Date Range",0,IF(OR(AND(CostType=ARO,L58>ScheduleYear),N61<=ScheduleYear),0,J61)))) ->  | EM61: Cover | EN61: Cover | EO61: =IF(ISNUMBER(K61),INDEX(INDIRECT("_"&$A$29&"Table6"),B58+1,4),0) -> 0 | EP61: =IF(Metric,"m3","cy") -> cy | EQ61: =INDEX(INDIRECT("_"&$A$29&"Table6"),B58+1,10) ->  | ER61: =IF(OR(NOT(ISNUMBER(K61)),K61=0),0,INDEX(INDIRECT("_"&$A$29&"Table6"),B58+1,12)) -> 0 | ES61: =IF(OR(NOT(ISNUMBER(K61)),K61=0),0,INDEX(INDIRECT("_"&$A$29&"Table6"),B58+1,14)) -> 0 | ET61: =INDEX(INDIRECT("_"&$A$29&"Table6"),B58+1,5) ->  | EU61: =IF(OR(NOT(ISNUMBER(K61)),K61=0),0,INDEX(INDIRECT("_"&$A$29&"Table6"),B58+1,7)) -> 0 | EV61: =IF(OR(NOT(ISNUMBER(K61)),K61=0),0,INDEX(INDIRECT("_"&$A$29&"Table6"),B58+1,9)) -> 0 | EZ61: TRUE
D62: Growth Media Placement | J62: =INDEX(INDIRECT("_"&$A$29&"Table7"),B58+1,11) -> 9257 | K62: =IF(OR(J62="",K58="",ISTEXT(K58),J62=0),"",IF(OR(ISBLANK(M62),ISBLANK(N62)),"Enter Dates",IF(K58="Date Range","",IF(OR(AND(CostType=ARO,L58>ScheduleYear),AND(CostType=ARO,N62<=ScheduleYear)),"Date Range",IF(OR(AND(CostType=Bond,O62>ScheduleYear),AND(CostType=LOM,LOMComplete)),J62,J62-Q62))))) -> 9257 | M62: 14 | N62: 15 | P62: 1 | Q62: 0 | R62: 0 | AG62: 0.5 | AH62: 0.5 | EA62: 1 | EB62: =IF(OR(J62="",EB58="",ISTEXT(EB58)),0,IF(OR(ISBLANK(M62),ISBLANK(N62)),0,IF(OR(AND(CostType=ARO,L58>ScheduleYear),AND(OR(CostType=ARO,AND(CostType=LOM,LOMComplete=TRUE)),N62<=ScheduleYear)),0,J62))) -> 9257 | EC62: =IF(OR(J62="",EC58="",ISTEXT(EC58)),0,IF(OR(ISBLANK(M62),ISBLANK(N62)),0,IF(EC58="Date Range",0,IF(OR(AND(CostType=ARO,L58>ScheduleYear),N62<=ScheduleYear),0,J62)))) ->  | EM62: GM | EN62: GM | EO62: =IF(ISNUMBER(K62),INDEX(INDIRECT("_"&$A$29&"Table7"),B58+1,3),0) -> 2517 | EP62: =IF(Metric,"m3","cy") -> cy | EQ62: =INDEX(INDIRECT("_"&$A$29&"Table7"),B58+1,4) -> 777G/992K/D9T | ER62: =IF(OR(NOT(ISNUMBER(K62)),K62=0),0,INDEX(INDIRECT("_"&$A$29&"Table7"),B58+1,6)) -> 7 | ES62: =IF(OR(NOT(ISNUMBER(K62)),K62=0),0,INDEX(INDIRECT("_"&$A$29&"Table7"),B58+1,8)) -> 2 | EZ62: TRUE
D63: Ripping/Scarifying | J63: =INDEX(INDIRECT("_"&$A$29&"Table8"),B58+1,13) -> 202 | K63: =IF(OR(J63="",K58="",ISTEXT(K58),J63=0),"",IF(OR(ISBLANK(M63),ISBLANK(N63)),"Enter Dates",IF(K58="Date Range","",IF(OR(AND(CostType=ARO,L58>ScheduleYear),AND(CostType=ARO,N63<=ScheduleYear)),"Date Range",IF(OR(AND(CostType=Bond,O63>ScheduleYear),AND(CostType=LOM,LOMComplete)),J63,J63-Q63))))) -> 202 | M63: 14 | N63: 15 | P63: 1 | Q63: 0 | R63: 0 | AG63: 0.5 | AH63: 0.5 | EA63: 1 | EB63: =IF(OR(J63="",EB58="",ISTEXT(EB58)),0,IF(OR(ISBLANK(M63),ISBLANK(N63)),0,IF(OR(AND(CostType=ARO,L58>ScheduleYear),AND(OR(CostType=ARO,AND(CostType=LOM,LOMComplete=TRUE)),N63<=ScheduleYear)),0,J63))) -> 202 | EC63: =IF(OR(J63="",EC58="",ISTEXT(EC58)),0,IF(OR(ISBLANK(M63),ISBLANK(N63)), 0,IF(EC58="Date Range",0,IF(OR(AND(CostType=ARO,L58>ScheduleYear),N63<=ScheduleYear),0,J63)))) ->  | EM63: Rip | EN63: Rip | EO63: =IF(ISNUMBER(K63),INDEX(INDIRECT("_"&$A$29&"Table8"),B58+1,5),0) -> 0.52 | EP63: =IF(Metric,"ha","acres") -> acres | EQ63: =INDEX(INDIRECT("_"&$A$29&"Table8"),B58+1,8) -> 14M | ES63: =IF(OR(NOT(ISNUMBER(K63)),K63=0),0,INDEX(INDIRECT("_"&$A$29&"Table8"),B58+1,9)+INDEX(INDIRECT("_"&$A$29&"Table8"),B58+1,10)) -> 1 | EZ63: TRUE
D64: Revegetation | J64: =INDEX(INDIRECT("_"&$A$29&"Table8"),B58+1,17) -> 1073.28 | K64: =IF(OR(J64="",K58="",ISTEXT(K58),J64=0),"",IF(OR(ISBLANK(M64),ISBLANK(N64)),"Enter Dates",IF(K58="Date Range","",IF(OR(AND(CostType=ARO,L58>ScheduleYear),AND(CostType=ARO,N64<=ScheduleYear)),"Date Range",IF(OR(AND(CostType=Bond,O64>ScheduleYear),AND(CostType=LOM,LOMComplete)),J64,J64-Q64))))) -> 1073.28 | M64: 14 | N64: 15 | P64: 1 | Q64: 0 | R64: 0 | AG64: 0.5 | AH64: 0.5 | EA64: 1 | EB64: =IF(OR(J64="",EB58="",ISTEXT(EB58)),0,IF(OR(ISBLANK(M64),ISBLANK(N64)),0,IF(OR(AND(CostType=ARO,L58>ScheduleYear),AND(OR(CostType=ARO,AND(CostType=LOM,LOMComplete=TRUE)),N64<=ScheduleYear)),0,J64))) -> 1073.28 | EC64: =IF(OR(J64="",EC58="",ISTEXT(EC58)),0,IF(OR(ISBLANK(M64),ISBLANK(N64)), 0,IF(EC58="Date Range",0,IF(OR(AND(CostType=ARO,L58>ScheduleYear),N64<=ScheduleYear),0,J64)))) ->  | EM64: Reveg | EN64: Reveg | EO64: =IF(ISNUMBER(K64),INDEX(INDIRECT("_"&$A$29&"Table8"),B58+1,5),0) -> 0.52 | EP64: =IF(Metric,"ha","acres") -> acres | EZ64: TRUE
B65: =(ROW(B65) - ROW($A$29)-1)/INDEX(SheetRangeIndex,MATCH($A$29,TableNamesSorted,0),7) -> 5 | C65: =INDEX(INDIRECT("_"&$A$29&"Table1"),B65+1,9) -> FA | D65: =INDEX(INDIRECT("_"&$A$29&"Table1"),B65+1,2) -> WRSP1-MB4 | E65: =IF(ISBLANK(INDEX(INDIRECT("_"&$A$29&"Table1"),B65+1,3)),"",INDEX(INDIRECT("_"&$A$29&"Table1"),B65+1,3)) -> WRSP1 | F65: =IF(ISERROR(EL65),"Facility Type",IF(ISBLANK(INDEX(INDIRECT("_"&$A$29&"Table1"),B65+1,5)),"",INDEX(INDIRECT("_"&$A$29&"Table1"),B65+1,5))) -> WRD | G65: =IF(ISBLANK(INDEX(INDIRECT("_"&$A$29&"Table1"),B65+1,6)),"",INDEX(INDIRECT("_"&$A$29&"Table1"),B65+1,6)) -> Active Closure | H65: =IF(ISBLANK(INDEX(INDIRECT("_"&$A$29&"Table1"),B65+1,7)),"",INDEX(INDIRECT("_"&$A$29&"Table1"),B65+1,7)) ->  | I65: =IF(ISBLANK(INDEX(INDIRECT("_"&$A$29&"Table1"),B65+1,8)),"",INDEX(INDIRECT("_"&$A$29&"Table1"),B65+1,8)) ->  | J65: =SUM(J66:J71) -> 314161 | K65: =IF(ISERR(ED65),"Cost Type",IF(A65="X","Override",IF(AND(CostType=ARO,L65>ScheduleYear),"Date Range",IF(AND(ISTEXT(LocationFilter),ISERROR(EI65)),"Location",IF(AND(ISTEXT(PropertyFilter),ISERROR(EJ65)),"Property",IF(AND(ISTEXT(FacilityTypeFilter),ISERROR(EG65)),"Facility Type",IF(AND(NOT(ISBLANK(IDCodeFilter)),ISERROR(EF65)),"ID Code",IF(AND(ISTEXT(PhaseFilter),ISERROR(EH65)),"Phase",IF(AND(CostType=LOM,LOMComplete),J65,SUM(T65:DO65)))))))))) -> 314161 | L65: =INDEX(INDIRECT("_"&$A$29&"Table1"),B65+1,4) -> 0 | Q65: =SUM(Q66:Q71) -> 0 | T65: =IF(ISTEXT($EB65),0,IF(AND(CostType=LOM,LOMComplete,T$27<=ScheduleYear),SUMPRODUCT(T66:T71,$J66:$J71),IF(CostType=Bond,SUMPRODUCT($EB66:$EB71,T66:T71,$EA66:$EA71),IF(T$27<=ScheduleYear,0,SUMPRODUCT(T66:T71,$EB66:$EB71))))) -> 0 | U65: 0 | V65: 0 | W65: 0 | X65: 0 | Y65: 0 | Z65: 0 | AA65: 0 | AB65: 0 | AC65: 0 | AD65: 0 | AE65: 0 | AF65: 14070.5 | AG65: 157080.5 | AH65: 143010 | AI65: 0 | AJ65: 0 | AK65: 0 | AL65: 0 | AM65: 0 | AN65: 0 | AO65: 0 | AP65: 0 | AQ65: 0 | AR65: 0 | AS65: 0 | AT65: 0 | AU65: 0 | AV65: 0 | AW65: 0 | AX65: 0 | AY65: 0 | AZ65: =IF(ISTEXT($EB65),0,IF(AND(CostType=LOM,LOMComplete,AZ$27<=ScheduleYear),SUMPRODUCT(AZ66:AZ71,$J66:$J71),IF(CostType=Bond,SUMPRODUCT($EB66:$EB71,AZ66:AZ71,$EA66:$EA71),IF(AZ$27<=ScheduleYear,0,SUMPRODUCT(AZ66:AZ71,$EB66:$EB71))))) -> 0 | BA65: 0 | BB65: 0 | BC65: 0 | BD65: 0 | BE65: 0 | BF65: 0 | BG65: 0 | BH65: 0 | BI65: 0 | BJ65: 0 | BK65: 0 | BL65: 0 | BM65: 0 | BN65: 0 | BO65: 0 | BP65: 0 | BQ65: 0 | BR65: 0 | BS65: 0 | BT65: 0 | BU65: 0 | BV65: 0 | BW65: 0 | BX65: 0 | BY65: 0 | BZ65: 0 | CA65: 0 | CB65: 0 | CC65: 0 | CD65: 0 | CE65: 0 | CF65: =IF(ISTEXT($EB65),0,IF(AND(CostType=LOM,LOMComplete,CF$27<=ScheduleYear),SUMPRODUCT(CF66:CF71,$J66:$J71),IF(CostType=Bond,SUMPRODUCT($EB66:$EB71,CF66:CF71,$EA66:$EA71),IF(CF$27<=ScheduleYear,0,SUMPRODUCT(CF66:CF71,$EB66:$EB71))))) -> 0 | CG65: 0 | CH65: 0 | CI65: 0 | CJ65: 0 | CK65: 0 | CL65: 0 | CM65: 0 | CN65: 0 | CO65: 0 | CP65: 0 | CQ65: 0 | CR65: 0 | CS65: 0 | CT65: 0 | CU65: 0 | CV65: 0 | CW65: 0 | CX65: 0 | CY65: 0 | CZ65: 0 | DA65: 0 | DB65: 0 | DC65: 0 | DD65: 0 | DE65: 0 | DF65: 0 | DG65: 0 | DH65: 0 | DI65: 0 | DJ65: 0 | DK65: 0 | DL65: =IF(ISTEXT($EB65),0,IF(AND(CostType=LOM,LOMComplete,DL$27<=ScheduleYear),SUMPRODUCT(DL66:DL71,$J66:$J71),IF(CostType=Bond,SUMPRODUCT($EB66:$EB71,DL66:DL71,$EA66:$EA71),IF(DL$27<=ScheduleYear,0,SUMPRODUCT(DL66:DL71,$EB66:$EB71))))) -> 0 | DM65: 0 | DN65: 0 | DO65: 0 | DP65: =IF(ISNUMBER(K65),SUM(T65:DO65)-K65,K65) -> 0 | EB65: =IF(ISERR(ED65),"Cost Type",IF(A65="X","Override",IF(AND(CostType=ARO,L65>ScheduleYear),0,IF(AND(ISTEXT(LocationFilter),ISERROR(EI65)),"Location",IF(AND(ISTEXT(PropertyFilter),ISERROR(EJ65)),"Property",IF(AND(ISTEXT(FacilityTypeFilter),ISERROR(EG65)),"Facility Type",IF(AND(ISTEXT(IDCodeFilter),ISERROR(EF65)),"ID Code",IF(AND(ISTEXT(PhaseFilter),ISERROR(EH65)),"Phase",J65)))))))) -> 314161 | EC65: =IF(EE65="","Cost Type",IF(A65="X","Override",IF(AND(OtherCostType=ARO,L65>ScheduleYear),0,IF(AND(ISTEXT(LocationFilter),EI65=""),"Location",IF(AND(ISTEXT(PropertyFilter),EJ65=""),"Property",IF(AND(ISTEXT(FacilityTypeFilter),EG65=""),"Facility Type",IF(AND(ISTEXT(IDCodeFilter),EF65=""),"ID Code",IF(AND(ISTEXT(PhaseFilter),EH65=""),"Phase",J65)))))))) ->  | ED65: =SEARCH(CostType,C65) -> 1 | EE65: =SEARCH(OtherCostType,C65) ->  | EF65: =IF(AND(IDCodeFilterType="CONTAINS",NOT(ISERROR(SEARCH(IDCodeFilter,E65)))),1,IF(AND(IDCodeFilterType="NOT",ISERROR(SEARCH(IDCodeFilter,E65))),1,IF(AND(OR(IDCodeFilterType="EXACT",ISBLANK(IDCodeFilterType)),NOT(ISERROR(MATCH(IDCodeFilter,E65,0)))),1,$EK65))) ->  | EG65: =IF(AND(FacilityFilterType="CONTAINS",NOT(ISERROR(SEARCH(FacilityTypeFilter,F65)))),1,IF(AND(FacilityFilterType="NOT",ISERROR(SEARCH(FacilityTypeFilter,F65))),1,IF(AND(OR(FacilityFilterType="EXACT",ISBLANK(FacilityFilterType)),NOT(ISERROR(MATCH(FacilityTypeFilter,F65,0)))),1,$EK65))) ->  | EH65: =IF(AND(PhaseFilterType="CONTAINS",NOT(ISERROR(SEARCH(PhaseFilter,G65)))),1,IF(AND(PhaseFilterType="NOT",ISERROR(SEARCH(PhaseFilter,G65))),1,IF(AND(OR(PhaseFilterType="EXACT",ISBLANK(PhaseFilterType)),NOT(ISERROR(MATCH(PhaseFilter,G65,0)))),1,$EK65))) ->  | EI65: =IF(AND(LocationFilterType="CONTAINS",NOT(ISERROR(SEARCH(LocationFilter,H65)))),1,IF(AND(LocationFilterType="NOT",ISERROR(SEARCH(LocationFilter,H65))),1,IF(AND(OR(LocationFilterType="EXACT",ISBLANK(LocationFilterType)),NOT(ISERROR(MATCH(LocationFilter,H65,0)))),1,$EK65))) ->  | EJ65: =IF(AND(PropertyFilterType="CONTAINS",NOT(ISERROR(SEARCH(PropertyFilter,I65)))),1,IF(AND(PropertyFilterType="NOT",ISERROR(SEARCH(PropertyFilter,I65))),1,IF(AND(OR(PropertyFilterType="EXACT",ISBLANK(PropertyFilterType)),NOT(ISERROR(MATCH(PropertyFilter,I65,0)))),1,$EK65))) ->  | EK65: =MATCH("NOT",$EK$27,0) ->  | EL65: =IF(ISBLANK(INDEX(INDIRECT("_"&$A$29&"Table1"),B65+1,2)),"",MATCH(INDEX(INDIRECT("_"&$A$29&"Table1"),B65+1,5),Accounts,0)) -> 2 | EM65: Surf Area | EN65: Surf Area | EO65: =IF(ISNUMBER(K71),INDEX(INDIRECT("_"&$A$29&"Table8"),B65+1,5),"") -> 12.47 | EP65: =IF(Metric,"ha","acres") -> acres | EZ65: FALSE | FA65: 1
D66: Regrading | J66: =IF(INDEX(INDIRECT("_"&$A$29&"Table4"),B65+1,15)=0,0,INDEX(INDIRECT("_"&$A$29&"Table4"),B65+1,15)) -> 28141 | K66: =IF(OR(J66="",K65="",ISTEXT(K65),J66=0),"",IF(OR(ISBLANK(M66),ISBLANK(N66)),"Enter Dates",IF(K65="Date Range","",IF(OR(AND(CostType=ARO,L65>ScheduleYear),AND(CostType=ARO,N66<=ScheduleYear)),"Date Range",IF(OR(AND(CostType=Bond,O66>ScheduleYear),AND(CostType=LOM,LOMComplete)),J66,J66-Q66))))) -> 28141 | M66: 13 | N66: 14 | P66: =IF(K66="","",SUM(T66:DO66)) -> 1 | Q66: =IF(OR(AND(CostType=ARO,N66<=ScheduleYear),AND(CostType=LOM,LOMComplete)),J66*R66,R66*EB66) -> 0 | R66: =IF(CostType=Bond,SUMIFS(T66:DP66,T$27:DP$27,"<="&O66,T$27:DP$27,"<="&ScheduleYear),SUMIF(T$27:DP$27,"<="&ScheduleYear,T66:DP66)) -> 0 | AF66: 0.5 | AG66: 0.5 | EA66: 1 | EB66: =IF(OR(J66="",EB65="",ISTEXT(EB65)),0,IF(OR(ISBLANK(M66),ISBLANK(N66)),0,IF(OR(AND(CostType=ARO,L65>ScheduleYear),AND(OR(CostType=ARO,AND(CostType=LOM,LOMComplete=TRUE)),N66<=ScheduleYear)),0,J66))) -> 28141 | EC66: =IF(OR(J66="",EC65="",ISTEXT(EC65)),0,IF(OR(ISBLANK(M66),ISBLANK(N66)),0,IF(EC65="Date Range",0,IF(OR(AND(OtherCostType=ARO,L65>ScheduleYear),N66<=ScheduleYear),0,J66)))) ->  | EM66: Regrade | EN66: Regrade | EO66: =IF(ISNUMBER(K66),IF(INDEX(INDIRECT("_"&$A$29&"Table4"),B65+1,3)=0,0,INDEX(INDIRECT("_"&$A$29&"Table4"),B65+1,3)),0) -> 87822 | EP66: =IF(Metric,"m3","cy") -> cy | EQ66: =INDEX(INDIRECT("_"&$A$29&"Table4"),B65+1,5) -> D9T | ES66: =IF(OR(NOT(ISNUMBER(K66)),K66=0),0,INDEX(INDIRECT("_"&$A$29&"Table4"),B65+1,12)) -> 119 | EW66: =IF(ISNUMBER($K66),INDEX(INDIRECT("_"&$A$29&"Table4"),B65+1,13),0) -> 3089 | EX66: =IF(ISNUMBER($K66),INDEX(INDIRECT("_"&$A$29&"Table4"),B65+1,14),0) -> 25052 | EZ66: TRUE
D67: Cover 1 Placement | J67: =INDEX(INDIRECT("_"&$A$29&"Table5"),B65+1,25) -> 0 | K67: =IF(OR(J67="",K65="",ISTEXT(K65),J67=0),"",IF(OR(ISBLANK(M67),ISBLANK(N67)),"Enter Dates",IF(K65="Date Range","",IF(OR(AND(CostType=ARO,L65>ScheduleYear),AND(CostType=ARO,N67<=ScheduleYear)),"Date Range",IF(OR(AND(CostType=Bond,O67>ScheduleYear),AND(CostType=LOM,LOMComplete)),J67,J67-Q67))))) ->  | M67: 14 | N67: 15 | Q67: 0 | R67: 0 | AG67: 0.5 | AH67: 0.5 | EA67: 1 | EB67: =IF(OR(J67="",EB65="",ISTEXT(EB65)),0,IF(OR(ISBLANK(M67),ISBLANK(N67)),0,IF(OR(AND(CostType=ARO,L65>ScheduleYear),AND(OR(CostType=ARO,AND(CostType=LOM,LOMComplete=TRUE)),N67<=ScheduleYear)),0,J67))) -> 0 | EC67: =IF(OR(J67="",EC65="",ISTEXT(EC65)),0,IF(OR(ISBLANK(M67),ISBLANK(N67)),0,IF(EC65="Date Range",0,IF(OR(AND(CostType=ARO,L65>ScheduleYear),N67<=ScheduleYear),0,J67)))) ->  | EM67: Cover | EN67: Cover | EO67: =IF(ISNUMBER(K67),INDEX(INDIRECT("_"&$A$29&"Table5"),B65+1,4),0) -> 0 | EP67: =IF(Metric,"m3","cy") -> cy | EQ67: =INDEX(INDIRECT("_"&$A$29&"Table5"),B65+1,10) ->  | ER67: =IF(OR(NOT(ISNUMBER(K67)),K67=0),0,INDEX(INDIRECT("_"&$A$29&"Table5"),B65+1,12)) -> 0 | ES67: =IF(OR(NOT(ISNUMBER(K67)),K67=0),0,INDEX(INDIRECT("_"&$A$29&"Table5"),B65+1,14)) -> 0 | ET67: =INDEX(INDIRECT("_"&$A$29&"Table5"),B65+1,5) ->  | EU67: =IF(OR(NOT(ISNUMBER(K67)),K67=0),0,INDEX(INDIRECT("_"&$A$29&"Table5"),B65+1,7)) -> 0 | EV67: =IF(OR(NOT(ISNUMBER(K67)),K67=0),0,INDEX(INDIRECT("_"&$A$29&"Table5"),B65+1,9)) -> 0 | EW67: =IF(ISNUMBER($K67),INDEX(INDIRECT("_"&$A$29&"Table5"),B65+1,15)+INDEX(INDIRECT("_"&$A$29&"Table5"),B65+1,19)+INDEX(INDIRECT("_"&$A$29&"Table5"),B65+1,22),0) -> 0 | EX67: =IF(ISNUMBER($K66),INDEX(INDIRECT("_"&$A$29&"Table5"),B65+1,16)+INDEX(INDIRECT("_"&$A$29&"Table5"),B65+1,20)+INDEX(INDIRECT("_"&$A$29&"Table5"),B65+1,23),0) -> 0 | EZ67: TRUE
D68: Cover 2 Placement | J68: =INDEX(INDIRECT("_"&$A$29&"Table6"),B65+1,25) -> 0 | K68: =IF(OR(J68="",K65="",ISTEXT(K65),J68=0),"",IF(OR(ISBLANK(M68),ISBLANK(N68)),"Enter Dates",IF(K65="Date Range","",IF(OR(AND(CostType=ARO,L65>ScheduleYear),AND(CostType=ARO,N68<=ScheduleYear)),"Date Range",IF(OR(AND(CostType=Bond,O68>ScheduleYear),AND(CostType=LOM,LOMComplete)),J68,J68-Q68))))) ->  | M68: 14 | N68: 15 | Q68: 0 | R68: 0 | AG68: 0.5 | AH68: 0.5 | EA68: 1 | EB68: =IF(OR(J68="",EB65="",ISTEXT(EB65)),0,IF(OR(ISBLANK(M68),ISBLANK(N68)),0,IF(OR(AND(CostType=ARO,L65>ScheduleYear),AND(OR(CostType=ARO,AND(CostType=LOM,LOMComplete=TRUE)),N68<=ScheduleYear)),0,J68))) -> 0 | EC68: =IF(OR(J68="",EC65="",ISTEXT(EC65)),0,IF(OR(ISBLANK(M68),ISBLANK(N68)),0,IF(EC65="Date Range",0,IF(OR(AND(CostType=ARO,L65>ScheduleYear),N68<=ScheduleYear),0,J68)))) ->  | EM68: Cover | EN68: Cover | EO68: =IF(ISNUMBER(K68),INDEX(INDIRECT("_"&$A$29&"Table6"),B65+1,4),0) -> 0 | EP68: =IF(Metric,"m3","cy") -> cy | EQ68: =INDEX(INDIRECT("_"&$A$29&"Table6"),B65+1,10) ->  | ER68: =IF(OR(NOT(ISNUMBER(K68)),K68=0),0,INDEX(INDIRECT("_"&$A$29&"Table6"),B65+1,12)) -> 0 | ES68: =IF(OR(NOT(ISNUMBER(K68)),K68=0),0,INDEX(INDIRECT("_"&$A$29&"Table6"),B65+1,14)) -> 0 | ET68: =INDEX(INDIRECT("_"&$A$29&"Table6"),B65+1,5) ->  | EU68: =IF(OR(NOT(ISNUMBER(K68)),K68=0),0,INDEX(INDIRECT("_"&$A$29&"Table6"),B65+1,7)) -> 0 | EV68: =IF(OR(NOT(ISNUMBER(K68)),K68=0),0,INDEX(INDIRECT("_"&$A$29&"Table6"),B65+1,9)) -> 0 | EZ68: TRUE
D69: Growth Media Placement | J69: =INDEX(INDIRECT("_"&$A$29&"Table7"),B65+1,11) -> 268438 | K69: =IF(OR(J69="",K65="",ISTEXT(K65),J69=0),"",IF(OR(ISBLANK(M69),ISBLANK(N69)),"Enter Dates",IF(K65="Date Range","",IF(OR(AND(CostType=ARO,L65>ScheduleYear),AND(CostType=ARO,N69<=ScheduleYear)),"Date Range",IF(OR(AND(CostType=Bond,O69>ScheduleYear),AND(CostType=LOM,LOMComplete)),J69,J69-Q69))))) -> 268438 | M69: 14 | N69: 15 | P69: 1 | Q69: 0 | R69: 0 | AG69: 0.5 | AH69: 0.5 | EA69: 1 | EB69: =IF(OR(J69="",EB65="",ISTEXT(EB65)),0,IF(OR(ISBLANK(M69),ISBLANK(N69)),0,IF(OR(AND(CostType=ARO,L65>ScheduleYear),AND(OR(CostType=ARO,AND(CostType=LOM,LOMComplete=TRUE)),N69<=ScheduleYear)),0,J69))) -> 268438 | EC69: =IF(OR(J69="",EC65="",ISTEXT(EC65)),0,IF(OR(ISBLANK(M69),ISBLANK(N69)),0,IF(EC65="Date Range",0,IF(OR(AND(CostType=ARO,L65>ScheduleYear),N69<=ScheduleYear),0,J69)))) ->  | EM69: GM | EN69: GM | EO69: =IF(ISNUMBER(K69),INDEX(INDIRECT("_"&$A$29&"Table7"),B65+1,3),0) -> 60355 | EP69: =IF(Metric,"m3","cy") -> cy | EQ69: =INDEX(INDIRECT("_"&$A$29&"Table7"),B65+1,4) -> 777G/992K/D9T | ER69: =IF(OR(NOT(ISNUMBER(K69)),K69=0),0,INDEX(INDIRECT("_"&$A$29&"Table7"),B65+1,6)) -> 7 | ES69: =IF(OR(NOT(ISNUMBER(K69)),K69=0),0,INDEX(INDIRECT("_"&$A$29&"Table7"),B65+1,8)) -> 58 | EZ69: TRUE
D70: Ripping/Scarifying | J70: =INDEX(INDIRECT("_"&$A$29&"Table8"),B65+1,13) -> 2016 | K70: =IF(OR(J70="",K65="",ISTEXT(K65),J70=0),"",IF(OR(ISBLANK(M70),ISBLANK(N70)),"Enter Dates",IF(K65="Date Range","",IF(OR(AND(CostType=ARO,L65>ScheduleYear),AND(CostType=ARO,N70<=ScheduleYear)),"Date Range",IF(OR(AND(CostType=Bond,O70>ScheduleYear),AND(CostType=LOM,LOMComplete)),J70,J70-Q70))))) -> 2016 | M70: 14 | N70: 15 | P70: 1 | Q70: 0 | R70: 0 | AG70: 0.5 | AH70: 0.5 | EA70: 1 | EB70: =IF(OR(J70="",EB65="",ISTEXT(EB65)),0,IF(OR(ISBLANK(M70),ISBLANK(N70)),0,IF(OR(AND(CostType=ARO,L65>ScheduleYear),AND(OR(CostType=ARO,AND(CostType=LOM,LOMComplete=TRUE)),N70<=ScheduleYear)),0,J70))) -> 2016 | EC70: =IF(OR(J70="",EC65="",ISTEXT(EC65)),0,IF(OR(ISBLANK(M70),ISBLANK(N70)), 0,IF(EC65="Date Range",0,IF(OR(AND(CostType=ARO,L65>ScheduleYear),N70<=ScheduleYear),0,J70)))) ->  | EM70: Rip | EN70: Rip | EO70: =IF(ISNUMBER(K70),INDEX(INDIRECT("_"&$A$29&"Table8"),B65+1,5),0) -> 12.47 | EP70: =IF(Metric,"ha","acres") -> acres | EQ70: =INDEX(INDIRECT("_"&$A$29&"Table8"),B65+1,8) -> 14M | ES70: =IF(OR(NOT(ISNUMBER(K70)),K70=0),0,INDEX(INDIRECT("_"&$A$29&"Table8"),B65+1,9)+INDEX(INDIRECT("_"&$A$29&"Table8"),B65+1,10)) -> 10 | EZ70: TRUE
D71: Revegetation | J71: =INDEX(INDIRECT("_"&$A$29&"Table8"),B65+1,17) -> 15566 | K71: =IF(OR(J71="",K65="",ISTEXT(K65),J71=0),"",IF(OR(ISBLANK(M71),ISBLANK(N71)),"Enter Dates",IF(K65="Date Range","",IF(OR(AND(CostType=ARO,L65>ScheduleYear),AND(CostType=ARO,N71<=ScheduleYear)),"Date Range",IF(OR(AND(CostType=Bond,O71>ScheduleYear),AND(CostType=LOM,LOMComplete)),J71,J71-Q71))))) -> 15566 | M71: 14 | N71: 15 | P71: 1 | Q71: 0 | R71: 0 | AG71: 0.5 | AH71: 0.5 | EA71: 1 | EB71: =IF(OR(J71="",EB65="",ISTEXT(EB65)),0,IF(OR(ISBLANK(M71),ISBLANK(N71)),0,IF(OR(AND(CostType=ARO,L65>ScheduleYear),AND(OR(CostType=ARO,AND(CostType=LOM,LOMComplete=TRUE)),N71<=ScheduleYear)),0,J71))) -> 15566 | EC71: =IF(OR(J71="",EC65="",ISTEXT(EC65)),0,IF(OR(ISBLANK(M71),ISBLANK(N71)), 0,IF(EC65="Date Range",0,IF(OR(AND(CostType=ARO,L65>ScheduleYear),N71<=ScheduleYear),0,J71)))) ->  | EM71: Reveg | EN71: Reveg | EO71: =IF(ISNUMBER(K71),INDEX(INDIRECT("_"&$A$29&"Table8"),B65+1,5),0) -> 12.47 | EP71: =IF(Metric,"ha","acres") -> acres | EZ71: TRUE
B72: =(ROW(B72) - ROW($A$29)-1)/INDEX(SheetRangeIndex,MATCH($A$29,TableNamesSorted,0),7) -> 6 | C72: =INDEX(INDIRECT("_"&$A$29&"Table1"),B72+1,9) -> FA | D72: =INDEX(INDIRECT("_"&$A$29&"Table1"),B72+1,2) -> WRSP1-MB5 | E72: =IF(ISBLANK(INDEX(INDIRECT("_"&$A$29&"Table1"),B72+1,3)),"",INDEX(INDIRECT("_"&$A$29&"Table1"),B72+1,3)) -> WRSP1 | F72: =IF(ISERROR(EL72),"Facility Type",IF(ISBLANK(INDEX(INDIRECT("_"&$A$29&"Table1"),B72+1,5)),"",INDEX(INDIRECT("_"&$A$29&"Table1"),B72+1,5))) -> WRD | G72: =IF(ISBLANK(INDEX(INDIRECT("_"&$A$29&"Table1"),B72+1,6)),"",INDEX(INDIRECT("_"&$A$29&"Table1"),B72+1,6)) -> Active Closure | H72: =IF(ISBLANK(INDEX(INDIRECT("_"&$A$29&"Table1"),B72+1,7)),"",INDEX(INDIRECT("_"&$A$29&"Table1"),B72+1,7)) ->  | I72: =IF(ISBLANK(INDEX(INDIRECT("_"&$A$29&"Table1"),B72+1,8)),"",INDEX(INDIRECT("_"&$A$29&"Table1"),B72+1,8)) ->  | J72: =SUM(J73:J78) -> 34462.14 | K72: =IF(ISERR(ED72),"Cost Type",IF(A72="X","Override",IF(AND(CostType=ARO,L72>ScheduleYear),"Date Range",IF(AND(ISTEXT(LocationFilter),ISERROR(EI72)),"Location",IF(AND(ISTEXT(PropertyFilter),ISERROR(EJ72)),"Property",IF(AND(ISTEXT(FacilityTypeFilter),ISERROR(EG72)),"Facility Type",IF(AND(NOT(ISBLANK(IDCodeFilter)),ISERROR(EF72)),"ID Code",IF(AND(ISTEXT(PhaseFilter),ISERROR(EH72)),"Phase",IF(AND(CostType=LOM,LOMComplete),J72,SUM(T72:DO72)))))))))) -> 34462.14 | L72: =INDEX(INDIRECT("_"&$A$29&"Table1"),B72+1,4) -> 0 | Q72: =SUM(Q73:Q78) -> 0 | T72: =IF(ISTEXT($EB72),0,IF(AND(CostType=LOM,LOMComplete,T$27<=ScheduleYear),SUMPRODUCT(T73:T78,$J73:$J78),IF(CostType=Bond,SUMPRODUCT($EB73:$EB78,T73:T78,$EA73:$EA78),IF(T$27<=ScheduleYear,0,SUMPRODUCT(T73:T78,$EB73:$EB78))))) -> 0 | U72: 0 | V72: 0 | W72: 0 | X72: 0 | Y72: 0 | Z72: 0 | AA72: 0 | AB72: 0 | AC72: 0 | AD72: 0 | AE72: 0 | AF72: 118.5 | AG72: 17231.07 | AH72: 17112.57 | AI72: 0 | AJ72: 0 | AK72: 0 | AL72: 0 | AM72: 0 | AN72: 0 | AO72: 0 | AP72: 0 | AQ72: 0 | AR72: 0 | AS72: 0 | AT72: 0 | AU72: 0 | AV72: 0 | AW72: 0 | AX72: 0 | AY72: 0 | AZ72: =IF(ISTEXT($EB72),0,IF(AND(CostType=LOM,LOMComplete,AZ$27<=ScheduleYear),SUMPRODUCT(AZ73:AZ78,$J73:$J78),IF(CostType=Bond,SUMPRODUCT($EB73:$EB78,AZ73:AZ78,$EA73:$EA78),IF(AZ$27<=ScheduleYear,0,SUMPRODUCT(AZ73:AZ78,$EB73:$EB78))))) -> 0 | BA72: 0 | BB72: 0 | BC72: 0 | BD72: 0 | BE72: 0 | BF72: 0 | BG72: 0 | BH72: 0 | BI72: 0 | BJ72: 0 | BK72: 0 | BL72: 0 | BM72: 0 | BN72: 0 | BO72: 0 | BP72: 0 | BQ72: 0 | BR72: 0 | BS72: 0 | BT72: 0 | BU72: 0 | BV72: 0 | BW72: 0 | BX72: 0 | BY72: 0 | BZ72: 0 | CA72: 0 | CB72: 0 | CC72: 0 | CD72: 0 | CE72: 0 | CF72: =IF(ISTEXT($EB72),0,IF(AND(CostType=LOM,LOMComplete,CF$27<=ScheduleYear),SUMPRODUCT(CF73:CF78,$J73:$J78),IF(CostType=Bond,SUMPRODUCT($EB73:$EB78,CF73:CF78,$EA73:$EA78),IF(CF$27<=ScheduleYear,0,SUMPRODUCT(CF73:CF78,$EB73:$EB78))))) -> 0 | CG72: 0 | CH72: 0 | CI72: 0 | CJ72: 0 | CK72: 0 | CL72: 0 | CM72: 0 | CN72: 0 | CO72: 0 | CP72: 0 | CQ72: 0 | CR72: 0 | CS72: 0 | CT72: 0 | CU72: 0 | CV72: 0 | CW72: 0 | CX72: 0 | CY72: 0 | CZ72: 0 | DA72: 0 | DB72: 0 | DC72: 0 | DD72: 0 | DE72: 0 | DF72: 0 | DG72: 0 | DH72: 0 | DI72: 0 | DJ72: 0 | DK72: 0 | DL72: =IF(ISTEXT($EB72),0,IF(AND(CostType=LOM,LOMComplete,DL$27<=ScheduleYear),SUMPRODUCT(DL73:DL78,$J73:$J78),IF(CostType=Bond,SUMPRODUCT($EB73:$EB78,DL73:DL78,$EA73:$EA78),IF(DL$27<=ScheduleYear,0,SUMPRODUCT(DL73:DL78,$EB73:$EB78))))) -> 0 | DM72: 0 | DN72: 0 | DO72: 0 | DP72: =IF(ISNUMBER(K72),SUM(T72:DO72)-K72,K72) -> 0 | EB72: =IF(ISERR(ED72),"Cost Type",IF(A72="X","Override",IF(AND(CostType=ARO,L72>ScheduleYear),0,IF(AND(ISTEXT(LocationFilter),ISERROR(EI72)),"Location",IF(AND(ISTEXT(PropertyFilter),ISERROR(EJ72)),"Property",IF(AND(ISTEXT(FacilityTypeFilter),ISERROR(EG72)),"Facility Type",IF(AND(ISTEXT(IDCodeFilter),ISERROR(EF72)),"ID Code",IF(AND(ISTEXT(PhaseFilter),ISERROR(EH72)),"Phase",J72)))))))) -> 34462.14 | EC72: =IF(EE72="","Cost Type",IF(A72="X","Override",IF(AND(OtherCostType=ARO,L72>ScheduleYear),0,IF(AND(ISTEXT(LocationFilter),EI72=""),"Location",IF(AND(ISTEXT(PropertyFilter),EJ72=""),"Property",IF(AND(ISTEXT(FacilityTypeFilter),EG72=""),"Facility Type",IF(AND(ISTEXT(IDCodeFilter),EF72=""),"ID Code",IF(AND(ISTEXT(PhaseFilter),EH72=""),"Phase",J72)))))))) ->  | ED72: =SEARCH(CostType,C72) -> 1 | EE72: =SEARCH(OtherCostType,C72) ->  | EF72: =IF(AND(IDCodeFilterType="CONTAINS",NOT(ISERROR(SEARCH(IDCodeFilter,E72)))),1,IF(AND(IDCodeFilterType="NOT",ISERROR(SEARCH(IDCodeFilter,E72))),1,IF(AND(OR(IDCodeFilterType="EXACT",ISBLANK(IDCodeFilterType)),NOT(ISERROR(MATCH(IDCodeFilter,E72,0)))),1,$EK72))) ->  | EG72: =IF(AND(FacilityFilterType="CONTAINS",NOT(ISERROR(SEARCH(FacilityTypeFilter,F72)))),1,IF(AND(FacilityFilterType="NOT",ISERROR(SEARCH(FacilityTypeFilter,F72))),1,IF(AND(OR(FacilityFilterType="EXACT",ISBLANK(FacilityFilterType)),NOT(ISERROR(MATCH(FacilityTypeFilter,F72,0)))),1,$EK72))) ->  | EH72: =IF(AND(PhaseFilterType="CONTAINS",NOT(ISERROR(SEARCH(PhaseFilter,G72)))),1,IF(AND(PhaseFilterType="NOT",ISERROR(SEARCH(PhaseFilter,G72))),1,IF(AND(OR(PhaseFilterType="EXACT",ISBLANK(PhaseFilterType)),NOT(ISERROR(MATCH(PhaseFilter,G72,0)))),1,$EK72))) ->  | EI72: =IF(AND(LocationFilterType="CONTAINS",NOT(ISERROR(SEARCH(LocationFilter,H72)))),1,IF(AND(LocationFilterType="NOT",ISERROR(SEARCH(LocationFilter,H72))),1,IF(AND(OR(LocationFilterType="EXACT",ISBLANK(LocationFilterType)),NOT(ISERROR(MATCH(LocationFilter,H72,0)))),1,$EK72))) ->  | EJ72: =IF(AND(PropertyFilterType="CONTAINS",NOT(ISERROR(SEARCH(PropertyFilter,I72)))),1,IF(AND(PropertyFilterType="NOT",ISERROR(SEARCH(PropertyFilter,I72))),1,IF(AND(OR(PropertyFilterType="EXACT",ISBLANK(PropertyFilterType)),NOT(ISERROR(MATCH(PropertyFilter,I72,0)))),1,$EK72))) ->  | EK72: =MATCH("NOT",$EK$27,0) ->  | EL72: =IF(ISBLANK(INDEX(INDIRECT("_"&$A$29&"Table1"),B72+1,2)),"",MATCH(INDEX(INDIRECT("_"&$A$29&"Table1"),B72+1,5),Accounts,0)) -> 2 | EM72: Surf Area | EN72: Surf Area | EO72: =IF(ISNUMBER(K78),INDEX(INDIRECT("_"&$A$29&"Table8"),B72+1,5),"") -> 1.4 | EP72: =IF(Metric,"ha","acres") -> acres | EZ72: FALSE | FA72: 1
D73: Regrading | J73: =IF(INDEX(INDIRECT("_"&$A$29&"Table4"),B72+1,15)=0,0,INDEX(INDIRECT("_"&$A$29&"Table4"),B72+1,15)) -> 237 | K73: =IF(OR(J73="",K72="",ISTEXT(K72),J73=0),"",IF(OR(ISBLANK(M73),ISBLANK(N73)),"Enter Dates",IF(K72="Date Range","",IF(OR(AND(CostType=ARO,L72>ScheduleYear),AND(CostType=ARO,N73<=ScheduleYear)),"Date Range",IF(OR(AND(CostType=Bond,O73>ScheduleYear),AND(CostType=LOM,LOMComplete)),J73,J73-Q73))))) -> 237 | M73: 13 | N73: 14 | P73: =IF(K73="","",SUM(T73:DO73)) -> 1 | Q73: =IF(OR(AND(CostType=ARO,N73<=ScheduleYear),AND(CostType=LOM,LOMComplete)),J73*R73,R73*EB73) -> 0 | R73: =IF(CostType=Bond,SUMIFS(T73:DP73,T$27:DP$27,"<="&O73,T$27:DP$27,"<="&ScheduleYear),SUMIF(T$27:DP$27,"<="&ScheduleYear,T73:DP73)) -> 0 | AF73: 0.5 | AG73: 0.5 | EA73: 1 | EB73: =IF(OR(J73="",EB72="",ISTEXT(EB72)),0,IF(OR(ISBLANK(M73),ISBLANK(N73)),0,IF(OR(AND(CostType=ARO,L72>ScheduleYear),AND(OR(CostType=ARO,AND(CostType=LOM,LOMComplete=TRUE)),N73<=ScheduleYear)),0,J73))) -> 237 | EC73: =IF(OR(J73="",EC72="",ISTEXT(EC72)),0,IF(OR(ISBLANK(M73),ISBLANK(N73)),0,IF(EC72="Date Range",0,IF(OR(AND(OtherCostType=ARO,L72>ScheduleYear),N73<=ScheduleYear),0,J73)))) ->  | EM73: Regrade | EN73: Regrade | EO73: =IF(ISNUMBER(K73),IF(INDEX(INDIRECT("_"&$A$29&"Table4"),B72+1,3)=0,0,INDEX(INDIRECT("_"&$A$29&"Table4"),B72+1,3)),0) -> 1022 | EP73: =IF(Metric,"m3","cy") -> cy | EQ73: =INDEX(INDIRECT("_"&$A$29&"Table4"),B72+1,5) -> D9T | ES73: =IF(OR(NOT(ISNUMBER(K73)),K73=0),0,INDEX(INDIRECT("_"&$A$29&"Table4"),B72+1,12)) -> 1 | EW73: =IF(ISNUMBER($K73),INDEX(INDIRECT("_"&$A$29&"Table4"),B72+1,13),0) -> 26 | EX73: =IF(ISNUMBER($K73),INDEX(INDIRECT("_"&$A$29&"Table4"),B72+1,14),0) -> 211 | EZ73: TRUE
D74: Cover 1 Placement | J74: =INDEX(INDIRECT("_"&$A$29&"Table5"),B72+1,25) -> 0 | K74: =IF(OR(J74="",K72="",ISTEXT(K72),J74=0),"",IF(OR(ISBLANK(M74),ISBLANK(N74)),"Enter Dates",IF(K72="Date Range","",IF(OR(AND(CostType=ARO,L72>ScheduleYear),AND(CostType=ARO,N74<=ScheduleYear)),"Date Range",IF(OR(AND(CostType=Bond,O74>ScheduleYear),AND(CostType=LOM,LOMComplete)),J74,J74-Q74))))) ->  | M74: 14 | N74: 15 | Q74: 0 | R74: 0 | AG74: 0.5 | AH74: 0.5 | EA74: 1 | EB74: =IF(OR(J74="",EB72="",ISTEXT(EB72)),0,IF(OR(ISBLANK(M74),ISBLANK(N74)),0,IF(OR(AND(CostType=ARO,L72>ScheduleYear),AND(OR(CostType=ARO,AND(CostType=LOM,LOMComplete=TRUE)),N74<=ScheduleYear)),0,J74))) -> 0 | EC74: =IF(OR(J74="",EC72="",ISTEXT(EC72)),0,IF(OR(ISBLANK(M74),ISBLANK(N74)),0,IF(EC72="Date Range",0,IF(OR(AND(CostType=ARO,L72>ScheduleYear),N74<=ScheduleYear),0,J74)))) ->  | EM74: Cover | EN74: Cover | EO74: =IF(ISNUMBER(K74),INDEX(INDIRECT("_"&$A$29&"Table5"),B72+1,4),0) -> 0 | EP74: =IF(Metric,"m3","cy") -> cy | EQ74: =INDEX(INDIRECT("_"&$A$29&"Table5"),B72+1,10) ->  | ER74: =IF(OR(NOT(ISNUMBER(K74)),K74=0),0,INDEX(INDIRECT("_"&$A$29&"Table5"),B72+1,12)) -> 0 | ES74: =IF(OR(NOT(ISNUMBER(K74)),K74=0),0,INDEX(INDIRECT("_"&$A$29&"Table5"),B72+1,14)) -> 0 | ET74: =INDEX(INDIRECT("_"&$A$29&"Table5"),B72+1,5) ->  | EU74: =IF(OR(NOT(ISNUMBER(K74)),K74=0),0,INDEX(INDIRECT("_"&$A$29&"Table5"),B72+1,7)) -> 0 | EV74: =IF(OR(NOT(ISNUMBER(K74)),K74=0),0,INDEX(INDIRECT("_"&$A$29&"Table5"),B72+1,9)) -> 0 | EW74: =IF(ISNUMBER($K74),INDEX(INDIRECT("_"&$A$29&"Table5"),B72+1,15)+INDEX(INDIRECT("_"&$A$29&"Table5"),B72+1,19)+INDEX(INDIRECT("_"&$A$29&"Table5"),B72+1,22),0) -> 0 | EX74: =IF(ISNUMBER($K73),INDEX(INDIRECT("_"&$A$29&"Table5"),B72+1,16)+INDEX(INDIRECT("_"&$A$29&"Table5"),B72+1,20)+INDEX(INDIRECT("_"&$A$29&"Table5"),B72+1,23),0) -> 0 | EZ74: TRUE
D75: Cover 2 Placement | J75: =INDEX(INDIRECT("_"&$A$29&"Table6"),B72+1,25) -> 0 | K75: =IF(OR(J75="",K72="",ISTEXT(K72),J75=0),"",IF(OR(ISBLANK(M75),ISBLANK(N75)),"Enter Dates",IF(K72="Date Range","",IF(OR(AND(CostType=ARO,L72>ScheduleYear),AND(CostType=ARO,N75<=ScheduleYear)),"Date Range",IF(OR(AND(CostType=Bond,O75>ScheduleYear),AND(CostType=LOM,LOMComplete)),J75,J75-Q75))))) ->  | M75: 14 | N75: 15 | Q75: 0 | R75: 0 | AG75: 0.5 | AH75: 0.5 | EA75: 1 | EB75: =IF(OR(J75="",EB72="",ISTEXT(EB72)),0,IF(OR(ISBLANK(M75),ISBLANK(N75)),0,IF(OR(AND(CostType=ARO,L72>ScheduleYear),AND(OR(CostType=ARO,AND(CostType=LOM,LOMComplete=TRUE)),N75<=ScheduleYear)),0,J75))) -> 0 | EC75: =IF(OR(J75="",EC72="",ISTEXT(EC72)),0,IF(OR(ISBLANK(M75),ISBLANK(N75)),0,IF(EC72="Date Range",0,IF(OR(AND(CostType=ARO,L72>ScheduleYear),N75<=ScheduleYear),0,J75)))) ->  | EM75: Cover | EN75: Cover | EO75: =IF(ISNUMBER(K75),INDEX(INDIRECT("_"&$A$29&"Table6"),B72+1,4),0) -> 0 | EP75: =IF(Metric,"m3","cy") -> cy | EQ75: =INDEX(INDIRECT("_"&$A$29&"Table6"),B72+1,10) ->  | ER75: =IF(OR(NOT(ISNUMBER(K75)),K75=0),0,INDEX(INDIRECT("_"&$A$29&"Table6"),B72+1,12)) -> 0 | ES75: =IF(OR(NOT(ISNUMBER(K75)),K75=0),0,INDEX(INDIRECT("_"&$A$29&"Table6"),B72+1,14)) -> 0 | ET75: =INDEX(INDIRECT("_"&$A$29&"Table6"),B72+1,5) ->  | EU75: =IF(OR(NOT(ISNUMBER(K75)),K75=0),0,INDEX(INDIRECT("_"&$A$29&"Table6"),B72+1,7)) -> 0 | EV75: =IF(OR(NOT(ISNUMBER(K75)),K75=0),0,INDEX(INDIRECT("_"&$A$29&"Table6"),B72+1,9)) -> 0 | EZ75: TRUE
D76: Growth Media Placement | J76: =INDEX(INDIRECT("_"&$A$29&"Table7"),B72+1,11) -> 32398 | K76: =IF(OR(J76="",K72="",ISTEXT(K72),J76=0),"",IF(OR(ISBLANK(M76),ISBLANK(N76)),"Enter Dates",IF(K72="Date Range","",IF(OR(AND(CostType=ARO,L72>ScheduleYear),AND(CostType=ARO,N76<=ScheduleYear)),"Date Range",IF(OR(AND(CostType=Bond,O76>ScheduleYear),AND(CostType=LOM,LOMComplete)),J76,J76-Q76))))) -> 32398 | M76: 14 | N76: 15 | P76: 1 | Q76: 0 | R76: 0 | AG76: 0.5 | AH76: 0.5 | EA76: 1 | EB76: =IF(OR(J76="",EB72="",ISTEXT(EB72)),0,IF(OR(ISBLANK(M76),ISBLANK(N76)),0,IF(OR(AND(CostType=ARO,L72>ScheduleYear),AND(OR(CostType=ARO,AND(CostType=LOM,LOMComplete=TRUE)),N76<=ScheduleYear)),0,J76))) -> 32398 | EC76: =IF(OR(J76="",EC72="",ISTEXT(EC72)),0,IF(OR(ISBLANK(M76),ISBLANK(N76)),0,IF(EC72="Date Range",0,IF(OR(AND(CostType=ARO,L72>ScheduleYear),N76<=ScheduleYear),0,J76)))) ->  | EM76: GM | EN76: GM | EO76: =IF(ISNUMBER(K76),INDEX(INDIRECT("_"&$A$29&"Table7"),B72+1,3),0) -> 6776 | EP76: =IF(Metric,"m3","cy") -> cy | EQ76: =INDEX(INDIRECT("_"&$A$29&"Table7"),B72+1,4) -> 777G/992K/D9T | ER76: =IF(OR(NOT(ISNUMBER(K76)),K76=0),0,INDEX(INDIRECT("_"&$A$29&"Table7"),B72+1,6)) -> 7 | ES76: =IF(OR(NOT(ISNUMBER(K76)),K76=0),0,INDEX(INDIRECT("_"&$A$29&"Table7"),B72+1,8)) -> 7 | EZ76: TRUE
D77: Ripping/Scarifying | J77: =INDEX(INDIRECT("_"&$A$29&"Table8"),B72+1,13) -> 202 | K77: =IF(OR(J77="",K72="",ISTEXT(K72),J77=0),"",IF(OR(ISBLANK(M77),ISBLANK(N77)),"Enter Dates",IF(K72="Date Range","",IF(OR(AND(CostType=ARO,L72>ScheduleYear),AND(CostType=ARO,N77<=ScheduleYear)),"Date Range",IF(OR(AND(CostType=Bond,O77>ScheduleYear),AND(CostType=LOM,LOMComplete)),J77,J77-Q77))))) -> 202 | M77: 14 | N77: 15 | P77: 1 | Q77: 0 | R77: 0 | AG77: 0.5 | AH77: 0.5 | EA77: 1 | EB77: =IF(OR(J77="",EB72="",ISTEXT(EB72)),0,IF(OR(ISBLANK(M77),ISBLANK(N77)),0,IF(OR(AND(CostType=ARO,L72>ScheduleYear),AND(OR(CostType=ARO,AND(CostType=LOM,LOMComplete=TRUE)),N77<=ScheduleYear)),0,J77))) -> 202 | EC77: =IF(OR(J77="",EC72="",ISTEXT(EC72)),0,IF(OR(ISBLANK(M77),ISBLANK(N77)), 0,IF(EC72="Date Range",0,IF(OR(AND(CostType=ARO,L72>ScheduleYear),N77<=ScheduleYear),0,J77)))) ->  | EM77: Rip | EN77: Rip | EO77: =IF(ISNUMBER(K77),INDEX(INDIRECT("_"&$A$29&"Table8"),B72+1,5),0) -> 1.4 | EP77: =IF(Metric,"ha","acres") -> acres | EQ77: =INDEX(INDIRECT("_"&$A$29&"Table8"),B72+1,8) -> 14M | ES77: =IF(OR(NOT(ISNUMBER(K77)),K77=0),0,INDEX(INDIRECT("_"&$A$29&"Table8"),B72+1,9)+INDEX(INDIRECT("_"&$A$29&"Table8"),B72+1,10)) -> 1 | EZ77: TRUE
D78: Revegetation | J78: =INDEX(INDIRECT("_"&$A$29&"Table8"),B72+1,17) -> 1625.14 | K78: =IF(OR(J78="",K72="",ISTEXT(K72),J78=0),"",IF(OR(ISBLANK(M78),ISBLANK(N78)),"Enter Dates",IF(K72="Date Range","",IF(OR(AND(CostType=ARO,L72>ScheduleYear),AND(CostType=ARO,N78<=ScheduleYear)),"Date Range",IF(OR(AND(CostType=Bond,O78>ScheduleYear),AND(CostType=LOM,LOMComplete)),J78,J78-Q78))))) -> 1625.14 | M78: 14 | N78: 15 | P78: 1 | Q78: 0 | R78: 0 | AG78: 0.5 | AH78: 0.5 | EA78: 1 | EB78: =IF(OR(J78="",EB72="",ISTEXT(EB72)),0,IF(OR(ISBLANK(M78),ISBLANK(N78)),0,IF(OR(AND(CostType=ARO,L72>ScheduleYear),AND(OR(CostType=ARO,AND(CostType=LOM,LOMComplete=TRUE)),N78<=ScheduleYear)),0,J78))) -> 1625.14 | EC78: =IF(OR(J78="",EC72="",ISTEXT(EC72)),0,IF(OR(ISBLANK(M78),ISBLANK(N78)), 0,IF(EC72="Date Range",0,IF(OR(AND(CostType=ARO,L72>ScheduleYear),N78<=ScheduleYear),0,J78)))) ->  | EM78: Reveg | EN78: Reveg | EO78: =IF(ISNUMBER(K78),INDEX(INDIRECT("_"&$A$29&"Table8"),B72+1,5),0) -> 1.4 | EP78: =IF(Metric,"ha","acres") -> acres | EZ78: TRUE
B79: =(ROW(B79) - ROW($A$29)-1)/INDEX(SheetRangeIndex,MATCH($A$29,TableNamesSorted,0),7) -> 7 | C79: =INDEX(INDIRECT("_"&$A$29&"Table1"),B79+1,9) -> FA | D79: =INDEX(INDIRECT("_"&$A$29&"Table1"),B79+1,2) -> WRSP1-MB6 | E79: =IF(ISBLANK(INDEX(INDIRECT("_"&$A$29&"Table1"),B79+1,3)),"",INDEX(INDIRECT("_"&$A$29&"Table1"),B79+1,3)) -> WRSP1 | F79: =IF(ISERROR(EL79),"Facility Type",IF(ISBLANK(INDEX(INDIRECT("_"&$A$29&"Table1"),B79+1,5)),"",INDEX(INDIRECT("_"&$A$29&"Table1"),B79+1,5))) -> WRD | G79: =IF(ISBLANK(INDEX(INDIRECT("_"&$A$29&"Table1"),B79+1,6)),"",INDEX(INDIRECT("_"&$A$29&"Table1"),B79+1,6)) -> Active Closure | H79: =IF(ISBLANK(INDEX(INDIRECT("_"&$A$29&"Table1"),B79+1,7)),"",INDEX(INDIRECT("_"&$A$29&"Table1"),B79+1,7)) ->  | I79: =IF(ISBLANK(INDEX(INDIRECT("_"&$A$29&"Table1"),B79+1,8)),"",INDEX(INDIRECT("_"&$A$29&"Table1"),B79+1,8)) ->  | J79: =SUM(J80:J85) -> 311484 | K79: =IF(ISERR(ED79),"Cost Type",IF(A79="X","Override",IF(AND(CostType=ARO,L79>ScheduleYear),"Date Range",IF(AND(ISTEXT(LocationFilter),ISERROR(EI79)),"Location",IF(AND(ISTEXT(PropertyFilter),ISERROR(EJ79)),"Property",IF(AND(ISTEXT(FacilityTypeFilter),ISERROR(EG79)),"Facility Type",IF(AND(NOT(ISBLANK(IDCodeFilter)),ISERROR(EF79)),"ID Code",IF(AND(ISTEXT(PhaseFilter),ISERROR(EH79)),"Phase",IF(AND(CostType=LOM,LOMComplete),J79,SUM(T79:DO79)))))))))) -> 311484 | L79: =INDEX(INDIRECT("_"&$A$29&"Table1"),B79+1,4) -> 0 | Q79: =SUM(Q80:Q85) -> 0 | T79: =IF(ISTEXT($EB79),0,IF(AND(CostType=LOM,LOMComplete,T$27<=ScheduleYear),SUMPRODUCT(T80:T85,$J80:$J85),IF(CostType=Bond,SUMPRODUCT($EB80:$EB85,T80:T85,$EA80:$EA85),IF(T$27<=ScheduleYear,0,SUMPRODUCT(T80:T85,$EB80:$EB85))))) -> 0 | U79: 0 | V79: 0 | W79: 0 | X79: 0 | Y79: 0 | Z79: 0 | AA79: 0 | AB79: 0 | AC79: 0 | AD79: 0 | AE79: 0 | AF79: 3902 | AG79: 155742 | AH79: 151840 | AI79: 0 | AJ79: 0 | AK79: 0 | AL79: 0 | AM79: 0 | AN79: 0 | AO79: 0 | AP79: 0 | AQ79: 0 | AR79: 0 | AS79: 0 | AT79: 0 | AU79: 0 | AV79: 0 | AW79: 0 | AX79: 0 | AY79: 0 | AZ79: =IF(ISTEXT($EB79),0,IF(AND(CostType=LOM,LOMComplete,AZ$27<=ScheduleYear),SUMPRODUCT(AZ80:AZ85,$J80:$J85),IF(CostType=Bond,SUMPRODUCT($EB80:$EB85,AZ80:AZ85,$EA80:$EA85),IF(AZ$27<=ScheduleYear,0,SUMPRODUCT(AZ80:AZ85,$EB80:$EB85))))) -> 0 | BA79: 0 | BB79: 0 | BC79: 0 | BD79: 0 | BE79: 0 | BF79: 0 | BG79: 0 | BH79: 0 | BI79: 0 | BJ79: 0 | BK79: 0 | BL79: 0 | BM79: 0 | BN79: 0 | BO79: 0 | BP79: 0 | BQ79: 0 | BR79: 0 | BS79: 0 | BT79: 0 | BU79: 0 | BV79: 0 | BW79: 0 | BX79: 0 | BY79: 0 | BZ79: 0 | CA79: 0 | CB79: 0 | CC79: 0 | CD79: 0 | CE79: 0 | CF79: =IF(ISTEXT($EB79),0,IF(AND(CostType=LOM,LOMComplete,CF$27<=ScheduleYear),SUMPRODUCT(CF80:CF85,$J80:$J85),IF(CostType=Bond,SUMPRODUCT($EB80:$EB85,CF80:CF85,$EA80:$EA85),IF(CF$27<=ScheduleYear,0,SUMPRODUCT(CF80:CF85,$EB80:$EB85))))) -> 0 | CG79: 0 | CH79: 0 | CI79: 0 | CJ79: 0 | CK79: 0 | CL79: 0 | CM79: 0 | CN79: 0 | CO79: 0 | CP79: 0 | CQ79: 0 | CR79: 0 | CS79: 0 | CT79: 0 | CU79: 0 | CV79: 0 | CW79: 0 | CX79: 0 | CY79: 0 | CZ79: 0 | DA79: 0 | DB79: 0 | DC79: 0 | DD79: 0 | DE79: 0 | DF79: 0 | DG79: 0 | DH79: 0 | DI79: 0 | DJ79: 0 | DK79: 0 | DL79: =IF(ISTEXT($EB79),0,IF(AND(CostType=LOM,LOMComplete,DL$27<=ScheduleYear),SUMPRODUCT(DL80:DL85,$J80:$J85),IF(CostType=Bond,SUMPRODUCT($EB80:$EB85,DL80:DL85,$EA80:$EA85),IF(DL$27<=ScheduleYear,0,SUMPRODUCT(DL80:DL85,$EB80:$EB85))))) -> 0 | DM79: 0 | DN79: 0 | DO79: 0 | DP79: =IF(ISNUMBER(K79),SUM(T79:DO79)-K79,K79) -> 0 | EB79: =IF(ISERR(ED79),"Cost Type",IF(A79="X","Override",IF(AND(CostType=ARO,L79>ScheduleYear),0,IF(AND(ISTEXT(LocationFilter),ISERROR(EI79)),"Location",IF(AND(ISTEXT(PropertyFilter),ISERROR(EJ79)),"Property",IF(AND(ISTEXT(FacilityTypeFilter),ISERROR(EG79)),"Facility Type",IF(AND(ISTEXT(IDCodeFilter),ISERROR(EF79)),"ID Code",IF(AND(ISTEXT(PhaseFilter),ISERROR(EH79)),"Phase",J79)))))))) -> 311484 | EC79: =IF(EE79="","Cost Type",IF(A79="X","Override",IF(AND(OtherCostType=ARO,L79>ScheduleYear),0,IF(AND(ISTEXT(LocationFilter),EI79=""),"Location",IF(AND(ISTEXT(PropertyFilter),EJ79=""),"Property",IF(AND(ISTEXT(FacilityTypeFilter),EG79=""),"Facility Type",IF(AND(ISTEXT(IDCodeFilter),EF79=""),"ID Code",IF(AND(ISTEXT(PhaseFilter),EH79=""),"Phase",J79)))))))) ->  | ED79: =SEARCH(CostType,C79) -> 1 | EE79: =SEARCH(OtherCostType,C79) ->  | EF79: =IF(AND(IDCodeFilterType="CONTAINS",NOT(ISERROR(SEARCH(IDCodeFilter,E79)))),1,IF(AND(IDCodeFilterType="NOT",ISERROR(SEARCH(IDCodeFilter,E79))),1,IF(AND(OR(IDCodeFilterType="EXACT",ISBLANK(IDCodeFilterType)),NOT(ISERROR(MATCH(IDCodeFilter,E79,0)))),1,$EK79))) ->  | EG79: =IF(AND(FacilityFilterType="CONTAINS",NOT(ISERROR(SEARCH(FacilityTypeFilter,F79)))),1,IF(AND(FacilityFilterType="NOT",ISERROR(SEARCH(FacilityTypeFilter,F79))),1,IF(AND(OR(FacilityFilterType="EXACT",ISBLANK(FacilityFilterType)),NOT(ISERROR(MATCH(FacilityTypeFilter,F79,0)))),1,$EK79))) ->  | EH79: =IF(AND(PhaseFilterType="CONTAINS",NOT(ISERROR(SEARCH(PhaseFilter,G79)))),1,IF(AND(PhaseFilterType="NOT",ISERROR(SEARCH(PhaseFilter,G79))),1,IF(AND(OR(PhaseFilterType="EXACT",ISBLANK(PhaseFilterType)),NOT(ISERROR(MATCH(PhaseFilter,G79,0)))),1,$EK79))) ->  | EI79: =IF(AND(LocationFilterType="CONTAINS",NOT(ISERROR(SEARCH(LocationFilter,H79)))),1,IF(AND(LocationFilterType="NOT",ISERROR(SEARCH(LocationFilter,H79))),1,IF(AND(OR(LocationFilterType="EXACT",ISBLANK(LocationFilterType)),NOT(ISERROR(MATCH(LocationFilter,H79,0)))),1,$EK79))) ->  | EJ79: =IF(AND(PropertyFilterType="CONTAINS",NOT(ISERROR(SEARCH(PropertyFilter,I79)))),1,IF(AND(PropertyFilterType="NOT",ISERROR(SEARCH(PropertyFilter,I79))),1,IF(AND(OR(PropertyFilterType="EXACT",ISBLANK(PropertyFilterType)),NOT(ISERROR(MATCH(PropertyFilter,I79,0)))),1,$EK79))) ->  | EK79: =MATCH("NOT",$EK$27,0) ->  | EL79: =IF(ISBLANK(INDEX(INDIRECT("_"&$A$29&"Table1"),B79+1,2)),"",MATCH(INDEX(INDIRECT("_"&$A$29&"Table1"),B79+1,5),Accounts,0)) -> 2 | EM79: Surf Area | EN79: Surf Area | EO79: =IF(ISNUMBER(K85),INDEX(INDIRECT("_"&$A$29&"Table8"),B79+1,5),"") -> 13.59 | EP79: =IF(Metric,"ha","acres") -> acres | EZ79: FALSE | FA79: 1
D80: Regrading | J80: =IF(INDEX(INDIRECT("_"&$A$29&"Table4"),B79+1,15)=0,0,INDEX(INDIRECT("_"&$A$29&"Table4"),B79+1,15)) -> 7804 | K80: =IF(OR(J80="",K79="",ISTEXT(K79),J80=0),"",IF(OR(ISBLANK(M80),ISBLANK(N80)),"Enter Dates",IF(K79="Date Range","",IF(OR(AND(CostType=ARO,L79>ScheduleYear),AND(CostType=ARO,N80<=ScheduleYear)),"Date Range",IF(OR(AND(CostType=Bond,O80>ScheduleYear),AND(CostType=LOM,LOMComplete)),J80,J80-Q80))))) -> 7804 | M80: 13 | N80: 14 | P80: =IF(K80="","",SUM(T80:DO80)) -> 1 | Q80: =IF(OR(AND(CostType=ARO,N80<=ScheduleYear),AND(CostType=LOM,LOMComplete)),J80*R80,R80*EB80) -> 0 | R80: =IF(CostType=Bond,SUMIFS(T80:DP80,T$27:DP$27,"<="&O80,T$27:DP$27,"<="&ScheduleYear),SUMIF(T$27:DP$27,"<="&ScheduleYear,T80:DP80)) -> 0 | AF80: 0.5 | AG80: 0.5 | EA80: 1 | EB80: =IF(OR(J80="",EB79="",ISTEXT(EB79)),0,IF(OR(ISBLANK(M80),ISBLANK(N80)),0,IF(OR(AND(CostType=ARO,L79>ScheduleYear),AND(OR(CostType=ARO,AND(CostType=LOM,LOMComplete=TRUE)),N80<=ScheduleYear)),0,J80))) -> 7804 | EC80: =IF(OR(J80="",EC79="",ISTEXT(EC79)),0,IF(OR(ISBLANK(M80),ISBLANK(N80)),0,IF(EC79="Date Range",0,IF(OR(AND(OtherCostType=ARO,L79>ScheduleYear),N80<=ScheduleYear),0,J80)))) ->  | EM80: Regrade | EN80: Regrade | EO80: =IF(ISNUMBER(K80),IF(INDEX(INDIRECT("_"&$A$29&"Table4"),B79+1,3)=0,0,INDEX(INDIRECT("_"&$A$29&"Table4"),B79+1,3)),0) -> 33712 | EP80: =IF(Metric,"m3","cy") -> cy | EQ80: =INDEX(INDIRECT("_"&$A$29&"Table4"),B79+1,5) -> D9T | ES80: =IF(OR(NOT(ISNUMBER(K80)),K80=0),0,INDEX(INDIRECT("_"&$A$29&"Table4"),B79+1,12)) -> 33 | EW80: =IF(ISNUMBER($K80),INDEX(INDIRECT("_"&$A$29&"Table4"),B79+1,13),0) -> 857 | EX80: =IF(ISNUMBER($K80),INDEX(INDIRECT("_"&$A$29&"Table4"),B79+1,14),0) -> 6947 | EZ80: TRUE
D81: Cover 1 Placement | J81: =INDEX(INDIRECT("_"&$A$29&"Table5"),B79+1,25) -> 0 | K81: =IF(OR(J81="",K79="",ISTEXT(K79),J81=0),"",IF(OR(ISBLANK(M81),ISBLANK(N81)),"Enter Dates",IF(K79="Date Range","",IF(OR(AND(CostType=ARO,L79>ScheduleYear),AND(CostType=ARO,N81<=ScheduleYear)),"Date Range",IF(OR(AND(CostType=Bond,O81>ScheduleYear),AND(CostType=LOM,LOMComplete)),J81,J81-Q81))))) ->  | M81: 14 | N81: 15 | Q81: 0 | R81: 0 | AG81: 0.5 | AH81: 0.5 | EA81: 1 | EB81: =IF(OR(J81="",EB79="",ISTEXT(EB79)),0,IF(OR(ISBLANK(M81),ISBLANK(N81)),0,IF(OR(AND(CostType=ARO,L79>ScheduleYear),AND(OR(CostType=ARO,AND(CostType=LOM,LOMComplete=TRUE)),N81<=ScheduleYear)),0,J81))) -> 0 | EC81: =IF(OR(J81="",EC79="",ISTEXT(EC79)),0,IF(OR(ISBLANK(M81),ISBLANK(N81)),0,IF(EC79="Date Range",0,IF(OR(AND(CostType=ARO,L79>ScheduleYear),N81<=ScheduleYear),0,J81)))) ->  | EM81: Cover | EN81: Cover | EO81: =IF(ISNUMBER(K81),INDEX(INDIRECT("_"&$A$29&"Table5"),B79+1,4),0) -> 0 | EP81: =IF(Metric,"m3","cy") -> cy | EQ81: =INDEX(INDIRECT("_"&$A$29&"Table5"),B79+1,10) ->  | ER81: =IF(OR(NOT(ISNUMBER(K81)),K81=0),0,INDEX(INDIRECT("_"&$A$29&"Table5"),B79+1,12)) -> 0 | ES81: =IF(OR(NOT(ISNUMBER(K81)),K81=0),0,INDEX(INDIRECT("_"&$A$29&"Table5"),B79+1,14)) -> 0 | ET81: =INDEX(INDIRECT("_"&$A$29&"Table5"),B79+1,5) ->  | EU81: =IF(OR(NOT(ISNUMBER(K81)),K81=0),0,INDEX(INDIRECT("_"&$A$29&"Table5"),B79+1,7)) -> 0 | EV81: =IF(OR(NOT(ISNUMBER(K81)),K81=0),0,INDEX(INDIRECT("_"&$A$29&"Table5"),B79+1,9)) -> 0 | EW81: =IF(ISNUMBER($K81),INDEX(INDIRECT("_"&$A$29&"Table5"),B79+1,15)+INDEX(INDIRECT("_"&$A$29&"Table5"),B79+1,19)+INDEX(INDIRECT("_"&$A$29&"Table5"),B79+1,22),0) -> 0 | EX81: =IF(ISNUMBER($K80),INDEX(INDIRECT("_"&$A$29&"Table5"),B79+1,16)+INDEX(INDIRECT("_"&$A$29&"Table5"),B79+1,20)+INDEX(INDIRECT("_"&$A$29&"Table5"),B79+1,23),0) -> 0 | EZ81: TRUE
D82: Cover 2 Placement | J82: =INDEX(INDIRECT("_"&$A$29&"Table6"),B79+1,25) -> 0 | K82: =IF(OR(J82="",K79="",ISTEXT(K79),J82=0),"",IF(OR(ISBLANK(M82),ISBLANK(N82)),"Enter Dates",IF(K79="Date Range","",IF(OR(AND(CostType=ARO,L79>ScheduleYear),AND(CostType=ARO,N82<=ScheduleYear)),"Date Range",IF(OR(AND(CostType=Bond,O82>ScheduleYear),AND(CostType=LOM,LOMComplete)),J82,J82-Q82))))) ->  | M82: 14 | N82: 15 | Q82: 0 | R82: 0 | AG82: 0.5 | AH82: 0.5 | EA82: 1 | EB82: =IF(OR(J82="",EB79="",ISTEXT(EB79)),0,IF(OR(ISBLANK(M82),ISBLANK(N82)),0,IF(OR(AND(CostType=ARO,L79>ScheduleYear),AND(OR(CostType=ARO,AND(CostType=LOM,LOMComplete=TRUE)),N82<=ScheduleYear)),0,J82))) -> 0 | EC82: =IF(OR(J82="",EC79="",ISTEXT(EC79)),0,IF(OR(ISBLANK(M82),ISBLANK(N82)),0,IF(EC79="Date Range",0,IF(OR(AND(CostType=ARO,L79>ScheduleYear),N82<=ScheduleYear),0,J82)))) ->  | EM82: Cover | EN82: Cover | EO82: =IF(ISNUMBER(K82),INDEX(INDIRECT("_"&$A$29&"Table6"),B79+1,4),0) -> 0 | EP82: =IF(Metric,"m3","cy") -> cy | EQ82: =INDEX(INDIRECT("_"&$A$29&"Table6"),B79+1,10) ->  | ER82: =IF(OR(NOT(ISNUMBER(K82)),K82=0),0,INDEX(INDIRECT("_"&$A$29&"Table6"),B79+1,12)) -> 0 | ES82: =IF(OR(NOT(ISNUMBER(K82)),K82=0),0,INDEX(INDIRECT("_"&$A$29&"Table6"),B79+1,14)) -> 0 | ET82: =INDEX(INDIRECT("_"&$A$29&"Table6"),B79+1,5) ->  | EU82: =IF(OR(NOT(ISNUMBER(K82)),K82=0),0,INDEX(INDIRECT("_"&$A$29&"Table6"),B79+1,7)) -> 0 | EV82: =IF(OR(NOT(ISNUMBER(K82)),K82=0),0,INDEX(INDIRECT("_"&$A$29&"Table6"),B79+1,9)) -> 0 | EZ82: TRUE
D83: Growth Media Placement | J83: =INDEX(INDIRECT("_"&$A$29&"Table7"),B79+1,11) -> 286951 | K83: =IF(OR(J83="",K79="",ISTEXT(K79),J83=0),"",IF(OR(ISBLANK(M83),ISBLANK(N83)),"Enter Dates",IF(K79="Date Range","",IF(OR(AND(CostType=ARO,L79>ScheduleYear),AND(CostType=ARO,N83<=ScheduleYear)),"Date Range",IF(OR(AND(CostType=Bond,O83>ScheduleYear),AND(CostType=LOM,LOMComplete)),J83,J83-Q83))))) -> 286951 | M83: 14 | N83: 15 | P83: 1 | Q83: 0 | R83: 0 | AG83: 0.5 | AH83: 0.5 | EA83: 1 | EB83: =IF(OR(J83="",EB79="",ISTEXT(EB79)),0,IF(OR(ISBLANK(M83),ISBLANK(N83)),0,IF(OR(AND(CostType=ARO,L79>ScheduleYear),AND(OR(CostType=ARO,AND(CostType=LOM,LOMComplete=TRUE)),N83<=ScheduleYear)),0,J83))) -> 286951 | EC83: =IF(OR(J83="",EC79="",ISTEXT(EC79)),0,IF(OR(ISBLANK(M83),ISBLANK(N83)),0,IF(EC79="Date Range",0,IF(OR(AND(CostType=ARO,L79>ScheduleYear),N83<=ScheduleYear),0,J83)))) ->  | EM83: GM | EN83: GM | EO83: =IF(ISNUMBER(K83),INDEX(INDIRECT("_"&$A$29&"Table7"),B79+1,3),0) -> 65776 | EP83: =IF(Metric,"m3","cy") -> cy | EQ83: =INDEX(INDIRECT("_"&$A$29&"Table7"),B79+1,4) -> 777G/992K/D9T | ER83: =IF(OR(NOT(ISNUMBER(K83)),K83=0),0,INDEX(INDIRECT("_"&$A$29&"Table7"),B79+1,6)) -> 7 | ES83: =IF(OR(NOT(ISNUMBER(K83)),K83=0),0,INDEX(INDIRECT("_"&$A$29&"Table7"),B79+1,8)) -> 62 | EZ83: TRUE
D84: Ripping/Scarifying | J84: =INDEX(INDIRECT("_"&$A$29&"Table8"),B79+1,13) -> 2217 | K84: =IF(OR(J84="",K79="",ISTEXT(K79),J84=0),"",IF(OR(ISBLANK(M84),ISBLANK(N84)),"Enter Dates",IF(K79="Date Range","",IF(OR(AND(CostType=ARO,L79>ScheduleYear),AND(CostType=ARO,N84<=ScheduleYear)),"Date Range",IF(OR(AND(CostType=Bond,O84>ScheduleYear),AND(CostType=LOM,LOMComplete)),J84,J84-Q84))))) -> 2217 | M84: 14 | N84: 15 | P84: 1 | Q84: 0 | R84: 0 | AG84: 0.5 | AH84: 0.5 | EA84: 1 | EB84: =IF(OR(J84="",EB79="",ISTEXT(EB79)),0,IF(OR(ISBLANK(M84),ISBLANK(N84)),0,IF(OR(AND(CostType=ARO,L79>ScheduleYear),AND(OR(CostType=ARO,AND(CostType=LOM,LOMComplete=TRUE)),N84<=ScheduleYear)),0,J84))) -> 2217 | EC84: =IF(OR(J84="",EC79="",ISTEXT(EC79)),0,IF(OR(ISBLANK(M84),ISBLANK(N84)), 0,IF(EC79="Date Range",0,IF(OR(AND(CostType=ARO,L79>ScheduleYear),N84<=ScheduleYear),0,J84)))) ->  | EM84: Rip | EN84: Rip | EO84: =IF(ISNUMBER(K84),INDEX(INDIRECT("_"&$A$29&"Table8"),B79+1,5),0) -> 13.59 | EP84: =IF(Metric,"ha","acres") -> acres | EQ84: =INDEX(INDIRECT("_"&$A$29&"Table8"),B79+1,8) -> 14M | ES84: =IF(OR(NOT(ISNUMBER(K84)),K84=0),0,INDEX(INDIRECT("_"&$A$29&"Table8"),B79+1,9)+INDEX(INDIRECT("_"&$A$29&"Table8"),B79+1,10)) -> 11 | EZ84: TRUE
D85: Revegetation | J85: =INDEX(INDIRECT("_"&$A$29&"Table8"),B79+1,17) -> 14512 | K85: =IF(OR(J85="",K79="",ISTEXT(K79),J85=0),"",IF(OR(ISBLANK(M85),ISBLANK(N85)),"Enter Dates",IF(K79="Date Range","",IF(OR(AND(CostType=ARO,L79>ScheduleYear),AND(CostType=ARO,N85<=ScheduleYear)),"Date Range",IF(OR(AND(CostType=Bond,O85>ScheduleYear),AND(CostType=LOM,LOMComplete)),J85,J85-Q85))))) -> 14512 | M85: 14 | N85: 15 | P85: 1 | Q85: 0 | R85: 0 | AG85: 0.5 | AH85: 0.5 | EA85: 1 | EB85: =IF(OR(J85="",EB79="",ISTEXT(EB79)),0,IF(OR(ISBLANK(M85),ISBLANK(N85)),0,IF(OR(AND(CostType=ARO,L79>ScheduleYear),AND(OR(CostType=ARO,AND(CostType=LOM,LOMComplete=TRUE)),N85<=ScheduleYear)),0,J85))) -> 14512 | EC85: =IF(OR(J85="",EC79="",ISTEXT(EC79)),0,IF(OR(ISBLANK(M85),ISBLANK(N85)), 0,IF(EC79="Date Range",0,IF(OR(AND(CostType=ARO,L79>ScheduleYear),N85<=ScheduleYear),0,J85)))) ->  | EM85: Reveg | EN85: Reveg | EO85: =IF(ISNUMBER(K85),INDEX(INDIRECT("_"&$A$29&"Table8"),B79+1,5),0) -> 13.59 | EP85: =IF(Metric,"ha","acres") -> acres | EZ85: TRUE
B86: =(ROW(B86) - ROW($A$29)-1)/INDEX(SheetRangeIndex,MATCH($A$29,TableNamesSorted,0),7) -> 8 | C86: =INDEX(INDIRECT("_"&$A$29&"Table1"),B86+1,9) -> FA | D86: =INDEX(INDIRECT("_"&$A$29&"Table1"),B86+1,2) -> WRSP1-MB7 | E86: =IF(ISBLANK(INDEX(INDIRECT("_"&$A$29&"Table1"),B86+1,3)),"",INDEX(INDIRECT("_"&$A$29&"Table1"),B86+1,3)) -> WRSP1 | F86: =IF(ISERROR(EL86),"Facility Type",IF(ISBLANK(INDEX(INDIRECT("_"&$A$29&"Table1"),B86+1,5)),"",INDEX(INDIRECT("_"&$A$29&"Table1"),B86+1,5))) -> WRD | G86: =IF(ISBLANK(INDEX(INDIRECT("_"&$A$29&"Table1"),B86+1,6)),"",INDEX(INDIRECT("_"&$A$29&"Table1"),B86+1,6)) -> Active Closure | H86: =IF(ISBLANK(INDEX(INDIRECT("_"&$A$29&"Table1"),B86+1,7)),"",INDEX(INDIRECT("_"&$A$29&"Table1"),B86+1,7)) ->  | I86: =IF(ISBLANK(INDEX(INDIRECT("_"&$A$29&"Table1"),B86+1,8)),"",INDEX(INDIRECT("_"&$A$29&"Table1"),B86+1,8)) ->  | J86: =SUM(J87:J92) -> 135367 | K86: =IF(ISERR(ED86),"Cost Type",IF(A86="X","Override",IF(AND(CostType=ARO,L86>ScheduleYear),"Date Range",IF(AND(ISTEXT(LocationFilter),ISERROR(EI86)),"Location",IF(AND(ISTEXT(PropertyFilter),ISERROR(EJ86)),"Property",IF(AND(ISTEXT(FacilityTypeFilter),ISERROR(EG86)),"Facility Type",IF(AND(NOT(ISBLANK(IDCodeFilter)),ISERROR(EF86)),"ID Code",IF(AND(ISTEXT(PhaseFilter),ISERROR(EH86)),"Phase",IF(AND(CostType=LOM,LOMComplete),J86,SUM(T86:DO86)))))))))) -> 135367 | L86: =INDEX(INDIRECT("_"&$A$29&"Table1"),B86+1,4) -> 0 | Q86: =SUM(Q87:Q92) -> 0 | T86: =IF(ISTEXT($EB86),0,IF(AND(CostType=LOM,LOMComplete,T$27<=ScheduleYear),SUMPRODUCT(T87:T92,$J87:$J92),IF(CostType=Bond,SUMPRODUCT($EB87:$EB92,T87:T92,$EA87:$EA92),IF(T$27<=ScheduleYear,0,SUMPRODUCT(T87:T92,$EB87:$EB92))))) -> 0 | U86: 0 | V86: 0 | W86: 0 | X86: 0 | Y86: 0 | Z86: 0 | AA86: 0 | AB86: 0 | AC86: 0 | AD86: 0 | AE86: 0 | AF86: 1655 | AG86: 67683.5 | AH86: 66028.5 | AI86: 0 | AJ86: 0 | AK86: 0 | AL86: 0 | AM86: 0 | AN86: 0 | AO86: 0 | AP86: 0 | AQ86: 0 | AR86: 0 | AS86: 0 | AT86: 0 | AU86: 0 | AV86: 0 | AW86: 0 | AX86: 0 | AY86: 0 | AZ86: =IF(ISTEXT($EB86),0,IF(AND(CostType=LOM,LOMComplete,AZ$27<=ScheduleYear),SUMPRODUCT(AZ87:AZ92,$J87:$J92),IF(CostType=Bond,SUMPRODUCT($EB87:$EB92,AZ87:AZ92,$EA87:$EA92),IF(AZ$27<=ScheduleYear,0,SUMPRODUCT(AZ87:AZ92,$EB87:$EB92))))) -> 0 | BA86: 0 | BB86: 0 | BC86: 0 | BD86: 0 | BE86: 0 | BF86: 0 | BG86: 0 | BH86: 0 | BI86: 0 | BJ86: 0 | BK86: 0 | BL86: 0 | BM86: 0 | BN86: 0 | BO86: 0 | BP86: 0 | BQ86: 0 | BR86: 0 | BS86: 0 | BT86: 0 | BU86: 0 | BV86: 0 | BW86: 0 | BX86: 0 | BY86: 0 | BZ86: 0 | CA86: 0 | CB86: 0 | CC86: 0 | CD86: 0 | CE86: 0 | CF86: =IF(ISTEXT($EB86),0,IF(AND(CostType=LOM,LOMComplete,CF$27<=ScheduleYear),SUMPRODUCT(CF87:CF92,$J87:$J92),IF(CostType=Bond,SUMPRODUCT($EB87:$EB92,CF87:CF92,$EA87:$EA92),IF(CF$27<=ScheduleYear,0,SUMPRODUCT(CF87:CF92,$EB87:$EB92))))) -> 0 | CG86: 0 | CH86: 0 | CI86: 0 | CJ86: 0 | CK86: 0 | CL86: 0 | CM86: 0 | CN86: 0 | CO86: 0 | CP86: 0 | CQ86: 0 | CR86: 0 | CS86: 0 | CT86: 0 | CU86: 0 | CV86: 0 | CW86: 0 | CX86: 0 | CY86: 0 | CZ86: 0 | DA86: 0 | DB86: 0 | DC86: 0 | DD86: 0 | DE86: 0 | DF86: 0 | DG86: 0 | DH86: 0 | DI86: 0 | DJ86: 0 | DK86: 0 | DL86: =IF(ISTEXT($EB86),0,IF(AND(CostType=LOM,LOMComplete,DL$27<=ScheduleYear),SUMPRODUCT(DL87:DL92,$J87:$J92),IF(CostType=Bond,SUMPRODUCT($EB87:$EB92,DL87:DL92,$EA87:$EA92),IF(DL$27<=ScheduleYear,0,SUMPRODUCT(DL87:DL92,$EB87:$EB92))))) -> 0 | DM86: 0 | DN86: 0 | DO86: 0 | DP86: =IF(ISNUMBER(K86),SUM(T86:DO86)-K86,K86) -> 0 | EB86: =IF(ISERR(ED86),"Cost Type",IF(A86="X","Override",IF(AND(CostType=ARO,L86>ScheduleYear),0,IF(AND(ISTEXT(LocationFilter),ISERROR(EI86)),"Location",IF(AND(ISTEXT(PropertyFilter),ISERROR(EJ86)),"Property",IF(AND(ISTEXT(FacilityTypeFilter),ISERROR(EG86)),"Facility Type",IF(AND(ISTEXT(IDCodeFilter),ISERROR(EF86)),"ID Code",IF(AND(ISTEXT(PhaseFilter),ISERROR(EH86)),"Phase",J86)))))))) -> 135367 | EC86: =IF(EE86="","Cost Type",IF(A86="X","Override",IF(AND(OtherCostType=ARO,L86>ScheduleYear),0,IF(AND(ISTEXT(LocationFilter),EI86=""),"Location",IF(AND(ISTEXT(PropertyFilter),EJ86=""),"Property",IF(AND(ISTEXT(FacilityTypeFilter),EG86=""),"Facility Type",IF(AND(ISTEXT(IDCodeFilter),EF86=""),"ID Code",IF(AND(ISTEXT(PhaseFilter),EH86=""),"Phase",J86)))))))) ->  | ED86: =SEARCH(CostType,C86) -> 1 | EE86: =SEARCH(OtherCostType,C86) ->  | EF86: =IF(AND(IDCodeFilterType="CONTAINS",NOT(ISERROR(SEARCH(IDCodeFilter,E86)))),1,IF(AND(IDCodeFilterType="NOT",ISERROR(SEARCH(IDCodeFilter,E86))),1,IF(AND(OR(IDCodeFilterType="EXACT",ISBLANK(IDCodeFilterType)),NOT(ISERROR(MATCH(IDCodeFilter,E86,0)))),1,$EK86))) ->  | EG86: =IF(AND(FacilityFilterType="CONTAINS",NOT(ISERROR(SEARCH(FacilityTypeFilter,F86)))),1,IF(AND(FacilityFilterType="NOT",ISERROR(SEARCH(FacilityTypeFilter,F86))),1,IF(AND(OR(FacilityFilterType="EXACT",ISBLANK(FacilityFilterType)),NOT(ISERROR(MATCH(FacilityTypeFilter,F86,0)))),1,$EK86))) ->  | EH86: =IF(AND(PhaseFilterType="CONTAINS",NOT(ISERROR(SEARCH(PhaseFilter,G86)))),1,IF(AND(PhaseFilterType="NOT",ISERROR(SEARCH(PhaseFilter,G86))),1,IF(AND(OR(PhaseFilterType="EXACT",ISBLANK(PhaseFilterType)),NOT(ISERROR(MATCH(PhaseFilter,G86,0)))),1,$EK86))) ->  | EI86: =IF(AND(LocationFilterType="CONTAINS",NOT(ISERROR(SEARCH(LocationFilter,H86)))),1,IF(AND(LocationFilterType="NOT",ISERROR(SEARCH(LocationFilter,H86))),1,IF(AND(OR(LocationFilterType="EXACT",ISBLANK(LocationFilterType)),NOT(ISERROR(MATCH(LocationFilter,H86,0)))),1,$EK86))) ->  | EJ86: =IF(AND(PropertyFilterType="CONTAINS",NOT(ISERROR(SEARCH(PropertyFilter,I86)))),1,IF(AND(PropertyFilterType="NOT",ISERROR(SEARCH(PropertyFilter,I86))),1,IF(AND(OR(PropertyFilterType="EXACT",ISBLANK(PropertyFilterType)),NOT(ISERROR(MATCH(PropertyFilter,I86,0)))),1,$EK86))) ->  | EK86: =MATCH("NOT",$EK$27,0) ->  | EL86: =IF(ISBLANK(INDEX(INDIRECT("_"&$A$29&"Table1"),B86+1,2)),"",MATCH(INDEX(INDIRECT("_"&$A$29&"Table1"),B86+1,5),Accounts,0)) -> 2 | EM86: Surf Area | EN86: Surf Area | EO86: =IF(ISNUMBER(K92),INDEX(INDIRECT("_"&$A$29&"Table8"),B86+1,5),"") -> 5.73 | EP86: =IF(Metric,"ha","acres") -> acres | EZ86: FALSE | FA86: 1
D87: Regrading | J87: =IF(INDEX(INDIRECT("_"&$A$29&"Table4"),B86+1,15)=0,0,INDEX(INDIRECT("_"&$A$29&"Table4"),B86+1,15)) -> 3310 | K87: =IF(OR(J87="",K86="",ISTEXT(K86),J87=0),"",IF(OR(ISBLANK(M87),ISBLANK(N87)),"Enter Dates",IF(K86="Date Range","",IF(OR(AND(CostType=ARO,L86>ScheduleYear),AND(CostType=ARO,N87<=ScheduleYear)),"Date Range",IF(OR(AND(CostType=Bond,O87>ScheduleYear),AND(CostType=LOM,LOMComplete)),J87,J87-Q87))))) -> 3310 | M87: 13 | N87: 14 | P87: =IF(K87="","",SUM(T87:DO87)) -> 1 | Q87: =IF(OR(AND(CostType=ARO,N87<=ScheduleYear),AND(CostType=LOM,LOMComplete)),J87*R87,R87*EB87) -> 0 | R87: =IF(CostType=Bond,SUMIFS(T87:DP87,T$27:DP$27,"<="&O87,T$27:DP$27,"<="&ScheduleYear),SUMIF(T$27:DP$27,"<="&ScheduleYear,T87:DP87)) -> 0 | AF87: 0.5 | AG87: 0.5 | EA87: 1 | EB87: =IF(OR(J87="",EB86="",ISTEXT(EB86)),0,IF(OR(ISBLANK(M87),ISBLANK(N87)),0,IF(OR(AND(CostType=ARO,L86>ScheduleYear),AND(OR(CostType=ARO,AND(CostType=LOM,LOMComplete=TRUE)),N87<=ScheduleYear)),0,J87))) -> 3310 | EC87: =IF(OR(J87="",EC86="",ISTEXT(EC86)),0,IF(OR(ISBLANK(M87),ISBLANK(N87)),0,IF(EC86="Date Range",0,IF(OR(AND(OtherCostType=ARO,L86>ScheduleYear),N87<=ScheduleYear),0,J87)))) ->  | EM87: Regrade | EN87: Regrade | EO87: =IF(ISNUMBER(K87),IF(INDEX(INDIRECT("_"&$A$29&"Table4"),B86+1,3)=0,0,INDEX(INDIRECT("_"&$A$29&"Table4"),B86+1,3)),0) -> 13963 | EP87: =IF(Metric,"m3","cy") -> cy | EQ87: =INDEX(INDIRECT("_"&$A$29&"Table4"),B86+1,5) -> D9T | ES87: =IF(OR(NOT(ISNUMBER(K87)),K87=0),0,INDEX(INDIRECT("_"&$A$29&"Table4"),B86+1,12)) -> 14 | EW87: =IF(ISNUMBER($K87),INDEX(INDIRECT("_"&$A$29&"Table4"),B86+1,13),0) -> 363 | EX87: =IF(ISNUMBER($K87),INDEX(INDIRECT("_"&$A$29&"Table4"),B86+1,14),0) -> 2947 | EZ87: TRUE
D88: Cover 1 Placement | J88: =INDEX(INDIRECT("_"&$A$29&"Table5"),B86+1,25) -> 0 | K88: =IF(OR(J88="",K86="",ISTEXT(K86),J88=0),"",IF(OR(ISBLANK(M88),ISBLANK(N88)),"Enter Dates",IF(K86="Date Range","",IF(OR(AND(CostType=ARO,L86>ScheduleYear),AND(CostType=ARO,N88<=ScheduleYear)),"Date Range",IF(OR(AND(CostType=Bond,O88>ScheduleYear),AND(CostType=LOM,LOMComplete)),J88,J88-Q88))))) ->  | M88: 14 | N88: 15 | Q88: 0 | R88: 0 | AG88: 0.5 | AH88: 0.5 | EA88: 1 | EB88: =IF(OR(J88="",EB86="",ISTEXT(EB86)),0,IF(OR(ISBLANK(M88),ISBLANK(N88)),0,IF(OR(AND(CostType=ARO,L86>ScheduleYear),AND(OR(CostType=ARO,AND(CostType=LOM,LOMComplete=TRUE)),N88<=ScheduleYear)),0,J88))) -> 0 | EC88: =IF(OR(J88="",EC86="",ISTEXT(EC86)),0,IF(OR(ISBLANK(M88),ISBLANK(N88)),0,IF(EC86="Date Range",0,IF(OR(AND(CostType=ARO,L86>ScheduleYear),N88<=ScheduleYear),0,J88)))) ->  | EM88: Cover | EN88: Cover | EO88: =IF(ISNUMBER(K88),INDEX(INDIRECT("_"&$A$29&"Table5"),B86+1,4),0) -> 0 | EP88: =IF(Metric,"m3","cy") -> cy | EQ88: =INDEX(INDIRECT("_"&$A$29&"Table5"),B86+1,10) ->  | ER88: =IF(OR(NOT(ISNUMBER(K88)),K88=0),0,INDEX(INDIRECT("_"&$A$29&"Table5"),B86+1,12)) -> 0 | ES88: =IF(OR(NOT(ISNUMBER(K88)),K88=0),0,INDEX(INDIRECT("_"&$A$29&"Table5"),B86+1,14)) -> 0 | ET88: =INDEX(INDIRECT("_"&$A$29&"Table5"),B86+1,5) ->  | EU88: =IF(OR(NOT(ISNUMBER(K88)),K88=0),0,INDEX(INDIRECT("_"&$A$29&"Table5"),B86+1,7)) -> 0 | EV88: =IF(OR(NOT(ISNUMBER(K88)),K88=0),0,INDEX(INDIRECT("_"&$A$29&"Table5"),B86+1,9)) -> 0 | EW88: =IF(ISNUMBER($K88),INDEX(INDIRECT("_"&$A$29&"Table5"),B86+1,15)+INDEX(INDIRECT("_"&$A$29&"Table5"),B86+1,19)+INDEX(INDIRECT("_"&$A$29&"Table5"),B86+1,22),0) -> 0 | EX88: =IF(ISNUMBER($K87),INDEX(INDIRECT("_"&$A$29&"Table5"),B86+1,16)+INDEX(INDIRECT("_"&$A$29&"Table5"),B86+1,20)+INDEX(INDIRECT("_"&$A$29&"Table5"),B86+1,23),0) -> 0 | EZ88: TRUE
D89: Cover 2 Placement | J89: =INDEX(INDIRECT("_"&$A$29&"Table6"),B86+1,25) -> 0 | K89: =IF(OR(J89="",K86="",ISTEXT(K86),J89=0),"",IF(OR(ISBLANK(M89),ISBLANK(N89)),"Enter Dates",IF(K86="Date Range","",IF(OR(AND(CostType=ARO,L86>ScheduleYear),AND(CostType=ARO,N89<=ScheduleYear)),"Date Range",IF(OR(AND(CostType=Bond,O89>ScheduleYear),AND(CostType=LOM,LOMComplete)),J89,J89-Q89))))) ->  | M89: 14 | N89: 15 | Q89: 0 | R89: 0 | AG89: 0.5 | AH89: 0.5 | EA89: 1 | EB89: =IF(OR(J89="",EB86="",ISTEXT(EB86)),0,IF(OR(ISBLANK(M89),ISBLANK(N89)),0,IF(OR(AND(CostType=ARO,L86>ScheduleYear),AND(OR(CostType=ARO,AND(CostType=LOM,LOMComplete=TRUE)),N89<=ScheduleYear)),0,J89))) -> 0 | EC89: =IF(OR(J89="",EC86="",ISTEXT(EC86)),0,IF(OR(ISBLANK(M89),ISBLANK(N89)),0,IF(EC86="Date Range",0,IF(OR(AND(CostType=ARO,L86>ScheduleYear),N89<=ScheduleYear),0,J89)))) ->  | EM89: Cover | EN89: Cover | EO89: =IF(ISNUMBER(K89),INDEX(INDIRECT("_"&$A$29&"Table6"),B86+1,4),0) -> 0 | EP89: =IF(Metric,"m3","cy") -> cy | EQ89: =INDEX(INDIRECT("_"&$A$29&"Table6"),B86+1,10) ->  | ER89: =IF(OR(NOT(ISNUMBER(K89)),K89=0),0,INDEX(INDIRECT("_"&$A$29&"Table6"),B86+1,12)) -> 0 | ES89: =IF(OR(NOT(ISNUMBER(K89)),K89=0),0,INDEX(INDIRECT("_"&$A$29&"Table6"),B86+1,14)) -> 0 | ET89: =INDEX(INDIRECT("_"&$A$29&"Table6"),B86+1,5) ->  | EU89: =IF(OR(NOT(ISNUMBER(K89)),K89=0),0,INDEX(INDIRECT("_"&$A$29&"Table6"),B86+1,7)) -> 0 | EV89: =IF(OR(NOT(ISNUMBER(K89)),K89=0),0,INDEX(INDIRECT("_"&$A$29&"Table6"),B86+1,9)) -> 0 | EZ89: TRUE
D90: Growth Media Placement | J90: =INDEX(INDIRECT("_"&$A$29&"Table7"),B86+1,11) -> 124963 | K90: =IF(OR(J90="",K86="",ISTEXT(K86),J90=0),"",IF(OR(ISBLANK(M90),ISBLANK(N90)),"Enter Dates",IF(K86="Date Range","",IF(OR(AND(CostType=ARO,L86>ScheduleYear),AND(CostType=ARO,N90<=ScheduleYear)),"Date Range",IF(OR(AND(CostType=Bond,O90>ScheduleYear),AND(CostType=LOM,LOMComplete)),J90,J90-Q90))))) -> 124963 | M90: 14 | N90: 15 | P90: 1 | Q90: 0 | R90: 0 | AG90: 0.5 | AH90: 0.5 | EA90: 1 | EB90: =IF(OR(J90="",EB86="",ISTEXT(EB86)),0,IF(OR(ISBLANK(M90),ISBLANK(N90)),0,IF(OR(AND(CostType=ARO,L86>ScheduleYear),AND(OR(CostType=ARO,AND(CostType=LOM,LOMComplete=TRUE)),N90<=ScheduleYear)),0,J90))) -> 124963 | EC90: =IF(OR(J90="",EC86="",ISTEXT(EC86)),0,IF(OR(ISBLANK(M90),ISBLANK(N90)),0,IF(EC86="Date Range",0,IF(OR(AND(CostType=ARO,L86>ScheduleYear),N90<=ScheduleYear),0,J90)))) ->  | EM90: GM | EN90: GM | EO90: =IF(ISNUMBER(K90),INDEX(INDIRECT("_"&$A$29&"Table7"),B86+1,3),0) -> 27733 | EP90: =IF(Metric,"m3","cy") -> cy | EQ90: =INDEX(INDIRECT("_"&$A$29&"Table7"),B86+1,4) -> 777G/992K/D9T | ER90: =IF(OR(NOT(ISNUMBER(K90)),K90=0),0,INDEX(INDIRECT("_"&$A$29&"Table7"),B86+1,6)) -> 7 | ES90: =IF(OR(NOT(ISNUMBER(K90)),K90=0),0,INDEX(INDIRECT("_"&$A$29&"Table7"),B86+1,8)) -> 27 | EZ90: TRUE
D91: Ripping/Scarifying | J91: =INDEX(INDIRECT("_"&$A$29&"Table8"),B86+1,13) -> 1008 | K91: =IF(OR(J91="",K86="",ISTEXT(K86),J91=0),"",IF(OR(ISBLANK(M91),ISBLANK(N91)),"Enter Dates",IF(K86="Date Range","",IF(OR(AND(CostType=ARO,L86>ScheduleYear),AND(CostType=ARO,N91<=ScheduleYear)),"Date Range",IF(OR(AND(CostType=Bond,O91>ScheduleYear),AND(CostType=LOM,LOMComplete)),J91,J91-Q91))))) -> 1008 | M91: 14 | N91: 15 | P91: 1 | Q91: 0 | R91: 0 | AG91: 0.5 | AH91: 0.5 | EA91: 1 | EB91: =IF(OR(J91="",EB86="",ISTEXT(EB86)),0,IF(OR(ISBLANK(M91),ISBLANK(N91)),0,IF(OR(AND(CostType=ARO,L86>ScheduleYear),AND(OR(CostType=ARO,AND(CostType=LOM,LOMComplete=TRUE)),N91<=ScheduleYear)),0,J91))) -> 1008 | EC91: =IF(OR(J91="",EC86="",ISTEXT(EC86)),0,IF(OR(ISBLANK(M91),ISBLANK(N91)), 0,IF(EC86="Date Range",0,IF(OR(AND(CostType=ARO,L86>ScheduleYear),N91<=ScheduleYear),0,J91)))) ->  | EM91: Rip | EN91: Rip | EO91: =IF(ISNUMBER(K91),INDEX(INDIRECT("_"&$A$29&"Table8"),B86+1,5),0) -> 5.73 | EP91: =IF(Metric,"ha","acres") -> acres | EQ91: =INDEX(INDIRECT("_"&$A$29&"Table8"),B86+1,8) -> 14M | ES91: =IF(OR(NOT(ISNUMBER(K91)),K91=0),0,INDEX(INDIRECT("_"&$A$29&"Table8"),B86+1,9)+INDEX(INDIRECT("_"&$A$29&"Table8"),B86+1,10)) -> 5 | EZ91: TRUE
D92: Revegetation | J92: =INDEX(INDIRECT("_"&$A$29&"Table8"),B86+1,17) -> 6086 | K92: =IF(OR(J92="",K86="",ISTEXT(K86),J92=0),"",IF(OR(ISBLANK(M92),ISBLANK(N92)),"Enter Dates",IF(K86="Date Range","",IF(OR(AND(CostType=ARO,L86>ScheduleYear),AND(CostType=ARO,N92<=ScheduleYear)),"Date Range",IF(OR(AND(CostType=Bond,O92>ScheduleYear),AND(CostType=LOM,LOMComplete)),J92,J92-Q92))))) -> 6086 | M92: 14 | N92: 15 | P92: 1 | Q92: 0 | R92: 0 | AG92: 0.5 | AH92: 0.5 | EA92: 1 | EB92: =IF(OR(J92="",EB86="",ISTEXT(EB86)),0,IF(OR(ISBLANK(M92),ISBLANK(N92)),0,IF(OR(AND(CostType=ARO,L86>ScheduleYear),AND(OR(CostType=ARO,AND(CostType=LOM,LOMComplete=TRUE)),N92<=ScheduleYear)),0,J92))) -> 6086 | EC92: =IF(OR(J92="",EC86="",ISTEXT(EC86)),0,IF(OR(ISBLANK(M92),ISBLANK(N92)), 0,IF(EC86="Date Range",0,IF(OR(AND(CostType=ARO,L86>ScheduleYear),N92<=ScheduleYear),0,J92)))) ->  | EM92: Reveg | EN92: Reveg | EO92: =IF(ISNUMBER(K92),INDEX(INDIRECT("_"&$A$29&"Table8"),B86+1,5),0) -> 5.73 | EP92: =IF(Metric,"ha","acres") -> acres | EZ92: TRUE
B93: =(ROW(B93) - ROW($A$29)-1)/INDEX(SheetRangeIndex,MATCH($A$29,TableNamesSorted,0),7) -> 9 | C93: =INDEX(INDIRECT("_"&$A$29&"Table1"),B93+1,9) -> FA | D93: =INDEX(INDIRECT("_"&$A$29&"Table1"),B93+1,2) -> WRSP2-MB1 | E93: =IF(ISBLANK(INDEX(INDIRECT("_"&$A$29&"Table1"),B93+1,3)),"",INDEX(INDIRECT("_"&$A$29&"Table1"),B93+1,3)) -> WRSP2 | F93: =IF(ISERROR(EL93),"Facility Type",IF(ISBLANK(INDEX(INDIRECT("_"&$A$29&"Table1"),B93+1,5)),"",INDEX(INDIRECT("_"&$A$29&"Table1"),B93+1,5))) -> WRD | G93: =IF(ISBLANK(INDEX(INDIRECT("_"&$A$29&"Table1"),B93+1,6)),"",INDEX(INDIRECT("_"&$A$29&"Table1"),B93+1,6)) -> Active Closure | H93: =IF(ISBLANK(INDEX(INDIRECT("_"&$A$29&"Table1"),B93+1,7)),"",INDEX(INDIRECT("_"&$A$29&"Table1"),B93+1,7)) ->  | I93: =IF(ISBLANK(INDEX(INDIRECT("_"&$A$29&"Table1"),B93+1,8)),"",INDEX(INDIRECT("_"&$A$29&"Table1"),B93+1,8)) ->  | J93: =SUM(J94:J99) -> 278993 | K93: =IF(ISERR(ED93),"Cost Type",IF(A93="X","Override",IF(AND(CostType=ARO,L93>ScheduleYear),"Date Range",IF(AND(ISTEXT(LocationFilter),ISERROR(EI93)),"Location",IF(AND(ISTEXT(PropertyFilter),ISERROR(EJ93)),"Property",IF(AND(ISTEXT(FacilityTypeFilter),ISERROR(EG93)),"Facility Type",IF(AND(NOT(ISBLANK(IDCodeFilter)),ISERROR(EF93)),"ID Code",IF(AND(ISTEXT(PhaseFilter),ISERROR(EH93)),"Phase",IF(AND(CostType=LOM,LOMComplete),J93,SUM(T93:DO93)))))))))) -> 278993 | L93: =INDEX(INDIRECT("_"&$A$29&"Table1"),B93+1,4) -> 0 | Q93: =SUM(Q94:Q99) -> 0 | T93: =IF(ISTEXT($EB93),0,IF(AND(CostType=LOM,LOMComplete,T$27<=ScheduleYear),SUMPRODUCT(T94:T99,$J94:$J99),IF(CostType=Bond,SUMPRODUCT($EB94:$EB99,T94:T99,$EA94:$EA99),IF(T$27<=ScheduleYear,0,SUMPRODUCT(T94:T99,$EB94:$EB99))))) -> 0 | U93: 0 | V93: 0 | W93: 0 | X93: 0 | Y93: 0 | Z93: 0 | AA93: 0 | AB93: 0 | AC93: 0 | AD93: 0 | AE93: 0 | AF93: 18446 | AG93: 130273.5 | AH93: 130273.5 | AI93: 0 | AJ93: 0 | AK93: 0 | AL93: 0 | AM93: 0 | AN93: 0 | AO93: 0 | AP93: 0 | AQ93: 0 | AR93: 0 | AS93: 0 | AT93: 0 | AU93: 0 | AV93: 0 | AW93: 0 | AX93: 0 | AY93: 0 | AZ93: =IF(ISTEXT($EB93),0,IF(AND(CostType=LOM,LOMComplete,AZ$27<=ScheduleYear),SUMPRODUCT(AZ94:AZ99,$J94:$J99),IF(CostType=Bond,SUMPRODUCT($EB94:$EB99,AZ94:AZ99,$EA94:$EA99),IF(AZ$27<=ScheduleYear,0,SUMPRODUCT(AZ94:AZ99,$EB94:$EB99))))) -> 0 | BA93: 0 | BB93: 0 | BC93: 0 | BD93: 0 | BE93: 0 | BF93: 0 | BG93: 0 | BH93: 0 | BI93: 0 | BJ93: 0 | BK93: 0 | BL93: 0 | BM93: 0 | BN93: 0 | BO93: 0 | BP93: 0 | BQ93: 0 | BR93: 0 | BS93: 0 | BT93: 0 | BU93: 0 | BV93: 0 | BW93: 0 | BX93: 0 | BY93: 0 | BZ93: 0 | CA93: 0 | CB93: 0 | CC93: 0 | CD93: 0 | CE93: 0 | CF93: =IF(ISTEXT($EB93),0,IF(AND(CostType=LOM,LOMComplete,CF$27<=ScheduleYear),SUMPRODUCT(CF94:CF99,$J94:$J99),IF(CostType=Bond,SUMPRODUCT($EB94:$EB99,CF94:CF99,$EA94:$EA99),IF(CF$27<=ScheduleYear,0,SUMPRODUCT(CF94:CF99,$EB94:$EB99))))) -> 0 | CG93: 0 | CH93: 0 | CI93: 0 | CJ93: 0 | CK93: 0 | CL93: 0 | CM93: 0 | CN93: 0 | CO93: 0 | CP93: 0 | CQ93: 0 | CR93: 0 | CS93: 0 | CT93: 0 | CU93: 0 | CV93: 0 | CW93: 0 | CX93: 0 | CY93: 0 | CZ93: 0 | DA93: 0 | DB93: 0 | DC93: 0 | DD93: 0 | DE93: 0 | DF93: 0 | DG93: 0 | DH93: 0 | DI93: 0 | DJ93: 0 | DK93: 0 | DL93: =IF(ISTEXT($EB93),0,IF(AND(CostType=LOM,LOMComplete,DL$27<=ScheduleYear),SUMPRODUCT(DL94:DL99,$J94:$J99),IF(CostType=Bond,SUMPRODUCT($EB94:$EB99,DL94:DL99,$EA94:$EA99),IF(DL$27<=ScheduleYear,0,SUMPRODUCT(DL94:DL99,$EB94:$EB99))))) -> 0 | DM93: 0 | DN93: 0 | DO93: 0 | DP93: =IF(ISNUMBER(K93),SUM(T93:DO93)-K93,K93) -> 0 | EB93: =IF(ISERR(ED93),"Cost Type",IF(A93="X","Override",IF(AND(CostType=ARO,L93>ScheduleYear),0,IF(AND(ISTEXT(LocationFilter),ISERROR(EI93)),"Location",IF(AND(ISTEXT(PropertyFilter),ISERROR(EJ93)),"Property",IF(AND(ISTEXT(FacilityTypeFilter),ISERROR(EG93)),"Facility Type",IF(AND(ISTEXT(IDCodeFilter),ISERROR(EF93)),"ID Code",IF(AND(ISTEXT(PhaseFilter),ISERROR(EH93)),"Phase",J93)))))))) -> 278993 | EC93: =IF(EE93="","Cost Type",IF(A93="X","Override",IF(AND(OtherCostType=ARO,L93>ScheduleYear),0,IF(AND(ISTEXT(LocationFilter),EI93=""),"Location",IF(AND(ISTEXT(PropertyFilter),EJ93=""),"Property",IF(AND(ISTEXT(FacilityTypeFilter),EG93=""),"Facility Type",IF(AND(ISTEXT(IDCodeFilter),EF93=""),"ID Code",IF(AND(ISTEXT(PhaseFilter),EH93=""),"Phase",J93)))))))) ->  | ED93: =SEARCH(CostType,C93) -> 1 | EE93: =SEARCH(OtherCostType,C93) ->  | EF93: =IF(AND(IDCodeFilterType="CONTAINS",NOT(ISERROR(SEARCH(IDCodeFilter,E93)))),1,IF(AND(IDCodeFilterType="NOT",ISERROR(SEARCH(IDCodeFilter,E93))),1,IF(AND(OR(IDCodeFilterType="EXACT",ISBLANK(IDCodeFilterType)),NOT(ISERROR(MATCH(IDCodeFilter,E93,0)))),1,$EK93))) ->  | EG93: =IF(AND(FacilityFilterType="CONTAINS",NOT(ISERROR(SEARCH(FacilityTypeFilter,F93)))),1,IF(AND(FacilityFilterType="NOT",ISERROR(SEARCH(FacilityTypeFilter,F93))),1,IF(AND(OR(FacilityFilterType="EXACT",ISBLANK(FacilityFilterType)),NOT(ISERROR(MATCH(FacilityTypeFilter,F93,0)))),1,$EK93))) ->  | EH93: =IF(AND(PhaseFilterType="CONTAINS",NOT(ISERROR(SEARCH(PhaseFilter,G93)))),1,IF(AND(PhaseFilterType="NOT",ISERROR(SEARCH(PhaseFilter,G93))),1,IF(AND(OR(PhaseFilterType="EXACT",ISBLANK(PhaseFilterType)),NOT(ISERROR(MATCH(PhaseFilter,G93,0)))),1,$EK93))) ->  | EI93: =IF(AND(LocationFilterType="CONTAINS",NOT(ISERROR(SEARCH(LocationFilter,H93)))),1,IF(AND(LocationFilterType="NOT",ISERROR(SEARCH(LocationFilter,H93))),1,IF(AND(OR(LocationFilterType="EXACT",ISBLANK(LocationFilterType)),NOT(ISERROR(MATCH(LocationFilter,H93,0)))),1,$EK93))) ->  | EJ93: =IF(AND(PropertyFilterType="CONTAINS",NOT(ISERROR(SEARCH(PropertyFilter,I93)))),1,IF(AND(PropertyFilterType="NOT",ISERROR(SEARCH(PropertyFilter,I93))),1,IF(AND(OR(PropertyFilterType="EXACT",ISBLANK(PropertyFilterType)),NOT(ISERROR(MATCH(PropertyFilter,I93,0)))),1,$EK93))) ->  | EK93: =MATCH("NOT",$EK$27,0) ->  | EL93: =IF(ISBLANK(INDEX(INDIRECT("_"&$A$29&"Table1"),B93+1,2)),"",MATCH(INDEX(INDIRECT("_"&$A$29&"Table1"),B93+1,5),Accounts,0)) -> 2 | EM93: Surf Area | EN93: Surf Area | EO93: =IF(ISNUMBER(K99),INDEX(INDIRECT("_"&$A$29&"Table8"),B93+1,5),"") -> 12.51 | EP93: =IF(Metric,"ha","acres") -> acres | EZ93: FALSE | FA93: 1
D94: Regrading | J94: =IF(INDEX(INDIRECT("_"&$A$29&"Table4"),B93+1,15)=0,0,INDEX(INDIRECT("_"&$A$29&"Table4"),B93+1,15)) -> 18446 | K94: =IF(OR(J94="",K93="",ISTEXT(K93),J94=0),"",IF(OR(ISBLANK(M94),ISBLANK(N94)),"Enter Dates",IF(K93="Date Range","",IF(OR(AND(CostType=ARO,L93>ScheduleYear),AND(CostType=ARO,N94<=ScheduleYear)),"Date Range",IF(OR(AND(CostType=Bond,O94>ScheduleYear),AND(CostType=LOM,LOMComplete)),J94,J94-Q94))))) -> 18446 | M94: 13 | N94: 13 | P94: =IF(K94="","",SUM(T94:DO94)) -> 1 | Q94: =IF(OR(AND(CostType=ARO,N94<=ScheduleYear),AND(CostType=LOM,LOMComplete)),J94*R94,R94*EB94) -> 0 | R94: =IF(CostType=Bond,SUMIFS(T94:DP94,T$27:DP$27,"<="&O94,T$27:DP$27,"<="&ScheduleYear),SUMIF(T$27:DP$27,"<="&ScheduleYear,T94:DP94)) -> 0 | AF94: 1 | EA94: 1 | EB94: =IF(OR(J94="",EB93="",ISTEXT(EB93)),0,IF(OR(ISBLANK(M94),ISBLANK(N94)),0,IF(OR(AND(CostType=ARO,L93>ScheduleYear),AND(OR(CostType=ARO,AND(CostType=LOM,LOMComplete=TRUE)),N94<=ScheduleYear)),0,J94))) -> 18446 | EC94: =IF(OR(J94="",EC93="",ISTEXT(EC93)),0,IF(OR(ISBLANK(M94),ISBLANK(N94)),0,IF(EC93="Date Range",0,IF(OR(AND(OtherCostType=ARO,L93>ScheduleYear),N94<=ScheduleYear),0,J94)))) ->  | EM94: Regrade | EN94: Regrade | EO94: =IF(ISNUMBER(K94),IF(INDEX(INDIRECT("_"&$A$29&"Table4"),B93+1,3)=0,0,INDEX(INDIRECT("_"&$A$29&"Table4"),B93+1,3)),0) -> 57498 | EP94: =IF(Metric,"m3","cy") -> cy | EQ94: =INDEX(INDIRECT("_"&$A$29&"Table4"),B93+1,5) -> D9T | ES94: =IF(OR(NOT(ISNUMBER(K94)),K94=0),0,INDEX(INDIRECT("_"&$A$29&"Table4"),B93+1,12)) -> 78 | EW94: =IF(ISNUMBER($K94),INDEX(INDIRECT("_"&$A$29&"Table4"),B93+1,13),0) -> 2025 | EX94: =IF(ISNUMBER($K94),INDEX(INDIRECT("_"&$A$29&"Table4"),B93+1,14),0) -> 16421 | EZ94: TRUE
D95: Cover 1 Placement | J95: =INDEX(INDIRECT("_"&$A$29&"Table5"),B93+1,25) -> 0 | K95: =IF(OR(J95="",K93="",ISTEXT(K93),J95=0),"",IF(OR(ISBLANK(M95),ISBLANK(N95)),"Enter Dates",IF(K93="Date Range","",IF(OR(AND(CostType=ARO,L93>ScheduleYear),AND(CostType=ARO,N95<=ScheduleYear)),"Date Range",IF(OR(AND(CostType=Bond,O95>ScheduleYear),AND(CostType=LOM,LOMComplete)),J95,J95-Q95))))) ->  | M95: 14 | N95: 15 | Q95: 0 | R95: 0 | AG95: 0.5 | AH95: 0.5 | EA95: 1 | EB95: =IF(OR(J95="",EB93="",ISTEXT(EB93)),0,IF(OR(ISBLANK(M95),ISBLANK(N95)),0,IF(OR(AND(CostType=ARO,L93>ScheduleYear),AND(OR(CostType=ARO,AND(CostType=LOM,LOMComplete=TRUE)),N95<=ScheduleYear)),0,J95))) -> 0 | EC95: =IF(OR(J95="",EC93="",ISTEXT(EC93)),0,IF(OR(ISBLANK(M95),ISBLANK(N95)),0,IF(EC93="Date Range",0,IF(OR(AND(CostType=ARO,L93>ScheduleYear),N95<=ScheduleYear),0,J95)))) ->  | EM95: Cover | EN95: Cover | EO95: =IF(ISNUMBER(K95),INDEX(INDIRECT("_"&$A$29&"Table5"),B93+1,4),0) -> 0 | EP95: =IF(Metric,"m3","cy") -> cy | EQ95: =INDEX(INDIRECT("_"&$A$29&"Table5"),B93+1,10) ->  | ER95: =IF(OR(NOT(ISNUMBER(K95)),K95=0),0,INDEX(INDIRECT("_"&$A$29&"Table5"),B93+1,12)) -> 0 | ES95: =IF(OR(NOT(ISNUMBER(K95)),K95=0),0,INDEX(INDIRECT("_"&$A$29&"Table5"),B93+1,14)) -> 0 | ET95: =INDEX(INDIRECT("_"&$A$29&"Table5"),B93+1,5) ->  | EU95: =IF(OR(NOT(ISNUMBER(K95)),K95=0),0,INDEX(INDIRECT("_"&$A$29&"Table5"),B93+1,7)) -> 0 | EV95: =IF(OR(NOT(ISNUMBER(K95)),K95=0),0,INDEX(INDIRECT("_"&$A$29&"Table5"),B93+1,9)) -> 0 | EW95: =IF(ISNUMBER($K95),INDEX(INDIRECT("_"&$A$29&"Table5"),B93+1,15)+INDEX(INDIRECT("_"&$A$29&"Table5"),B93+1,19)+INDEX(INDIRECT("_"&$A$29&"Table5"),B93+1,22),0) -> 0 | EX95: =IF(ISNUMBER($K94),INDEX(INDIRECT("_"&$A$29&"Table5"),B93+1,16)+INDEX(INDIRECT("_"&$A$29&"Table5"),B93+1,20)+INDEX(INDIRECT("_"&$A$29&"Table5"),B93+1,23),0) -> 0 | EZ95: TRUE
D96: Cover 2 Placement | J96: =INDEX(INDIRECT("_"&$A$29&"Table6"),B93+1,25) -> 0 | K96: =IF(OR(J96="",K93="",ISTEXT(K93),J96=0),"",IF(OR(ISBLANK(M96),ISBLANK(N96)),"Enter Dates",IF(K93="Date Range","",IF(OR(AND(CostType=ARO,L93>ScheduleYear),AND(CostType=ARO,N96<=ScheduleYear)),"Date Range",IF(OR(AND(CostType=Bond,O96>ScheduleYear),AND(CostType=LOM,LOMComplete)),J96,J96-Q96))))) ->  | M96: 14 | N96: 15 | Q96: 0 | R96: 0 | AG96: 0.5 | AH96: 0.5 | EA96: 1 | EB96: =IF(OR(J96="",EB93="",ISTEXT(EB93)),0,IF(OR(ISBLANK(M96),ISBLANK(N96)),0,IF(OR(AND(CostType=ARO,L93>ScheduleYear),AND(OR(CostType=ARO,AND(CostType=LOM,LOMComplete=TRUE)),N96<=ScheduleYear)),0,J96))) -> 0 | EC96: =IF(OR(J96="",EC93="",ISTEXT(EC93)),0,IF(OR(ISBLANK(M96),ISBLANK(N96)),0,IF(EC93="Date Range",0,IF(OR(AND(CostType=ARO,L93>ScheduleYear),N96<=ScheduleYear),0,J96)))) ->  | EM96: Cover | EN96: Cover | EO96: =IF(ISNUMBER(K96),INDEX(INDIRECT("_"&$A$29&"Table6"),B93+1,4),0) -> 0 | EP96: =IF(Metric,"m3","cy") -> cy | EQ96: =INDEX(INDIRECT("_"&$A$29&"Table6"),B93+1,10) ->  | ER96: =IF(OR(NOT(ISNUMBER(K96)),K96=0),0,INDEX(INDIRECT("_"&$A$29&"Table6"),B93+1,12)) -> 0 | ES96: =IF(OR(NOT(ISNUMBER(K96)),K96=0),0,INDEX(INDIRECT("_"&$A$29&"Table6"),B93+1,14)) -> 0 | ET96: =INDEX(INDIRECT("_"&$A$29&"Table6"),B93+1,5) ->  | EU96: =IF(OR(NOT(ISNUMBER(K96)),K96=0),0,INDEX(INDIRECT("_"&$A$29&"Table6"),B93+1,7)) -> 0 | EV96: =IF(OR(NOT(ISNUMBER(K96)),K96=0),0,INDEX(INDIRECT("_"&$A$29&"Table6"),B93+1,9)) -> 0 | EZ96: TRUE
D97: Growth Media Placement | J97: =INDEX(INDIRECT("_"&$A$29&"Table7"),B93+1,11) -> 244580 | K97: =IF(OR(J97="",K93="",ISTEXT(K93),J97=0),"",IF(OR(ISBLANK(M97),ISBLANK(N97)),"Enter Dates",IF(K93="Date Range","",IF(OR(AND(CostType=ARO,L93>ScheduleYear),AND(CostType=ARO,N97<=ScheduleYear)),"Date Range",IF(OR(AND(CostType=Bond,O97>ScheduleYear),AND(CostType=LOM,LOMComplete)),J97,J97-Q97))))) -> 244580 | M97: 14 | N97: 15 | P97: 1 | Q97: 0 | R97: 0 | AG97: 0.5 | AH97: 0.5 | EA97: 1 | EB97: =IF(OR(J97="",EB93="",ISTEXT(EB93)),0,IF(OR(ISBLANK(M97),ISBLANK(N97)),0,IF(OR(AND(CostType=ARO,L93>ScheduleYear),AND(OR(CostType=ARO,AND(CostType=LOM,LOMComplete=TRUE)),N97<=ScheduleYear)),0,J97))) -> 244580 | EC97: =IF(OR(J97="",EC93="",ISTEXT(EC93)),0,IF(OR(ISBLANK(M97),ISBLANK(N97)),0,IF(EC93="Date Range",0,IF(OR(AND(CostType=ARO,L93>ScheduleYear),N97<=ScheduleYear),0,J97)))) ->  | EM97: GM | EN97: GM | EO97: =IF(ISNUMBER(K97),INDEX(INDIRECT("_"&$A$29&"Table7"),B93+1,3),0) -> 60548 | EP97: =IF(Metric,"m3","cy") -> cy | EQ97: =INDEX(INDIRECT("_"&$A$29&"Table7"),B93+1,4) -> 777G/992K/D9T | ER97: =IF(OR(NOT(ISNUMBER(K97)),K97=0),0,INDEX(INDIRECT("_"&$A$29&"Table7"),B93+1,6)) -> 6 | ES97: =IF(OR(NOT(ISNUMBER(K97)),K97=0),0,INDEX(INDIRECT("_"&$A$29&"Table7"),B93+1,8)) -> 60 | EZ97: TRUE
D98: Ripping/Scarifying | J98: =INDEX(INDIRECT("_"&$A$29&"Table8"),B93+1,13) -> 2016 | K98: =IF(OR(J98="",K93="",ISTEXT(K93),J98=0),"",IF(OR(ISBLANK(M98),ISBLANK(N98)),"Enter Dates",IF(K93="Date Range","",IF(OR(AND(CostType=ARO,L93>ScheduleYear),AND(CostType=ARO,N98<=ScheduleYear)),"Date Range",IF(OR(AND(CostType=Bond,O98>ScheduleYear),AND(CostType=LOM,LOMComplete)),J98,J98-Q98))))) -> 2016 | M98: 14 | N98: 15 | P98: 1 | Q98: 0 | R98: 0 | AG98: 0.5 | AH98: 0.5 | EA98: 1 | EB98: =IF(OR(J98="",EB93="",ISTEXT(EB93)),0,IF(OR(ISBLANK(M98),ISBLANK(N98)),0,IF(OR(AND(CostType=ARO,L93>ScheduleYear),AND(OR(CostType=ARO,AND(CostType=LOM,LOMComplete=TRUE)),N98<=ScheduleYear)),0,J98))) -> 2016 | EC98: =IF(OR(J98="",EC93="",ISTEXT(EC93)),0,IF(OR(ISBLANK(M98),ISBLANK(N98)), 0,IF(EC93="Date Range",0,IF(OR(AND(CostType=ARO,L93>ScheduleYear),N98<=ScheduleYear),0,J98)))) ->  | EM98: Rip | EN98: Rip | EO98: =IF(ISNUMBER(K98),INDEX(INDIRECT("_"&$A$29&"Table8"),B93+1,5),0) -> 12.51 | EP98: =IF(Metric,"ha","acres") -> acres | EQ98: =INDEX(INDIRECT("_"&$A$29&"Table8"),B93+1,8) -> 14M | ES98: =IF(OR(NOT(ISNUMBER(K98)),K98=0),0,INDEX(INDIRECT("_"&$A$29&"Table8"),B93+1,9)+INDEX(INDIRECT("_"&$A$29&"Table8"),B93+1,10)) -> 10 | EZ98: TRUE
D99: Revegetation | J99: =INDEX(INDIRECT("_"&$A$29&"Table8"),B93+1,17) -> 13951 | K99: =IF(OR(J99="",K93="",ISTEXT(K93),J99=0),"",IF(OR(ISBLANK(M99),ISBLANK(N99)),"Enter Dates",IF(K93="Date Range","",IF(OR(AND(CostType=ARO,L93>ScheduleYear),AND(CostType=ARO,N99<=ScheduleYear)),"Date Range",IF(OR(AND(CostType=Bond,O99>ScheduleYear),AND(CostType=LOM,LOMComplete)),J99,J99-Q99))))) -> 13951 | M99: 14 | N99: 15 | P99: 1 | Q99: 0 | R99: 0 | AG99: 0.5 | AH99: 0.5 | EA99: 1 | EB99: =IF(OR(J99="",EB93="",ISTEXT(EB93)),0,IF(OR(ISBLANK(M99),ISBLANK(N99)),0,IF(OR(AND(CostType=ARO,L93>ScheduleYear),AND(OR(CostType=ARO,AND(CostType=LOM,LOMComplete=TRUE)),N99<=ScheduleYear)),0,J99))) -> 13951 | EC99: =IF(OR(J99="",EC93="",ISTEXT(EC93)),0,IF(OR(ISBLANK(M99),ISBLANK(N99)), 0,IF(EC93="Date Range",0,IF(OR(AND(CostType=ARO,L93>ScheduleYear),N99<=ScheduleYear),0,J99)))) ->  | EM99: Reveg | EN99: Reveg | EO99: =IF(ISNUMBER(K99),INDEX(INDIRECT("_"&$A$29&"Table8"),B93+1,5),0) -> 12.51 | EP99: =IF(Metric,"ha","acres") -> acres | EZ99: TRUE
B100: =(ROW(B100) - ROW($A$29)-1)/INDEX(SheetRangeIndex,MATCH($A$29,TableNamesSorted,0),7) -> 10 | C100: =INDEX(INDIRECT("_"&$A$29&"Table1"),B100+1,9) -> FA | D100: =INDEX(INDIRECT("_"&$A$29&"Table1"),B100+1,2) -> WRSP2-MB2 | E100: =IF(ISBLANK(INDEX(INDIRECT("_"&$A$29&"Table1"),B100+1,3)),"",INDEX(INDIRECT("_"&$A$29&"Table1"),B100+1,3)) -> WRSP2 | F100: =IF(ISERROR(EL100),"Facility Type",IF(ISBLANK(INDEX(INDIRECT("_"&$A$29&"Table1"),B100+1,5)),"",INDEX(INDIRECT("_"&$A$29&"Table1"),B100+1,5))) -> WRD | G100: =IF(ISBLANK(INDEX(INDIRECT("_"&$A$29&"Table1"),B100+1,6)),"",INDEX(INDIRECT("_"&$A$29&"Table1"),B100+1,6)) -> Active Closure | H100: =IF(ISBLANK(INDEX(INDIRECT("_"&$A$29&"Table1"),B100+1,7)),"",INDEX(INDIRECT("_"&$A$29&"Table1"),B100+1,7)) ->  | I100: =IF(ISBLANK(INDEX(INDIRECT("_"&$A$29&"Table1"),B100+1,8)),"",INDEX(INDIRECT("_"&$A$29&"Table1"),B100+1,8)) ->  | J100: =SUM(J101:J106) -> 425397 | K100: =IF(ISERR(ED100),"Cost Type",IF(A100="X","Override",IF(AND(CostType=ARO,L100>ScheduleYear),"Date Range",IF(AND(ISTEXT(LocationFilter),ISERROR(EI100)),"Location",IF(AND(ISTEXT(PropertyFilter),ISERROR(EJ100)),"Property",IF(AND(ISTEXT(FacilityTypeFilter),ISERROR(EG100)),"Facility Type",IF(AND(NOT(ISBLANK(IDCodeFilter)),ISERROR(EF100)),"ID Code",IF(AND(ISTEXT(PhaseFilter),ISERROR(EH100)),"Phase",IF(AND(CostType=LOM,LOMComplete),J100,SUM(T100:DO100)))))))))) -> 425397 | L100: =INDEX(INDIRECT("_"&$A$29&"Table1"),B100+1,4) -> 0 | Q100: =SUM(Q101:Q106) -> 0 | T100: =IF(ISTEXT($EB100),0,IF(AND(CostType=LOM,LOMComplete,T$27<=ScheduleYear),SUMPRODUCT(T101:T106,$J101:$J106),IF(CostType=Bond,SUMPRODUCT($EB101:$EB106,T101:T106,$EA101:$EA106),IF(T$27<=ScheduleYear,0,SUMPRODUCT(T101:T106,$EB101:$EB106))))) -> 0 | U100: 0 | V100: 0 | W100: 0 | X100: 0 | Y100: 0 | Z100: 0 | AA100: 0 | AB100: 0 | AC100: 0 | AD100: 0 | AE100: 0 | AF100: 29797 | AG100: 197800 | AH100: 197800 | AI100: 0 | AJ100: 0 | AK100: 0 | AL100: 0 | AM100: 0 | AN100: 0 | AO100: 0 | AP100: 0 | AQ100: 0 | AR100: 0 | AS100: 0 | AT100: 0 | AU100: 0 | AV100: 0 | AW100: 0 | AX100: 0 | AY100: 0 | AZ100: =IF(ISTEXT($EB100),0,IF(AND(CostType=LOM,LOMComplete,AZ$27<=ScheduleYear),SUMPRODUCT(AZ101:AZ106,$J101:$J106),IF(CostType=Bond,SUMPRODUCT($EB101:$EB106,AZ101:AZ106,$EA101:$EA106),IF(AZ$27<=ScheduleYear,0,SUMPRODUCT(AZ101:AZ106,$EB101:$EB106))))) -> 0 | BA100: 0 | BB100: 0 | BC100: 0 | BD100: 0 | BE100: 0 | BF100: 0 | BG100: 0 | BH100: 0 | BI100: 0 | BJ100: 0 | BK100: 0 | BL100: 0 | BM100: 0 | BN100: 0 | BO100: 0 | BP100: 0 | BQ100: 0 | BR100: 0 | BS100: 0 | BT100: 0 | BU100: 0 | BV100: 0 | BW100: 0 | BX100: 0 | BY100: 0 | BZ100: 0 | CA100: 0 | CB100: 0 | CC100: 0 | CD100: 0 | CE100: 0 | CF100: =IF(ISTEXT($EB100),0,IF(AND(CostType=LOM,LOMComplete,CF$27<=ScheduleYear),SUMPRODUCT(CF101:CF106,$J101:$J106),IF(CostType=Bond,SUMPRODUCT($EB101:$EB106,CF101:CF106,$EA101:$EA106),IF(CF$27<=ScheduleYear,0,SUMPRODUCT(CF101:CF106,$EB101:$EB106))))) -> 0 | CG100: 0 | CH100: 0 | CI100: 0 | CJ100: 0 | CK100: 0 | CL100: 0 | CM100: 0 | CN100: 0 | CO100: 0 | CP100: 0 | CQ100: 0 | CR100: 0 | CS100: 0 | CT100: 0 | CU100: 0 | CV100: 0 | CW100: 0 | CX100: 0 | CY100: 0 | CZ100: 0 | DA100: 0 | DB100: 0 | DC100: 0 | DD100: 0 | DE100: 0 | DF100: 0 | DG100: 0 | DH100: 0 | DI100: 0 | DJ100: 0 | DK100: 0 | DL100: =IF(ISTEXT($EB100),0,IF(AND(CostType=LOM,LOMComplete,DL$27<=ScheduleYear),SUMPRODUCT(DL101:DL106,$J101:$J106),IF(CostType=Bond,SUMPRODUCT($EB101:$EB106,DL101:DL106,$EA101:$EA106),IF(DL$27<=ScheduleYear,0,SUMPRODUCT(DL101:DL106,$EB101:$EB106))))) -> 0 | DM100: 0 | DN100: 0 | DO100: 0 | DP100: =IF(ISNUMBER(K100),SUM(T100:DO100)-K100,K100) -> 0 | EB100: =IF(ISERR(ED100),"Cost Type",IF(A100="X","Override",IF(AND(CostType=ARO,L100>ScheduleYear),0,IF(AND(ISTEXT(LocationFilter),ISERROR(EI100)),"Location",IF(AND(ISTEXT(PropertyFilter),ISERROR(EJ100)),"Property",IF(AND(ISTEXT(FacilityTypeFilter),ISERROR(EG100)),"Facility Type",IF(AND(ISTEXT(IDCodeFilter),ISERROR(EF100)),"ID Code",IF(AND(ISTEXT(PhaseFilter),ISERROR(EH100)),"Phase",J100)))))))) -> 425397 | EC100: =IF(EE100="","Cost Type",IF(A100="X","Override",IF(AND(OtherCostType=ARO,L100>ScheduleYear),0,IF(AND(ISTEXT(LocationFilter),EI100=""),"Location",IF(AND(ISTEXT(PropertyFilter),EJ100=""),"Property",IF(AND(ISTEXT(FacilityTypeFilter),EG100=""),"Facility Type",IF(AND(ISTEXT(IDCodeFilter),EF100=""),"ID Code",IF(AND(ISTEXT(PhaseFilter),EH100=""),"Phase",J100)))))))) ->  | ED100: =SEARCH(CostType,C100) -> 1 | EE100: =SEARCH(OtherCostType,C100) ->  | EF100: =IF(AND(IDCodeFilterType="CONTAINS",NOT(ISERROR(SEARCH(IDCodeFilter,E100)))),1,IF(AND(IDCodeFilterType="NOT",ISERROR(SEARCH(IDCodeFilter,E100))),1,IF(AND(OR(IDCodeFilterType="EXACT",ISBLANK(IDCodeFilterType)),NOT(ISERROR(MATCH(IDCodeFilter,E100,0)))),1,$EK100))) ->  | EG100: =IF(AND(FacilityFilterType="CONTAINS",NOT(ISERROR(SEARCH(FacilityTypeFilter,F100)))),1,IF(AND(FacilityFilterType="NOT",ISERROR(SEARCH(FacilityTypeFilter,F100))),1,IF(AND(OR(FacilityFilterType="EXACT",ISBLANK(FacilityFilterType)),NOT(ISERROR(MATCH(FacilityTypeFilter,F100,0)))),1,$EK100))) ->  | EH100: =IF(AND(PhaseFilterType="CONTAINS",NOT(ISERROR(SEARCH(PhaseFilter,G100)))),1,IF(AND(PhaseFilterType="NOT",ISERROR(SEARCH(PhaseFilter,G100))),1,IF(AND(OR(PhaseFilterType="EXACT",ISBLANK(PhaseFilterType)),NOT(ISERROR(MATCH(PhaseFilter,G100,0)))),1,$EK100))) ->  | EI100: =IF(AND(LocationFilterType="CONTAINS",NOT(ISERROR(SEARCH(LocationFilter,H100)))),1,IF(AND(LocationFilterType="NOT",ISERROR(SEARCH(LocationFilter,H100))),1,IF(AND(OR(LocationFilterType="EXACT",ISBLANK(LocationFilterType)),NOT(ISERROR(MATCH(LocationFilter,H100,0)))),1,$EK100))) ->  | EJ100: =IF(AND(PropertyFilterType="CONTAINS",NOT(ISERROR(SEARCH(PropertyFilter,I100)))),1,IF(AND(PropertyFilterType="NOT",ISERROR(SEARCH(PropertyFilter,I100))),1,IF(AND(OR(PropertyFilterType="EXACT",ISBLANK(PropertyFilterType)),NOT(ISERROR(MATCH(PropertyFilter,I100,0)))),1,$EK100))) ->  | EK100: =MATCH("NOT",$EK$27,0) ->  | EL100: =IF(ISBLANK(INDEX(INDIRECT("_"&$A$29&"Table1"),B100+1,2)),"",MATCH(INDEX(INDIRECT("_"&$A$29&"Table1"),B100+1,5),Accounts,0)) -> 2 | EM100: Surf Area | EN100: Surf Area | EO100: =IF(ISNUMBER(K106),INDEX(INDIRECT("_"&$A$29&"Table8"),B100+1,5),"") -> 19.14 | EP100: =IF(Metric,"ha","acres") -> acres | EZ100: FALSE | FA100: 1
D101: Regrading | J101: =IF(INDEX(INDIRECT("_"&$A$29&"Table4"),B100+1,15)=0,0,INDEX(INDIRECT("_"&$A$29&"Table4"),B100+1,15)) -> 29797 | K101: =IF(OR(J101="",K100="",ISTEXT(K100),J101=0),"",IF(OR(ISBLANK(M101),ISBLANK(N101)),"Enter Dates",IF(K100="Date Range","",IF(OR(AND(CostType=ARO,L100>ScheduleYear),AND(CostType=ARO,N101<=ScheduleYear)),"Date Range",IF(OR(AND(CostType=Bond,O101>ScheduleYear),AND(CostType=LOM,LOMComplete)),J101,J101-Q101))))) -> 29797 | M101: 13 | N101: 13 | P101: =IF(K101="","",SUM(T101:DO101)) -> 1 | Q101: =IF(OR(AND(CostType=ARO,N101<=ScheduleYear),AND(CostType=LOM,LOMComplete)),J101*R101,R101*EB101) -> 0 | R101: =IF(CostType=Bond,SUMIFS(T101:DP101,T$27:DP$27,"<="&O101,T$27:DP$27,"<="&ScheduleYear),SUMIF(T$27:DP$27,"<="&ScheduleYear,T101:DP101)) -> 0 | AF101: 1 | EA101: 1 | EB101: =IF(OR(J101="",EB100="",ISTEXT(EB100)),0,IF(OR(ISBLANK(M101),ISBLANK(N101)),0,IF(OR(AND(CostType=ARO,L100>ScheduleYear),AND(OR(CostType=ARO,AND(CostType=LOM,LOMComplete=TRUE)),N101<=ScheduleYear)),0,J101))) -> 29797 | EC101: =IF(OR(J101="",EC100="",ISTEXT(EC100)),0,IF(OR(ISBLANK(M101),ISBLANK(N101)),0,IF(EC100="Date Range",0,IF(OR(AND(OtherCostType=ARO,L100>ScheduleYear),N101<=ScheduleYear),0,J101)))) ->  | EM101: Regrade | EN101: Regrade | EO101: =IF(ISNUMBER(K101),IF(INDEX(INDIRECT("_"&$A$29&"Table4"),B100+1,3)=0,0,INDEX(INDIRECT("_"&$A$29&"Table4"),B100+1,3)),0) -> 92904 | EP101: =IF(Metric,"m3","cy") -> cy | EQ101: =INDEX(INDIRECT("_"&$A$29&"Table4"),B100+1,5) -> D9T | ES101: =IF(OR(NOT(ISNUMBER(K101)),K101=0),0,INDEX(INDIRECT("_"&$A$29&"Table4"),B100+1,12)) -> 126 | EW101: =IF(ISNUMBER($K101),INDEX(INDIRECT("_"&$A$29&"Table4"),B100+1,13),0) -> 3271 | EX101: =IF(ISNUMBER($K101),INDEX(INDIRECT("_"&$A$29&"Table4"),B100+1,14),0) -> 26526 | EZ101: TRUE
D102: Cover 1 Placement | J102: =INDEX(INDIRECT("_"&$A$29&"Table5"),B100+1,25) -> 0 | K102: =IF(OR(J102="",K100="",ISTEXT(K100),J102=0),"",IF(OR(ISBLANK(M102),ISBLANK(N102)),"Enter Dates",IF(K100="Date Range","",IF(OR(AND(CostType=ARO,L100>ScheduleYear),AND(CostType=ARO,N102<=ScheduleYear)),"Date Range",IF(OR(AND(CostType=Bond,O102>ScheduleYear),AND(CostType=LOM,LOMComplete)),J102,J102-Q102))))) ->  | M102: 14 | N102: 15 | Q102: 0 | R102: 0 | AG102: 0.5 | AH102: 0.5 | EA102: =IF(OR(ISBLANK($O102),$O102>ScheduleYear),1,0) -> 1 | EB102: =IF(OR(J102="",EB100="",ISTEXT(EB100)),0,IF(OR(ISBLANK(M102),ISBLANK(N102)),0,IF(OR(AND(CostType=ARO,L100>ScheduleYear),AND(OR(CostType=ARO,AND(CostType=LOM,LOMComplete=TRUE)),N102<=ScheduleYear)),0,J102))) -> 0 | EC102: =IF(OR(J102="",EC100="",ISTEXT(EC100)),0,IF(OR(ISBLANK(M102),ISBLANK(N102)),0,IF(EC100="Date Range",0,IF(OR(AND(CostType=ARO,L100>ScheduleYear),N102<=ScheduleYear),0,J102)))) ->  | EM102: Cover | EN102: Cover | EO102: =IF(ISNUMBER(K102),INDEX(INDIRECT("_"&$A$29&"Table5"),B100+1,4),0) -> 0 | EP102: =IF(Metric,"m3","cy") -> cy | EQ102: =INDEX(INDIRECT("_"&$A$29&"Table5"),B100+1,10) ->  | ER102: =IF(OR(NOT(ISNUMBER(K102)),K102=0),0,INDEX(INDIRECT("_"&$A$29&"Table5"),B100+1,12)) -> 0 | ES102: =IF(OR(NOT(ISNUMBER(K102)),K102=0),0,INDEX(INDIRECT("_"&$A$29&"Table5"),B100+1,14)) -> 0 | ET102: =INDEX(INDIRECT("_"&$A$29&"Table5"),B100+1,5) ->  | EU102: =IF(OR(NOT(ISNUMBER(K102)),K102=0),0,INDEX(INDIRECT("_"&$A$29&"Table5"),B100+1,7)) -> 0 | EV102: =IF(OR(NOT(ISNUMBER(K102)),K102=0),0,INDEX(INDIRECT("_"&$A$29&"Table5"),B100+1,9)) -> 0 | EW102: =IF(ISNUMBER($K102),INDEX(INDIRECT("_"&$A$29&"Table5"),B100+1,15)+INDEX(INDIRECT("_"&$A$29&"Table5"),B100+1,19)+INDEX(INDIRECT("_"&$A$29&"Table5"),B100+1,22),0) -> 0 | EX102: =IF(ISNUMBER($K101),INDEX(INDIRECT("_"&$A$29&"Table5"),B100+1,16)+INDEX(INDIRECT("_"&$A$29&"Table5"),B100+1,20)+INDEX(INDIRECT("_"&$A$29&"Table5"),B100+1,23),0) -> 0 | EZ102: TRUE
D103: Cover 2 Placement | J103: =INDEX(INDIRECT("_"&$A$29&"Table6"),B100+1,25) -> 0 | K103: =IF(OR(J103="",K100="",ISTEXT(K100),J103=0),"",IF(OR(ISBLANK(M103),ISBLANK(N103)),"Enter Dates",IF(K100="Date Range","",IF(OR(AND(CostType=ARO,L100>ScheduleYear),AND(CostType=ARO,N103<=ScheduleYear)),"Date Range",IF(OR(AND(CostType=Bond,O103>ScheduleYear),AND(CostType=LOM,LOMComplete)),J103,J103-Q103))))) ->  | M103: 14 | N103: 15 | Q103: 0 | R103: 0 | AG103: 0.5 | AH103: 0.5 | EA103: 1 | EB103: =IF(OR(J103="",EB100="",ISTEXT(EB100)),0,IF(OR(ISBLANK(M103),ISBLANK(N103)),0,IF(OR(AND(CostType=ARO,L100>ScheduleYear),AND(OR(CostType=ARO,AND(CostType=LOM,LOMComplete=TRUE)),N103<=ScheduleYear)),0,J103))) -> 0 | EC103: =IF(OR(J103="",EC100="",ISTEXT(EC100)),0,IF(OR(ISBLANK(M103),ISBLANK(N103)),0,IF(EC100="Date Range",0,IF(OR(AND(CostType=ARO,L100>ScheduleYear),N103<=ScheduleYear),0,J103)))) ->  | EM103: Cover | EN103: Cover | EO103: =IF(ISNUMBER(K103),INDEX(INDIRECT("_"&$A$29&"Table6"),B100+1,4),0) -> 0 | EP103: =IF(Metric,"m3","cy") -> cy | EQ103: =INDEX(INDIRECT("_"&$A$29&"Table6"),B100+1,10) ->  | ER103: =IF(OR(NOT(ISNUMBER(K103)),K103=0),0,INDEX(INDIRECT("_"&$A$29&"Table6"),B100+1,12)) -> 0 | ES103: =IF(OR(NOT(ISNUMBER(K103)),K103=0),0,INDEX(INDIRECT("_"&$A$29&"Table6"),B100+1,14)) -> 0 | ET103: =INDEX(INDIRECT("_"&$A$29&"Table6"),B100+1,5) ->  | EU103: =IF(OR(NOT(ISNUMBER(K103)),K103=0),0,INDEX(INDIRECT("_"&$A$29&"Table6"),B100+1,7)) -> 0 | EV103: =IF(OR(NOT(ISNUMBER(K103)),K103=0),0,INDEX(INDIRECT("_"&$A$29&"Table6"),B100+1,9)) -> 0 | EZ103: TRUE
D104: Growth Media Placement | J104: =INDEX(INDIRECT("_"&$A$29&"Table7"),B100+1,11) -> 370947 | K104: =IF(OR(J104="",K100="",ISTEXT(K100),J104=0),"",IF(OR(ISBLANK(M104),ISBLANK(N104)),"Enter Dates",IF(K100="Date Range","",IF(OR(AND(CostType=ARO,L100>ScheduleYear),AND(CostType=ARO,N104<=ScheduleYear)),"Date Range",IF(OR(AND(CostType=Bond,O104>ScheduleYear),AND(CostType=LOM,LOMComplete)),J104,J104-Q104))))) -> 370947 | M104: 14 | N104: 15 | P104: 1 | Q104: 0 | R104: 0 | AG104: 0.5 | AH104: 0.5 | EA104: 1 | EB104: =IF(OR(J104="",EB100="",ISTEXT(EB100)),0,IF(OR(ISBLANK(M104),ISBLANK(N104)),0,IF(OR(AND(CostType=ARO,L100>ScheduleYear),AND(OR(CostType=ARO,AND(CostType=LOM,LOMComplete=TRUE)),N104<=ScheduleYear)),0,J104))) -> 370947 | EC104: =IF(OR(J104="",EC100="",ISTEXT(EC100)),0,IF(OR(ISBLANK(M104),ISBLANK(N104)),0,IF(EC100="Date Range",0,IF(OR(AND(CostType=ARO,L100>ScheduleYear),N104<=ScheduleYear),0,J104)))) ->  | EM104: GM | EN104: GM | EO104: =IF(ISNUMBER(K104),INDEX(INDIRECT("_"&$A$29&"Table7"),B100+1,3),0) -> 92638 | EP104: =IF(Metric,"m3","cy") -> cy | EQ104: =INDEX(INDIRECT("_"&$A$29&"Table7"),B100+1,4) -> 777G/992K/D9T | ER104: =IF(OR(NOT(ISNUMBER(K104)),K104=0),0,INDEX(INDIRECT("_"&$A$29&"Table7"),B100+1,6)) -> 6 | ES104: =IF(OR(NOT(ISNUMBER(K104)),K104=0),0,INDEX(INDIRECT("_"&$A$29&"Table7"),B100+1,8)) -> 91 | EZ104: TRUE
D105: Ripping/Scarifying | J105: =INDEX(INDIRECT("_"&$A$29&"Table8"),B100+1,13) -> 3023 | K105: =IF(OR(J105="",K100="",ISTEXT(K100),J105=0),"",IF(OR(ISBLANK(M105),ISBLANK(N105)),"Enter Dates",IF(K100="Date Range","",IF(OR(AND(CostType=ARO,L100>ScheduleYear),AND(CostType=ARO,N105<=ScheduleYear)),"Date Range",IF(OR(AND(CostType=Bond,O105>ScheduleYear),AND(CostType=LOM,LOMComplete)),J105,J105-Q105))))) -> 3023 | M105: 14 | N105: 15 | P105: 1 | Q105: 0 | R105: 0 | AG105: 0.5 | AH105: 0.5 | EA105: 1 | EB105: =IF(OR(J105="",EB100="",ISTEXT(EB100)),0,IF(OR(ISBLANK(M105),ISBLANK(N105)),0,IF(OR(AND(CostType=ARO,L100>ScheduleYear),AND(OR(CostType=ARO,AND(CostType=LOM,LOMComplete=TRUE)),N105<=ScheduleYear)),0,J105))) -> 3023 | EC105: =IF(OR(J105="",EC100="",ISTEXT(EC100)),0,IF(OR(ISBLANK(M105),ISBLANK(N105)), 0,IF(EC100="Date Range",0,IF(OR(AND(CostType=ARO,L100>ScheduleYear),N105<=ScheduleYear),0,J105)))) ->  | EM105: Rip | EN105: Rip | EO105: =IF(ISNUMBER(K105),INDEX(INDIRECT("_"&$A$29&"Table8"),B100+1,5),0) -> 19.14 | EP105: =IF(Metric,"ha","acres") -> acres | EQ105: =INDEX(INDIRECT("_"&$A$29&"Table8"),B100+1,8) -> 14M | ES105: =IF(OR(NOT(ISNUMBER(K105)),K105=0),0,INDEX(INDIRECT("_"&$A$29&"Table8"),B100+1,9)+INDEX(INDIRECT("_"&$A$29&"Table8"),B100+1,10)) -> 15 | EZ105: TRUE
D106: Revegetation | J106: =INDEX(INDIRECT("_"&$A$29&"Table8"),B100+1,17) -> 21630 | K106: =IF(OR(J106="",K100="",ISTEXT(K100),J106=0),"",IF(OR(ISBLANK(M106),ISBLANK(N106)),"Enter Dates",IF(K100="Date Range","",IF(OR(AND(CostType=ARO,L100>ScheduleYear),AND(CostType=ARO,N106<=ScheduleYear)),"Date Range",IF(OR(AND(CostType=Bond,O106>ScheduleYear),AND(CostType=LOM,LOMComplete)),J106,J106-Q106))))) -> 21630 | M106: 14 | N106: 15 | P106: 1 | Q106: 0 | R106: 0 | AG106: 0.5 | AH106: 0.5 | EA106: 1 | EB106: =IF(OR(J106="",EB100="",ISTEXT(EB100)),0,IF(OR(ISBLANK(M106),ISBLANK(N106)),0,IF(OR(AND(CostType=ARO,L100>ScheduleYear),AND(OR(CostType=ARO,AND(CostType=LOM,LOMComplete=TRUE)),N106<=ScheduleYear)),0,J106))) -> 21630 | EC106: =IF(OR(J106="",EC100="",ISTEXT(EC100)),0,IF(OR(ISBLANK(M106),ISBLANK(N106)), 0,IF(EC100="Date Range",0,IF(OR(AND(CostType=ARO,L100>ScheduleYear),N106<=ScheduleYear),0,J106)))) ->  | EM106: Reveg | EN106: Reveg | EO106: =IF(ISNUMBER(K106),INDEX(INDIRECT("_"&$A$29&"Table8"),B100+1,5),0) -> 19.14 | EP106: =IF(Metric,"ha","acres") -> acres | EZ106: TRUE
B107: =(ROW(B107) - ROW($A$29)-1)/INDEX(SheetRangeIndex,MATCH($A$29,TableNamesSorted,0),7) -> 11 | C107: =INDEX(INDIRECT("_"&$A$29&"Table1"),B107+1,9) -> FA | D107: =INDEX(INDIRECT("_"&$A$29&"Table1"),B107+1,2) -> WRSP2-MB3 | E107: =IF(ISBLANK(INDEX(INDIRECT("_"&$A$29&"Table1"),B107+1,3)),"",INDEX(INDIRECT("_"&$A$29&"Table1"),B107+1,3)) -> WRSP2 | F107: =IF(ISERROR(EL107),"Facility Type",IF(ISBLANK(INDEX(INDIRECT("_"&$A$29&"Table1"),B107+1,5)),"",INDEX(INDIRECT("_"&$A$29&"Table1"),B107+1,5))) -> WRD | G107: =IF(ISBLANK(INDEX(INDIRECT("_"&$A$29&"Table1"),B107+1,6)),"",INDEX(INDIRECT("_"&$A$29&"Table1"),B107+1,6)) -> Active Closure | H107: =IF(ISBLANK(INDEX(INDIRECT("_"&$A$29&"Table1"),B107+1,7)),"",INDEX(INDIRECT("_"&$A$29&"Table1"),B107+1,7)) ->  | I107: =IF(ISBLANK(INDEX(INDIRECT("_"&$A$29&"Table1"),B107+1,8)),"",INDEX(INDIRECT("_"&$A$29&"Table1"),B107+1,8)) ->  | J107: =SUM(J108:J113) -> 396663 | K107: =IF(ISERR(ED107),"Cost Type",IF(A107="X","Override",IF(AND(CostType=ARO,L107>ScheduleYear),"Date Range",IF(AND(ISTEXT(LocationFilter),ISERROR(EI107)),"Location",IF(AND(ISTEXT(PropertyFilter),ISERROR(EJ107)),"Property",IF(AND(ISTEXT(FacilityTypeFilter),ISERROR(EG107)),"Facility Type",IF(AND(NOT(ISBLANK(IDCodeFilter)),ISERROR(EF107)),"ID Code",IF(AND(ISTEXT(PhaseFilter),ISERROR(EH107)),"Phase",IF(AND(CostType=LOM,LOMComplete),J107,SUM(T107:DO107)))))))))) -> 396663 | L107: =INDEX(INDIRECT("_"&$A$29&"Table1"),B107+1,4) -> 0 | Q107: =SUM(Q108:Q113) -> 0 | T107: =IF(ISTEXT($EB107),0,IF(AND(CostType=LOM,LOMComplete,T$27<=ScheduleYear),SUMPRODUCT(T108:T113,$J108:$J113),IF(CostType=Bond,SUMPRODUCT($EB108:$EB113,T108:T113,$EA108:$EA113),IF(T$27<=ScheduleYear,0,SUMPRODUCT(T108:T113,$EB108:$EB113))))) -> 0 | U107: 0 | V107: 0 | W107: 0 | X107: 0 | Y107: 0 | Z107: 0 | AA107: 0 | AB107: 0 | AC107: 0 | AD107: 0 | AE107: 0 | AF107: 26958 | AG107: 184852.5 | AH107: 184852.5 | AI107: 0 | AJ107: 0 | AK107: 0 | AL107: 0 | AM107: 0 | AN107: 0 | AO107: 0 | AP107: 0 | AQ107: 0 | AR107: 0 | AS107: 0 | AT107: 0 | AU107: 0 | AV107: 0 | AW107: 0 | AX107: 0 | AY107: 0 | AZ107: =IF(ISTEXT($EB107),0,IF(AND(CostType=LOM,LOMComplete,AZ$27<=ScheduleYear),SUMPRODUCT(AZ108:AZ113,$J108:$J113),IF(CostType=Bond,SUMPRODUCT($EB108:$EB113,AZ108:AZ113,$EA108:$EA113),IF(AZ$27<=ScheduleYear,0,SUMPRODUCT(AZ108:AZ113,$EB108:$EB113))))) -> 0 | BA107: 0 | BB107: 0 | BC107: 0 | BD107: 0 | BE107: 0 | BF107: 0 | BG107: 0 | BH107: 0 | BI107: 0 | BJ107: 0 | BK107: 0 | BL107: 0 | BM107: 0 | BN107: 0 | BO107: 0 | BP107: 0 | BQ107: 0 | BR107: 0 | BS107: 0 | BT107: 0 | BU107: 0 | BV107: 0 | BW107: 0 | BX107: 0 | BY107: 0 | BZ107: 0 | CA107: 0 | CB107: 0 | CC107: 0 | CD107: 0 | CE107: 0 | CF107: =IF(ISTEXT($EB107),0,IF(AND(CostType=LOM,LOMComplete,CF$27<=ScheduleYear),SUMPRODUCT(CF108:CF113,$J108:$J113),IF(CostType=Bond,SUMPRODUCT($EB108:$EB113,CF108:CF113,$EA108:$EA113),IF(CF$27<=ScheduleYear,0,SUMPRODUCT(CF108:CF113,$EB108:$EB113))))) -> 0 | CG107: 0 | CH107: 0 | CI107: 0 | CJ107: 0 | CK107: 0 | CL107: 0 | CM107: 0 | CN107: 0 | CO107: 0 | CP107: 0 | CQ107: 0 | CR107: 0 | CS107: 0 | CT107: 0 | CU107: 0 | CV107: 0 | CW107: 0 | CX107: 0 | CY107: 0 | CZ107: 0 | DA107: 0 | DB107: 0 | DC107: 0 | DD107: 0 | DE107: 0 | DF107: 0 | DG107: 0 | DH107: 0 | DI107: 0 | DJ107: 0 | DK107: 0 | DL107: =IF(ISTEXT($EB107),0,IF(AND(CostType=LOM,LOMComplete,DL$27<=ScheduleYear),SUMPRODUCT(DL108:DL113,$J108:$J113),IF(CostType=Bond,SUMPRODUCT($EB108:$EB113,DL108:DL113,$EA108:$EA113),IF(DL$27<=ScheduleYear,0,SUMPRODUCT(DL108:DL113,$EB108:$EB113))))) -> 0 | DM107: 0 | DN107: 0 | DO107: 0 | DP107: =IF(ISNUMBER(K107),SUM(T107:DO107)-K107,K107) -> 0 | EB107: =IF(ISERR(ED107),"Cost Type",IF(A107="X","Override",IF(AND(CostType=ARO,L107>ScheduleYear),0,IF(AND(ISTEXT(LocationFilter),ISERROR(EI107)),"Location",IF(AND(ISTEXT(PropertyFilter),ISERROR(EJ107)),"Property",IF(AND(ISTEXT(FacilityTypeFilter),ISERROR(EG107)),"Facility Type",IF(AND(ISTEXT(IDCodeFilter),ISERROR(EF107)),"ID Code",IF(AND(ISTEXT(PhaseFilter),ISERROR(EH107)),"Phase",J107)))))))) -> 396663 | EC107: =IF(EE107="","Cost Type",IF(A107="X","Override",IF(AND(OtherCostType=ARO,L107>ScheduleYear),0,IF(AND(ISTEXT(LocationFilter),EI107=""),"Location",IF(AND(ISTEXT(PropertyFilter),EJ107=""),"Property",IF(AND(ISTEXT(FacilityTypeFilter),EG107=""),"Facility Type",IF(AND(ISTEXT(IDCodeFilter),EF107=""),"ID Code",IF(AND(ISTEXT(PhaseFilter),EH107=""),"Phase",J107)))))))) ->  | ED107: =SEARCH(CostType,C107) -> 1 | EE107: =SEARCH(OtherCostType,C107) ->  | EF107: =IF(AND(IDCodeFilterType="CONTAINS",NOT(ISERROR(SEARCH(IDCodeFilter,E107)))),1,IF(AND(IDCodeFilterType="NOT",ISERROR(SEARCH(IDCodeFilter,E107))),1,IF(AND(OR(IDCodeFilterType="EXACT",ISBLANK(IDCodeFilterType)),NOT(ISERROR(MATCH(IDCodeFilter,E107,0)))),1,$EK107))) ->  | EG107: =IF(AND(FacilityFilterType="CONTAINS",NOT(ISERROR(SEARCH(FacilityTypeFilter,F107)))),1,IF(AND(FacilityFilterType="NOT",ISERROR(SEARCH(FacilityTypeFilter,F107))),1,IF(AND(OR(FacilityFilterType="EXACT",ISBLANK(FacilityFilterType)),NOT(ISERROR(MATCH(FacilityTypeFilter,F107,0)))),1,$EK107))) ->  | EH107: =IF(AND(PhaseFilterType="CONTAINS",NOT(ISERROR(SEARCH(PhaseFilter,G107)))),1,IF(AND(PhaseFilterType="NOT",ISERROR(SEARCH(PhaseFilter,G107))),1,IF(AND(OR(PhaseFilterType="EXACT",ISBLANK(PhaseFilterType)),NOT(ISERROR(MATCH(PhaseFilter,G107,0)))),1,$EK107))) ->  | EI107: =IF(AND(LocationFilterType="CONTAINS",NOT(ISERROR(SEARCH(LocationFilter,H107)))),1,IF(AND(LocationFilterType="NOT",ISERROR(SEARCH(LocationFilter,H107))),1,IF(AND(OR(LocationFilterType="EXACT",ISBLANK(LocationFilterType)),NOT(ISERROR(MATCH(LocationFilter,H107,0)))),1,$EK107))) ->  | EJ107: =IF(AND(PropertyFilterType="CONTAINS",NOT(ISERROR(SEARCH(PropertyFilter,I107)))),1,IF(AND(PropertyFilterType="NOT",ISERROR(SEARCH(PropertyFilter,I107))),1,IF(AND(OR(PropertyFilterType="EXACT",ISBLANK(PropertyFilterType)),NOT(ISERROR(MATCH(PropertyFilter,I107,0)))),1,$EK107))) ->  | EK107: =MATCH("NOT",$EK$27,0) ->  | EL107: =IF(ISBLANK(INDEX(INDIRECT("_"&$A$29&"Table1"),B107+1,2)),"",MATCH(INDEX(INDIRECT("_"&$A$29&"Table1"),B107+1,5),Accounts,0)) -> 2 | EM107: Surf Area | EN107: Surf Area | EO107: =IF(ISNUMBER(K113),INDEX(INDIRECT("_"&$A$29&"Table8"),B107+1,5),"") -> 18.02 | EP107: =IF(Metric,"ha","acres") -> acres | EZ107: FALSE | FA107: 1
D108: Regrading | J108: =IF(INDEX(INDIRECT("_"&$A$29&"Table4"),B107+1,15)=0,0,INDEX(INDIRECT("_"&$A$29&"Table4"),B107+1,15)) -> 26958 | K108: =IF(OR(J108="",K107="",ISTEXT(K107),J108=0),"",IF(OR(ISBLANK(M108),ISBLANK(N108)),"Enter Dates",IF(K107="Date Range","",IF(OR(AND(CostType=ARO,L107>ScheduleYear),AND(CostType=ARO,N108<=ScheduleYear)),"Date Range",IF(OR(AND(CostType=Bond,O108>ScheduleYear),AND(CostType=LOM,LOMComplete)),J108,J108-Q108))))) -> 26958 | M108: 13 | N108: 13 | P108: =IF(K108="","",SUM(T108:DO108)) -> 1 | Q108: =IF(OR(AND(CostType=ARO,N108<=ScheduleYear),AND(CostType=LOM,LOMComplete)),J108*R108,R108*EB108) -> 0 | R108: =IF(CostType=Bond,SUMIFS(T108:DP108,T$27:DP$27,"<="&O108,T$27:DP$27,"<="&ScheduleYear),SUMIF(T$27:DP$27,"<="&ScheduleYear,T108:DP108)) -> 0 | AF108: 1 | EA108: 1 | EB108: =IF(OR(J108="",EB107="",ISTEXT(EB107)),0,IF(OR(ISBLANK(M108),ISBLANK(N108)),0,IF(OR(AND(CostType=ARO,L107>ScheduleYear),AND(OR(CostType=ARO,AND(CostType=LOM,LOMComplete=TRUE)),N108<=ScheduleYear)),0,J108))) -> 26958 | EC108: =IF(OR(J108="",EC107="",ISTEXT(EC107)),0,IF(OR(ISBLANK(M108),ISBLANK(N108)),0,IF(EC107="Date Range",0,IF(OR(AND(OtherCostType=ARO,L107>ScheduleYear),N108<=ScheduleYear),0,J108)))) ->  | EM108: Regrade | EN108: Regrade | EO108: =IF(ISNUMBER(K108),IF(INDEX(INDIRECT("_"&$A$29&"Table4"),B107+1,3)=0,0,INDEX(INDIRECT("_"&$A$29&"Table4"),B107+1,3)),0) -> 84378 | EP108: =IF(Metric,"m3","cy") -> cy | EQ108: =INDEX(INDIRECT("_"&$A$29&"Table4"),B107+1,5) -> D9T | ES108: =IF(OR(NOT(ISNUMBER(K108)),K108=0),0,INDEX(INDIRECT("_"&$A$29&"Table4"),B107+1,12)) -> 114 | EW108: =IF(ISNUMBER($K108),INDEX(INDIRECT("_"&$A$29&"Table4"),B107+1,13),0) -> 2959 | EX108: =IF(ISNUMBER($K108),INDEX(INDIRECT("_"&$A$29&"Table4"),B107+1,14),0) -> 23999 | EZ108: TRUE
D109: Cover 1 Placement | J109: =INDEX(INDIRECT("_"&$A$29&"Table5"),B107+1,25) -> 0 | K109: =IF(OR(J109="",K107="",ISTEXT(K107),J109=0),"",IF(OR(ISBLANK(M109),ISBLANK(N109)),"Enter Dates",IF(K107="Date Range","",IF(OR(AND(CostType=ARO,L107>ScheduleYear),AND(CostType=ARO,N109<=ScheduleYear)),"Date Range",IF(OR(AND(CostType=Bond,O109>ScheduleYear),AND(CostType=LOM,LOMComplete)),J109,J109-Q109))))) ->  | M109: 14 | N109: 15 | Q109: 0 | R109: 0 | AG109: 0.5 | AH109: 0.5 | EA109: 1 | EB109: =IF(OR(J109="",EB107="",ISTEXT(EB107)),0,IF(OR(ISBLANK(M109),ISBLANK(N109)),0,IF(OR(AND(CostType=ARO,L107>ScheduleYear),AND(OR(CostType=ARO,AND(CostType=LOM,LOMComplete=TRUE)),N109<=ScheduleYear)),0,J109))) -> 0 | EC109: =IF(OR(J109="",EC107="",ISTEXT(EC107)),0,IF(OR(ISBLANK(M109),ISBLANK(N109)),0,IF(EC107="Date Range",0,IF(OR(AND(CostType=ARO,L107>ScheduleYear),N109<=ScheduleYear),0,J109)))) ->  | EM109: Cover | EN109: Cover | EO109: =IF(ISNUMBER(K109),INDEX(INDIRECT("_"&$A$29&"Table5"),B107+1,4),0) -> 0 | EP109: =IF(Metric,"m3","cy") -> cy | EQ109: =INDEX(INDIRECT("_"&$A$29&"Table5"),B107+1,10) ->  | ER109: =IF(OR(NOT(ISNUMBER(K109)),K109=0),0,INDEX(INDIRECT("_"&$A$29&"Table5"),B107+1,12)) -> 0 | ES109: =IF(OR(NOT(ISNUMBER(K109)),K109=0),0,INDEX(INDIRECT("_"&$A$29&"Table5"),B107+1,14)) -> 0 | ET109: =INDEX(INDIRECT("_"&$A$29&"Table5"),B107+1,5) ->  | EU109: =IF(OR(NOT(ISNUMBER(K109)),K109=0),0,INDEX(INDIRECT("_"&$A$29&"Table5"),B107+1,7)) -> 0 | EV109: =IF(OR(NOT(ISNUMBER(K109)),K109=0),0,INDEX(INDIRECT("_"&$A$29&"Table5"),B107+1,9)) -> 0 | EW109: =IF(ISNUMBER($K109),INDEX(INDIRECT("_"&$A$29&"Table5"),B107+1,15)+INDEX(INDIRECT("_"&$A$29&"Table5"),B107+1,19)+INDEX(INDIRECT("_"&$A$29&"Table5"),B107+1,22),0) -> 0 | EX109: =IF(ISNUMBER($K108),INDEX(INDIRECT("_"&$A$29&"Table5"),B107+1,16)+INDEX(INDIRECT("_"&$A$29&"Table5"),B107+1,20)+INDEX(INDIRECT("_"&$A$29&"Table5"),B107+1,23),0) -> 0 | EZ109: TRUE
D110: Cover 2 Placement | J110: =INDEX(INDIRECT("_"&$A$29&"Table6"),B107+1,25) -> 0 | K110: =IF(OR(J110="",K107="",ISTEXT(K107),J110=0),"",IF(OR(ISBLANK(M110),ISBLANK(N110)),"Enter Dates",IF(K107="Date Range","",IF(OR(AND(CostType=ARO,L107>ScheduleYear),AND(CostType=ARO,N110<=ScheduleYear)),"Date Range",IF(OR(AND(CostType=Bond,O110>ScheduleYear),AND(CostType=LOM,LOMComplete)),J110,J110-Q110))))) ->  | M110: 14 | N110: 15 | Q110: 0 | R110: 0 | AG110: 0.5 | AH110: 0.5 | EA110: 1 | EB110: =IF(OR(J110="",EB107="",ISTEXT(EB107)),0,IF(OR(ISBLANK(M110),ISBLANK(N110)),0,IF(OR(AND(CostType=ARO,L107>ScheduleYear),AND(OR(CostType=ARO,AND(CostType=LOM,LOMComplete=TRUE)),N110<=ScheduleYear)),0,J110))) -> 0 | EC110: =IF(OR(J110="",EC107="",ISTEXT(EC107)),0,IF(OR(ISBLANK(M110),ISBLANK(N110)),0,IF(EC107="Date Range",0,IF(OR(AND(CostType=ARO,L107>ScheduleYear),N110<=ScheduleYear),0,J110)))) ->  | EM110: Cover | EN110: Cover | EO110: =IF(ISNUMBER(K110),INDEX(INDIRECT("_"&$A$29&"Table6"),B107+1,4),0) -> 0 | EP110: =IF(Metric,"m3","cy") -> cy | EQ110: =INDEX(INDIRECT("_"&$A$29&"Table6"),B107+1,10) ->  | ER110: =IF(OR(NOT(ISNUMBER(K110)),K110=0),0,INDEX(INDIRECT("_"&$A$29&"Table6"),B107+1,12)) -> 0 | ES110: =IF(OR(NOT(ISNUMBER(K110)),K110=0),0,INDEX(INDIRECT("_"&$A$29&"Table6"),B107+1,14)) -> 0 | ET110: =INDEX(INDIRECT("_"&$A$29&"Table6"),B107+1,5) ->  | EU110: =IF(OR(NOT(ISNUMBER(K110)),K110=0),0,INDEX(INDIRECT("_"&$A$29&"Table6"),B107+1,7)) -> 0 | EV110: =IF(OR(NOT(ISNUMBER(K110)),K110=0),0,INDEX(INDIRECT("_"&$A$29&"Table6"),B107+1,9)) -> 0 | EZ110: TRUE
D111: Growth Media Placement | J111: =INDEX(INDIRECT("_"&$A$29&"Table7"),B107+1,11) -> 346489 | K111: =IF(OR(J111="",K107="",ISTEXT(K107),J111=0),"",IF(OR(ISBLANK(M111),ISBLANK(N111)),"Enter Dates",IF(K107="Date Range","",IF(OR(AND(CostType=ARO,L107>ScheduleYear),AND(CostType=ARO,N111<=ScheduleYear)),"Date Range",IF(OR(AND(CostType=Bond,O111>ScheduleYear),AND(CostType=LOM,LOMComplete)),J111,J111-Q111))))) -> 346489 | M111: 14 | N111: 15 | P111: 1 | Q111: 0 | R111: 0 | AG111: 0.5 | AH111: 0.5 | EA111: 1 | EB111: =IF(OR(J111="",EB107="",ISTEXT(EB107)),0,IF(OR(ISBLANK(M111),ISBLANK(N111)),0,IF(OR(AND(CostType=ARO,L107>ScheduleYear),AND(OR(CostType=ARO,AND(CostType=LOM,LOMComplete=TRUE)),N111<=ScheduleYear)),0,J111))) -> 346489 | EC111: =IF(OR(J111="",EC107="",ISTEXT(EC107)),0,IF(OR(ISBLANK(M111),ISBLANK(N111)),0,IF(EC107="Date Range",0,IF(OR(AND(CostType=ARO,L107>ScheduleYear),N111<=ScheduleYear),0,J111)))) ->  | EM111: GM | EN111: GM | EO111: =IF(ISNUMBER(K111),INDEX(INDIRECT("_"&$A$29&"Table7"),B107+1,3),0) -> 87217 | EP111: =IF(Metric,"m3","cy") -> cy | EQ111: =INDEX(INDIRECT("_"&$A$29&"Table7"),B107+1,4) -> 777G/992K/D9T | ER111: =IF(OR(NOT(ISNUMBER(K111)),K111=0),0,INDEX(INDIRECT("_"&$A$29&"Table7"),B107+1,6)) -> 6 | ES111: =IF(OR(NOT(ISNUMBER(K111)),K111=0),0,INDEX(INDIRECT("_"&$A$29&"Table7"),B107+1,8)) -> 85 | EZ111: TRUE
D112: Ripping/Scarifying | J112: =INDEX(INDIRECT("_"&$A$29&"Table8"),B107+1,13) -> 3023 | K112: =IF(OR(J112="",K107="",ISTEXT(K107),J112=0),"",IF(OR(ISBLANK(M112),ISBLANK(N112)),"Enter Dates",IF(K107="Date Range","",IF(OR(AND(CostType=ARO,L107>ScheduleYear),AND(CostType=ARO,N112<=ScheduleYear)),"Date Range",IF(OR(AND(CostType=Bond,O112>ScheduleYear),AND(CostType=LOM,LOMComplete)),J112,J112-Q112))))) -> 3023 | M112: 14 | N112: 15 | P112: 1 | Q112: 0 | R112: 0 | AG112: 0.5 | AH112: 0.5 | EA112: 1 | EB112: =IF(OR(J112="",EB107="",ISTEXT(EB107)),0,IF(OR(ISBLANK(M112),ISBLANK(N112)),0,IF(OR(AND(CostType=ARO,L107>ScheduleYear),AND(OR(CostType=ARO,AND(CostType=LOM,LOMComplete=TRUE)),N112<=ScheduleYear)),0,J112))) -> 3023 | EC112: =IF(OR(J112="",EC107="",ISTEXT(EC107)),0,IF(OR(ISBLANK(M112),ISBLANK(N112)), 0,IF(EC107="Date Range",0,IF(OR(AND(CostType=ARO,L107>ScheduleYear),N112<=ScheduleYear),0,J112)))) ->  | EM112: Rip | EN112: Rip | EO112: =IF(ISNUMBER(K112),INDEX(INDIRECT("_"&$A$29&"Table8"),B107+1,5),0) -> 18.02 | EP112: =IF(Metric,"ha","acres") -> acres | EQ112: =INDEX(INDIRECT("_"&$A$29&"Table8"),B107+1,8) -> 14M | ES112: =IF(OR(NOT(ISNUMBER(K112)),K112=0),0,INDEX(INDIRECT("_"&$A$29&"Table8"),B107+1,9)+INDEX(INDIRECT("_"&$A$29&"Table8"),B107+1,10)) -> 15 | EZ112: TRUE
D113: Revegetation | J113: =INDEX(INDIRECT("_"&$A$29&"Table8"),B107+1,17) -> 20193 | K113: =IF(OR(J113="",K107="",ISTEXT(K107),J113=0),"",IF(OR(ISBLANK(M113),ISBLANK(N113)),"Enter Dates",IF(K107="Date Range","",IF(OR(AND(CostType=ARO,L107>ScheduleYear),AND(CostType=ARO,N113<=ScheduleYear)),"Date Range",IF(OR(AND(CostType=Bond,O113>ScheduleYear),AND(CostType=LOM,LOMComplete)),J113,J113-Q113))))) -> 20193 | M113: 14 | N113: 15 | P113: 1 | Q113: 0 | R113: 0 | AG113: 0.5 | AH113: 0.5 | EA113: 1 | EB113: =IF(OR(J113="",EB107="",ISTEXT(EB107)),0,IF(OR(ISBLANK(M113),ISBLANK(N113)),0,IF(OR(AND(CostType=ARO,L107>ScheduleYear),AND(OR(CostType=ARO,AND(CostType=LOM,LOMComplete=TRUE)),N113<=ScheduleYear)),0,J113))) -> 20193 | EC113: =IF(OR(J113="",EC107="",ISTEXT(EC107)),0,IF(OR(ISBLANK(M113),ISBLANK(N113)), 0,IF(EC107="Date Range",0,IF(OR(AND(CostType=ARO,L107>ScheduleYear),N113<=ScheduleYear),0,J113)))) ->  | EM113: Reveg | EN113: Reveg | EO113: =IF(ISNUMBER(K113),INDEX(INDIRECT("_"&$A$29&"Table8"),B107+1,5),0) -> 18.02 | EP113: =IF(Metric,"ha","acres") -> acres | EZ113: TRUE
B114: =(ROW(B114) - ROW($A$29)-1)/INDEX(SheetRangeIndex,MATCH($A$29,TableNamesSorted,0),7) -> 12 | C114: =INDEX(INDIRECT("_"&$A$29&"Table1"),B114+1,9) -> FA | D114: =INDEX(INDIRECT("_"&$A$29&"Table1"),B114+1,2) -> WRSP3-MB1 | E114: =IF(ISBLANK(INDEX(INDIRECT("_"&$A$29&"Table1"),B114+1,3)),"",INDEX(INDIRECT("_"&$A$29&"Table1"),B114+1,3)) -> WRSP3 | F114: =IF(ISERROR(EL114),"Facility Type",IF(ISBLANK(INDEX(INDIRECT("_"&$A$29&"Table1"),B114+1,5)),"",INDEX(INDIRECT("_"&$A$29&"Table1"),B114+1,5))) -> WRD | G114: =IF(ISBLANK(INDEX(INDIRECT("_"&$A$29&"Table1"),B114+1,6)),"",INDEX(INDIRECT("_"&$A$29&"Table1"),B114+1,6)) -> Concurrent WRSP-3 | H114: =IF(ISBLANK(INDEX(INDIRECT("_"&$A$29&"Table1"),B114+1,7)),"",INDEX(INDIRECT("_"&$A$29&"Table1"),B114+1,7)) ->  | I114: =IF(ISBLANK(INDEX(INDIRECT("_"&$A$29&"Table1"),B114+1,8)),"",INDEX(INDIRECT("_"&$A$29&"Table1"),B114+1,8)) ->  | J114: =SUM(J115:J120) -> 247698 | K114: =IF(ISERR(ED114),"Cost Type",IF(A114="X","Override",IF(AND(CostType=ARO,L114>ScheduleYear),"Date Range",IF(AND(ISTEXT(LocationFilter),ISERROR(EI114)),"Location",IF(AND(ISTEXT(PropertyFilter),ISERROR(EJ114)),"Property",IF(AND(ISTEXT(FacilityTypeFilter),ISERROR(EG114)),"Facility Type",IF(AND(NOT(ISBLANK(IDCodeFilter)),ISERROR(EF114)),"ID Code",IF(AND(ISTEXT(PhaseFilter),ISERROR(EH114)),"Phase",IF(AND(CostType=LOM,LOMComplete),J114,SUM(T114:DO114)))))))))) -> 247698 | L114: =INDEX(INDIRECT("_"&$A$29&"Table1"),B114+1,4) -> 0 | Q114: =SUM(Q115:Q120) -> 0 | T114: =IF(ISTEXT($EB114),0,IF(AND(CostType=LOM,LOMComplete,T$27<=ScheduleYear),SUMPRODUCT(T115:T120,$J115:$J120),IF(CostType=Bond,SUMPRODUCT($EB115:$EB120,T115:T120,$EA115:$EA120),IF(T$27<=ScheduleYear,0,SUMPRODUCT(T115:T120,$EB115:$EB120))))) -> 0 | U114: 0 | V114: 0 | W114: 0 | X114: 0 | Y114: 0 | Z114: 0 | AA114: 0 | AB114: 5616.25 | AC114: 5616.25 | AD114: 5616.25 | AE114: 5616.25 | AF114: 0 | AG114: 112616.5 | AH114: 112616.5 | AI114: 0 | AJ114: 0 | AK114: 0 | AL114: 0 | AM114: 0 | AN114: 0 | AO114: 0 | AP114: 0 | AQ114: 0 | AR114: 0 | AS114: 0 | AT114: 0 | AU114: 0 | AV114: 0 | AW114: 0 | AX114: 0 | AY114: 0 | AZ114: =IF(ISTEXT($EB114),0,IF(AND(CostType=LOM,LOMComplete,AZ$27<=ScheduleYear),SUMPRODUCT(AZ115:AZ120,$J115:$J120),IF(CostType=Bond,SUMPRODUCT($EB115:$EB120,AZ115:AZ120,$EA115:$EA120),IF(AZ$27<=ScheduleYear,0,SUMPRODUCT(AZ115:AZ120,$EB115:$EB120))))) -> 0 | BA114: 0 | BB114: 0 | BC114: 0 | BD114: 0 | BE114: 0 | BF114: 0 | BG114: 0 | BH114: 0 | BI114: 0 | BJ114: 0 | BK114: 0 | BL114: 0 | BM114: 0 | BN114: 0 | BO114: 0 | BP114: 0 | BQ114: 0 | BR114: 0 | BS114: 0 | BT114: 0 | BU114: 0 | BV114: 0 | BW114: 0 | BX114: 0 | BY114: 0 | BZ114: 0 | CA114: 0 | CB114: 0 | CC114: 0 | CD114: 0 | CE114: 0 | CF114: =IF(ISTEXT($EB114),0,IF(AND(CostType=LOM,LOMComplete,CF$27<=ScheduleYear),SUMPRODUCT(CF115:CF120,$J115:$J120),IF(CostType=Bond,SUMPRODUCT($EB115:$EB120,CF115:CF120,$EA115:$EA120),IF(CF$27<=ScheduleYear,0,SUMPRODUCT(CF115:CF120,$EB115:$EB120))))) -> 0 | CG114: 0 | CH114: 0 | CI114: 0 | CJ114: 0 | CK114: 0 | CL114: 0 | CM114: 0 | CN114: 0 | CO114: 0 | CP114: 0 | CQ114: 0 | CR114: 0 | CS114: 0 | CT114: 0 | CU114: 0 | CV114: 0 | CW114: 0 | CX114: 0 | CY114: 0 | CZ114: 0 | DA114: 0 | DB114: 0 | DC114: 0 | DD114: 0 | DE114: 0 | DF114: 0 | DG114: 0 | DH114: 0 | DI114: 0 | DJ114: 0 | DK114: 0 | DL114: =IF(ISTEXT($EB114),0,IF(AND(CostType=LOM,LOMComplete,DL$27<=ScheduleYear),SUMPRODUCT(DL115:DL120,$J115:$J120),IF(CostType=Bond,SUMPRODUCT($EB115:$EB120,DL115:DL120,$EA115:$EA120),IF(DL$27<=ScheduleYear,0,SUMPRODUCT(DL115:DL120,$EB115:$EB120))))) -> 0 | DM114: 0 | DN114: 0 | DO114: 0 | DP114: =IF(ISNUMBER(K114),SUM(T114:DO114)-K114,K114) -> 0 | EB114: =IF(ISERR(ED114),"Cost Type",IF(A114="X","Override",IF(AND(CostType=ARO,L114>ScheduleYear),0,IF(AND(ISTEXT(LocationFilter),ISERROR(EI114)),"Location",IF(AND(ISTEXT(PropertyFilter),ISERROR(EJ114)),"Property",IF(AND(ISTEXT(FacilityTypeFilter),ISERROR(EG114)),"Facility Type",IF(AND(ISTEXT(IDCodeFilter),ISERROR(EF114)),"ID Code",IF(AND(ISTEXT(PhaseFilter),ISERROR(EH114)),"Phase",J114)))))))) -> 247698 | EC114: =IF(EE114="","Cost Type",IF(A114="X","Override",IF(AND(OtherCostType=ARO,L114>ScheduleYear),0,IF(AND(ISTEXT(LocationFilter),EI114=""),"Location",IF(AND(ISTEXT(PropertyFilter),EJ114=""),"Property",IF(AND(ISTEXT(FacilityTypeFilter),EG114=""),"Facility Type",IF(AND(ISTEXT(IDCodeFilter),EF114=""),"ID Code",IF(AND(ISTEXT(PhaseFilter),EH114=""),"Phase",J114)))))))) ->  | ED114: =SEARCH(CostType,C114) -> 1 | EE114: =SEARCH(OtherCostType,C114) ->  | EF114: =IF(AND(IDCodeFilterType="CONTAINS",NOT(ISERROR(SEARCH(IDCodeFilter,E114)))),1,IF(AND(IDCodeFilterType="NOT",ISERROR(SEARCH(IDCodeFilter,E114))),1,IF(AND(OR(IDCodeFilterType="EXACT",ISBLANK(IDCodeFilterType)),NOT(ISERROR(MATCH(IDCodeFilter,E114,0)))),1,$EK114))) ->  | EG114: =IF(AND(FacilityFilterType="CONTAINS",NOT(ISERROR(SEARCH(FacilityTypeFilter,F114)))),1,IF(AND(FacilityFilterType="NOT",ISERROR(SEARCH(FacilityTypeFilter,F114))),1,IF(AND(OR(FacilityFilterType="EXACT",ISBLANK(FacilityFilterType)),NOT(ISERROR(MATCH(FacilityTypeFilter,F114,0)))),1,$EK114))) ->  | EH114: =IF(AND(PhaseFilterType="CONTAINS",NOT(ISERROR(SEARCH(PhaseFilter,G114)))),1,IF(AND(PhaseFilterType="NOT",ISERROR(SEARCH(PhaseFilter,G114))),1,IF(AND(OR(PhaseFilterType="EXACT",ISBLANK(PhaseFilterType)),NOT(ISERROR(MATCH(PhaseFilter,G114,0)))),1,$EK114))) ->  | EI114: =IF(AND(LocationFilterType="CONTAINS",NOT(ISERROR(SEARCH(LocationFilter,H114)))),1,IF(AND(LocationFilterType="NOT",ISERROR(SEARCH(LocationFilter,H114))),1,IF(AND(OR(LocationFilterType="EXACT",ISBLANK(LocationFilterType)),NOT(ISERROR(MATCH(LocationFilter,H114,0)))),1,$EK114))) ->  | EJ114: =IF(AND(PropertyFilterType="CONTAINS",NOT(ISERROR(SEARCH(PropertyFilter,I114)))),1,IF(AND(PropertyFilterType="NOT",ISERROR(SEARCH(PropertyFilter,I114))),1,IF(AND(OR(PropertyFilterType="EXACT",ISBLANK(PropertyFilterType)),NOT(ISERROR(MATCH(PropertyFilter,I114,0)))),1,$EK114))) ->  | EK114: =MATCH("NOT",$EK$27,0) ->  | EL114: =IF(ISBLANK(INDEX(INDIRECT("_"&$A$29&"Table1"),B114+1,2)),"",MATCH(INDEX(INDIRECT("_"&$A$29&"Table1"),B114+1,5),Accounts,0)) -> 2 | EM114: Surf Area | EN114: Surf Area | EO114: =IF(ISNUMBER(K120),INDEX(INDIRECT("_"&$A$29&"Table8"),B114+1,5),"") -> 13.22 | EP114: =IF(Metric,"ha","acres") -> acres | EZ114: FALSE | FA114: 1
D115: Regrading | J115: =IF(INDEX(INDIRECT("_"&$A$29&"Table4"),B114+1,15)=0,0,INDEX(INDIRECT("_"&$A$29&"Table4"),B114+1,15)) -> 22465 | K115: =IF(OR(J115="",K114="",ISTEXT(K114),J115=0),"",IF(OR(ISBLANK(M115),ISBLANK(N115)),"Enter Dates",IF(K114="Date Range","",IF(OR(AND(CostType=ARO,L114>ScheduleYear),AND(CostType=ARO,N115<=ScheduleYear)),"Date Range",IF(OR(AND(CostType=Bond,O115>ScheduleYear),AND(CostType=LOM,LOMComplete)),J115,J115-Q115))))) -> 22465 | M115: 9 | N115: 12 | P115: =IF(K115="","",SUM(T115:DO115)) -> 1 | Q115: =IF(OR(AND(CostType=ARO,N115<=ScheduleYear),AND(CostType=LOM,LOMComplete)),J115*R115,R115*EB115) -> 0 | R115: =IF(CostType=Bond,SUMIFS(T115:DP115,T$27:DP$27,"<="&O115,T$27:DP$27,"<="&ScheduleYear),SUMIF(T$27:DP$27,"<="&ScheduleYear,T115:DP115)) -> 0 | AB115: 0.25 | AC115: 0.25 | AD115: 0.25 | AE115: 0.25 | EA115: 1 | EB115: =IF(OR(J115="",EB114="",ISTEXT(EB114)),0,IF(OR(ISBLANK(M115),ISBLANK(N115)),0,IF(OR(AND(CostType=ARO,L114>ScheduleYear),AND(OR(CostType=ARO,AND(CostType=LOM,LOMComplete=TRUE)),N115<=ScheduleYear)),0,J115))) -> 22465 | EC115: =IF(OR(J115="",EC114="",ISTEXT(EC114)),0,IF(OR(ISBLANK(M115),ISBLANK(N115)),0,IF(EC114="Date Range",0,IF(OR(AND(OtherCostType=ARO,L114>ScheduleYear),N115<=ScheduleYear),0,J115)))) ->  | EM115: Regrade | EN115: Regrade | EO115: =IF(ISNUMBER(K115),IF(INDEX(INDIRECT("_"&$A$29&"Table4"),B114+1,3)=0,0,INDEX(INDIRECT("_"&$A$29&"Table4"),B114+1,3)),0) -> 70560 | EP115: =IF(Metric,"m3","cy") -> cy | EQ115: =INDEX(INDIRECT("_"&$A$29&"Table4"),B114+1,5) -> D9T | ES115: =IF(OR(NOT(ISNUMBER(K115)),K115=0),0,INDEX(INDIRECT("_"&$A$29&"Table4"),B114+1,12)) -> 95 | EW115: =IF(ISNUMBER($K115),INDEX(INDIRECT("_"&$A$29&"Table4"),B114+1,13),0) -> 2466 | EX115: =IF(ISNUMBER($K115),INDEX(INDIRECT("_"&$A$29&"Table4"),B114+1,14),0) -> 19999 | EZ115: TRUE
D116: Cover 1 Placement | J116: =INDEX(INDIRECT("_"&$A$29&"Table5"),B114+1,25) -> 0 | K116: =IF(OR(J116="",K114="",ISTEXT(K114),J116=0),"",IF(OR(ISBLANK(M116),ISBLANK(N116)),"Enter Dates",IF(K114="Date Range","",IF(OR(AND(CostType=ARO,L114>ScheduleYear),AND(CostType=ARO,N116<=ScheduleYear)),"Date Range",IF(OR(AND(CostType=Bond,O116>ScheduleYear),AND(CostType=LOM,LOMComplete)),J116,J116-Q116))))) ->  | M116: 14 | N116: 15 | Q116: 0 | R116: 0 | AG116: 0.5 | AH116: 0.5 | EA116: 1 | EB116: =IF(OR(J116="",EB114="",ISTEXT(EB114)),0,IF(OR(ISBLANK(M116),ISBLANK(N116)),0,IF(OR(AND(CostType=ARO,L114>ScheduleYear),AND(OR(CostType=ARO,AND(CostType=LOM,LOMComplete=TRUE)),N116<=ScheduleYear)),0,J116))) -> 0 | EC116: =IF(OR(J116="",EC114="",ISTEXT(EC114)),0,IF(OR(ISBLANK(M116),ISBLANK(N116)),0,IF(EC114="Date Range",0,IF(OR(AND(CostType=ARO,L114>ScheduleYear),N116<=ScheduleYear),0,J116)))) ->  | EM116: Cover | EN116: Cover | EO116: =IF(ISNUMBER(K116),INDEX(INDIRECT("_"&$A$29&"Table5"),B114+1,4),0) -> 0 | EP116: =IF(Metric,"m3","cy") -> cy | EQ116: =INDEX(INDIRECT("_"&$A$29&"Table5"),B114+1,10) ->  | ER116: =IF(OR(NOT(ISNUMBER(K116)),K116=0),0,INDEX(INDIRECT("_"&$A$29&"Table5"),B114+1,12)) -> 0 | ES116: =IF(OR(NOT(ISNUMBER(K116)),K116=0),0,INDEX(INDIRECT("_"&$A$29&"Table5"),B114+1,14)) -> 0 | ET116: =INDEX(INDIRECT("_"&$A$29&"Table5"),B114+1,5) ->  | EU116: =IF(OR(NOT(ISNUMBER(K116)),K116=0),0,INDEX(INDIRECT("_"&$A$29&"Table5"),B114+1,7)) -> 0 | EV116: =IF(OR(NOT(ISNUMBER(K116)),K116=0),0,INDEX(INDIRECT("_"&$A$29&"Table5"),B114+1,9)) -> 0 | EW116: =IF(ISNUMBER($K116),INDEX(INDIRECT("_"&$A$29&"Table5"),B114+1,15)+INDEX(INDIRECT("_"&$A$29&"Table5"),B114+1,19)+INDEX(INDIRECT("_"&$A$29&"Table5"),B114+1,22),0) -> 0 | EX116: =IF(ISNUMBER($K115),INDEX(INDIRECT("_"&$A$29&"Table5"),B114+1,16)+INDEX(INDIRECT("_"&$A$29&"Table5"),B114+1,20)+INDEX(INDIRECT("_"&$A$29&"Table5"),B114+1,23),0) -> 0 | EZ116: TRUE
D117: Cover 2 Placement | J117: =INDEX(INDIRECT("_"&$A$29&"Table6"),B114+1,25) -> 0 | K117: =IF(OR(J117="",K114="",ISTEXT(K114),J117=0),"",IF(OR(ISBLANK(M117),ISBLANK(N117)),"Enter Dates",IF(K114="Date Range","",IF(OR(AND(CostType=ARO,L114>ScheduleYear),AND(CostType=ARO,N117<=ScheduleYear)),"Date Range",IF(OR(AND(CostType=Bond,O117>ScheduleYear),AND(CostType=LOM,LOMComplete)),J117,J117-Q117))))) ->  | M117: 14 | N117: 15 | Q117: 0 | R117: 0 | AG117: 0.5 | AH117: 0.5 | EA117: 1 | EB117: =IF(OR(J117="",EB114="",ISTEXT(EB114)),0,IF(OR(ISBLANK(M117),ISBLANK(N117)),0,IF(OR(AND(CostType=ARO,L114>ScheduleYear),AND(OR(CostType=ARO,AND(CostType=LOM,LOMComplete=TRUE)),N117<=ScheduleYear)),0,J117))) -> 0 | EC117: =IF(OR(J117="",EC114="",ISTEXT(EC114)),0,IF(OR(ISBLANK(M117),ISBLANK(N117)),0,IF(EC114="Date Range",0,IF(OR(AND(CostType=ARO,L114>ScheduleYear),N117<=ScheduleYear),0,J117)))) ->  | EM117: Cover | EN117: Cover | EO117: =IF(ISNUMBER(K117),INDEX(INDIRECT("_"&$A$29&"Table6"),B114+1,4),0) -> 0 | EP117: =IF(Metric,"m3","cy") -> cy | EQ117: =INDEX(INDIRECT("_"&$A$29&"Table6"),B114+1,10) ->  | ER117: =IF(OR(NOT(ISNUMBER(K117)),K117=0),0,INDEX(INDIRECT("_"&$A$29&"Table6"),B114+1,12)) -> 0 | ES117: =IF(OR(NOT(ISNUMBER(K117)),K117=0),0,INDEX(INDIRECT("_"&$A$29&"Table6"),B114+1,14)) -> 0 | ET117: =INDEX(INDIRECT("_"&$A$29&"Table6"),B114+1,5) ->  | EU117: =IF(OR(NOT(ISNUMBER(K117)),K117=0),0,INDEX(INDIRECT("_"&$A$29&"Table6"),B114+1,7)) -> 0 | EV117: =IF(OR(NOT(ISNUMBER(K117)),K117=0),0,INDEX(INDIRECT("_"&$A$29&"Table6"),B114+1,9)) -> 0 | EZ117: TRUE
D118: Growth Media Placement | J118: =INDEX(INDIRECT("_"&$A$29&"Table7"),B114+1,11) -> 207942 | K118: =IF(OR(J118="",K114="",ISTEXT(K114),J118=0),"",IF(OR(ISBLANK(M118),ISBLANK(N118)),"Enter Dates",IF(K114="Date Range","",IF(OR(AND(CostType=ARO,L114>ScheduleYear),AND(CostType=ARO,N118<=ScheduleYear)),"Date Range",IF(OR(AND(CostType=Bond,O118>ScheduleYear),AND(CostType=LOM,LOMComplete)),J118,J118-Q118))))) -> 207942 | M118: 14 | N118: 15 | P118: 1 | Q118: 0 | R118: 0 | AG118: 0.5 | AH118: 0.5 | EA118: 1 | EB118: =IF(OR(J118="",EB114="",ISTEXT(EB114)),0,IF(OR(ISBLANK(M118),ISBLANK(N118)),0,IF(OR(AND(CostType=ARO,L114>ScheduleYear),AND(OR(CostType=ARO,AND(CostType=LOM,LOMComplete=TRUE)),N118<=ScheduleYear)),0,J118))) -> 207942 | EC118: =IF(OR(J118="",EC114="",ISTEXT(EC114)),0,IF(OR(ISBLANK(M118),ISBLANK(N118)),0,IF(EC114="Date Range",0,IF(OR(AND(CostType=ARO,L114>ScheduleYear),N118<=ScheduleYear),0,J118)))) ->  | EM118: GM | EN118: GM | EO118: =IF(ISNUMBER(K118),INDEX(INDIRECT("_"&$A$29&"Table7"),B114+1,3),0) -> 63985 | EP118: =IF(Metric,"m3","cy") -> cy | EQ118: =INDEX(INDIRECT("_"&$A$29&"Table7"),B114+1,4) -> 777G/992K/D9T | ER118: =IF(OR(NOT(ISNUMBER(K118)),K118=0),0,INDEX(INDIRECT("_"&$A$29&"Table7"),B114+1,6)) -> 5 | ES118: =IF(OR(NOT(ISNUMBER(K118)),K118=0),0,INDEX(INDIRECT("_"&$A$29&"Table7"),B114+1,8)) -> 59 | EZ118: TRUE
D119: Ripping/Scarifying | J119: =INDEX(INDIRECT("_"&$A$29&"Table8"),B114+1,13) -> 2016 | K119: =IF(OR(J119="",K114="",ISTEXT(K114),J119=0),"",IF(OR(ISBLANK(M119),ISBLANK(N119)),"Enter Dates",IF(K114="Date Range","",IF(OR(AND(CostType=ARO,L114>ScheduleYear),AND(CostType=ARO,N119<=ScheduleYear)),"Date Range",IF(OR(AND(CostType=Bond,O119>ScheduleYear),AND(CostType=LOM,LOMComplete)),J119,J119-Q119))))) -> 2016 | M119: 14 | N119: 15 | P119: 1 | Q119: 0 | R119: 0 | AG119: 0.5 | AH119: 0.5 | EA119: 1 | EB119: =IF(OR(J119="",EB114="",ISTEXT(EB114)),0,IF(OR(ISBLANK(M119),ISBLANK(N119)),0,IF(OR(AND(CostType=ARO,L114>ScheduleYear),AND(OR(CostType=ARO,AND(CostType=LOM,LOMComplete=TRUE)),N119<=ScheduleYear)),0,J119))) -> 2016 | EC119: =IF(OR(J119="",EC114="",ISTEXT(EC114)),0,IF(OR(ISBLANK(M119),ISBLANK(N119)), 0,IF(EC114="Date Range",0,IF(OR(AND(CostType=ARO,L114>ScheduleYear),N119<=ScheduleYear),0,J119)))) ->  | EM119: Rip | EN119: Rip | EO119: =IF(ISNUMBER(K119),INDEX(INDIRECT("_"&$A$29&"Table8"),B114+1,5),0) -> 13.22 | EP119: =IF(Metric,"ha","acres") -> acres | EQ119: =INDEX(INDIRECT("_"&$A$29&"Table8"),B114+1,8) -> 14M | ES119: =IF(OR(NOT(ISNUMBER(K119)),K119=0),0,INDEX(INDIRECT("_"&$A$29&"Table8"),B114+1,9)+INDEX(INDIRECT("_"&$A$29&"Table8"),B114+1,10)) -> 10 | EZ119: TRUE
D120: Revegetation | J120: =INDEX(INDIRECT("_"&$A$29&"Table8"),B114+1,17) -> 15275 | K120: =IF(OR(J120="",K114="",ISTEXT(K114),J120=0),"",IF(OR(ISBLANK(M120),ISBLANK(N120)),"Enter Dates",IF(K114="Date Range","",IF(OR(AND(CostType=ARO,L114>ScheduleYear),AND(CostType=ARO,N120<=ScheduleYear)),"Date Range",IF(OR(AND(CostType=Bond,O120>ScheduleYear),AND(CostType=LOM,LOMComplete)),J120,J120-Q120))))) -> 15275 | M120: 14 | N120: 15 | P120: 1 | Q120: 0 | R120: 0 | AG120: 0.5 | AH120: 0.5 | EA120: 1 | EB120: =IF(OR(J120="",EB114="",ISTEXT(EB114)),0,IF(OR(ISBLANK(M120),ISBLANK(N120)),0,IF(OR(AND(CostType=ARO,L114>ScheduleYear),AND(OR(CostType=ARO,AND(CostType=LOM,LOMComplete=TRUE)),N120<=ScheduleYear)),0,J120))) -> 15275 | EC120: =IF(OR(J120="",EC114="",ISTEXT(EC114)),0,IF(OR(ISBLANK(M120),ISBLANK(N120)), 0,IF(EC114="Date Range",0,IF(OR(AND(CostType=ARO,L114>ScheduleYear),N120<=ScheduleYear),0,J120)))) ->  | EM120: Reveg | EN120: Reveg | EO120: =IF(ISNUMBER(K120),INDEX(INDIRECT("_"&$A$29&"Table8"),B114+1,5),0) -> 13.22 | EP120: =IF(Metric,"ha","acres") -> acres | EZ120: TRUE
B121: =(ROW(B121) - ROW($A$29)-1)/INDEX(SheetRangeIndex,MATCH($A$29,TableNamesSorted,0),7) -> 13 | C121: =INDEX(INDIRECT("_"&$A$29&"Table1"),B121+1,9) -> FA | D121: =INDEX(INDIRECT("_"&$A$29&"Table1"),B121+1,2) -> WRSP3-MB2 | E121: =IF(ISBLANK(INDEX(INDIRECT("_"&$A$29&"Table1"),B121+1,3)),"",INDEX(INDIRECT("_"&$A$29&"Table1"),B121+1,3)) -> WRSP3 | F121: =IF(ISERROR(EL121),"Facility Type",IF(ISBLANK(INDEX(INDIRECT("_"&$A$29&"Table1"),B121+1,5)),"",INDEX(INDIRECT("_"&$A$29&"Table1"),B121+1,5))) -> WRD | G121: =IF(ISBLANK(INDEX(INDIRECT("_"&$A$29&"Table1"),B121+1,6)),"",INDEX(INDIRECT("_"&$A$29&"Table1"),B121+1,6)) -> Concurrent WRSP-3 | H121: =IF(ISBLANK(INDEX(INDIRECT("_"&$A$29&"Table1"),B121+1,7)),"",INDEX(INDIRECT("_"&$A$29&"Table1"),B121+1,7)) ->  | I121: =IF(ISBLANK(INDEX(INDIRECT("_"&$A$29&"Table1"),B121+1,8)),"",INDEX(INDIRECT("_"&$A$29&"Table1"),B121+1,8)) ->  | J121: =SUM(J122:J127) -> 495325 | K121: =IF(ISERR(ED121),"Cost Type",IF(A121="X","Override",IF(AND(CostType=ARO,L121>ScheduleYear),"Date Range",IF(AND(ISTEXT(LocationFilter),ISERROR(EI121)),"Location",IF(AND(ISTEXT(PropertyFilter),ISERROR(EJ121)),"Property",IF(AND(ISTEXT(FacilityTypeFilter),ISERROR(EG121)),"Facility Type",IF(AND(NOT(ISBLANK(IDCodeFilter)),ISERROR(EF121)),"ID Code",IF(AND(ISTEXT(PhaseFilter),ISERROR(EH121)),"Phase",IF(AND(CostType=LOM,LOMComplete),J121,SUM(T121:DO121)))))))))) -> 495325 | L121: =INDEX(INDIRECT("_"&$A$29&"Table1"),B121+1,4) -> 0 | Q121: =SUM(Q122:Q127) -> 0 | T121: =IF(ISTEXT($EB121),0,IF(AND(CostType=LOM,LOMComplete,T$27<=ScheduleYear),SUMPRODUCT(T122:T127,$J122:$J127),IF(CostType=Bond,SUMPRODUCT($EB122:$EB127,T122:T127,$EA122:$EA127),IF(T$27<=ScheduleYear,0,SUMPRODUCT(T122:T127,$EB122:$EB127))))) -> 0 | U121: 0 | V121: 0 | W121: 0 | X121: 0 | Y121: 0 | Z121: 0 | AA121: 0 | AB121: 11232.75 | AC121: 11232.75 | AD121: 11232.75 | AE121: 11232.75 | AF121: 0 | AG121: 225197 | AH121: 225197 | AI121: 0 | AJ121: 0 | AK121: 0 | AL121: 0 | AM121: 0 | AN121: 0 | AO121: 0 | AP121: 0 | AQ121: 0 | AR121: 0 | AS121: 0 | AT121: 0 | AU121: 0 | AV121: 0 | AW121: 0 | AX121: 0 | AY121: 0 | AZ121: =IF(ISTEXT($EB121),0,IF(AND(CostType=LOM,LOMComplete,AZ$27<=ScheduleYear),SUMPRODUCT(AZ122:AZ127,$J122:$J127),IF(CostType=Bond,SUMPRODUCT($EB122:$EB127,AZ122:AZ127,$EA122:$EA127),IF(AZ$27<=ScheduleYear,0,SUMPRODUCT(AZ122:AZ127,$EB122:$EB127))))) -> 0 | BA121: 0 | BB121: 0 | BC121: 0 | BD121: 0 | BE121: 0 | BF121: 0 | BG121: 0 | BH121: 0 | BI121: 0 | BJ121: 0 | BK121: 0 | BL121: 0 | BM121: 0 | BN121: 0 | BO121: 0 | BP121: 0 | BQ121: 0 | BR121: 0 | BS121: 0 | BT121: 0 | BU121: 0 | BV121: 0 | BW121: 0 | BX121: 0 | BY121: 0 | BZ121: 0 | CA121: 0 | CB121: 0 | CC121: 0 | CD121: 0 | CE121: 0 | CF121: =IF(ISTEXT($EB121),0,IF(AND(CostType=LOM,LOMComplete,CF$27<=ScheduleYear),SUMPRODUCT(CF122:CF127,$J122:$J127),IF(CostType=Bond,SUMPRODUCT($EB122:$EB127,CF122:CF127,$EA122:$EA127),IF(CF$27<=ScheduleYear,0,SUMPRODUCT(CF122:CF127,$EB122:$EB127))))) -> 0 | CG121: 0 | CH121: 0 | CI121: 0 | CJ121: 0 | CK121: 0 | CL121: 0 | CM121: 0 | CN121: 0 | CO121: 0 | CP121: 0 | CQ121: 0 | CR121: 0 | CS121: 0 | CT121: 0 | CU121: 0 | CV121: 0 | CW121: 0 | CX121: 0 | CY121: 0 | CZ121: 0 | DA121: 0 | DB121: 0 | DC121: 0 | DD121: 0 | DE121: 0 | DF121: 0 | DG121: 0 | DH121: 0 | DI121: 0 | DJ121: 0 | DK121: 0 | DL121: =IF(ISTEXT($EB121),0,IF(AND(CostType=LOM,LOMComplete,DL$27<=ScheduleYear),SUMPRODUCT(DL122:DL127,$J122:$J127),IF(CostType=Bond,SUMPRODUCT($EB122:$EB127,DL122:DL127,$EA122:$EA127),IF(DL$27<=ScheduleYear,0,SUMPRODUCT(DL122:DL127,$EB122:$EB127))))) -> 0 | DM121: 0 | DN121: 0 | DO121: 0 | DP121: =IF(ISNUMBER(K121),SUM(T121:DO121)-K121,K121) -> 0 | EB121: =IF(ISERR(ED121),"Cost Type",IF(A121="X","Override",IF(AND(CostType=ARO,L121>ScheduleYear),0,IF(AND(ISTEXT(LocationFilter),ISERROR(EI121)),"Location",IF(AND(ISTEXT(PropertyFilter),ISERROR(EJ121)),"Property",IF(AND(ISTEXT(FacilityTypeFilter),ISERROR(EG121)),"Facility Type",IF(AND(ISTEXT(IDCodeFilter),ISERROR(EF121)),"ID Code",IF(AND(ISTEXT(PhaseFilter),ISERROR(EH121)),"Phase",J121)))))))) -> 495325 | EC121: =IF(EE121="","Cost Type",IF(A121="X","Override",IF(AND(OtherCostType=ARO,L121>ScheduleYear),0,IF(AND(ISTEXT(LocationFilter),EI121=""),"Location",IF(AND(ISTEXT(PropertyFilter),EJ121=""),"Property",IF(AND(ISTEXT(FacilityTypeFilter),EG121=""),"Facility Type",IF(AND(ISTEXT(IDCodeFilter),EF121=""),"ID Code",IF(AND(ISTEXT(PhaseFilter),EH121=""),"Phase",J121)))))))) ->  | ED121: =SEARCH(CostType,C121) -> 1 | EE121: =SEARCH(OtherCostType,C121) ->  | EF121: =IF(AND(IDCodeFilterType="CONTAINS",NOT(ISERROR(SEARCH(IDCodeFilter,E121)))),1,IF(AND(IDCodeFilterType="NOT",ISERROR(SEARCH(IDCodeFilter,E121))),1,IF(AND(OR(IDCodeFilterType="EXACT",ISBLANK(IDCodeFilterType)),NOT(ISERROR(MATCH(IDCodeFilter,E121,0)))),1,$EK121))) ->  | EG121: =IF(AND(FacilityFilterType="CONTAINS",NOT(ISERROR(SEARCH(FacilityTypeFilter,F121)))),1,IF(AND(FacilityFilterType="NOT",ISERROR(SEARCH(FacilityTypeFilter,F121))),1,IF(AND(OR(FacilityFilterType="EXACT",ISBLANK(FacilityFilterType)),NOT(ISERROR(MATCH(FacilityTypeFilter,F121,0)))),1,$EK121))) ->  | EH121: =IF(AND(PhaseFilterType="CONTAINS",NOT(ISERROR(SEARCH(PhaseFilter,G121)))),1,IF(AND(PhaseFilterType="NOT",ISERROR(SEARCH(PhaseFilter,G121))),1,IF(AND(OR(PhaseFilterType="EXACT",ISBLANK(PhaseFilterType)),NOT(ISERROR(MATCH(PhaseFilter,G121,0)))),1,$EK121))) ->  | EI121: =IF(AND(LocationFilterType="CONTAINS",NOT(ISERROR(SEARCH(LocationFilter,H121)))),1,IF(AND(LocationFilterType="NOT",ISERROR(SEARCH(LocationFilter,H121))),1,IF(AND(OR(LocationFilterType="EXACT",ISBLANK(LocationFilterType)),NOT(ISERROR(MATCH(LocationFilter,H121,0)))),1,$EK121))) ->  | EJ121: =IF(AND(PropertyFilterType="CONTAINS",NOT(ISERROR(SEARCH(PropertyFilter,I121)))),1,IF(AND(PropertyFilterType="NOT",ISERROR(SEARCH(PropertyFilter,I121))),1,IF(AND(OR(PropertyFilterType="EXACT",ISBLANK(PropertyFilterType)),NOT(ISERROR(MATCH(PropertyFilter,I121,0)))),1,$EK121))) ->  | EK121: =MATCH("NOT",$EK$27,0) ->  | EL121: =IF(ISBLANK(INDEX(INDIRECT("_"&$A$29&"Table1"),B121+1,2)),"",MATCH(INDEX(INDIRECT("_"&$A$29&"Table1"),B121+1,5),Accounts,0)) -> 2 | EM121: Surf Area | EN121: Surf Area | EO121: =IF(ISNUMBER(K127),INDEX(INDIRECT("_"&$A$29&"Table8"),B121+1,5),"") -> 26.36 | EP121: =IF(Metric,"ha","acres") -> acres | EZ121: FALSE | FA121: 1
D122: Regrading | J122: =IF(INDEX(INDIRECT("_"&$A$29&"Table4"),B121+1,15)=0,0,INDEX(INDIRECT("_"&$A$29&"Table4"),B121+1,15)) -> 44931 | K122: =IF(OR(J122="",K121="",ISTEXT(K121),J122=0),"",IF(OR(ISBLANK(M122),ISBLANK(N122)),"Enter Dates",IF(K121="Date Range","",IF(OR(AND(CostType=ARO,L121>ScheduleYear),AND(CostType=ARO,N122<=ScheduleYear)),"Date Range",IF(OR(AND(CostType=Bond,O122>ScheduleYear),AND(CostType=LOM,LOMComplete)),J122,J122-Q122))))) -> 44931 | M122: 9 | N122: 12 | P122: =IF(K122="","",SUM(T122:DO122)) -> 1 | Q122: =IF(OR(AND(CostType=ARO,N122<=ScheduleYear),AND(CostType=LOM,LOMComplete)),J122*R122,R122*EB122) -> 0 | R122: =IF(CostType=Bond,SUMIFS(T122:DP122,T$27:DP$27,"<="&O122,T$27:DP$27,"<="&ScheduleYear),SUMIF(T$27:DP$27,"<="&ScheduleYear,T122:DP122)) -> 0 | AB122: 0.25 | AC122: 0.25 | AD122: 0.25 | AE122: 0.25 | EA122: 1 | EB122: =IF(OR(J122="",EB121="",ISTEXT(EB121)),0,IF(OR(ISBLANK(M122),ISBLANK(N122)),0,IF(OR(AND(CostType=ARO,L121>ScheduleYear),AND(OR(CostType=ARO,AND(CostType=LOM,LOMComplete=TRUE)),N122<=ScheduleYear)),0,J122))) -> 44931 | EC122: =IF(OR(J122="",EC121="",ISTEXT(EC121)),0,IF(OR(ISBLANK(M122),ISBLANK(N122)),0,IF(EC121="Date Range",0,IF(OR(AND(OtherCostType=ARO,L121>ScheduleYear),N122<=ScheduleYear),0,J122)))) ->  | EM122: Regrade | EN122: Regrade | EO122: =IF(ISNUMBER(K122),IF(INDEX(INDIRECT("_"&$A$29&"Table4"),B121+1,3)=0,0,INDEX(INDIRECT("_"&$A$29&"Table4"),B121+1,3)),0) -> 140532 | EP122: =IF(Metric,"m3","cy") -> cy | EQ122: =INDEX(INDIRECT("_"&$A$29&"Table4"),B121+1,5) -> D9T | ES122: =IF(OR(NOT(ISNUMBER(K122)),K122=0),0,INDEX(INDIRECT("_"&$A$29&"Table4"),B121+1,12)) -> 190 | EW122: =IF(ISNUMBER($K122),INDEX(INDIRECT("_"&$A$29&"Table4"),B121+1,13),0) -> 4932 | EX122: =IF(ISNUMBER($K122),INDEX(INDIRECT("_"&$A$29&"Table4"),B121+1,14),0) -> 39999 | EZ122: TRUE
D123: Cover 1 Placement | J123: =INDEX(INDIRECT("_"&$A$29&"Table5"),B121+1,25) -> 0 | K123: =IF(OR(J123="",K121="",ISTEXT(K121),J123=0),"",IF(OR(ISBLANK(M123),ISBLANK(N123)),"Enter Dates",IF(K121="Date Range","",IF(OR(AND(CostType=ARO,L121>ScheduleYear),AND(CostType=ARO,N123<=ScheduleYear)),"Date Range",IF(OR(AND(CostType=Bond,O123>ScheduleYear),AND(CostType=LOM,LOMComplete)),J123,J123-Q123))))) ->  | M123: 14 | N123: 15 | Q123: 0 | R123: 0 | AG123: 0.5 | AH123: 0.5 | EA123: 1 | EB123: =IF(OR(J123="",EB121="",ISTEXT(EB121)),0,IF(OR(ISBLANK(M123),ISBLANK(N123)),0,IF(OR(AND(CostType=ARO,L121>ScheduleYear),AND(OR(CostType=ARO,AND(CostType=LOM,LOMComplete=TRUE)),N123<=ScheduleYear)),0,J123))) -> 0 | EC123: =IF(OR(J123="",EC121="",ISTEXT(EC121)),0,IF(OR(ISBLANK(M123),ISBLANK(N123)),0,IF(EC121="Date Range",0,IF(OR(AND(CostType=ARO,L121>ScheduleYear),N123<=ScheduleYear),0,J123)))) ->  | EM123: Cover | EN123: Cover | EO123: =IF(ISNUMBER(K123),INDEX(INDIRECT("_"&$A$29&"Table5"),B121+1,4),0) -> 0 | EP123: =IF(Metric,"m3","cy") -> cy | EQ123: =INDEX(INDIRECT("_"&$A$29&"Table5"),B121+1,10) ->  | ER123: =IF(OR(NOT(ISNUMBER(K123)),K123=0),0,INDEX(INDIRECT("_"&$A$29&"Table5"),B121+1,12)) -> 0 | ES123: =IF(OR(NOT(ISNUMBER(K123)),K123=0),0,INDEX(INDIRECT("_"&$A$29&"Table5"),B121+1,14)) -> 0 | ET123: =INDEX(INDIRECT("_"&$A$29&"Table5"),B121+1,5) ->  | EU123: =IF(OR(NOT(ISNUMBER(K123)),K123=0),0,INDEX(INDIRECT("_"&$A$29&"Table5"),B121+1,7)) -> 0 | EV123: =IF(OR(NOT(ISNUMBER(K123)),K123=0),0,INDEX(INDIRECT("_"&$A$29&"Table5"),B121+1,9)) -> 0 | EW123: =IF(ISNUMBER($K123),INDEX(INDIRECT("_"&$A$29&"Table5"),B121+1,15)+INDEX(INDIRECT("_"&$A$29&"Table5"),B121+1,19)+INDEX(INDIRECT("_"&$A$29&"Table5"),B121+1,22),0) -> 0 | EX123: =IF(ISNUMBER($K122),INDEX(INDIRECT("_"&$A$29&"Table5"),B121+1,16)+INDEX(INDIRECT("_"&$A$29&"Table5"),B121+1,20)+INDEX(INDIRECT("_"&$A$29&"Table5"),B121+1,23),0) -> 0 | EZ123: TRUE
D124: Cover 2 Placement | J124: =INDEX(INDIRECT("_"&$A$29&"Table6"),B121+1,25) -> 0 | K124: =IF(OR(J124="",K121="",ISTEXT(K121),J124=0),"",IF(OR(ISBLANK(M124),ISBLANK(N124)),"Enter Dates",IF(K121="Date Range","",IF(OR(AND(CostType=ARO,L121>ScheduleYear),AND(CostType=ARO,N124<=ScheduleYear)),"Date Range",IF(OR(AND(CostType=Bond,O124>ScheduleYear),AND(CostType=LOM,LOMComplete)),J124,J124-Q124))))) ->  | M124: 14 | N124: 15 | Q124: 0 | R124: 0 | AG124: 0.5 | AH124: 0.5 | EA124: 1 | EB124: =IF(OR(J124="",EB121="",ISTEXT(EB121)),0,IF(OR(ISBLANK(M124),ISBLANK(N124)),0,IF(OR(AND(CostType=ARO,L121>ScheduleYear),AND(OR(CostType=ARO,AND(CostType=LOM,LOMComplete=TRUE)),N124<=ScheduleYear)),0,J124))) -> 0 | EC124: =IF(OR(J124="",EC121="",ISTEXT(EC121)),0,IF(OR(ISBLANK(M124),ISBLANK(N124)),0,IF(EC121="Date Range",0,IF(OR(AND(CostType=ARO,L121>ScheduleYear),N124<=ScheduleYear),0,J124)))) ->  | EM124: Cover | EN124: Cover | EO124: =IF(ISNUMBER(K124),INDEX(INDIRECT("_"&$A$29&"Table6"),B121+1,4),0) -> 0 | EP124: =IF(Metric,"m3","cy") -> cy | EQ124: =INDEX(INDIRECT("_"&$A$29&"Table6"),B121+1,10) ->  | ER124: =IF(OR(NOT(ISNUMBER(K124)),K124=0),0,INDEX(INDIRECT("_"&$A$29&"Table6"),B121+1,12)) -> 0 | ES124: =IF(OR(NOT(ISNUMBER(K124)),K124=0),0,INDEX(INDIRECT("_"&$A$29&"Table6"),B121+1,14)) -> 0 | ET124: =INDEX(INDIRECT("_"&$A$29&"Table6"),B121+1,5) ->  | EU124: =IF(OR(NOT(ISNUMBER(K124)),K124=0),0,INDEX(INDIRECT("_"&$A$29&"Table6"),B121+1,7)) -> 0 | EV124: =IF(OR(NOT(ISNUMBER(K124)),K124=0),0,INDEX(INDIRECT("_"&$A$29&"Table6"),B121+1,9)) -> 0 | EZ124: TRUE
D125: Growth Media Placement | J125: =INDEX(INDIRECT("_"&$A$29&"Table7"),B121+1,11) -> 415884 | K125: =IF(OR(J125="",K121="",ISTEXT(K121),J125=0),"",IF(OR(ISBLANK(M125),ISBLANK(N125)),"Enter Dates",IF(K121="Date Range","",IF(OR(AND(CostType=ARO,L121>ScheduleYear),AND(CostType=ARO,N125<=ScheduleYear)),"Date Range",IF(OR(AND(CostType=Bond,O125>ScheduleYear),AND(CostType=LOM,LOMComplete)),J125,J125-Q125))))) -> 415884 | M125: 14 | N125: 15 | P125: 1 | Q125: 0 | R125: 0 | AG125: 0.5 | AH125: 0.5 | EA125: 1 | EB125: =IF(OR(J125="",EB121="",ISTEXT(EB121)),0,IF(OR(ISBLANK(M125),ISBLANK(N125)),0,IF(OR(AND(CostType=ARO,L121>ScheduleYear),AND(OR(CostType=ARO,AND(CostType=LOM,LOMComplete=TRUE)),N125<=ScheduleYear)),0,J125))) -> 415884 | EC125: =IF(OR(J125="",EC121="",ISTEXT(EC121)),0,IF(OR(ISBLANK(M125),ISBLANK(N125)),0,IF(EC121="Date Range",0,IF(OR(AND(CostType=ARO,L121>ScheduleYear),N125<=ScheduleYear),0,J125)))) ->  | EM125: GM | EN125: GM | EO125: =IF(ISNUMBER(K125),INDEX(INDIRECT("_"&$A$29&"Table7"),B121+1,3),0) -> 127582 | EP125: =IF(Metric,"m3","cy") -> cy | EQ125: =INDEX(INDIRECT("_"&$A$29&"Table7"),B121+1,4) -> 777G/992K/D9T | ER125: =IF(OR(NOT(ISNUMBER(K125)),K125=0),0,INDEX(INDIRECT("_"&$A$29&"Table7"),B121+1,6)) -> 5 | ES125: =IF(OR(NOT(ISNUMBER(K125)),K125=0),0,INDEX(INDIRECT("_"&$A$29&"Table7"),B121+1,8)) -> 118 | EZ125: TRUE
D126: Ripping/Scarifying | J126: =INDEX(INDIRECT("_"&$A$29&"Table8"),B121+1,13) -> 4031 | K126: =IF(OR(J126="",K121="",ISTEXT(K121),J126=0),"",IF(OR(ISBLANK(M126),ISBLANK(N126)),"Enter Dates",IF(K121="Date Range","",IF(OR(AND(CostType=ARO,L121>ScheduleYear),AND(CostType=ARO,N126<=ScheduleYear)),"Date Range",IF(OR(AND(CostType=Bond,O126>ScheduleYear),AND(CostType=LOM,LOMComplete)),J126,J126-Q126))))) -> 4031 | M126: 14 | N126: 15 | P126: 1 | Q126: 0 | R126: 0 | AG126: 0.5 | AH126: 0.5 | EA126: 1 | EB126: =IF(OR(J126="",EB121="",ISTEXT(EB121)),0,IF(OR(ISBLANK(M126),ISBLANK(N126)),0,IF(OR(AND(CostType=ARO,L121>ScheduleYear),AND(OR(CostType=ARO,AND(CostType=LOM,LOMComplete=TRUE)),N126<=ScheduleYear)),0,J126))) -> 4031 | EC126: =IF(OR(J126="",EC121="",ISTEXT(EC121)),0,IF(OR(ISBLANK(M126),ISBLANK(N126)), 0,IF(EC121="Date Range",0,IF(OR(AND(CostType=ARO,L121>ScheduleYear),N126<=ScheduleYear),0,J126)))) ->  | EM126: Rip | EN126: Rip | EO126: =IF(ISNUMBER(K126),INDEX(INDIRECT("_"&$A$29&"Table8"),B121+1,5),0) -> 26.36 | EP126: =IF(Metric,"ha","acres") -> acres | EQ126: =INDEX(INDIRECT("_"&$A$29&"Table8"),B121+1,8) -> 14M | ES126: =IF(OR(NOT(ISNUMBER(K126)),K126=0),0,INDEX(INDIRECT("_"&$A$29&"Table8"),B121+1,9)+INDEX(INDIRECT("_"&$A$29&"Table8"),B121+1,10)) -> 20 | EZ126: TRUE
D127: Revegetation | J127: =INDEX(INDIRECT("_"&$A$29&"Table8"),B121+1,17) -> 30479 | K127: =IF(OR(J127="",K121="",ISTEXT(K121),J127=0),"",IF(OR(ISBLANK(M127),ISBLANK(N127)),"Enter Dates",IF(K121="Date Range","",IF(OR(AND(CostType=ARO,L121>ScheduleYear),AND(CostType=ARO,N127<=ScheduleYear)),"Date Range",IF(OR(AND(CostType=Bond,O127>ScheduleYear),AND(CostType=LOM,LOMComplete)),J127,J127-Q127))))) -> 30479 | M127: 14 | N127: 15 | P127: 1 | Q127: 0 | R127: 0 | AG127: 0.5 | AH127: 0.5 | EA127: 1 | EB127: =IF(OR(J127="",EB121="",ISTEXT(EB121)),0,IF(OR(ISBLANK(M127),ISBLANK(N127)),0,IF(OR(AND(CostType=ARO,L121>ScheduleYear),AND(OR(CostType=ARO,AND(CostType=LOM,LOMComplete=TRUE)),N127<=ScheduleYear)),0,J127))) -> 30479 | EC127: =IF(OR(J127="",EC121="",ISTEXT(EC121)),0,IF(OR(ISBLANK(M127),ISBLANK(N127)), 0,IF(EC121="Date Range",0,IF(OR(AND(CostType=ARO,L121>ScheduleYear),N127<=ScheduleYear),0,J127)))) ->  | EM127: Reveg | EN127: Reveg | EO127: =IF(ISNUMBER(K127),INDEX(INDIRECT("_"&$A$29&"Table8"),B121+1,5),0) -> 26.36 | EP127: =IF(Metric,"ha","acres") -> acres | EZ127: TRUE
B128: =(ROW(B128) - ROW($A$29)-1)/INDEX(SheetRangeIndex,MATCH($A$29,TableNamesSorted,0),7) -> 14 | C128: =INDEX(INDIRECT("_"&$A$29&"Table1"),B128+1,9) -> FA | D128: =INDEX(INDIRECT("_"&$A$29&"Table1"),B128+1,2) -> WRSP3-MB3 | E128: =IF(ISBLANK(INDEX(INDIRECT("_"&$A$29&"Table1"),B128+1,3)),"",INDEX(INDIRECT("_"&$A$29&"Table1"),B128+1,3)) -> WRSP3 | F128: =IF(ISERROR(EL128),"Facility Type",IF(ISBLANK(INDEX(INDIRECT("_"&$A$29&"Table1"),B128+1,5)),"",INDEX(INDIRECT("_"&$A$29&"Table1"),B128+1,5))) -> WRD | G128: =IF(ISBLANK(INDEX(INDIRECT("_"&$A$29&"Table1"),B128+1,6)),"",INDEX(INDIRECT("_"&$A$29&"Table1"),B128+1,6)) -> Concurrent WRSP-3 | H128: =IF(ISBLANK(INDEX(INDIRECT("_"&$A$29&"Table1"),B128+1,7)),"",INDEX(INDIRECT("_"&$A$29&"Table1"),B128+1,7)) ->  | I128: =IF(ISBLANK(INDEX(INDIRECT("_"&$A$29&"Table1"),B128+1,8)),"",INDEX(INDIRECT("_"&$A$29&"Table1"),B128+1,8)) ->  | J128: =SUM(J129:J134) -> 455182 | K128: =IF(ISERR(ED128),"Cost Type",IF(A128="X","Override",IF(AND(CostType=ARO,L128>ScheduleYear),"Date Range",IF(AND(ISTEXT(LocationFilter),ISERROR(EI128)),"Location",IF(AND(ISTEXT(PropertyFilter),ISERROR(EJ128)),"Property",IF(AND(ISTEXT(FacilityTypeFilter),ISERROR(EG128)),"Facility Type",IF(AND(NOT(ISBLANK(IDCodeFilter)),ISERROR(EF128)),"ID Code",IF(AND(ISTEXT(PhaseFilter),ISERROR(EH128)),"Phase",IF(AND(CostType=LOM,LOMComplete),J128,SUM(T128:DO128)))))))))) -> 455182 | L128: =INDEX(INDIRECT("_"&$A$29&"Table1"),B128+1,4) -> 0 | Q128: =SUM(Q129:Q134) -> 0 | T128: =IF(ISTEXT($EB128),0,IF(AND(CostType=LOM,LOMComplete,T$27<=ScheduleYear),SUMPRODUCT(T129:T134,$J129:$J134),IF(CostType=Bond,SUMPRODUCT($EB129:$EB134,T129:T134,$EA129:$EA134),IF(T$27<=ScheduleYear,0,SUMPRODUCT(T129:T134,$EB129:$EB134))))) -> 0 | U128: 0 | V128: 0 | W128: 0 | X128: 0 | Y128: 0 | Z128: 0 | AA128: 0 | AB128: 10582.5 | AC128: 10582.5 | AD128: 10582.5 | AE128: 10582.5 | AF128: 0 | AG128: 206426 | AH128: 206426 | AI128: 0 | AJ128: 0 | AK128: 0 | AL128: 0 | AM128: 0 | AN128: 0 | AO128: 0 | AP128: 0 | AQ128: 0 | AR128: 0 | AS128: 0 | AT128: 0 | AU128: 0 | AV128: 0 | AW128: 0 | AX128: 0 | AY128: 0 | AZ128: =IF(ISTEXT($EB128),0,IF(AND(CostType=LOM,LOMComplete,AZ$27<=ScheduleYear),SUMPRODUCT(AZ129:AZ134,$J129:$J134),IF(CostType=Bond,SUMPRODUCT($EB129:$EB134,AZ129:AZ134,$EA129:$EA134),IF(AZ$27<=ScheduleYear,0,SUMPRODUCT(AZ129:AZ134,$EB129:$EB134))))) -> 0 | BA128: 0 | BB128: 0 | BC128: 0 | BD128: 0 | BE128: 0 | BF128: 0 | BG128: 0 | BH128: 0 | BI128: 0 | BJ128: 0 | BK128: 0 | BL128: 0 | BM128: 0 | BN128: 0 | BO128: 0 | BP128: 0 | BQ128: 0 | BR128: 0 | BS128: 0 | BT128: 0 | BU128: 0 | BV128: 0 | BW128: 0 | BX128: 0 | BY128: 0 | BZ128: 0 | CA128: 0 | CB128: 0 | CC128: 0 | CD128: 0 | CE128: 0 | CF128: =IF(ISTEXT($EB128),0,IF(AND(CostType=LOM,LOMComplete,CF$27<=ScheduleYear),SUMPRODUCT(CF129:CF134,$J129:$J134),IF(CostType=Bond,SUMPRODUCT($EB129:$EB134,CF129:CF134,$EA129:$EA134),IF(CF$27<=ScheduleYear,0,SUMPRODUCT(CF129:CF134,$EB129:$EB134))))) -> 0 | CG128: 0 | CH128: 0 | CI128: 0 | CJ128: 0 | CK128: 0 | CL128: 0 | CM128: 0 | CN128: 0 | CO128: 0 | CP128: 0 | CQ128: 0 | CR128: 0 | CS128: 0 | CT128: 0 | CU128: 0 | CV128: 0 | CW128: 0 | CX128: 0 | CY128: 0 | CZ128: 0 | DA128: 0 | DB128: 0 | DC128: 0 | DD128: 0 | DE128: 0 | DF128: 0 | DG128: 0 | DH128: 0 | DI128: 0 | DJ128: 0 | DK128: 0 | DL128: =IF(ISTEXT($EB128),0,IF(AND(CostType=LOM,LOMComplete,DL$27<=ScheduleYear),SUMPRODUCT(DL129:DL134,$J129:$J134),IF(CostType=Bond,SUMPRODUCT($EB129:$EB134,DL129:DL134,$EA129:$EA134),IF(DL$27<=ScheduleYear,0,SUMPRODUCT(DL129:DL134,$EB129:$EB134))))) -> 0 | DM128: 0 | DN128: 0 | DO128: 0 | DP128: =IF(ISNUMBER(K128),SUM(T128:DO128)-K128,K128) -> 0 | EB128: =IF(ISERR(ED128),"Cost Type",IF(A128="X","Override",IF(AND(CostType=ARO,L128>ScheduleYear),0,IF(AND(ISTEXT(LocationFilter),ISERROR(EI128)),"Location",IF(AND(ISTEXT(PropertyFilter),ISERROR(EJ128)),"Property",IF(AND(ISTEXT(FacilityTypeFilter),ISERROR(EG128)),"Facility Type",IF(AND(ISTEXT(IDCodeFilter),ISERROR(EF128)),"ID Code",IF(AND(ISTEXT(PhaseFilter),ISERROR(EH128)),"Phase",J128)))))))) -> 455182 | EC128: =IF(EE128="","Cost Type",IF(A128="X","Override",IF(AND(OtherCostType=ARO,L128>ScheduleYear),0,IF(AND(ISTEXT(LocationFilter),EI128=""),"Location",IF(AND(ISTEXT(PropertyFilter),EJ128=""),"Property",IF(AND(ISTEXT(FacilityTypeFilter),EG128=""),"Facility Type",IF(AND(ISTEXT(IDCodeFilter),EF128=""),"ID Code",IF(AND(ISTEXT(PhaseFilter),EH128=""),"Phase",J128)))))))) ->  | ED128: =SEARCH(CostType,C128) -> 1 | EE128: =SEARCH(OtherCostType,C128) ->  | EF128: =IF(AND(IDCodeFilterType="CONTAINS",NOT(ISERROR(SEARCH(IDCodeFilter,E128)))),1,IF(AND(IDCodeFilterType="NOT",ISERROR(SEARCH(IDCodeFilter,E128))),1,IF(AND(OR(IDCodeFilterType="EXACT",ISBLANK(IDCodeFilterType)),NOT(ISERROR(MATCH(IDCodeFilter,E128,0)))),1,$EK128))) ->  | EG128: =IF(AND(FacilityFilterType="CONTAINS",NOT(ISERROR(SEARCH(FacilityTypeFilter,F128)))),1,IF(AND(FacilityFilterType="NOT",ISERROR(SEARCH(FacilityTypeFilter,F128))),1,IF(AND(OR(FacilityFilterType="EXACT",ISBLANK(FacilityFilterType)),NOT(ISERROR(MATCH(FacilityTypeFilter,F128,0)))),1,$EK128))) ->  | EH128: =IF(AND(PhaseFilterType="CONTAINS",NOT(ISERROR(SEARCH(PhaseFilter,G128)))),1,IF(AND(PhaseFilterType="NOT",ISERROR(SEARCH(PhaseFilter,G128))),1,IF(AND(OR(PhaseFilterType="EXACT",ISBLANK(PhaseFilterType)),NOT(ISERROR(MATCH(PhaseFilter,G128,0)))),1,$EK128))) ->  | EI128: =IF(AND(LocationFilterType="CONTAINS",NOT(ISERROR(SEARCH(LocationFilter,H128)))),1,IF(AND(LocationFilterType="NOT",ISERROR(SEARCH(LocationFilter,H128))),1,IF(AND(OR(LocationFilterType="EXACT",ISBLANK(LocationFilterType)),NOT(ISERROR(MATCH(LocationFilter,H128,0)))),1,$EK128))) ->  | EJ128: =IF(AND(PropertyFilterType="CONTAINS",NOT(ISERROR(SEARCH(PropertyFilter,I128)))),1,IF(AND(PropertyFilterType="NOT",ISERROR(SEARCH(PropertyFilter,I128))),1,IF(AND(OR(PropertyFilterType="EXACT",ISBLANK(PropertyFilterType)),NOT(ISERROR(MATCH(PropertyFilter,I128,0)))),1,$EK128))) ->  | EK128: =MATCH("NOT",$EK$27,0) ->  | EL128: =IF(ISBLANK(INDEX(INDIRECT("_"&$A$29&"Table1"),B128+1,2)),"",MATCH(INDEX(INDIRECT("_"&$A$29&"Table1"),B128+1,5),Accounts,0)) -> 2 | EM128: Surf Area | EN128: Surf Area | EO128: =IF(ISNUMBER(K134),INDEX(INDIRECT("_"&$A$29&"Table8"),B128+1,5),"") -> 24.25 | EP128: =IF(Metric,"ha","acres") -> acres | EZ128: FALSE | FA128: 1
D129: Regrading | J129: =IF(INDEX(INDIRECT("_"&$A$29&"Table4"),B128+1,15)=0,0,INDEX(INDIRECT("_"&$A$29&"Table4"),B128+1,15)) -> 42330 | K129: =IF(OR(J129="",K128="",ISTEXT(K128),J129=0),"",IF(OR(ISBLANK(M129),ISBLANK(N129)),"Enter Dates",IF(K128="Date Range","",IF(OR(AND(CostType=ARO,L128>ScheduleYear),AND(CostType=ARO,N129<=ScheduleYear)),"Date Range",IF(OR(AND(CostType=Bond,O129>ScheduleYear),AND(CostType=LOM,LOMComplete)),J129,J129-Q129))))) -> 42330 | M129: 9 | N129: 12 | P129: =IF(K129="","",SUM(T129:DO129)) -> 1 | Q129: =IF(OR(AND(CostType=ARO,N129<=ScheduleYear),AND(CostType=LOM,LOMComplete)),J129*R129,R129*EB129) -> 0 | R129: =IF(CostType=Bond,SUMIFS(T129:DP129,T$27:DP$27,"<="&O129,T$27:DP$27,"<="&ScheduleYear),SUMIF(T$27:DP$27,"<="&ScheduleYear,T129:DP129)) -> 0 | AB129: 0.25 | AC129: 0.25 | AD129: 0.25 | AE129: 0.25 | EA129: 1 | EB129: =IF(OR(J129="",EB128="",ISTEXT(EB128)),0,IF(OR(ISBLANK(M129),ISBLANK(N129)),0,IF(OR(AND(CostType=ARO,L128>ScheduleYear),AND(OR(CostType=ARO,AND(CostType=LOM,LOMComplete=TRUE)),N129<=ScheduleYear)),0,J129))) -> 42330 | EC129: =IF(OR(J129="",EC128="",ISTEXT(EC128)),0,IF(OR(ISBLANK(M129),ISBLANK(N129)),0,IF(EC128="Date Range",0,IF(OR(AND(OtherCostType=ARO,L128>ScheduleYear),N129<=ScheduleYear),0,J129)))) ->  | EM129: Regrade | EN129: Regrade | EO129: =IF(ISNUMBER(K129),IF(INDEX(INDIRECT("_"&$A$29&"Table4"),B128+1,3)=0,0,INDEX(INDIRECT("_"&$A$29&"Table4"),B128+1,3)),0) -> 132048 | EP129: =IF(Metric,"m3","cy") -> cy | EQ129: =INDEX(INDIRECT("_"&$A$29&"Table4"),B128+1,5) -> D9T | ES129: =IF(OR(NOT(ISNUMBER(K129)),K129=0),0,INDEX(INDIRECT("_"&$A$29&"Table4"),B128+1,12)) -> 179 | EW129: =IF(ISNUMBER($K129),INDEX(INDIRECT("_"&$A$29&"Table4"),B128+1,13),0) -> 4647 | EX129: =IF(ISNUMBER($K129),INDEX(INDIRECT("_"&$A$29&"Table4"),B128+1,14),0) -> 37683 | EZ129: TRUE
D130: Cover 1 Placement | J130: =INDEX(INDIRECT("_"&$A$29&"Table5"),B128+1,25) -> 0 | K130: =IF(OR(J130="",K128="",ISTEXT(K128),J130=0),"",IF(OR(ISBLANK(M130),ISBLANK(N130)),"Enter Dates",IF(K128="Date Range","",IF(OR(AND(CostType=ARO,L128>ScheduleYear),AND(CostType=ARO,N130<=ScheduleYear)),"Date Range",IF(OR(AND(CostType=Bond,O130>ScheduleYear),AND(CostType=LOM,LOMComplete)),J130,J130-Q130))))) ->  | M130: 14 | N130: 15 | Q130: 0 | R130: 0 | AG130: 0.5 | AH130: 0.5 | EA130: 1 | EB130: =IF(OR(J130="",EB128="",ISTEXT(EB128)),0,IF(OR(ISBLANK(M130),ISBLANK(N130)),0,IF(OR(AND(CostType=ARO,L128>ScheduleYear),AND(OR(CostType=ARO,AND(CostType=LOM,LOMComplete=TRUE)),N130<=ScheduleYear)),0,J130))) -> 0 | EC130: =IF(OR(J130="",EC128="",ISTEXT(EC128)),0,IF(OR(ISBLANK(M130),ISBLANK(N130)),0,IF(EC128="Date Range",0,IF(OR(AND(CostType=ARO,L128>ScheduleYear),N130<=ScheduleYear),0,J130)))) ->  | EM130: Cover | EN130: Cover | EO130: =IF(ISNUMBER(K130),INDEX(INDIRECT("_"&$A$29&"Table5"),B128+1,4),0) -> 0 | EP130: =IF(Metric,"m3","cy") -> cy | EQ130: =INDEX(INDIRECT("_"&$A$29&"Table5"),B128+1,10) ->  | ER130: =IF(OR(NOT(ISNUMBER(K130)),K130=0),0,INDEX(INDIRECT("_"&$A$29&"Table5"),B128+1,12)) -> 0 | ES130: =IF(OR(NOT(ISNUMBER(K130)),K130=0),0,INDEX(INDIRECT("_"&$A$29&"Table5"),B128+1,14)) -> 0 | ET130: =INDEX(INDIRECT("_"&$A$29&"Table5"),B128+1,5) ->  | EU130: =IF(OR(NOT(ISNUMBER(K130)),K130=0),0,INDEX(INDIRECT("_"&$A$29&"Table5"),B128+1,7)) -> 0 | EV130: =IF(OR(NOT(ISNUMBER(K130)),K130=0),0,INDEX(INDIRECT("_"&$A$29&"Table5"),B128+1,9)) -> 0 | EW130: =IF(ISNUMBER($K130),INDEX(INDIRECT("_"&$A$29&"Table5"),B128+1,15)+INDEX(INDIRECT("_"&$A$29&"Table5"),B128+1,19)+INDEX(INDIRECT("_"&$A$29&"Table5"),B128+1,22),0) -> 0 | EX130: =IF(ISNUMBER($K129),INDEX(INDIRECT("_"&$A$29&"Table5"),B128+1,16)+INDEX(INDIRECT("_"&$A$29&"Table5"),B128+1,20)+INDEX(INDIRECT("_"&$A$29&"Table5"),B128+1,23),0) -> 0 | EZ130: TRUE
D131: Cover 2 Placement | J131: =INDEX(INDIRECT("_"&$A$29&"Table6"),B128+1,25) -> 0 | K131: =IF(OR(J131="",K128="",ISTEXT(K128),J131=0),"",IF(OR(ISBLANK(M131),ISBLANK(N131)),"Enter Dates",IF(K128="Date Range","",IF(OR(AND(CostType=ARO,L128>ScheduleYear),AND(CostType=ARO,N131<=ScheduleYear)),"Date Range",IF(OR(AND(CostType=Bond,O131>ScheduleYear),AND(CostType=LOM,LOMComplete)),J131,J131-Q131))))) ->  | M131: 14 | N131: 15 | Q131: 0 | R131: 0 | AG131: 0.5 | AH131: 0.5 | EA131: 1 | EB131: =IF(OR(J131="",EB128="",ISTEXT(EB128)),0,IF(OR(ISBLANK(M131),ISBLANK(N131)),0,IF(OR(AND(CostType=ARO,L128>ScheduleYear),AND(OR(CostType=ARO,AND(CostType=LOM,LOMComplete=TRUE)),N131<=ScheduleYear)),0,J131))) -> 0 | EC131: =IF(OR(J131="",EC128="",ISTEXT(EC128)),0,IF(OR(ISBLANK(M131),ISBLANK(N131)),0,IF(EC128="Date Range",0,IF(OR(AND(CostType=ARO,L128>ScheduleYear),N131<=ScheduleYear),0,J131)))) ->  | EM131: Cover | EN131: Cover | EO131: =IF(ISNUMBER(K131),INDEX(INDIRECT("_"&$A$29&"Table6"),B128+1,4),0) -> 0 | EP131: =IF(Metric,"m3","cy") -> cy | EQ131: =INDEX(INDIRECT("_"&$A$29&"Table6"),B128+1,10) ->  | ER131: =IF(OR(NOT(ISNUMBER(K131)),K131=0),0,INDEX(INDIRECT("_"&$A$29&"Table6"),B128+1,12)) -> 0 | ES131: =IF(OR(NOT(ISNUMBER(K131)),K131=0),0,INDEX(INDIRECT("_"&$A$29&"Table6"),B128+1,14)) -> 0 | ET131: =INDEX(INDIRECT("_"&$A$29&"Table6"),B128+1,5) ->  | EU131: =IF(OR(NOT(ISNUMBER(K131)),K131=0),0,INDEX(INDIRECT("_"&$A$29&"Table6"),B128+1,7)) -> 0 | EV131: =IF(OR(NOT(ISNUMBER(K131)),K131=0),0,INDEX(INDIRECT("_"&$A$29&"Table6"),B128+1,9)) -> 0 | EZ131: TRUE
D132: Growth Media Placement | J132: =INDEX(INDIRECT("_"&$A$29&"Table7"),B128+1,11) -> 380640 | K132: =IF(OR(J132="",K128="",ISTEXT(K128),J132=0),"",IF(OR(ISBLANK(M132),ISBLANK(N132)),"Enter Dates",IF(K128="Date Range","",IF(OR(AND(CostType=ARO,L128>ScheduleYear),AND(CostType=ARO,N132<=ScheduleYear)),"Date Range",IF(OR(AND(CostType=Bond,O132>ScheduleYear),AND(CostType=LOM,LOMComplete)),J132,J132-Q132))))) -> 380640 | M132: 14 | N132: 15 | P132: 1 | Q132: 0 | R132: 0 | AG132: 0.5 | AH132: 0.5 | EA132: 1 | EB132: =IF(OR(J132="",EB128="",ISTEXT(EB128)),0,IF(OR(ISBLANK(M132),ISBLANK(N132)),0,IF(OR(AND(CostType=ARO,L128>ScheduleYear),AND(OR(CostType=ARO,AND(CostType=LOM,LOMComplete=TRUE)),N132<=ScheduleYear)),0,J132))) -> 380640 | EC132: =IF(OR(J132="",EC128="",ISTEXT(EC128)),0,IF(OR(ISBLANK(M132),ISBLANK(N132)),0,IF(EC128="Date Range",0,IF(OR(AND(CostType=ARO,L128>ScheduleYear),N132<=ScheduleYear),0,J132)))) ->  | EM132: GM | EN132: GM | EO132: =IF(ISNUMBER(K132),INDEX(INDIRECT("_"&$A$29&"Table7"),B128+1,3),0) -> 117370 | EP132: =IF(Metric,"m3","cy") -> cy | EQ132: =INDEX(INDIRECT("_"&$A$29&"Table7"),B128+1,4) -> 777G/992K/D9T | ER132: =IF(OR(NOT(ISNUMBER(K132)),K132=0),0,INDEX(INDIRECT("_"&$A$29&"Table7"),B128+1,6)) -> 5 | ES132: =IF(OR(NOT(ISNUMBER(K132)),K132=0),0,INDEX(INDIRECT("_"&$A$29&"Table7"),B128+1,8)) -> 108 | EZ132: TRUE
D133: Ripping/Scarifying | J133: =INDEX(INDIRECT("_"&$A$29&"Table8"),B128+1,13) -> 4031 | K133: =IF(OR(J133="",K128="",ISTEXT(K128),J133=0),"",IF(OR(ISBLANK(M133),ISBLANK(N133)),"Enter Dates",IF(K128="Date Range","",IF(OR(AND(CostType=ARO,L128>ScheduleYear),AND(CostType=ARO,N133<=ScheduleYear)),"Date Range",IF(OR(AND(CostType=Bond,O133>ScheduleYear),AND(CostType=LOM,LOMComplete)),J133,J133-Q133))))) -> 4031 | M133: 14 | N133: 15 | P133: 1 | Q133: 0 | R133: 0 | AG133: 0.5 | AH133: 0.5 | EA133: 1 | EB133: =IF(OR(J133="",EB128="",ISTEXT(EB128)),0,IF(OR(ISBLANK(M133),ISBLANK(N133)),0,IF(OR(AND(CostType=ARO,L128>ScheduleYear),AND(OR(CostType=ARO,AND(CostType=LOM,LOMComplete=TRUE)),N133<=ScheduleYear)),0,J133))) -> 4031 | EC133: =IF(OR(J133="",EC128="",ISTEXT(EC128)),0,IF(OR(ISBLANK(M133),ISBLANK(N133)), 0,IF(EC128="Date Range",0,IF(OR(AND(CostType=ARO,L128>ScheduleYear),N133<=ScheduleYear),0,J133)))) ->  | EM133: Rip | EN133: Rip | EO133: =IF(ISNUMBER(K133),INDEX(INDIRECT("_"&$A$29&"Table8"),B128+1,5),0) -> 24.25 | EP133: =IF(Metric,"ha","acres") -> acres | EQ133: =INDEX(INDIRECT("_"&$A$29&"Table8"),B128+1,8) -> 14M | ES133: =IF(OR(NOT(ISNUMBER(K133)),K133=0),0,INDEX(INDIRECT("_"&$A$29&"Table8"),B128+1,9)+INDEX(INDIRECT("_"&$A$29&"Table8"),B128+1,10)) -> 20 | EZ133: TRUE
D134: Revegetation | J134: =INDEX(INDIRECT("_"&$A$29&"Table8"),B128+1,17) -> 28181 | K134: =IF(OR(J134="",K128="",ISTEXT(K128),J134=0),"",IF(OR(ISBLANK(M134),ISBLANK(N134)),"Enter Dates",IF(K128="Date Range","",IF(OR(AND(CostType=ARO,L128>ScheduleYear),AND(CostType=ARO,N134<=ScheduleYear)),"Date Range",IF(OR(AND(CostType=Bond,O134>ScheduleYear),AND(CostType=LOM,LOMComplete)),J134,J134-Q134))))) -> 28181 | M134: 14 | N134: 15 | P134: 1 | Q134: 0 | R134: 0 | AG134: 0.5 | AH134: 0.5 | EA134: 1 | EB134: =IF(OR(J134="",EB128="",ISTEXT(EB128)),0,IF(OR(ISBLANK(M134),ISBLANK(N134)),0,IF(OR(AND(CostType=ARO,L128>ScheduleYear),AND(OR(CostType=ARO,AND(CostType=LOM,LOMComplete=TRUE)),N134<=ScheduleYear)),0,J134))) -> 28181 | EC134: =IF(OR(J134="",EC128="",ISTEXT(EC128)),0,IF(OR(ISBLANK(M134),ISBLANK(N134)), 0,IF(EC128="Date Range",0,IF(OR(AND(CostType=ARO,L128>ScheduleYear),N134<=ScheduleYear),0,J134)))) ->  | EM134: Reveg | EN134: Reveg | EO134: =IF(ISNUMBER(K134),INDEX(INDIRECT("_"&$A$29&"Table8"),B128+1,5),0) -> 24.25 | EP134: =IF(Metric,"ha","acres") -> acres | EZ134: TRUE
B135: =(ROW(B135) - ROW($A$29)-1)/INDEX(SheetRangeIndex,MATCH($A$29,TableNamesSorted,0),7) -> 15 | C135: =INDEX(INDIRECT("_"&$A$29&"Table1"),B135+1,9) -> FA | D135: =INDEX(INDIRECT("_"&$A$29&"Table1"),B135+1,2) -> WRSP3-MB4 | E135: =IF(ISBLANK(INDEX(INDIRECT("_"&$A$29&"Table1"),B135+1,3)),"",INDEX(INDIRECT("_"&$A$29&"Table1"),B135+1,3)) -> WRSP3 | F135: =IF(ISERROR(EL135),"Facility Type",IF(ISBLANK(INDEX(INDIRECT("_"&$A$29&"Table1"),B135+1,5)),"",INDEX(INDIRECT("_"&$A$29&"Table1"),B135+1,5))) -> WRD | G135: =IF(ISBLANK(INDEX(INDIRECT("_"&$A$29&"Table1"),B135+1,6)),"",INDEX(INDIRECT("_"&$A$29&"Table1"),B135+1,6)) -> Concurrent WRSP-3 | H135: =IF(ISBLANK(INDEX(INDIRECT("_"&$A$29&"Table1"),B135+1,7)),"",INDEX(INDIRECT("_"&$A$29&"Table1"),B135+1,7)) ->  | I135: =IF(ISBLANK(INDEX(INDIRECT("_"&$A$29&"Table1"),B135+1,8)),"",INDEX(INDIRECT("_"&$A$29&"Table1"),B135+1,8)) ->  | J135: =SUM(J136:J141) -> 251862 | K135: =IF(ISERR(ED135),"Cost Type",IF(A135="X","Override",IF(AND(CostType=ARO,L135>ScheduleYear),"Date Range",IF(AND(ISTEXT(LocationFilter),ISERROR(EI135)),"Location",IF(AND(ISTEXT(PropertyFilter),ISERROR(EJ135)),"Property",IF(AND(ISTEXT(FacilityTypeFilter),ISERROR(EG135)),"Facility Type",IF(AND(NOT(ISBLANK(IDCodeFilter)),ISERROR(EF135)),"ID Code",IF(AND(ISTEXT(PhaseFilter),ISERROR(EH135)),"Phase",IF(AND(CostType=LOM,LOMComplete),J135,SUM(T135:DO135)))))))))) -> 251862 | L135: =INDEX(INDIRECT("_"&$A$29&"Table1"),B135+1,4) -> 0 | Q135: =SUM(Q136:Q141) -> 0 | T135: =IF(ISTEXT($EB135),0,IF(AND(CostType=LOM,LOMComplete,T$27<=ScheduleYear),SUMPRODUCT(T136:T141,$J136:$J141),IF(CostType=Bond,SUMPRODUCT($EB136:$EB141,T136:T141,$EA136:$EA141),IF(T$27<=ScheduleYear,0,SUMPRODUCT(T136:T141,$EB136:$EB141))))) -> 0 | U135: 0 | V135: 0 | W135: 0 | X135: 0 | Y135: 0 | Z135: 0 | AA135: 0 | AB135: 5734.5 | AC135: 5734.5 | AD135: 5734.5 | AE135: 5734.5 | AF135: 0 | AG135: 114462 | AH135: 114462 | AI135: 0 | AJ135: 0 | AK135: 0 | AL135: 0 | AM135: 0 | AN135: 0 | AO135: 0 | AP135: 0 | AQ135: 0 | AR135: 0 | AS135: 0 | AT135: 0 | AU135: 0 | AV135: 0 | AW135: 0 | AX135: 0 | AY135: 0 | AZ135: =IF(ISTEXT($EB135),0,IF(AND(CostType=LOM,LOMComplete,AZ$27<=ScheduleYear),SUMPRODUCT(AZ136:AZ141,$J136:$J141),IF(CostType=Bond,SUMPRODUCT($EB136:$EB141,AZ136:AZ141,$EA136:$EA141),IF(AZ$27<=ScheduleYear,0,SUMPRODUCT(AZ136:AZ141,$EB136:$EB141))))) -> 0 | BA135: 0 | BB135: 0 | BC135: 0 | BD135: 0 | BE135: 0 | BF135: 0 | BG135: 0 | BH135: 0 | BI135: 0 | BJ135: 0 | BK135: 0 | BL135: 0 | BM135: 0 | BN135: 0 | BO135: 0 | BP135: 0 | BQ135: 0 | BR135: 0 | BS135: 0 | BT135: 0 | BU135: 0 | BV135: 0 | BW135: 0 | BX135: 0 | BY135: 0 | BZ135: 0 | CA135: 0 | CB135: 0 | CC135: 0 | CD135: 0 | CE135: 0 | CF135: =IF(ISTEXT($EB135),0,IF(AND(CostType=LOM,LOMComplete,CF$27<=ScheduleYear),SUMPRODUCT(CF136:CF141,$J136:$J141),IF(CostType=Bond,SUMPRODUCT($EB136:$EB141,CF136:CF141,$EA136:$EA141),IF(CF$27<=ScheduleYear,0,SUMPRODUCT(CF136:CF141,$EB136:$EB141))))) -> 0 | CG135: 0 | CH135: 0 | CI135: 0 | CJ135: 0 | CK135: 0 | CL135: 0 | CM135: 0 | CN135: 0 | CO135: 0 | CP135: 0 | CQ135: 0 | CR135: 0 | CS135: 0 | CT135: 0 | CU135: 0 | CV135: 0 | CW135: 0 | CX135: 0 | CY135: 0 | CZ135: 0 | DA135: 0 | DB135: 0 | DC135: 0 | DD135: 0 | DE135: 0 | DF135: 0 | DG135: 0 | DH135: 0 | DI135: 0 | DJ135: 0 | DK135: 0 | DL135: =IF(ISTEXT($EB135),0,IF(AND(CostType=LOM,LOMComplete,DL$27<=ScheduleYear),SUMPRODUCT(DL136:DL141,$J136:$J141),IF(CostType=Bond,SUMPRODUCT($EB136:$EB141,DL136:DL141,$EA136:$EA141),IF(DL$27<=ScheduleYear,0,SUMPRODUCT(DL136:DL141,$EB136:$EB141))))) -> 0 | DM135: 0 | DN135: 0 | DO135: 0 | DP135: =IF(ISNUMBER(K135),SUM(T135:DO135)-K135,K135) -> 0 | EB135: =IF(ISERR(ED135),"Cost Type",IF(A135="X","Override",IF(AND(CostType=ARO,L135>ScheduleYear),0,IF(AND(ISTEXT(LocationFilter),ISERROR(EI135)),"Location",IF(AND(ISTEXT(PropertyFilter),ISERROR(EJ135)),"Property",IF(AND(ISTEXT(FacilityTypeFilter),ISERROR(EG135)),"Facility Type",IF(AND(ISTEXT(IDCodeFilter),ISERROR(EF135)),"ID Code",IF(AND(ISTEXT(PhaseFilter),ISERROR(EH135)),"Phase",J135)))))))) -> 251862 | EC135: =IF(EE135="","Cost Type",IF(A135="X","Override",IF(AND(OtherCostType=ARO,L135>ScheduleYear),0,IF(AND(ISTEXT(LocationFilter),EI135=""),"Location",IF(AND(ISTEXT(PropertyFilter),EJ135=""),"Property",IF(AND(ISTEXT(FacilityTypeFilter),EG135=""),"Facility Type",IF(AND(ISTEXT(IDCodeFilter),EF135=""),"ID Code",IF(AND(ISTEXT(PhaseFilter),EH135=""),"Phase",J135)))))))) ->  | ED135: =SEARCH(CostType,C135) -> 1 | EE135: =SEARCH(OtherCostType,C135) ->  | EF135: =IF(AND(IDCodeFilterType="CONTAINS",NOT(ISERROR(SEARCH(IDCodeFilter,E135)))),1,IF(AND(IDCodeFilterType="NOT",ISERROR(SEARCH(IDCodeFilter,E135))),1,IF(AND(OR(IDCodeFilterType="EXACT",ISBLANK(IDCodeFilterType)),NOT(ISERROR(MATCH(IDCodeFilter,E135,0)))),1,$EK135))) ->  | EG135: =IF(AND(FacilityFilterType="CONTAINS",NOT(ISERROR(SEARCH(FacilityTypeFilter,F135)))),1,IF(AND(FacilityFilterType="NOT",ISERROR(SEARCH(FacilityTypeFilter,F135))),1,IF(AND(OR(FacilityFilterType="EXACT",ISBLANK(FacilityFilterType)),NOT(ISERROR(MATCH(FacilityTypeFilter,F135,0)))),1,$EK135))) ->  | EH135: =IF(AND(PhaseFilterType="CONTAINS",NOT(ISERROR(SEARCH(PhaseFilter,G135)))),1,IF(AND(PhaseFilterType="NOT",ISERROR(SEARCH(PhaseFilter,G135))),1,IF(AND(OR(PhaseFilterType="EXACT",ISBLANK(PhaseFilterType)),NOT(ISERROR(MATCH(PhaseFilter,G135,0)))),1,$EK135))) ->  | EI135: =IF(AND(LocationFilterType="CONTAINS",NOT(ISERROR(SEARCH(LocationFilter,H135)))),1,IF(AND(LocationFilterType="NOT",ISERROR(SEARCH(LocationFilter,H135))),1,IF(AND(OR(LocationFilterType="EXACT",ISBLANK(LocationFilterType)),NOT(ISERROR(MATCH(LocationFilter,H135,0)))),1,$EK135))) ->  | EJ135: =IF(AND(PropertyFilterType="CONTAINS",NOT(ISERROR(SEARCH(PropertyFilter,I135)))),1,IF(AND(PropertyFilterType="NOT",ISERROR(SEARCH(PropertyFilter,I135))),1,IF(AND(OR(PropertyFilterType="EXACT",ISBLANK(PropertyFilterType)),NOT(ISERROR(MATCH(PropertyFilter,I135,0)))),1,$EK135))) ->  | EK135: =MATCH("NOT",$EK$27,0) ->  | EL135: =IF(ISBLANK(INDEX(INDIRECT("_"&$A$29&"Table1"),B135+1,2)),"",MATCH(INDEX(INDIRECT("_"&$A$29&"Table1"),B135+1,5),Accounts,0)) -> 2 | EM135: Surf Area | EN135: Surf Area | EO135: =IF(ISNUMBER(K141),INDEX(INDIRECT("_"&$A$29&"Table8"),B135+1,5),"") -> 13.35 | EP135: =IF(Metric,"ha","acres") -> acres | EZ135: FALSE | FA135: 1
D136: Regrading | J136: =IF(INDEX(INDIRECT("_"&$A$29&"Table4"),B135+1,15)=0,0,INDEX(INDIRECT("_"&$A$29&"Table4"),B135+1,15)) -> 22938 | K136: =IF(OR(J136="",K135="",ISTEXT(K135),J136=0),"",IF(OR(ISBLANK(M136),ISBLANK(N136)),"Enter Dates",IF(K135="Date Range","",IF(OR(AND(CostType=ARO,L135>ScheduleYear),AND(CostType=ARO,N136<=ScheduleYear)),"Date Range",IF(OR(AND(CostType=Bond,O136>ScheduleYear),AND(CostType=LOM,LOMComplete)),J136,J136-Q136))))) -> 22938 | M136: 9 | N136: 12 | P136: =IF(K136="","",SUM(T136:DO136)) -> 1 | Q136: =IF(OR(AND(CostType=ARO,N136<=ScheduleYear),AND(CostType=LOM,LOMComplete)),J136*R136,R136*EB136) -> 0 | R136: =IF(CostType=Bond,SUMIFS(T136:DP136,T$27:DP$27,"<="&O136,T$27:DP$27,"<="&ScheduleYear),SUMIF(T$27:DP$27,"<="&ScheduleYear,T136:DP136)) -> 0 | AB136: 0.25 | AC136: 0.25 | AD136: 0.25 | AE136: 0.25 | EA136: 1 | EB136: =IF(OR(J136="",EB135="",ISTEXT(EB135)),0,IF(OR(ISBLANK(M136),ISBLANK(N136)),0,IF(OR(AND(CostType=ARO,L135>ScheduleYear),AND(OR(CostType=ARO,AND(CostType=LOM,LOMComplete=TRUE)),N136<=ScheduleYear)),0,J136))) -> 22938 | EC136: =IF(OR(J136="",EC135="",ISTEXT(EC135)),0,IF(OR(ISBLANK(M136),ISBLANK(N136)),0,IF(EC135="Date Range",0,IF(OR(AND(OtherCostType=ARO,L135>ScheduleYear),N136<=ScheduleYear),0,J136)))) ->  | EM136: Regrade | EN136: Regrade | EO136: =IF(ISNUMBER(K136),IF(INDEX(INDIRECT("_"&$A$29&"Table4"),B135+1,3)=0,0,INDEX(INDIRECT("_"&$A$29&"Table4"),B135+1,3)),0) -> 71568 | EP136: =IF(Metric,"m3","cy") -> cy | EQ136: =INDEX(INDIRECT("_"&$A$29&"Table4"),B135+1,5) -> D9T | ES136: =IF(OR(NOT(ISNUMBER(K136)),K136=0),0,INDEX(INDIRECT("_"&$A$29&"Table4"),B135+1,12)) -> 97 | EW136: =IF(ISNUMBER($K136),INDEX(INDIRECT("_"&$A$29&"Table4"),B135+1,13),0) -> 2518 | EX136: =IF(ISNUMBER($K136),INDEX(INDIRECT("_"&$A$29&"Table4"),B135+1,14),0) -> 20420 | EZ136: TRUE
D137: Cover 1 Placement | J137: =INDEX(INDIRECT("_"&$A$29&"Table5"),B135+1,25) -> 0 | K137: =IF(OR(J137="",K135="",ISTEXT(K135),J137=0),"",IF(OR(ISBLANK(M137),ISBLANK(N137)),"Enter Dates",IF(K135="Date Range","",IF(OR(AND(CostType=ARO,L135>ScheduleYear),AND(CostType=ARO,N137<=ScheduleYear)),"Date Range",IF(OR(AND(CostType=Bond,O137>ScheduleYear),AND(CostType=LOM,LOMComplete)),J137,J137-Q137))))) ->  | M137: 14 | N137: 15 | Q137: 0 | R137: 0 | AG137: 0.5 | AH137: 0.5 | EA137: 1 | EB137: =IF(OR(J137="",EB135="",ISTEXT(EB135)),0,IF(OR(ISBLANK(M137),ISBLANK(N137)),0,IF(OR(AND(CostType=ARO,L135>ScheduleYear),AND(OR(CostType=ARO,AND(CostType=LOM,LOMComplete=TRUE)),N137<=ScheduleYear)),0,J137))) -> 0 | EC137: =IF(OR(J137="",EC135="",ISTEXT(EC135)),0,IF(OR(ISBLANK(M137),ISBLANK(N137)),0,IF(EC135="Date Range",0,IF(OR(AND(CostType=ARO,L135>ScheduleYear),N137<=ScheduleYear),0,J137)))) ->  | EM137: Cover | EN137: Cover | EO137: =IF(ISNUMBER(K137),INDEX(INDIRECT("_"&$A$29&"Table5"),B135+1,4),0) -> 0 | EP137: =IF(Metric,"m3","cy") -> cy | EQ137: =INDEX(INDIRECT("_"&$A$29&"Table5"),B135+1,10) ->  | ER137: =IF(OR(NOT(ISNUMBER(K137)),K137=0),0,INDEX(INDIRECT("_"&$A$29&"Table5"),B135+1,12)) -> 0 | ES137: =IF(OR(NOT(ISNUMBER(K137)),K137=0),0,INDEX(INDIRECT("_"&$A$29&"Table5"),B135+1,14)) -> 0 | ET137: =INDEX(INDIRECT("_"&$A$29&"Table5"),B135+1,5) ->  | EU137: =IF(OR(NOT(ISNUMBER(K137)),K137=0),0,INDEX(INDIRECT("_"&$A$29&"Table5"),B135+1,7)) -> 0 | EV137: =IF(OR(NOT(ISNUMBER(K137)),K137=0),0,INDEX(INDIRECT("_"&$A$29&"Table5"),B135+1,9)) -> 0 | EW137: =IF(ISNUMBER($K137),INDEX(INDIRECT("_"&$A$29&"Table5"),B135+1,15)+INDEX(INDIRECT("_"&$A$29&"Table5"),B135+1,19)+INDEX(INDIRECT("_"&$A$29&"Table5"),B135+1,22),0) -> 0 | EX137: =IF(ISNUMBER($K136),INDEX(INDIRECT("_"&$A$29&"Table5"),B135+1,16)+INDEX(INDIRECT("_"&$A$29&"Table5"),B135+1,20)+INDEX(INDIRECT("_"&$A$29&"Table5"),B135+1,23),0) -> 0 | EZ137: TRUE
D138: Cover 2 Placement | J138: =INDEX(INDIRECT("_"&$A$29&"Table6"),B135+1,25) -> 0 | K138: =IF(OR(J138="",K135="",ISTEXT(K135),J138=0),"",IF(OR(ISBLANK(M138),ISBLANK(N138)),"Enter Dates",IF(K135="Date Range","",IF(OR(AND(CostType=ARO,L135>ScheduleYear),AND(CostType=ARO,N138<=ScheduleYear)),"Date Range",IF(OR(AND(CostType=Bond,O138>ScheduleYear),AND(CostType=LOM,LOMComplete)),J138,J138-Q138))))) ->  | M138: 14 | N138: 15 | Q138: 0 | R138: 0 | AG138: 0.5 | AH138: 0.5 | EA138: 1 | EB138: =IF(OR(J138="",EB135="",ISTEXT(EB135)),0,IF(OR(ISBLANK(M138),ISBLANK(N138)),0,IF(OR(AND(CostType=ARO,L135>ScheduleYear),AND(OR(CostType=ARO,AND(CostType=LOM,LOMComplete=TRUE)),N138<=ScheduleYear)),0,J138))) -> 0 | EC138: =IF(OR(J138="",EC135="",ISTEXT(EC135)),0,IF(OR(ISBLANK(M138),ISBLANK(N138)),0,IF(EC135="Date Range",0,IF(OR(AND(CostType=ARO,L135>ScheduleYear),N138<=ScheduleYear),0,J138)))) ->  | EM138: Cover | EN138: Cover | EO138: =IF(ISNUMBER(K138),INDEX(INDIRECT("_"&$A$29&"Table6"),B135+1,4),0) -> 0 | EP138: =IF(Metric,"m3","cy") -> cy | EQ138: =INDEX(INDIRECT("_"&$A$29&"Table6"),B135+1,10) ->  | ER138: =IF(OR(NOT(ISNUMBER(K138)),K138=0),0,INDEX(INDIRECT("_"&$A$29&"Table6"),B135+1,12)) -> 0 | ES138: =IF(OR(NOT(ISNUMBER(K138)),K138=0),0,INDEX(INDIRECT("_"&$A$29&"Table6"),B135+1,14)) -> 0 | ET138: =INDEX(INDIRECT("_"&$A$29&"Table6"),B135+1,5) ->  | EU138: =IF(OR(NOT(ISNUMBER(K138)),K138=0),0,INDEX(INDIRECT("_"&$A$29&"Table6"),B135+1,7)) -> 0 | EV138: =IF(OR(NOT(ISNUMBER(K138)),K138=0),0,INDEX(INDIRECT("_"&$A$29&"Table6"),B135+1,9)) -> 0 | EZ138: TRUE
D139: Growth Media Placement | J139: =INDEX(INDIRECT("_"&$A$29&"Table7"),B135+1,11) -> 211467 | K139: =IF(OR(J139="",K135="",ISTEXT(K135),J139=0),"",IF(OR(ISBLANK(M139),ISBLANK(N139)),"Enter Dates",IF(K135="Date Range","",IF(OR(AND(CostType=ARO,L135>ScheduleYear),AND(CostType=ARO,N139<=ScheduleYear)),"Date Range",IF(OR(AND(CostType=Bond,O139>ScheduleYear),AND(CostType=LOM,LOMComplete)),J139,J139-Q139))))) -> 211467 | M139: 14 | N139: 15 | P139: 1 | Q139: 0 | R139: 0 | AG139: 0.5 | AH139: 0.5 | EA139: 1 | EB139: =IF(OR(J139="",EB135="",ISTEXT(EB135)),0,IF(OR(ISBLANK(M139),ISBLANK(N139)),0,IF(OR(AND(CostType=ARO,L135>ScheduleYear),AND(OR(CostType=ARO,AND(CostType=LOM,LOMComplete=TRUE)),N139<=ScheduleYear)),0,J139))) -> 211467 | EC139: =IF(OR(J139="",EC135="",ISTEXT(EC135)),0,IF(OR(ISBLANK(M139),ISBLANK(N139)),0,IF(EC135="Date Range",0,IF(OR(AND(CostType=ARO,L135>ScheduleYear),N139<=ScheduleYear),0,J139)))) ->  | EM139: GM | EN139: GM | EO139: =IF(ISNUMBER(K139),INDEX(INDIRECT("_"&$A$29&"Table7"),B135+1,3),0) -> 64614 | EP139: =IF(Metric,"m3","cy") -> cy | EQ139: =INDEX(INDIRECT("_"&$A$29&"Table7"),B135+1,4) -> 777G/992K/D9T | ER139: =IF(OR(NOT(ISNUMBER(K139)),K139=0),0,INDEX(INDIRECT("_"&$A$29&"Table7"),B135+1,6)) -> 5 | ES139: =IF(OR(NOT(ISNUMBER(K139)),K139=0),0,INDEX(INDIRECT("_"&$A$29&"Table7"),B135+1,8)) -> 60 | EZ139: TRUE
D140: Ripping/Scarifying | J140: =INDEX(INDIRECT("_"&$A$29&"Table8"),B135+1,13) -> 2016 | K140: =IF(OR(J140="",K135="",ISTEXT(K135),J140=0),"",IF(OR(ISBLANK(M140),ISBLANK(N140)),"Enter Dates",IF(K135="Date Range","",IF(OR(AND(CostType=ARO,L135>ScheduleYear),AND(CostType=ARO,N140<=ScheduleYear)),"Date Range",IF(OR(AND(CostType=Bond,O140>ScheduleYear),AND(CostType=LOM,LOMComplete)),J140,J140-Q140))))) -> 2016 | M140: 14 | N140: 15 | P140: 1 | Q140: 0 | R140: 0 | AG140: 0.5 | AH140: 0.5 | EA140: 1 | EB140: =IF(OR(J140="",EB135="",ISTEXT(EB135)),0,IF(OR(ISBLANK(M140),ISBLANK(N140)),0,IF(OR(AND(CostType=ARO,L135>ScheduleYear),AND(OR(CostType=ARO,AND(CostType=LOM,LOMComplete=TRUE)),N140<=ScheduleYear)),0,J140))) -> 2016 | EC140: =IF(OR(J140="",EC135="",ISTEXT(EC135)),0,IF(OR(ISBLANK(M140),ISBLANK(N140)), 0,IF(EC135="Date Range",0,IF(OR(AND(CostType=ARO,L135>ScheduleYear),N140<=ScheduleYear),0,J140)))) ->  | EM140: Rip | EN140: Rip | EO140: =IF(ISNUMBER(K140),INDEX(INDIRECT("_"&$A$29&"Table8"),B135+1,5),0) -> 13.35 | EP140: =IF(Metric,"ha","acres") -> acres | EQ140: =INDEX(INDIRECT("_"&$A$29&"Table8"),B135+1,8) -> 14M | ES140: =IF(OR(NOT(ISNUMBER(K140)),K140=0),0,INDEX(INDIRECT("_"&$A$29&"Table8"),B135+1,9)+INDEX(INDIRECT("_"&$A$29&"Table8"),B135+1,10)) -> 10 | EZ140: TRUE
D141: Revegetation | J141: =INDEX(INDIRECT("_"&$A$29&"Table8"),B135+1,17) -> 15441 | K141: =IF(OR(J141="",K135="",ISTEXT(K135),J141=0),"",IF(OR(ISBLANK(M141),ISBLANK(N141)),"Enter Dates",IF(K135="Date Range","",IF(OR(AND(CostType=ARO,L135>ScheduleYear),AND(CostType=ARO,N141<=ScheduleYear)),"Date Range",IF(OR(AND(CostType=Bond,O141>ScheduleYear),AND(CostType=LOM,LOMComplete)),J141,J141-Q141))))) -> 15441 | M141: 14 | N141: 15 | P141: 1 | Q141: 0 | R141: 0 | AG141: 0.5 | AH141: 0.5 | EA141: 1 | EB141: =IF(OR(J141="",EB135="",ISTEXT(EB135)),0,IF(OR(ISBLANK(M141),ISBLANK(N141)),0,IF(OR(AND(CostType=ARO,L135>ScheduleYear),AND(OR(CostType=ARO,AND(CostType=LOM,LOMComplete=TRUE)),N141<=ScheduleYear)),0,J141))) -> 15441 | EC141: =IF(OR(J141="",EC135="",ISTEXT(EC135)),0,IF(OR(ISBLANK(M141),ISBLANK(N141)), 0,IF(EC135="Date Range",0,IF(OR(AND(CostType=ARO,L135>ScheduleYear),N141<=ScheduleYear),0,J141)))) ->  | EM141: Reveg | EN141: Reveg | EO141: =IF(ISNUMBER(K141),INDEX(INDIRECT("_"&$A$29&"Table8"),B135+1,5),0) -> 13.35 | EP141: =IF(Metric,"ha","acres") -> acres | EZ141: TRUE
B142: =(ROW(B142) - ROW($A$29)-1)/INDEX(SheetRangeIndex,MATCH($A$29,TableNamesSorted,0),7) -> 16 | C142: =INDEX(INDIRECT("_"&$A$29&"Table1"),B142+1,9) -> FA | D142: =INDEX(INDIRECT("_"&$A$29&"Table1"),B142+1,2) -> WRSP3-MB5 | E142: =IF(ISBLANK(INDEX(INDIRECT("_"&$A$29&"Table1"),B142+1,3)),"",INDEX(INDIRECT("_"&$A$29&"Table1"),B142+1,3)) -> WRSP3 | F142: =IF(ISERROR(EL142),"Facility Type",IF(ISBLANK(INDEX(INDIRECT("_"&$A$29&"Table1"),B142+1,5)),"",INDEX(INDIRECT("_"&$A$29&"Table1"),B142+1,5))) -> WRD | G142: =IF(ISBLANK(INDEX(INDIRECT("_"&$A$29&"Table1"),B142+1,6)),"",INDEX(INDIRECT("_"&$A$29&"Table1"),B142+1,6)) -> Concurrent WRSP-3 | H142: =IF(ISBLANK(INDEX(INDIRECT("_"&$A$29&"Table1"),B142+1,7)),"",INDEX(INDIRECT("_"&$A$29&"Table1"),B142+1,7)) ->  | I142: =IF(ISBLANK(INDEX(INDIRECT("_"&$A$29&"Table1"),B142+1,8)),"",INDEX(INDIRECT("_"&$A$29&"Table1"),B142+1,8)) ->  | J142: =SUM(J143:J148) -> 202593 | K142: =IF(ISERR(ED142),"Cost Type",IF(A142="X","Override",IF(AND(CostType=ARO,L142>ScheduleYear),"Date Range",IF(AND(ISTEXT(LocationFilter),ISERROR(EI142)),"Location",IF(AND(ISTEXT(PropertyFilter),ISERROR(EJ142)),"Property",IF(AND(ISTEXT(FacilityTypeFilter),ISERROR(EG142)),"Facility Type",IF(AND(NOT(ISBLANK(IDCodeFilter)),ISERROR(EF142)),"ID Code",IF(AND(ISTEXT(PhaseFilter),ISERROR(EH142)),"Phase",IF(AND(CostType=LOM,LOMComplete),J142,SUM(T142:DO142)))))))))) -> 202593 | L142: =INDEX(INDIRECT("_"&$A$29&"Table1"),B142+1,4) -> 0 | Q142: =SUM(Q143:Q148) -> 0 | T142: =IF(ISTEXT($EB142),0,IF(AND(CostType=LOM,LOMComplete,T$27<=ScheduleYear),SUMPRODUCT(T143:T148,$J143:$J148),IF(CostType=Bond,SUMPRODUCT($EB143:$EB148,T143:T148,$EA143:$EA148),IF(T$27<=ScheduleYear,0,SUMPRODUCT(T143:T148,$EB143:$EB148))))) -> 0 | U142: 0 | V142: 0 | W142: 0 | X142: 0 | Y142: 0 | Z142: 0 | AA142: 0 | AB142: 4788.75 | AC142: 4788.75 | AD142: 4788.75 | AE142: 4788.75 | AF142: 0 | AG142: 91719 | AH142: 91719 | AI142: 0 | AJ142: 0 | AK142: 0 | AL142: 0 | AM142: 0 | AN142: 0 | AO142: 0 | AP142: 0 | AQ142: 0 | AR142: 0 | AS142: 0 | AT142: 0 | AU142: 0 | AV142: 0 | AW142: 0 | AX142: 0 | AY142: 0 | AZ142: =IF(ISTEXT($EB142),0,IF(AND(CostType=LOM,LOMComplete,AZ$27<=ScheduleYear),SUMPRODUCT(AZ143:AZ148,$J143:$J148),IF(CostType=Bond,SUMPRODUCT($EB143:$EB148,AZ143:AZ148,$EA143:$EA148),IF(AZ$27<=ScheduleYear,0,SUMPRODUCT(AZ143:AZ148,$EB143:$EB148))))) -> 0 | BA142: 0 | BB142: 0 | BC142: 0 | BD142: 0 | BE142: 0 | BF142: 0 | BG142: 0 | BH142: 0 | BI142: 0 | BJ142: 0 | BK142: 0 | BL142: 0 | BM142: 0 | BN142: 0 | BO142: 0 | BP142: 0 | BQ142: 0 | BR142: 0 | BS142: 0 | BT142: 0 | BU142: 0 | BV142: 0 | BW142: 0 | BX142: 0 | BY142: 0 | BZ142: 0 | CA142: 0 | CB142: 0 | CC142: 0 | CD142: 0 | CE142: 0 | CF142: =IF(ISTEXT($EB142),0,IF(AND(CostType=LOM,LOMComplete,CF$27<=ScheduleYear),SUMPRODUCT(CF143:CF148,$J143:$J148),IF(CostType=Bond,SUMPRODUCT($EB143:$EB148,CF143:CF148,$EA143:$EA148),IF(CF$27<=ScheduleYear,0,SUMPRODUCT(CF143:CF148,$EB143:$EB148))))) -> 0 | CG142: 0 | CH142: 0 | CI142: 0 | CJ142: 0 | CK142: 0 | CL142: 0 | CM142: 0 | CN142: 0 | CO142: 0 | CP142: 0 | CQ142: 0 | CR142: 0 | CS142: 0 | CT142: 0 | CU142: 0 | CV142: 0 | CW142: 0 | CX142: 0 | CY142: 0 | CZ142: 0 | DA142: 0 | DB142: 0 | DC142: 0 | DD142: 0 | DE142: 0 | DF142: 0 | DG142: 0 | DH142: 0 | DI142: 0 | DJ142: 0 | DK142: 0 | DL142: =IF(ISTEXT($EB142),0,IF(AND(CostType=LOM,LOMComplete,DL$27<=ScheduleYear),SUMPRODUCT(DL143:DL148,$J143:$J148),IF(CostType=Bond,SUMPRODUCT($EB143:$EB148,DL143:DL148,$EA143:$EA148),IF(DL$27<=ScheduleYear,0,SUMPRODUCT(DL143:DL148,$EB143:$EB148))))) -> 0 | DM142: 0 | DN142: 0 | DO142: 0 | DP142: =IF(ISNUMBER(K142),SUM(T142:DO142)-K142,K142) -> 0 | EB142: =IF(ISERR(ED142),"Cost Type",IF(A142="X","Override",IF(AND(CostType=ARO,L142>ScheduleYear),0,IF(AND(ISTEXT(LocationFilter),ISERROR(EI142)),"Location",IF(AND(ISTEXT(PropertyFilter),ISERROR(EJ142)),"Property",IF(AND(ISTEXT(FacilityTypeFilter),ISERROR(EG142)),"Facility Type",IF(AND(ISTEXT(IDCodeFilter),ISERROR(EF142)),"ID Code",IF(AND(ISTEXT(PhaseFilter),ISERROR(EH142)),"Phase",J142)))))))) -> 202593 | EC142: =IF(EE142="","Cost Type",IF(A142="X","Override",IF(AND(OtherCostType=ARO,L142>ScheduleYear),0,IF(AND(ISTEXT(LocationFilter),EI142=""),"Location",IF(AND(ISTEXT(PropertyFilter),EJ142=""),"Property",IF(AND(ISTEXT(FacilityTypeFilter),EG142=""),"Facility Type",IF(AND(ISTEXT(IDCodeFilter),EF142=""),"ID Code",IF(AND(ISTEXT(PhaseFilter),EH142=""),"Phase",J142)))))))) ->  | ED142: =SEARCH(CostType,C142) -> 1 | EE142: =SEARCH(OtherCostType,C142) ->  | EF142: =IF(AND(IDCodeFilterType="CONTAINS",NOT(ISERROR(SEARCH(IDCodeFilter,E142)))),1,IF(AND(IDCodeFilterType="NOT",ISERROR(SEARCH(IDCodeFilter,E142))),1,IF(AND(OR(IDCodeFilterType="EXACT",ISBLANK(IDCodeFilterType)),NOT(ISERROR(MATCH(IDCodeFilter,E142,0)))),1,$EK142))) ->  | EG142: =IF(AND(FacilityFilterType="CONTAINS",NOT(ISERROR(SEARCH(FacilityTypeFilter,F142)))),1,IF(AND(FacilityFilterType="NOT",ISERROR(SEARCH(FacilityTypeFilter,F142))),1,IF(AND(OR(FacilityFilterType="EXACT",ISBLANK(FacilityFilterType)),NOT(ISERROR(MATCH(FacilityTypeFilter,F142,0)))),1,$EK142))) ->  | EH142: =IF(AND(PhaseFilterType="CONTAINS",NOT(ISERROR(SEARCH(PhaseFilter,G142)))),1,IF(AND(PhaseFilterType="NOT",ISERROR(SEARCH(PhaseFilter,G142))),1,IF(AND(OR(PhaseFilterType="EXACT",ISBLANK(PhaseFilterType)),NOT(ISERROR(MATCH(PhaseFilter,G142,0)))),1,$EK142))) ->  | EI142: =IF(AND(LocationFilterType="CONTAINS",NOT(ISERROR(SEARCH(LocationFilter,H142)))),1,IF(AND(LocationFilterType="NOT",ISERROR(SEARCH(LocationFilter,H142))),1,IF(AND(OR(LocationFilterType="EXACT",ISBLANK(LocationFilterType)),NOT(ISERROR(MATCH(LocationFilter,H142,0)))),1,$EK142))) ->  | EJ142: =IF(AND(PropertyFilterType="CONTAINS",NOT(ISERROR(SEARCH(PropertyFilter,I142)))),1,IF(AND(PropertyFilterType="NOT",ISERROR(SEARCH(PropertyFilter,I142))),1,IF(AND(OR(PropertyFilterType="EXACT",ISBLANK(PropertyFilterType)),NOT(ISERROR(MATCH(PropertyFilter,I142,0)))),1,$EK142))) ->  | EK142: =MATCH("NOT",$EK$27,0) ->  | EL142: =IF(ISBLANK(INDEX(INDIRECT("_"&$A$29&"Table1"),B142+1,2)),"",MATCH(INDEX(INDIRECT("_"&$A$29&"Table1"),B142+1,5),Accounts,0)) -> 2 | EM142: Surf Area | EN142: Surf Area | EO142: =IF(ISNUMBER(K148),INDEX(INDIRECT("_"&$A$29&"Table8"),B142+1,5),"") -> 10.85 | EP142: =IF(Metric,"ha","acres") -> acres | EZ142: FALSE | FA142: 1
D143: Regrading | J143: =IF(INDEX(INDIRECT("_"&$A$29&"Table4"),B142+1,15)=0,0,INDEX(INDIRECT("_"&$A$29&"Table4"),B142+1,15)) -> 19155 | K143: =IF(OR(J143="",K142="",ISTEXT(K142),J143=0),"",IF(OR(ISBLANK(M143),ISBLANK(N143)),"Enter Dates",IF(K142="Date Range","",IF(OR(AND(CostType=ARO,L142>ScheduleYear),AND(CostType=ARO,N143<=ScheduleYear)),"Date Range",IF(OR(AND(CostType=Bond,O143>ScheduleYear),AND(CostType=LOM,LOMComplete)),J143,J143-Q143))))) -> 19155 | M143: 9 | N143: 12 | P143: =IF(K143="","",SUM(T143:DO143)) -> 1 | Q143: =IF(OR(AND(CostType=ARO,N143<=ScheduleYear),AND(CostType=LOM,LOMComplete)),J143*R143,R143*EB143) -> 0 | R143: =IF(CostType=Bond,SUMIFS(T143:DP143,T$27:DP$27,"<="&O143,T$27:DP$27,"<="&ScheduleYear),SUMIF(T$27:DP$27,"<="&ScheduleYear,T143:DP143)) -> 0 | AB143: 0.25 | AC143: 0.25 | AD143: 0.25 | AE143: 0.25 | EA143: 1 | EB143: =IF(OR(J143="",EB142="",ISTEXT(EB142)),0,IF(OR(ISBLANK(M143),ISBLANK(N143)),0,IF(OR(AND(CostType=ARO,L142>ScheduleYear),AND(OR(CostType=ARO,AND(CostType=LOM,LOMComplete=TRUE)),N143<=ScheduleYear)),0,J143))) -> 19155 | EC143: =IF(OR(J143="",EC142="",ISTEXT(EC142)),0,IF(OR(ISBLANK(M143),ISBLANK(N143)),0,IF(EC142="Date Range",0,IF(OR(AND(OtherCostType=ARO,L142>ScheduleYear),N143<=ScheduleYear),0,J143)))) ->  | EM143: Regrade | EN143: Regrade | EO143: =IF(ISNUMBER(K143),IF(INDEX(INDIRECT("_"&$A$29&"Table4"),B142+1,3)=0,0,INDEX(INDIRECT("_"&$A$29&"Table4"),B142+1,3)),0) -> 60060 | EP143: =IF(Metric,"m3","cy") -> cy | EQ143: =INDEX(INDIRECT("_"&$A$29&"Table4"),B142+1,5) -> D9T | ES143: =IF(OR(NOT(ISNUMBER(K143)),K143=0),0,INDEX(INDIRECT("_"&$A$29&"Table4"),B142+1,12)) -> 81 | EW143: =IF(ISNUMBER($K143),INDEX(INDIRECT("_"&$A$29&"Table4"),B142+1,13),0) -> 2103 | EX143: =IF(ISNUMBER($K143),INDEX(INDIRECT("_"&$A$29&"Table4"),B142+1,14),0) -> 17052 | EZ143: TRUE
D144: Cover 1 Placement | J144: =INDEX(INDIRECT("_"&$A$29&"Table5"),B142+1,25) -> 0 | K144: =IF(OR(J144="",K142="",ISTEXT(K142),J144=0),"",IF(OR(ISBLANK(M144),ISBLANK(N144)),"Enter Dates",IF(K142="Date Range","",IF(OR(AND(CostType=ARO,L142>ScheduleYear),AND(CostType=ARO,N144<=ScheduleYear)),"Date Range",IF(OR(AND(CostType=Bond,O144>ScheduleYear),AND(CostType=LOM,LOMComplete)),J144,J144-Q144))))) ->  | M144: 14 | N144: 15 | Q144: 0 | R144: 0 | AG144: 0.5 | AH144: 0.5 | EA144: 1 | EB144: =IF(OR(J144="",EB142="",ISTEXT(EB142)),0,IF(OR(ISBLANK(M144),ISBLANK(N144)),0,IF(OR(AND(CostType=ARO,L142>ScheduleYear),AND(OR(CostType=ARO,AND(CostType=LOM,LOMComplete=TRUE)),N144<=ScheduleYear)),0,J144))) -> 0 | EC144: =IF(OR(J144="",EC142="",ISTEXT(EC142)),0,IF(OR(ISBLANK(M144),ISBLANK(N144)),0,IF(EC142="Date Range",0,IF(OR(AND(CostType=ARO,L142>ScheduleYear),N144<=ScheduleYear),0,J144)))) ->  | EM144: Cover | EN144: Cover | EO144: =IF(ISNUMBER(K144),INDEX(INDIRECT("_"&$A$29&"Table5"),B142+1,4),0) -> 0 | EP144: =IF(Metric,"m3","cy") -> cy | EQ144: =INDEX(INDIRECT("_"&$A$29&"Table5"),B142+1,10) ->  | ER144: =IF(OR(NOT(ISNUMBER(K144)),K144=0),0,INDEX(INDIRECT("_"&$A$29&"Table5"),B142+1,12)) -> 0 | ES144: =IF(OR(NOT(ISNUMBER(K144)),K144=0),0,INDEX(INDIRECT("_"&$A$29&"Table5"),B142+1,14)) -> 0 | ET144: =INDEX(INDIRECT("_"&$A$29&"Table5"),B142+1,5) ->  | EU144: =IF(OR(NOT(ISNUMBER(K144)),K144=0),0,INDEX(INDIRECT("_"&$A$29&"Table5"),B142+1,7)) -> 0 | EV144: =IF(OR(NOT(ISNUMBER(K144)),K144=0),0,INDEX(INDIRECT("_"&$A$29&"Table5"),B142+1,9)) -> 0 | EW144: =IF(ISNUMBER($K144),INDEX(INDIRECT("_"&$A$29&"Table5"),B142+1,15)+INDEX(INDIRECT("_"&$A$29&"Table5"),B142+1,19)+INDEX(INDIRECT("_"&$A$29&"Table5"),B142+1,22),0) -> 0 | EX144: =IF(ISNUMBER($K143),INDEX(INDIRECT("_"&$A$29&"Table5"),B142+1,16)+INDEX(INDIRECT("_"&$A$29&"Table5"),B142+1,20)+INDEX(INDIRECT("_"&$A$29&"Table5"),B142+1,23),0) -> 0 | EZ144: TRUE
D145: Cover 2 Placement | J145: =INDEX(INDIRECT("_"&$A$29&"Table6"),B142+1,25) -> 0 | K145: =IF(OR(J145="",K142="",ISTEXT(K142),J145=0),"",IF(OR(ISBLANK(M145),ISBLANK(N145)),"Enter Dates",IF(K142="Date Range","",IF(OR(AND(CostType=ARO,L142>ScheduleYear),AND(CostType=ARO,N145<=ScheduleYear)),"Date Range",IF(OR(AND(CostType=Bond,O145>ScheduleYear),AND(CostType=LOM,LOMComplete)),J145,J145-Q145))))) ->  | M145: 14 | N145: 15 | Q145: 0 | R145: 0 | AG145: 0.5 | AH145: 0.5 | EA145: 1 | EB145: =IF(OR(J145="",EB142="",ISTEXT(EB142)),0,IF(OR(ISBLANK(M145),ISBLANK(N145)),0,IF(OR(AND(CostType=ARO,L142>ScheduleYear),AND(OR(CostType=ARO,AND(CostType=LOM,LOMComplete=TRUE)),N145<=ScheduleYear)),0,J145))) -> 0 | EC145: =IF(OR(J145="",EC142="",ISTEXT(EC142)),0,IF(OR(ISBLANK(M145),ISBLANK(N145)),0,IF(EC142="Date Range",0,IF(OR(AND(CostType=ARO,L142>ScheduleYear),N145<=ScheduleYear),0,J145)))) ->  | EM145: Cover | EN145: Cover | EO145: =IF(ISNUMBER(K145),INDEX(INDIRECT("_"&$A$29&"Table6"),B142+1,4),0) -> 0 | EP145: =IF(Metric,"m3","cy") -> cy | EQ145: =INDEX(INDIRECT("_"&$A$29&"Table6"),B142+1,10) ->  | ER145: =IF(OR(NOT(ISNUMBER(K145)),K145=0),0,INDEX(INDIRECT("_"&$A$29&"Table6"),B142+1,12)) -> 0 | ES145: =IF(OR(NOT(ISNUMBER(K145)),K145=0),0,INDEX(INDIRECT("_"&$A$29&"Table6"),B142+1,14)) -> 0 | ET145: =INDEX(INDIRECT("_"&$A$29&"Table6"),B142+1,5) ->  | EU145: =IF(OR(NOT(ISNUMBER(K145)),K145=0),0,INDEX(INDIRECT("_"&$A$29&"Table6"),B142+1,7)) -> 0 | EV145: =IF(OR(NOT(ISNUMBER(K145)),K145=0),0,INDEX(INDIRECT("_"&$A$29&"Table6"),B142+1,9)) -> 0 | EZ145: TRUE
D146: Growth Media Placement | J146: =INDEX(INDIRECT("_"&$A$29&"Table7"),B142+1,11) -> 169173 | K146: =IF(OR(J146="",K142="",ISTEXT(K142),J146=0),"",IF(OR(ISBLANK(M146),ISBLANK(N146)),"Enter Dates",IF(K142="Date Range","",IF(OR(AND(CostType=ARO,L142>ScheduleYear),AND(CostType=ARO,N146<=ScheduleYear)),"Date Range",IF(OR(AND(CostType=Bond,O146>ScheduleYear),AND(CostType=LOM,LOMComplete)),J146,J146-Q146))))) -> 169173 | M146: 14 | N146: 15 | P146: 1 | Q146: 0 | R146: 0 | AG146: 0.5 | AH146: 0.5 | EA146: 1 | EB146: =IF(OR(J146="",EB142="",ISTEXT(EB142)),0,IF(OR(ISBLANK(M146),ISBLANK(N146)),0,IF(OR(AND(CostType=ARO,L142>ScheduleYear),AND(OR(CostType=ARO,AND(CostType=LOM,LOMComplete=TRUE)),N146<=ScheduleYear)),0,J146))) -> 169173 | EC146: =IF(OR(J146="",EC142="",ISTEXT(EC142)),0,IF(OR(ISBLANK(M146),ISBLANK(N146)),0,IF(EC142="Date Range",0,IF(OR(AND(CostType=ARO,L142>ScheduleYear),N146<=ScheduleYear),0,J146)))) ->  | EM146: GM | EN146: GM | EO146: =IF(ISNUMBER(K146),INDEX(INDIRECT("_"&$A$29&"Table7"),B142+1,3),0) -> 52514 | EP146: =IF(Metric,"m3","cy") -> cy | EQ146: =INDEX(INDIRECT("_"&$A$29&"Table7"),B142+1,4) -> 777G/992K/D9T | ER146: =IF(OR(NOT(ISNUMBER(K146)),K146=0),0,INDEX(INDIRECT("_"&$A$29&"Table7"),B142+1,6)) -> 5 | ES146: =IF(OR(NOT(ISNUMBER(K146)),K146=0),0,INDEX(INDIRECT("_"&$A$29&"Table7"),B142+1,8)) -> 48 | EZ146: TRUE
D147: Ripping/Scarifying | J147: =INDEX(INDIRECT("_"&$A$29&"Table8"),B142+1,13) -> 1613 | K147: =IF(OR(J147="",K142="",ISTEXT(K142),J147=0),"",IF(OR(ISBLANK(M147),ISBLANK(N147)),"Enter Dates",IF(K142="Date Range","",IF(OR(AND(CostType=ARO,L142>ScheduleYear),AND(CostType=ARO,N147<=ScheduleYear)),"Date Range",IF(OR(AND(CostType=Bond,O147>ScheduleYear),AND(CostType=LOM,LOMComplete)),J147,J147-Q147))))) -> 1613 | M147: 14 | N147: 15 | P147: 1 | Q147: 0 | R147: 0 | AG147: 0.5 | AH147: 0.5 | EA147: 1 | EB147: =IF(OR(J147="",EB142="",ISTEXT(EB142)),0,IF(OR(ISBLANK(M147),ISBLANK(N147)),0,IF(OR(AND(CostType=ARO,L142>ScheduleYear),AND(OR(CostType=ARO,AND(CostType=LOM,LOMComplete=TRUE)),N147<=ScheduleYear)),0,J147))) -> 1613 | EC147: =IF(OR(J147="",EC142="",ISTEXT(EC142)),0,IF(OR(ISBLANK(M147),ISBLANK(N147)), 0,IF(EC142="Date Range",0,IF(OR(AND(CostType=ARO,L142>ScheduleYear),N147<=ScheduleYear),0,J147)))) ->  | EM147: Rip | EN147: Rip | EO147: =IF(ISNUMBER(K147),INDEX(INDIRECT("_"&$A$29&"Table8"),B142+1,5),0) -> 10.85 | EP147: =IF(Metric,"ha","acres") -> acres | EQ147: =INDEX(INDIRECT("_"&$A$29&"Table8"),B142+1,8) -> 14M | ES147: =IF(OR(NOT(ISNUMBER(K147)),K147=0),0,INDEX(INDIRECT("_"&$A$29&"Table8"),B142+1,9)+INDEX(INDIRECT("_"&$A$29&"Table8"),B142+1,10)) -> 8 | EZ147: TRUE
D148: Revegetation | J148: =INDEX(INDIRECT("_"&$A$29&"Table8"),B142+1,17) -> 12652 | K148: =IF(OR(J148="",K142="",ISTEXT(K142),J148=0),"",IF(OR(ISBLANK(M148),ISBLANK(N148)),"Enter Dates",IF(K142="Date Range","",IF(OR(AND(CostType=ARO,L142>ScheduleYear),AND(CostType=ARO,N148<=ScheduleYear)),"Date Range",IF(OR(AND(CostType=Bond,O148>ScheduleYear),AND(CostType=LOM,LOMComplete)),J148,J148-Q148))))) -> 12652 | M148: 14 | N148: 15 | P148: 1 | Q148: 0 | R148: 0 | AG148: 0.5 | AH148: 0.5 | EA148: 1 | EB148: =IF(OR(J148="",EB142="",ISTEXT(EB142)),0,IF(OR(ISBLANK(M148),ISBLANK(N148)),0,IF(OR(AND(CostType=ARO,L142>ScheduleYear),AND(OR(CostType=ARO,AND(CostType=LOM,LOMComplete=TRUE)),N148<=ScheduleYear)),0,J148))) -> 12652 | EC148: =IF(OR(J148="",EC142="",ISTEXT(EC142)),0,IF(OR(ISBLANK(M148),ISBLANK(N148)), 0,IF(EC142="Date Range",0,IF(OR(AND(CostType=ARO,L142>ScheduleYear),N148<=ScheduleYear),0,J148)))) ->  | EM148: Reveg | EN148: Reveg | EO148: =IF(ISNUMBER(K148),INDEX(INDIRECT("_"&$A$29&"Table8"),B142+1,5),0) -> 10.85 | EP148: =IF(Metric,"ha","acres") -> acres | EZ148: TRUE
